Workbook

Sheet Master
A2: Überschlägige Wirtschaftlichkeitsbetrachtung | D2: BV: medrow / 06.08.2012
A4: Eingaben:
A5: Anlagenheizlast | D5: 40 | E5: kW | G5: Einstellbereich 30 - 500 kW
A6: Jahresvollbenutzungsstunden | D6: 2000 | E6: h | G6: Einstellbereich 1200 - 3000 h
A7: Energiepreissteigeungsrate in % | D7: 7 | E7: % | G7: Einstellbereich 5 - 10 %
A8: Bitte hier die Investitionskosten für den neuen Gas-Brennwert- kessel eintragen (und danach nochmals "Berechnen" drücken): | D8: 5000 | E8: € | F8: =IF(D8<3000,"zu niedrig",(IF(D8>40000,"zu hoch",""))) ->  | G8: Einstellbereich 3000 - 40000 € | P8: 1 | Q8: 2 | R8: 3 | S8: 4
O9: 1 | P9: =AND($K$14=1,$K$27=1) -> FALSE | Q9: =AND($K$14=2,$K$27=1) -> FALSE | R9: =AND($K$14=3,$K$27=1) -> FALSE | S9: =AND($K$14=4,$K$27=1) -> FALSE | T9: =OR(P9,Q9,R9,S9,) -> FALSE | U9: 1xSWmono
J10: 1 | K10: bestehender Ölkessel | O10: 2 | P10: =AND($K$14=1,K$27=2) -> FALSE | Q10: =AND($K$14=2,$K$27=2) -> TRUE | R10: =AND($K$14=3,$K$27=2) -> FALSE | S10: =AND($K$14=4,$K$27=2) -> FALSE | T10: =OR(P10,Q10,R10,S10) -> TRUE | U10: 2xSWmono
J11: 2 | K11: neuer Gas-Brennwertkessel | O11: 3 | P11: =AND($K$14=1,K$27=3) -> FALSE | Q11: =AND($K$14=2,$K$27=3) -> FALSE | R11: =AND($K$14=3,$K$27=3) -> FALSE | S11: =AND($K$14=4,$K$27=3) -> FALSE | T11: =OR(P11,Q11,R11,S11) -> FALSE | U11: 3xSWmono
J12: 3 | K12: neuer Gas-Brennwertkessel (Flüssiggas) | O12: 4 | P12: =AND($K$14=1,K$27=4) -> FALSE | Q12: =AND($K$14=2,$K$27=4) -> FALSE | R12: =AND($K$14=3,$K$27=4) -> FALSE | S12: =AND($K$14=4,$K$27=4) -> FALSE | T12: =OR(P12,Q12,R12,S12,) -> FALSE | U12: 1xSWbival
J13: 4 | K13: neuer Pelletkessel | O13: 5 | P13: =AND($K$14=1,K$27=5) -> FALSE | Q13: =AND($K$14=2,$K$27=5) -> FALSE | R13: =AND($K$14=3,$K$27=5) -> FALSE | S13: =AND($K$14=4,$K$27=5) -> FALSE | T13: =OR(P13,Q13,R13,S13) -> FALSE | U13: 2xSWbival
K14: 2 | O14: 6 | P14: =AND($K$14=1,K$27=6) -> FALSE | Q14: =AND($K$14=2,$K$27=6) -> FALSE | R14: =AND($K$14=3,$K$27=6) -> FALSE | S14: =AND($K$14=4,$K$27=6) -> FALSE | T14: =OR(P14,Q14,R14,S14) -> FALSE | U14: 3xSWbival
A15: Geben Sie bitte die gewünschte neue Anlagenkonfiguration sowie die Referenzanlagenkonfiguration ein: | O15: 7 | P15: =AND($K$14=1,K$27=7) -> FALSE | Q15: =AND($K$14=2,$K$27=7) -> FALSE | R15: =AND($K$14=3,$K$27=7) -> FALSE | S15: =AND($K$14=4,$K$27=7) -> FALSE | T15: =OR(P15,Q15,R15,S15,) -> FALSE | U15: 1xLWbival
A16: neue Anlagenkonfiguration | D16: Referenzanlagenkonfiguration | J16: 1 | K16: 1 x GAWP SW monovalent | O16: 8 | P16: =AND($K$14=1,K$27=8) -> FALSE | Q16: =AND($K$14=2,$K$27=8) -> FALSE | R16: =AND($K$14=3,$K$27=8) -> FALSE | S16: =AND($K$14=4,$K$27=8) -> FALSE | T16: =OR(P16,Q16,R16,S16) -> FALSE | U16: 2xLWbival
J17: 2 | K17: 2 x GAWP SW monovalent | O17: 9 | P17: =AND($K$14=1,K$27=9) -> FALSE | Q17: =AND($K$14=2,$K$27=9) -> FALSE | R17: =AND($K$14=3,$K$27=9) -> FALSE | S17: =AND($K$14=4,$K$27=9) -> FALSE | T17: =OR(P17,Q17,R17,S17) -> FALSE | U17: 3xLWbival
J18: 3 | K18: 3 x GAWP SW monovalent | P18: =OR(P9,P10,P11,P12,P13,P14,P15,P16,P17) -> FALSE | Q18: =OR(Q9,Q10,Q11,Q12,Q13,Q14,Q15,Q16,Q17) -> TRUE | R18: =OR(R9,R10,R11,R12,R13,R14,R15,R16,R17) -> FALSE | S18: =OR(S9,S10,S11,S12,S13,S14,S15,S16,S17) -> FALSE
J19: 4 | K19: 1 x GAWP SW bivalent | P19: best. ÖL | Q19: n. Gas-BW | R19: n. Fl Gas-BW | S19: n. Pellet
A20: =IF(T9=TRUE,(IF(D5<41,"","Anlagenheizlast zu groß")),(IF(T10=TRUE,(IF(D5<81,"","Anlagenheizlast zu groß")),(IF(T11=TRUE,(IF(D5<121,"","Anlagenheizlast zu groß")),""))))) ->  | J20: 5 | K20: 2 x GAWP SW bivalent
A21: Gegeben: | J21: 6 | K21: 3 x GAWP SW bivalent | Q21: Überprüfung ob Invest zu niedrig oder zu hoch
A22: Aktueller Gaspreis | D22: 0.055 | E22: €/kWh | J22: 7 | K22: 1 x GAWP LW bivalent | Q22: =IF(F8="zu niedrig",FALSE,(IF(F8="zu hoch",FALSE,(TRUE)))) -> TRUE
A23: Aktueller Strompreis | D23: 0.2 | E23: €/kWh | J23: 8 | K23: 2 x GAWP LW bivalent
A24: Gemittelter Wirkungsgrad Gasbrennwertgerät | D24: 1.06 | J24: 9 | K24: 3 x GAWP LW bivalent
A25: Gemittelter Wirkungsgrad GAWP SW | D25: 1.55
A26: Elektr. Leistung GAWP SW | D26: 0.47 | E26: kW
A27: Elektr. Leistung Kesselkreispumpe | D27: 0.06 | E27: kW | K27: 2
A28: Elektr. Leistung Umwälzpumpe GAWP | D28: 0.05 | E28: kW
A30: Gesucht: | B30: Investitions- und Betriebskosten während 20 Jahren
K31: =('SW bival ÖL'!A52) -> Spitzenlastkessel GMR 3035 (35 kW)
A32: 1. | K32: =('SW bival ÖL'!D52) -> 3600
A33: Errechnung der mittleren Energiepreise binnen 20 Jahren
A35: Gaspreis Anfangsjahr: | D35: 0.055 | E35: €/kWh
A36: Gaspreis im 20´sten Jahr: | D36: 0.1989090144 | E36: €/kWh
A37: Mittlerer Gaspreis während 20 Jahren: | D37: 0.1127376039 | E37: €/kWh
A39: Strompreis Anfangsjahr: | D39: 0.2 | E39: €/kWh
A40: Strompreis im 20´sten Jahr: | D40: 0.723305507 | E40: €/kWh
A41: Mittlerer Strompreis während 20 Jahren: | D41: 0.4099549232 | E41: €/kWh
A43: 2.
A44: Betrachtung für ein neues Gasbrennwertgerät | D44: 40 | E44: kW
A46: 2a
A47: Investitionskosten | D47: 5000 | E47: €
A48: Investitionskosten gesamt: | D48: 5000 | E48: € | I48: R_I_GAS
A50: 2b
A51: Betriebskosten Gas-Brennwertgerät
A52: Jahresarbeit Gas-Brennwertgerät | D52: 80000 | E52: kWh/a | F52: (Leistung x Jahresvollbenutzungsstunden)
A53: Energieverbrauch Gas-Brennwertgerät | D53: 75471.69811 | E53: kWh/a | F53: (Wirkungsgrad berücksichtigt) | I53: R_B_GAS
A54: Kosten Gas | D54: 8508.498406 | E54: €/a
A55: Wartungskosten Gas-Brennwertgerät | D55: 300 | E55: €/a | I55: R_B_WART_GAS
A56: Stromverbrauch 1 Stück Kesselkreispumpe | D56: 120 | E56: kWh/a | I56: R_B_STROM_GAS
A57: Stromkosten 1 Stück Kesselkreispumpe | D57: 49.19459079 | E57: €/a | F57: (Stromverbrauch x mittlerer Strompreis)
A59: Betriebskosten pro Jahr gesamt: | D59: 8857.692997 | E59: €/a
A61: 3.
A62: Betrachtung für zwei GAWP 40 SW (80 kW) monovalent
A64: 3a | N64: =(Diagramm!AG28) -> 8857.692997
A65: Investitionskosten
A66: 2 x GAWP + Zubehör | D66: 45000 | E66: €
A67: Förderung BAFA | D67: 9400 | E67: €
A68: Investitionskosten gesamt: | D68: 35600 | E68: € | I68: N_I_GAWP_u_BW
A70: 3b
A71: Betriebskosten
A72: Leistung 2 x GAWP | D72: 40 | E72: kW
A73: Jahresarbeit 2 x GAWP | D73: 80000 | E73: kWh/a | F73: (ergibt sich aus Deckungsrate = 100%)
A75: Vollbenutzungsstunden 2 x GAWP | D75: 2000 | E75: h | F75: (ergibt sich aus Jahresarbeit/Leistung)
A77: Gasverbrauch 2 x GAWP | D77: 51612.90323 | E77: kWh/a | F77: (ergibt sich aus Jahresarbeit/Wirkungsgrad) | I77: N_B_GAS_GAWP
A79: Kosten Gasverbrauch 2 x GAWP | D79: 5818.715039 | E79: €/a | F79: (ergibt sich aus Gasverbrauch x mittlerer Gaspreis)
A81: Wartungskosten 2 x GAWP | D81: 500 | E81: €/a | I81: N_B_WART_GAWP
A83: Stromverbrauch 2 x GAWP | D83: 1880 | E83: kWh/a | I83: N_B_STROM_LÜ_GAWP
A84: Stromkosten 2 x GAWP | D84: 770.7152556 | E84: €/a | F84: (Stromverbrauch x mittlerer Strompreis)
A85: Stromverbrauch 4 x Umwälzpumpe GAWP | D85: 400 | E85: kWh/a | I85: N_B_STROM_PU_GAWP
A86: Stromkosten 4 x Umwälzpumpe GAWP | D86: 163.9819693 | E86: €/a | F86: (Stromverbrauch x mittlerer Strompreis)
A88: Betriebskosten pro Jahr gesamt: | D88: 7253.412264 | E88: €/a
A90: FAZIT:
A91: Mittlere Energieeinsparung pro Jahr bei Einsatz
A92: von zwei monovalenten GAWP SW gegenüber
A93: den Betriebskosten eines Gas-Brennwertgerätes | D93: 1604.280733 | E93: €/a | N93: =(Diagramm!AH28) -> 7253.412264
A95: Differenz Investitionskosten: | D95: 30600 | E95: €
A97: Für einen auf 20 Jahre gemittelten Engergiepreis
A98: ergibt sich eine Amortisationszeit von: | D98: 19.0739684 | E98: Jahren | N98: =(Diagramm!AI28) -> 1604.280733
N100: =(Diagramm!AJ6) -> 30600
M117: Differenz
M118: Invest
K119: Betriebsk. | L119: Betriebsk. | M119: minus
K120: Referenz- | L120: neue | M120: Differenz
K121: Anlage | L121: Anlage | M121: Betriebsk.
J122: Jahr | K122: € | L122: € | M122: € | O122: 2
J123: 0 | K123: =(Diagramm!AG6) -> 4474.943396 | L123: =(Diagramm!AH6) -> 3794.709677 | M123: =(Diagramm!AK6) -> 29919.76628 | O123: =IF(M123<0,1,2) -> 2 | P123: =IF(AND(O123=1,O122=2),TRUE,FALSE) -> FALSE | Q123: =IF(AND(O123=2,O122=2),TRUE,FALSE) -> TRUE | R123: =OR(P123,Q123) -> TRUE
J124: 1 | K124: =(Diagramm!AG7) -> 4767.189434 | L124: =(Diagramm!AH7) -> 4025.339355 | M124: =(Diagramm!AK7) -> 29177.9162 | O124: =IF(M124<0,1,2) -> 2 | P124: =IF(AND(O124=1,O123=2),TRUE,FALSE) -> FALSE | Q124: =IF(AND(O124=2,O123=2),TRUE,FALSE) -> TRUE | R124: =OR(P124,Q124) -> TRUE
J125: 2 | K125: =(Diagramm!AG8) -> 5079.892694 | L125: =(Diagramm!AH8) -> 4272.11311 | M125: =(Diagramm!AK8) -> 28370.13662 | O125: 2 | P125: FALSE | Q125: TRUE | R125: TRUE
J126: 3 | K126: =(Diagramm!AG9) -> 5414.485183 | L126: =(Diagramm!AH9) -> 4536.161027 | M126: =(Diagramm!AK9) -> 27491.81246 | O126: 2 | P126: FALSE | Q126: TRUE | R126: TRUE
J127: 4 | K127: =(Diagramm!AG10) -> 5772.499146 | L127: =(Diagramm!AH10) -> 4818.692299 | M127: =(Diagramm!AK10) -> 26538.00562 | O127: 2 | P127: FALSE | Q127: TRUE | R127: TRUE
J128: 5 | K128: =(Diagramm!AG11) -> 6155.574086 | L128: =(Diagramm!AH11) -> 5121.00076 | M128: =(Diagramm!AK11) -> 25503.43229 | O128: 2 | P128: FALSE | Q128: TRUE | R128: TRUE
J129: 6 | K129: =(Diagramm!AG12) -> 6565.464272 | L129: =(Diagramm!AH12) -> 5444.470813 | M129: =(Diagramm!AK12) -> 24382.43883 | O129: 2 | P129: FALSE | Q129: TRUE | R129: TRUE
J130: 7 | K130: =(Diagramm!AG13) -> 7004.046771 | L130: =(Diagramm!AH13) -> 5790.58377 | M130: =(Diagramm!AK13) -> 23168.97583 | O130: 2 | P130: FALSE | Q130: TRUE | R130: TRUE
J131: 8 | K131: =(Diagramm!AG14) -> 7473.330045 | L131: =(Diagramm!AH14) -> 6160.924634 | M131: =(Diagramm!AK14) -> 21856.57042 | O131: 2 | P131: FALSE | Q131: TRUE | R131: TRUE
J132: 9 | K132: =(Diagramm!AG15) -> 7975.463148 | L132: =(Diagramm!AH15) -> 6557.189359 | M132: =(Diagramm!AK15) -> 20438.29663 | O132: 2 | P132: FALSE | Q132: TRUE | R132: TRUE
J133: 10 | K133: =(Diagramm!AG16) -> 8512.745568 | L133: =(Diagramm!AH16) -> 6981.192614 | M133: =(Diagramm!AK16) -> 18906.74368 | O133: 2 | P133: FALSE | Q133: TRUE | R133: TRUE
J134: 11 | K134: =(Diagramm!AG17) -> 9087.637758 | L134: =(Diagramm!AH17) -> 7434.876097 | M134: =(Diagramm!AK17) -> 17253.98201 | O134: 2 | P134: FALSE | Q134: TRUE | R134: TRUE
J135: 12 | K135: =(Diagramm!AG18) -> 9702.772401 | L135: =(Diagramm!AH18) -> 7920.317424 | M135: =(Diagramm!AK18) -> 15471.52704 | O135: 2 | P135: FALSE | Q135: TRUE | R135: TRUE
J136: 13 | K136: =(Diagramm!AG19) -> 10360.96647 | L136: =(Diagramm!AH19) -> 8439.739643 | M136: =(Diagramm!AK19) -> 13550.30021 | O136: 2 | P136: FALSE | Q136: TRUE | R136: TRUE
J137: 14 | K137: =(Diagramm!AG20) -> 11065.23412 | L137: =(Diagramm!AH20) -> 8995.521418 | M137: =(Diagramm!AK20) -> 11480.58751 | O137: 2 | P137: FALSE | Q137: TRUE | R137: TRUE
J138: 15 | K138: =(Diagramm!AG21) -> 11818.80051 | L138: =(Diagramm!AH21) -> 9590.207918 | M138: =(Diagramm!AK21) -> 9251.994913 | O138: 2 | P138: FALSE | Q138: TRUE | R138: TRUE
J139: 16 | K139: =(Diagramm!AG22) -> 12625.11655 | L139: =(Diagramm!AH22) -> 10226.52247 | M139: =(Diagramm!AK22) -> 6853.400838 | O139: 2 | P139: FALSE | Q139: TRUE | R139: TRUE
J140: 17 | K140: =(Diagramm!AG23) -> 13487.8747 | L140: =(Diagramm!AH23) -> 10907.37904 | M140: =(Diagramm!AK23) -> 4272.905177 | O140: 2 | P140: FALSE | Q140: TRUE | R140: TRUE
J141: 18 | K141: =(Diagramm!AG24) -> 14411.02593 | L141: =(Diagramm!AH24) -> 11635.89558 | M141: =(Diagramm!AK24) -> 1497.774821 | O141: 2 | P141: FALSE | Q141: TRUE | R141: TRUE
J142: 19 | K142: =(Diagramm!AG25) -> 15398.79775 | L142: =(Diagramm!AH25) -> 12415.40827 | M142: =(Diagramm!AK25) -> -1485.61466 | O142: 1 | P142: TRUE | Q142: FALSE | R142: TRUE
A151: Obenstehende Berechnung versteht sich als überschlägig. Ein genaueres Ergebniss zur Amortisationszeit kann bei Erstellung eines auf das
A152: Bauvorhaben bezogenen Angebot gemacht werden. Für Rückfragen wenden Sie sich bitte an:
A153: Firma OERTLI Rohleder GmbH, Raiffeisenstrasse 3, 71696 Möglingen, Tel: +49 (0) 7141 - 2454-0, info@oertli.de, www.oertli.de

Sheet Energiepreisberechnung
B2: Jahr | C2: Gaspreis € | D2: Flüssig-gaspreis € | E2: Strompreis € | F2: Ölpreis € | G2: Pelletpreis € | H2: Preisstei- gerungs- rate Gas | I2: Preisstei- gerungs- rate Fl.Gas | J2: Preisstei- gerungs- rate Strom | K2: Preisstei- gerungs- rate Öl | L2: Preisstei- gerungs- rate Pellet
B3: 1 | C3: =(D28) -> 0.055 | D3: =(D29) -> 0.07 | E3: =(D31) -> 0.2 | F3: =(D30) -> 0.085 | G3: =(D32) -> 0.05 | H3: =(Master!D7/100) -> 0.07 | I3: =(Master!D7/100) -> 0.07 | J3: =(Master!D7/100) -> 0.07 | K3: =(Master!D7/100) -> 0.07 | L3: =(Master!D7/100) -> 0.07
B4: 2 | C4: =(C3+C3*$H$3) -> 0.05885 | D4: =(D3+D3*$I$3) -> 0.0749 | E4: =(E3+E3*$J$3) -> 0.214 | F4: =(F3+F3*$K$3) -> 0.09095 | G4: =(G3+G3*$L$3) -> 0.0535
B5: 3 | C5: =(C4+C4*$H$3) -> 0.0629695 | D5: =(D4+D4*$I$3) -> 0.080143 | E5: =(E4+E4*$J$3) -> 0.22898 | F5: =(F4+F4*$K$3) -> 0.0973165 | G5: =(G4+G4*$L$3) -> 0.057245
B6: 4 | C6: 0.067377365 | D6: 0.08575301 | E6: 0.2450086 | F6: 0.104128655 | G6: 0.06125215
B7: 5 | C7: 0.07209378055 | D7: 0.0917557207 | E7: 0.262159202 | F7: 0.1114176609 | G7: 0.0655398005
B8: 6 | C8: 0.07714034519 | D8: 0.09817862115 | E8: 0.2805103461 | F8: 0.1192168971 | G8: 0.07012758654
B9: 7 | C9: 0.08254016935 | D9: 0.1050511246 | E9: 0.3001460704 | F9: 0.1275620799 | G9: 0.07503651759
B10: 8 | C10: 0.08831798121 | D10: 0.1124047034 | E10: 0.3211562953 | F10: 0.1364914255 | G10: 0.08028907382
B11: 9 | C11: 0.09450023989 | D11: 0.1202730326 | E11: 0.343637236 | F11: 0.1460458253 | G11: 0.08590930899
B12: 10 | C12: 0.1011152567 | D12: 0.1286921449 | E12: 0.3676918425 | F12: 0.1562690331 | G12: 0.09192296062
B13: 11 | C13: 0.1081933247 | D13: 0.137700595 | E13: 0.3934302715 | F13: 0.1672078654 | G13: 0.09835756786
B14: 12 | C14: 0.1157668574 | D14: 0.1473396367 | E14: 0.4209703905 | F14: 0.1789124159 | G14: 0.1052425976
B15: 13 | C15: 0.1238705374 | D15: 0.1576534112 | E15: 0.4504383178 | F15: 0.1914362851 | G15: 0.1126095794
B16: 14 | C16: 0.132541475 | D16: 0.16868915 | E16: 0.481969 | F16: 0.204836825 | G16: 0.12049225
B17: 15 | C17: 0.1418193783 | D17: 0.1804973905 | E17: 0.51570683 | F17: 0.2191754028 | G17: 0.1289267075
B18: 16 | C18: 0.1517467347 | D18: 0.1931322079 | E18: 0.5518063081 | F18: 0.234517681 | G18: 0.137951577
B19: 17 | C19: 0.1623690062 | D19: 0.2066514624 | E19: 0.5904327497 | F19: 0.2509339186 | G19: 0.1476081874
B20: 18 | C20: 0.1737348366 | D20: 0.2211170648 | E20: 0.6317630422 | F20: 0.2684992929 | G20: 0.1579407605
B21: 19 | C21: 0.1858962752 | D21: 0.2365952593 | E21: 0.6759864551 | F21: 0.2872942434 | G21: 0.1689966138
B22: 20 | C22: 0.1989090144 | D22: 0.2531569275 | E22: 0.723305507 | F22: 0.3074048405 | G22: 0.1808263768
B23: Summe | C23: =SUM(C3:C22) -> 2.254752078 | D23: =SUM(D3:D22) -> 2.869684462 | E23: =SUM(E3:E22) -> 8.199098464 | F23: =SUM(F3:F22) -> 3.484616847 | G23: =SUM(G3:G22) -> 2.049774616
B24: Mittelwert | C24: =(C23/20) -> 0.1127376039 | D24: =(D23/20) -> 0.1434842231 | E24: =(E23/20) -> 0.4099549232 | F24: =(F23/20) -> 0.1742308424 | G24: =(G23/20) -> 0.1024887308
A28: aktueller Gaspreis | D28: 0.055 | E28: €/kWh
A29: aktueller Flüssiggaspreis | D29: 0.07 | E29: €/kWh
A30: aktueller Ölpreis | D30: 0.085 | E30: €/kWh
A31: aktueller Strompreis | D31: 0.2 | E31: €/kWh
A32: aktueller Pelletpreis | D32: 0.05 | E32: €/kWh

Sheet Spitzenlastkessel
A1: Spitzenlastkessel
A3: Name | B3: kW | D3: Invest Solo | E3: Invest Spitzenl.
A4: GMR 3035 | B4: 35 | C4: Spitzenlastkessel GMR 3035 (35 kW) | D4: 5100 | E4: 3600
A5: GMR 5045 | B5: 45 | C5: Spitzenlastkessel GMR 5045 (45 kW) | D5: 5300 | E5: 3800
A6: GMR 5065 | B6: 65 | C6: Spitzenlastkessel GMR 5065 (65 kW) | D6: 6100 | E6: 4600
A7: GMR 5090 | B7: 90 | C7: Spitzenlastkessel GMR 5090 (90 kW) | D7: 7100 | E7: 5700
A8: GMR 5115 | B8: 115 | C8: Spitzenlastkessel GMR 5115 (115 kW) | D8: 8000 | E8: 6500
A9: GSR 234 | B9: 130 | C9: Spitzenlastkessel GSR 234 (130 kW) | D9: 10800 | E9: 8800
A10: GSR 235 | B10: 180 | C10: Spitzenlastkessel GSR 235 (180 kW) | D10: 12100 | E10: 10100
A11: GSR 236 | B11: 220 | C11: Spitzenlastkessel GSR 236 (220 kW) | D11: 15000 | E11: 13000
A12: GSR 335 | B12: 280 | C12: Spitzenlastkessel GSR 335 (280 kW) | D12: 16000 | E12: 13700
A13: GSR 336 | B13: 350 | C13: Spitzenlastkessel GSR 336 (350 kW) | D13: 18000 | E13: 15700
A14: GSR 337 | B14: 430 | C14: Spitzenlastkessel GSR 337 (430 kW) | D14: 22000 | E14: 19500
A15: GSR 338 | B15: 500 | C15: Spitzenlastkessel GSR 338 (500 kW) | D15: 24000 | E15: 21100
A16: GSR 339 | B16: 570 | C16: Spitzenlastkessel GSR 339 (570 kW) | D16: 25500 | E16: 23000

Sheet Deckungsratenberechung
A3: Prozentuale Anlagen- Heizlast der GAWP | B3: Deckungsrate
A4: 0 | B4: 0 | F4: =VLOOKUP(G4,A4:B24,1,B4:B24) -> 70 | G4: 70 | H4: gegebener Wert der proz. Anlagenheizlast
A5: 5 | B5: 8
A6: 10 | B6: 15 | F6: =VLOOKUP(G4,A4:B24,2) -> 92
A7: 15 | B7: 25
A8: 20 | B8: 33
A9: 25 | B9: 41
A10: 30 | B10: 50
A11: 35 | B11: 58
A12: 40 | B12: 67
A13: 45 | B13: 75
A14: 50 | B14: 80
A15: 55 | B15: 83
A16: 60 | B16: 87
A17: 65 | B17: 90
A18: 70 | B18: 92
A19: 75 | B19: 94
A20: 80 | B20: 96
A21: 85 | B21: 97
A22: 90 | B22: 98
A23: 95 | B23: 99
A24: 100 | B24: 100

Sheet Diagramm
H3: Refenzanlage Investition | K3: Referenzanlage Betrieb | U3: Neue Investition | V3: Neue Betriebskosten mit GAWP | AI3: B | AJ3: A
H4: ÖL | I4: GAS-BW (Gas/Flüssiggas) | J4: Pellet | K4: ÖL | N4: GAS | O4: FLGAS | P4: GAS/FLGAS | R4: Pellet | U4: mit GAWP | V4: Betriebsk. Gas-BW (Gas) | W4: Betriebsk. Gas-BW (FlGas) | X4: Betriebsk. GAWP (Gas) | Y4: Betriebsk. GAWP (FlGas) | Z4: Wartung Gas-BW | AA4: Wartung GAWP | AB4: Stromk. GAWP | AC4: Stromk. GAS-BW | AD4: Stromk. Umwälzp. GAWP | AF4: Jahr | AG4: Referenz- Betriebsk. | AH4: Neue Betriebsk. | AI4: Diff. Betriebsk. | AJ4: Diff. Investition | AK4: A minus B
B5: =(Energiepreisberechnung!B2) -> Jahr | C5: =(Energiepreisberechnung!C2) -> Gaspreis € | D5: =(Energiepreisberechnung!D2) -> Flüssig-gaspreis € | E5: =(Energiepreisberechnung!E2) -> Strompreis € | F5: =(Energiepreisberechnung!F2) -> Ölpreis € | G5: =(Energiepreisberechnung!G2) -> Pelletpreis € | H5: R_I_ÖL | I5: R_I_GAS | J5: R_I_PL | K5: R_B_ÖL | L5: R_B_WART_ÖL | M5: R_B_STROM_ÖL | N5: R_B_GAS | O5: R_B_FLGAS | P5: R_B_WART_GAS | Q5: R_B_STROM_GAS | R5: R_B_PL | S5: R_B_WART_PL | T5: R_B_STROM_PL | U5: N_I_GAWP_u_BW | V5: N_B_GAS_BW | W5: N_B_FLGAS_BW | X5: N_B_GAS_GAWP | Y5: N_B_FLGAS_GAWP | Z5: N_B_WART_BW | AA5: N_B_WART_GAWP | AB5: N_B_STROM_LÜ_GAWP | AC5: N_B_STROM_BW | AD5: N_B_STROM_PU_GAWP
B6: 1 | C6: =(Energiepreisberechnung!C3) -> 0.055 | D6: =(Energiepreisberechnung!D3) -> 0.07 | E6: =(Energiepreisberechnung!E3) -> 0.2 | F6: =(Energiepreisberechnung!F3) -> 0.085 | G6: =(Energiepreisberechnung!G3) -> 0.05 | H6: =IF(ISNA(INDEX(Master!$D$40:$I$110,MATCH(H$5,Master!$I$40:$I$110,0),1)),0,(INDEX(Master!$D$40:$I$110,MATCH(H$5,Master!$I$40:$I$110,0),1))) -> 0 | I6: =IF(ISNA(INDEX(Master!$D$40:$I$110,MATCH(I$5,Master!$I$40:$I$110,0),1)),0,(INDEX(Master!$D$40:$I$110,MATCH(I$5,Master!$I$40:$I$110,0),1))) -> 5000 | J6: =IF(ISNA(INDEX(Master!$D$40:$I$110,MATCH(J$5,Master!$I$40:$I$110,0),1)),0,(INDEX(Master!$D$40:$I$110,MATCH(J$5,Master!$I$40:$I$110,0),1))) -> 0 | K6: =IF(ISNA(INDEX(Master!$D$40:$I$110,MATCH(K$5,Master!$I$40:$I$110,0),1)),0,(INDEX(Master!$D$40:$I$110,MATCH(K$5,Master!$I$40:$I$110,0),1))) -> 0 | L6: =IF(ISNA(INDEX(Master!$D$40:$I$110,MATCH(L$5,Master!$I$40:$I$110,0),1)),0,(INDEX(Master!$D$40:$I$110,MATCH(L$5,Master!$I$40:$I$110,0),1))) -> 0 | M6: =IF(ISNA(INDEX(Master!$D$40:$I$110,MATCH(M$5,Master!$I$40:$I$110,0),1)),0,(INDEX(Master!$D$40:$I$110,MATCH(M$5,Master!$I$40:$I$110,0),1))) -> 0 | N6: =IF(ISNA(INDEX(Master!$D$40:$I$110,MATCH(N$5,Master!$I$40:$I$110,0),1)),0,(INDEX(Master!$D$40:$I$110,MATCH(N$5,Master!$I$40:$I$110,0),1))) -> 75471.69811 | O6: =IF(ISNA(INDEX(Master!$D$40:$I$110,MATCH(O$5,Master!$I$40:$I$110,0),1)),0,(INDEX(Master!$D$40:$I$110,MATCH(O$5,Master!$I$40:$I$110,0),1))) -> 0 | P6: =IF(ISNA(INDEX(Master!$D$40:$I$110,MATCH(P$5,Master!$I$40:$I$110,0),1)),0,(INDEX(Master!$D$40:$I$110,MATCH(P$5,Master!$I$40:$I$110,0),1))) -> 300 | Q6: =IF(ISNA(INDEX(Master!$D$40:$I$110,MATCH(Q$5,Master!$I$40:$I$110,0),1)),0,(INDEX(Master!$D$40:$I$110,MATCH(Q$5,Master!$I$40:$I$110,0),1))) -> 120 | R6: =IF(ISNA(INDEX(Master!$D$40:$I$110,MATCH(R$5,Master!$I$40:$I$110,0),1)),0,(INDEX(Master!$D$40:$I$110,MATCH(R$5,Master!$I$40:$I$110,0),1))) -> 0 | S6: =IF(ISNA(INDEX(Master!$D$40:$I$110,MATCH(S$5,Master!$I$40:$I$110,0),1)),0,(INDEX(Master!$D$40:$I$110,MATCH(S$5,Master!$I$40:$I$110,0),1))) -> 0 | T6: =IF(ISNA(INDEX(Master!$D$40:$I$110,MATCH(T$5,Master!$I$40:$I$110,0),1)),0,(INDEX(Master!$D$40:$I$110,MATCH(T$5,Master!$I$40:$I$110,0),1))) -> 0 | U6: =IF(ISNA(INDEX(Master!$D$40:$I$110,MATCH(U$5,Master!$I$40:$I$110,0),1)),0,(INDEX(Master!$D$40:$I$110,MATCH(U$5,Master!$I$40:$I$110,0),1))) -> 35600 | V6: =IF(ISNA(INDEX(Master!$D$40:$I$110,MATCH(V$5,Master!$I$40:$I$110,0),1)),0,(INDEX(Master!$D$40:$I$110,MATCH(V$5,Master!$I$40:$I$110,0),1))) -> 0 | W6: =IF(ISNA(INDEX(Master!$D$40:$I$110,MATCH(W$5,Master!$I$40:$I$110,0),1)),0,(INDEX(Master!$D$40:$I$110,MATCH(W$5,Master!$I$40:$I$110,0),1))) -> 0 | X6: =IF(ISNA(INDEX(Master!$D$40:$I$110,MATCH(X$5,Master!$I$40:$I$110,0),1)),0,(INDEX(Master!$D$40:$I$110,MATCH(X$5,Master!$I$40:$I$110,0),1))) -> 51612.90323 | Y6: =IF(ISNA(INDEX(Master!$D$40:$I$110,MATCH(Y$5,Master!$I$40:$I$110,0),1)),0,(INDEX(Master!$D$40:$I$110,MATCH(Y$5,Master!$I$40:$I$110,0),1))) -> 0 | Z6: =IF(ISNA(INDEX(Master!$D$40:$I$110,MATCH(Z$5,Master!$I$40:$I$110,0),1)),0,(INDEX(Master!$D$40:$I$110,MATCH(Z$5,Master!$I$40:$I$110,0),1))) -> 0 | AA6: =IF(ISNA(INDEX(Master!$D$40:$I$110,MATCH(AA$5,Master!$I$40:$I$110,0),1)),0,(INDEX(Master!$D$40:$I$110,MATCH(AA$5,Master!$I$40:$I$110,0),1))) -> 500 | AB6: =IF(ISNA(INDEX(Master!$D$40:$I$110,MATCH(AB$5,Master!$I$40:$I$110,0),1)),0,(INDEX(Master!$D$40:$I$110,MATCH(AB$5,Master!$I$40:$I$110,0),1))) -> 1880 | AC6: =IF(ISNA(INDEX(Master!$D$40:$I$110,MATCH(AC$5,Master!$I$40:$I$110,0),1)),0,(INDEX(Master!$D$40:$I$110,MATCH(AC$5,Master!$I$40:$I$110,0),1))) -> 0 | AD6: =IF(ISNA(INDEX(Master!$D$40:$I$110,MATCH(AD$5,Master!$I$40:$I$110,0),1)),0,(INDEX(Master!$D$40:$I$110,MATCH(AD$5,Master!$I$40:$I$110,0),1))) -> 400 | AF6: 1 | AG6: =((K6*F6)+L6+(M6*E6)+(N6*C6)+(O6*D6)+P6+(Q6*E6)+(R6*G6)+S6+(T6*E6)) -> 4474.943396 | AH6: =(V6*C6)+W6*D6+X6*C6+Y6*D6+Z6+AA6+AB6*E6+AC6*E6+AD6*E6 -> 3794.709677 | AI6: =(AG6-AH6) -> 680.2337188 | AJ6: =(U6-H6-I6-J6) -> 30600 | AK6: =(AJ6-AI6) -> 29919.76628
B7: 2 | C7: =(Energiepreisberechnung!C4) -> 0.05885 | D7: =(Energiepreisberechnung!D4) -> 0.0749 | E7: =(Energiepreisberechnung!E4) -> 0.214 | F7: =(Energiepreisberechnung!F4) -> 0.09095 | G7: =(Energiepreisberechnung!G4) -> 0.0535 | K7: =IF(ISNA(INDEX(Master!$D$40:$I$110,MATCH(K$5,Master!$I$40:$I$110,0),1)),0,(INDEX(Master!$D$40:$I$110,MATCH(K$5,Master!$I$40:$I$110,0),1))) -> 0 | L7: =IF(ISNA(INDEX(Master!$D$40:$I$110,MATCH(L$5,Master!$I$40:$I$110,0),1)),0,(INDEX(Master!$D$40:$I$110,MATCH(L$5,Master!$I$40:$I$110,0),1))) -> 0 | M7: =IF(ISNA(INDEX(Master!$D$40:$I$110,MATCH(M$5,Master!$I$40:$I$110,0),1)),0,(INDEX(Master!$D$40:$I$110,MATCH(M$5,Master!$I$40:$I$110,0),1))) -> 0 | N7: =IF(ISNA(INDEX(Master!$D$40:$I$110,MATCH(N$5,Master!$I$40:$I$110,0),1)),0,(INDEX(Master!$D$40:$I$110,MATCH(N$5,Master!$I$40:$I$110,0),1))) -> 75471.69811 | O7: =IF(ISNA(INDEX(Master!$D$40:$I$110,MATCH(O$5,Master!$I$40:$I$110,0),1)),0,(INDEX(Master!$D$40:$I$110,MATCH(O$5,Master!$I$40:$I$110,0),1))) -> 0 | P7: =IF(ISNA(INDEX(Master!$D$40:$I$110,MATCH(P$5,Master!$I$40:$I$110,0),1)),0,(INDEX(Master!$D$40:$I$110,MATCH(P$5,Master!$I$40:$I$110,0),1))) -> 300 | Q7: =IF(ISNA(INDEX(Master!$D$40:$I$110,MATCH(Q$5,Master!$I$40:$I$110,0),1)),0,(INDEX(Master!$D$40:$I$110,MATCH(Q$5,Master!$I$40:$I$110,0),1))) -> 120 | R7: =IF(ISNA(INDEX(Master!$D$40:$I$110,MATCH(R$5,Master!$I$40:$I$110,0),1)),0,(INDEX(Master!$D$40:$I$110,MATCH(R$5,Master!$I$40:$I$110,0),1))) -> 0 | S7: =IF(ISNA(INDEX(Master!$D$40:$I$110,MATCH(S$5,Master!$I$40:$I$110,0),1)),0,(INDEX(Master!$D$40:$I$110,MATCH(S$5,Master!$I$40:$I$110,0),1))) -> 0 | T7: =IF(ISNA(INDEX(Master!$D$40:$I$110,MATCH(T$5,Master!$I$40:$I$110,0),1)),0,(INDEX(Master!$D$40:$I$110,MATCH(T$5,Master!$I$40:$I$110,0),1))) -> 0 | V7: =IF(ISNA(INDEX(Master!$D$40:$I$110,MATCH(V$5,Master!$I$40:$I$110,0),1)),0,(INDEX(Master!$D$40:$I$110,MATCH(V$5,Master!$I$40:$I$110,0),1))) -> 0 | W7: =IF(ISNA(INDEX(Master!$D$40:$I$110,MATCH(W$5,Master!$I$40:$I$110,0),1)),0,(INDEX(Master!$D$40:$I$110,MATCH(W$5,Master!$I$40:$I$110,0),1))) -> 0 | X7: =IF(ISNA(INDEX(Master!$D$40:$I$110,MATCH(X$5,Master!$I$40:$I$110,0),1)),0,(INDEX(Master!$D$40:$I$110,MATCH(X$5,Master!$I$40:$I$110,0),1))) -> 51612.90323 | Y7: =IF(ISNA(INDEX(Master!$D$40:$I$110,MATCH(Y$5,Master!$I$40:$I$110,0),1)),0,(INDEX(Master!$D$40:$I$110,MATCH(Y$5,Master!$I$40:$I$110,0),1))) -> 0 | Z7: =IF(ISNA(INDEX(Master!$D$40:$I$110,MATCH(Z$5,Master!$I$40:$I$110,0),1)),0,(INDEX(Master!$D$40:$I$110,MATCH(Z$5,Master!$I$40:$I$110,0),1))) -> 0 | AA7: =IF(ISNA(INDEX(Master!$D$40:$I$110,MATCH(AA$5,Master!$I$40:$I$110,0),1)),0,(INDEX(Master!$D$40:$I$110,MATCH(AA$5,Master!$I$40:$I$110,0),1))) -> 500 | AB7: =IF(ISNA(INDEX(Master!$D$40:$I$110,MATCH(AB$5,Master!$I$40:$I$110,0),1)),0,(INDEX(Master!$D$40:$I$110,MATCH(AB$5,Master!$I$40:$I$110,0),1))) -> 1880 | AC7: =IF(ISNA(INDEX(Master!$D$40:$I$110,MATCH(AC$5,Master!$I$40:$I$110,0),1)),0,(INDEX(Master!$D$40:$I$110,MATCH(AC$5,Master!$I$40:$I$110,0),1))) -> 0 | AD7: =IF(ISNA(INDEX(Master!$D$40:$I$110,MATCH(AD$5,Master!$I$40:$I$110,0),1)),0,(INDEX(Master!$D$40:$I$110,MATCH(AD$5,Master!$I$40:$I$110,0),1))) -> 400 | AF7: 2 | AG7: =((K7*F7)+L7+(M7*E7)+(N7*C7)+(O7*D7)+P7+(Q7*E7)+(R7*G7)+S7+(T7*E7)) -> 4767.189434 | AH7: =(V7*C7)+W7*D7+X7*C7+Y7*D7+Z7+AA7+AB7*E7+AC7*E7+AD7*E7 -> 4025.339355 | AI7: =(AG7-AH7) -> 741.8500791 | AJ7: =(AK6) -> 29919.76628 | AK7: =(AJ7-AI7) -> 29177.9162
B8: 3 | C8: =(Energiepreisberechnung!C5) -> 0.0629695 | D8: =(Energiepreisberechnung!D5) -> 0.080143 | E8: =(Energiepreisberechnung!E5) -> 0.22898 | F8: =(Energiepreisberechnung!F5) -> 0.0973165 | G8: =(Energiepreisberechnung!G5) -> 0.057245 | K8: =IF(ISNA(INDEX(Master!$D$40:$I$110,MATCH(K$5,Master!$I$40:$I$110,0),1)),0,(INDEX(Master!$D$40:$I$110,MATCH(K$5,Master!$I$40:$I$110,0),1))) -> 0 | L8: =IF(ISNA(INDEX(Master!$D$40:$I$110,MATCH(L$5,Master!$I$40:$I$110,0),1)),0,(INDEX(Master!$D$40:$I$110,MATCH(L$5,Master!$I$40:$I$110,0),1))) -> 0 | M8: =IF(ISNA(INDEX(Master!$D$40:$I$110,MATCH(M$5,Master!$I$40:$I$110,0),1)),0,(INDEX(Master!$D$40:$I$110,MATCH(M$5,Master!$I$40:$I$110,0),1))) -> 0 | N8: =IF(ISNA(INDEX(Master!$D$40:$I$110,MATCH(N$5,Master!$I$40:$I$110,0),1)),0,(INDEX(Master!$D$40:$I$110,MATCH(N$5,Master!$I$40:$I$110,0),1))) -> 75471.69811 | O8: =IF(ISNA(INDEX(Master!$D$40:$I$110,MATCH(O$5,Master!$I$40:$I$110,0),1)),0,(INDEX(Master!$D$40:$I$110,MATCH(O$5,Master!$I$40:$I$110,0),1))) -> 0 | P8: =IF(ISNA(INDEX(Master!$D$40:$I$110,MATCH(P$5,Master!$I$40:$I$110,0),1)),0,(INDEX(Master!$D$40:$I$110,MATCH(P$5,Master!$I$40:$I$110,0),1))) -> 300 | Q8: =IF(ISNA(INDEX(Master!$D$40:$I$110,MATCH(Q$5,Master!$I$40:$I$110,0),1)),0,(INDEX(Master!$D$40:$I$110,MATCH(Q$5,Master!$I$40:$I$110,0),1))) -> 120 | R8: =IF(ISNA(INDEX(Master!$D$40:$I$110,MATCH(R$5,Master!$I$40:$I$110,0),1)),0,(INDEX(Master!$D$40:$I$110,MATCH(R$5,Master!$I$40:$I$110,0),1))) -> 0 | S8: =IF(ISNA(INDEX(Master!$D$40:$I$110,MATCH(S$5,Master!$I$40:$I$110,0),1)),0,(INDEX(Master!$D$40:$I$110,MATCH(S$5,Master!$I$40:$I$110,0),1))) -> 0 | T8: =IF(ISNA(INDEX(Master!$D$40:$I$110,MATCH(T$5,Master!$I$40:$I$110,0),1)),0,(INDEX(Master!$D$40:$I$110,MATCH(T$5,Master!$I$40:$I$110,0),1))) -> 0 | V8: =IF(ISNA(INDEX(Master!$D$40:$I$110,MATCH(V$5,Master!$I$40:$I$110,0),1)),0,(INDEX(Master!$D$40:$I$110,MATCH(V$5,Master!$I$40:$I$110,0),1))) -> 0 | W8: =IF(ISNA(INDEX(Master!$D$40:$I$110,MATCH(W$5,Master!$I$40:$I$110,0),1)),0,(INDEX(Master!$D$40:$I$110,MATCH(W$5,Master!$I$40:$I$110,0),1))) -> 0 | X8: =IF(ISNA(INDEX(Master!$D$40:$I$110,MATCH(X$5,Master!$I$40:$I$110,0),1)),0,(INDEX(Master!$D$40:$I$110,MATCH(X$5,Master!$I$40:$I$110,0),1))) -> 51612.90323 | Y8: =IF(ISNA(INDEX(Master!$D$40:$I$110,MATCH(Y$5,Master!$I$40:$I$110,0),1)),0,(INDEX(Master!$D$40:$I$110,MATCH(Y$5,Master!$I$40:$I$110,0),1))) -> 0 | Z8: =IF(ISNA(INDEX(Master!$D$40:$I$110,MATCH(Z$5,Master!$I$40:$I$110,0),1)),0,(INDEX(Master!$D$40:$I$110,MATCH(Z$5,Master!$I$40:$I$110,0),1))) -> 0 | AA8: =IF(ISNA(INDEX(Master!$D$40:$I$110,MATCH(AA$5,Master!$I$40:$I$110,0),1)),0,(INDEX(Master!$D$40:$I$110,MATCH(AA$5,Master!$I$40:$I$110,0),1))) -> 500 | AB8: =IF(ISNA(INDEX(Master!$D$40:$I$110,MATCH(AB$5,Master!$I$40:$I$110,0),1)),0,(INDEX(Master!$D$40:$I$110,MATCH(AB$5,Master!$I$40:$I$110,0),1))) -> 1880 | AC8: =IF(ISNA(INDEX(Master!$D$40:$I$110,MATCH(AC$5,Master!$I$40:$I$110,0),1)),0,(INDEX(Master!$D$40:$I$110,MATCH(AC$5,Master!$I$40:$I$110,0),1))) -> 0 | AD8: =IF(ISNA(INDEX(Master!$D$40:$I$110,MATCH(AD$5,Master!$I$40:$I$110,0),1)),0,(INDEX(Master!$D$40:$I$110,MATCH(AD$5,Master!$I$40:$I$110,0),1))) -> 400 | AF8: 3 | AG8: 5079.892694 | AH8: 4272.11311 | AI8: 807.7795847 | AJ8: =(AK7) -> 29177.9162 | AK8: 28370.13662
B9: 4 | C9: =(Energiepreisberechnung!C6) -> 0.067377365 | D9: =(Energiepreisberechnung!D6) -> 0.08575301 | E9: =(Energiepreisberechnung!E6) -> 0.2450086 | F9: =(Energiepreisberechnung!F6) -> 0.104128655 | G9: =(Energiepreisberechnung!G6) -> 0.06125215 | K9: =IF(ISNA(INDEX(Master!$D$40:$I$110,MATCH(K$5,Master!$I$40:$I$110,0),1)),0,(INDEX(Master!$D$40:$I$110,MATCH(K$5,Master!$I$40:$I$110,0),1))) -> 0 | L9: =IF(ISNA(INDEX(Master!$D$40:$I$110,MATCH(L$5,Master!$I$40:$I$110,0),1)),0,(INDEX(Master!$D$40:$I$110,MATCH(L$5,Master!$I$40:$I$110,0),1))) -> 0 | M9: =IF(ISNA(INDEX(Master!$D$40:$I$110,MATCH(M$5,Master!$I$40:$I$110,0),1)),0,(INDEX(Master!$D$40:$I$110,MATCH(M$5,Master!$I$40:$I$110,0),1))) -> 0 | N9: =IF(ISNA(INDEX(Master!$D$40:$I$110,MATCH(N$5,Master!$I$40:$I$110,0),1)),0,(INDEX(Master!$D$40:$I$110,MATCH(N$5,Master!$I$40:$I$110,0),1))) -> 75471.69811 | O9: =IF(ISNA(INDEX(Master!$D$40:$I$110,MATCH(O$5,Master!$I$40:$I$110,0),1)),0,(INDEX(Master!$D$40:$I$110,MATCH(O$5,Master!$I$40:$I$110,0),1))) -> 0 | P9: =IF(ISNA(INDEX(Master!$D$40:$I$110,MATCH(P$5,Master!$I$40:$I$110,0),1)),0,(INDEX(Master!$D$40:$I$110,MATCH(P$5,Master!$I$40:$I$110,0),1))) -> 300 | Q9: =IF(ISNA(INDEX(Master!$D$40:$I$110,MATCH(Q$5,Master!$I$40:$I$110,0),1)),0,(INDEX(Master!$D$40:$I$110,MATCH(Q$5,Master!$I$40:$I$110,0),1))) -> 120 | R9: =IF(ISNA(INDEX(Master!$D$40:$I$110,MATCH(R$5,Master!$I$40:$I$110,0),1)),0,(INDEX(Master!$D$40:$I$110,MATCH(R$5,Master!$I$40:$I$110,0),1))) -> 0 | S9: =IF(ISNA(INDEX(Master!$D$40:$I$110,MATCH(S$5,Master!$I$40:$I$110,0),1)),0,(INDEX(Master!$D$40:$I$110,MATCH(S$5,Master!$I$40:$I$110,0),1))) -> 0 | T9: =IF(ISNA(INDEX(Master!$D$40:$I$110,MATCH(T$5,Master!$I$40:$I$110,0),1)),0,(INDEX(Master!$D$40:$I$110,MATCH(T$5,Master!$I$40:$I$110,0),1))) -> 0 | V9: =IF(ISNA(INDEX(Master!$D$40:$I$110,MATCH(V$5,Master!$I$40:$I$110,0),1)),0,(INDEX(Master!$D$40:$I$110,MATCH(V$5,Master!$I$40:$I$110,0),1))) -> 0 | W9: =IF(ISNA(INDEX(Master!$D$40:$I$110,MATCH(W$5,Master!$I$40:$I$110,0),1)),0,(INDEX(Master!$D$40:$I$110,MATCH(W$5,Master!$I$40:$I$110,0),1))) -> 0 | X9: =IF(ISNA(INDEX(Master!$D$40:$I$110,MATCH(X$5,Master!$I$40:$I$110,0),1)),0,(INDEX(Master!$D$40:$I$110,MATCH(X$5,Master!$I$40:$I$110,0),1))) -> 51612.90323 | Y9: =IF(ISNA(INDEX(Master!$D$40:$I$110,MATCH(Y$5,Master!$I$40:$I$110,0),1)),0,(INDEX(Master!$D$40:$I$110,MATCH(Y$5,Master!$I$40:$I$110,0),1))) -> 0 | Z9: =IF(ISNA(INDEX(Master!$D$40:$I$110,MATCH(Z$5,Master!$I$40:$I$110,0),1)),0,(INDEX(Master!$D$40:$I$110,MATCH(Z$5,Master!$I$40:$I$110,0),1))) -> 0 | AA9: =IF(ISNA(INDEX(Master!$D$40:$I$110,MATCH(AA$5,Master!$I$40:$I$110,0),1)),0,(INDEX(Master!$D$40:$I$110,MATCH(AA$5,Master!$I$40:$I$110,0),1))) -> 500 | AB9: =IF(ISNA(INDEX(Master!$D$40:$I$110,MATCH(AB$5,Master!$I$40:$I$110,0),1)),0,(INDEX(Master!$D$40:$I$110,MATCH(AB$5,Master!$I$40:$I$110,0),1))) -> 1880 | AC9: =IF(ISNA(INDEX(Master!$D$40:$I$110,MATCH(AC$5,Master!$I$40:$I$110,0),1)),0,(INDEX(Master!$D$40:$I$110,MATCH(AC$5,Master!$I$40:$I$110,0),1))) -> 0 | AD9: =IF(ISNA(INDEX(Master!$D$40:$I$110,MATCH(AD$5,Master!$I$40:$I$110,0),1)),0,(INDEX(Master!$D$40:$I$110,MATCH(AD$5,Master!$I$40:$I$110,0),1))) -> 400 | AF9: 4 | AG9: 5414.485183 | AH9: 4536.161027 | AI9: 878.3241556 | AJ9: 28370.13662 | AK9: 27491.81246
B10: 5 | C10: =(Energiepreisberechnung!C7) -> 0.07209378055 | D10: =(Energiepreisberechnung!D7) -> 0.0917557207 | E10: =(Energiepreisberechnung!E7) -> 0.262159202 | F10: =(Energiepreisberechnung!F7) -> 0.1114176609 | G10: =(Energiepreisberechnung!G7) -> 0.0655398005 | K10: =IF(ISNA(INDEX(Master!$D$40:$I$110,MATCH(K$5,Master!$I$40:$I$110,0),1)),0,(INDEX(Master!$D$40:$I$110,MATCH(K$5,Master!$I$40:$I$110,0),1))) -> 0 | L10: =IF(ISNA(INDEX(Master!$D$40:$I$110,MATCH(L$5,Master!$I$40:$I$110,0),1)),0,(INDEX(Master!$D$40:$I$110,MATCH(L$5,Master!$I$40:$I$110,0),1))) -> 0 | M10: =IF(ISNA(INDEX(Master!$D$40:$I$110,MATCH(M$5,Master!$I$40:$I$110,0),1)),0,(INDEX(Master!$D$40:$I$110,MATCH(M$5,Master!$I$40:$I$110,0),1))) -> 0 | N10: =IF(ISNA(INDEX(Master!$D$40:$I$110,MATCH(N$5,Master!$I$40:$I$110,0),1)),0,(INDEX(Master!$D$40:$I$110,MATCH(N$5,Master!$I$40:$I$110,0),1))) -> 75471.69811 | O10: =IF(ISNA(INDEX(Master!$D$40:$I$110,MATCH(O$5,Master!$I$40:$I$110,0),1)),0,(INDEX(Master!$D$40:$I$110,MATCH(O$5,Master!$I$40:$I$110,0),1))) -> 0 | P10: =IF(ISNA(INDEX(Master!$D$40:$I$110,MATCH(P$5,Master!$I$40:$I$110,0),1)),0,(INDEX(Master!$D$40:$I$110,MATCH(P$5,Master!$I$40:$I$110,0),1))) -> 300 | Q10: =IF(ISNA(INDEX(Master!$D$40:$I$110,MATCH(Q$5,Master!$I$40:$I$110,0),1)),0,(INDEX(Master!$D$40:$I$110,MATCH(Q$5,Master!$I$40:$I$110,0),1))) -> 120 | R10: =IF(ISNA(INDEX(Master!$D$40:$I$110,MATCH(R$5,Master!$I$40:$I$110,0),1)),0,(INDEX(Master!$D$40:$I$110,MATCH(R$5,Master!$I$40:$I$110,0),1))) -> 0 | S10: =IF(ISNA(INDEX(Master!$D$40:$I$110,MATCH(S$5,Master!$I$40:$I$110,0),1)),0,(INDEX(Master!$D$40:$I$110,MATCH(S$5,Master!$I$40:$I$110,0),1))) -> 0 | T10: =IF(ISNA(INDEX(Master!$D$40:$I$110,MATCH(T$5,Master!$I$40:$I$110,0),1)),0,(INDEX(Master!$D$40:$I$110,MATCH(T$5,Master!$I$40:$I$110,0),1))) -> 0 | V10: =IF(ISNA(INDEX(Master!$D$40:$I$110,MATCH(V$5,Master!$I$40:$I$110,0),1)),0,(INDEX(Master!$D$40:$I$110,MATCH(V$5,Master!$I$40:$I$110,0),1))) -> 0 | W10: =IF(ISNA(INDEX(Master!$D$40:$I$110,MATCH(W$5,Master!$I$40:$I$110,0),1)),0,(INDEX(Master!$D$40:$I$110,MATCH(W$5,Master!$I$40:$I$110,0),1))) -> 0 | X10: =IF(ISNA(INDEX(Master!$D$40:$I$110,MATCH(X$5,Master!$I$40:$I$110,0),1)),0,(INDEX(Master!$D$40:$I$110,MATCH(X$5,Master!$I$40:$I$110,0),1))) -> 51612.90323 | Y10: =IF(ISNA(INDEX(Master!$D$40:$I$110,MATCH(Y$5,Master!$I$40:$I$110,0),1)),0,(INDEX(Master!$D$40:$I$110,MATCH(Y$5,Master!$I$40:$I$110,0),1))) -> 0 | Z10: =IF(ISNA(INDEX(Master!$D$40:$I$110,MATCH(Z$5,Master!$I$40:$I$110,0),1)),0,(INDEX(Master!$D$40:$I$110,MATCH(Z$5,Master!$I$40:$I$110,0),1))) -> 0 | AA10: =IF(ISNA(INDEX(Master!$D$40:$I$110,MATCH(AA$5,Master!$I$40:$I$110,0),1)),0,(INDEX(Master!$D$40:$I$110,MATCH(AA$5,Master!$I$40:$I$110,0),1))) -> 500 | AB10: =IF(ISNA(INDEX(Master!$D$40:$I$110,MATCH(AB$5,Master!$I$40:$I$110,0),1)),0,(INDEX(Master!$D$40:$I$110,MATCH(AB$5,Master!$I$40:$I$110,0),1))) -> 1880 | AC10: =IF(ISNA(INDEX(Master!$D$40:$I$110,MATCH(AC$5,Master!$I$40:$I$110,0),1)),0,(INDEX(Master!$D$40:$I$110,MATCH(AC$5,Master!$I$40:$I$110,0),1))) -> 0 | AD10: =IF(ISNA(INDEX(Master!$D$40:$I$110,MATCH(AD$5,Master!$I$40:$I$110,0),1)),0,(INDEX(Master!$D$40:$I$110,MATCH(AD$5,Master!$I$40:$I$110,0),1))) -> 400 | AF10: 5 | AG10: 5772.499146 | AH10: 4818.692299 | AI10: 953.8068465 | AJ10: 27491.81246 | AK10: 26538.00562
B11: 6 | C11: =(Energiepreisberechnung!C8) -> 0.07714034519 | D11: =(Energiepreisberechnung!D8) -> 0.09817862115 | E11: =(Energiepreisberechnung!E8) -> 0.2805103461 | F11: =(Energiepreisberechnung!F8) -> 0.1192168971 | G11: =(Energiepreisberechnung!G8) -> 0.07012758654 | K11: =IF(ISNA(INDEX(Master!$D$40:$I$110,MATCH(K$5,Master!$I$40:$I$110,0),1)),0,(INDEX(Master!$D$40:$I$110,MATCH(K$5,Master!$I$40:$I$110,0),1))) -> 0 | L11: =IF(ISNA(INDEX(Master!$D$40:$I$110,MATCH(L$5,Master!$I$40:$I$110,0),1)),0,(INDEX(Master!$D$40:$I$110,MATCH(L$5,Master!$I$40:$I$110,0),1))) -> 0 | M11: =IF(ISNA(INDEX(Master!$D$40:$I$110,MATCH(M$5,Master!$I$40:$I$110,0),1)),0,(INDEX(Master!$D$40:$I$110,MATCH(M$5,Master!$I$40:$I$110,0),1))) -> 0 | N11: =IF(ISNA(INDEX(Master!$D$40:$I$110,MATCH(N$5,Master!$I$40:$I$110,0),1)),0,(INDEX(Master!$D$40:$I$110,MATCH(N$5,Master!$I$40:$I$110,0),1))) -> 75471.69811 | O11: =IF(ISNA(INDEX(Master!$D$40:$I$110,MATCH(O$5,Master!$I$40:$I$110,0),1)),0,(INDEX(Master!$D$40:$I$110,MATCH(O$5,Master!$I$40:$I$110,0),1))) -> 0 | P11: =IF(ISNA(INDEX(Master!$D$40:$I$110,MATCH(P$5,Master!$I$40:$I$110,0),1)),0,(INDEX(Master!$D$40:$I$110,MATCH(P$5,Master!$I$40:$I$110,0),1))) -> 300 | Q11: =IF(ISNA(INDEX(Master!$D$40:$I$110,MATCH(Q$5,Master!$I$40:$I$110,0),1)),0,(INDEX(Master!$D$40:$I$110,MATCH(Q$5,Master!$I$40:$I$110,0),1))) -> 120 | R11: =IF(ISNA(INDEX(Master!$D$40:$I$110,MATCH(R$5,Master!$I$40:$I$110,0),1)),0,(INDEX(Master!$D$40:$I$110,MATCH(R$5,Master!$I$40:$I$110,0),1))) -> 0 | S11: =IF(ISNA(INDEX(Master!$D$40:$I$110,MATCH(S$5,Master!$I$40:$I$110,0),1)),0,(INDEX(Master!$D$40:$I$110,MATCH(S$5,Master!$I$40:$I$110,0),1))) -> 0 | T11: =IF(ISNA(INDEX(Master!$D$40:$I$110,MATCH(T$5,Master!$I$40:$I$110,0),1)),0,(INDEX(Master!$D$40:$I$110,MATCH(T$5,Master!$I$40:$I$110,0),1))) -> 0 | V11: =IF(ISNA(INDEX(Master!$D$40:$I$110,MATCH(V$5,Master!$I$40:$I$110,0),1)),0,(INDEX(Master!$D$40:$I$110,MATCH(V$5,Master!$I$40:$I$110,0),1))) -> 0 | W11: =IF(ISNA(INDEX(Master!$D$40:$I$110,MATCH(W$5,Master!$I$40:$I$110,0),1)),0,(INDEX(Master!$D$40:$I$110,MATCH(W$5,Master!$I$40:$I$110,0),1))) -> 0 | X11: =IF(ISNA(INDEX(Master!$D$40:$I$110,MATCH(X$5,Master!$I$40:$I$110,0),1)),0,(INDEX(Master!$D$40:$I$110,MATCH(X$5,Master!$I$40:$I$110,0),1))) -> 51612.90323 | Y11: =IF(ISNA(INDEX(Master!$D$40:$I$110,MATCH(Y$5,Master!$I$40:$I$110,0),1)),0,(INDEX(Master!$D$40:$I$110,MATCH(Y$5,Master!$I$40:$I$110,0),1))) -> 0 | Z11: =IF(ISNA(INDEX(Master!$D$40:$I$110,MATCH(Z$5,Master!$I$40:$I$110,0),1)),0,(INDEX(Master!$D$40:$I$110,MATCH(Z$5,Master!$I$40:$I$110,0),1))) -> 0 | AA11: =IF(ISNA(INDEX(Master!$D$40:$I$110,MATCH(AA$5,Master!$I$40:$I$110,0),1)),0,(INDEX(Master!$D$40:$I$110,MATCH(AA$5,Master!$I$40:$I$110,0),1))) -> 500 | AB11: =IF(ISNA(INDEX(Master!$D$40:$I$110,MATCH(AB$5,Master!$I$40:$I$110,0),1)),0,(INDEX(Master!$D$40:$I$110,MATCH(AB$5,Master!$I$40:$I$110,0),1))) -> 1880 | AC11: =IF(ISNA(INDEX(Master!$D$40:$I$110,MATCH(AC$5,Master!$I$40:$I$110,0),1)),0,(INDEX(Master!$D$40:$I$110,MATCH(AC$5,Master!$I$40:$I$110,0),1))) -> 0 | AD11: =IF(ISNA(INDEX(Master!$D$40:$I$110,MATCH(AD$5,Master!$I$40:$I$110,0),1)),0,(INDEX(Master!$D$40:$I$110,MATCH(AD$5,Master!$I$40:$I$110,0),1))) -> 400 | AF11: 6 | AG11: 6155.574086 | AH11: 5121.00076 | AI11: 1034.573326 | AJ11: 26538.00562 | AK11: 25503.43229
B12: 7 | C12: =(Energiepreisberechnung!C9) -> 0.08254016935 | D12: =(Energiepreisberechnung!D9) -> 0.1050511246 | E12: =(Energiepreisberechnung!E9) -> 0.3001460704 | F12: =(Energiepreisberechnung!F9) -> 0.1275620799 | G12: =(Energiepreisberechnung!G9) -> 0.07503651759 | K12: =IF(ISNA(INDEX(Master!$D$40:$I$110,MATCH(K$5,Master!$I$40:$I$110,0),1)),0,(INDEX(Master!$D$40:$I$110,MATCH(K$5,Master!$I$40:$I$110,0),1))) -> 0 | L12: =IF(ISNA(INDEX(Master!$D$40:$I$110,MATCH(L$5,Master!$I$40:$I$110,0),1)),0,(INDEX(Master!$D$40:$I$110,MATCH(L$5,Master!$I$40:$I$110,0),1))) -> 0 | M12: =IF(ISNA(INDEX(Master!$D$40:$I$110,MATCH(M$5,Master!$I$40:$I$110,0),1)),0,(INDEX(Master!$D$40:$I$110,MATCH(M$5,Master!$I$40:$I$110,0),1))) -> 0 | N12: =IF(ISNA(INDEX(Master!$D$40:$I$110,MATCH(N$5,Master!$I$40:$I$110,0),1)),0,(INDEX(Master!$D$40:$I$110,MATCH(N$5,Master!$I$40:$I$110,0),1))) -> 75471.69811 | O12: =IF(ISNA(INDEX(Master!$D$40:$I$110,MATCH(O$5,Master!$I$40:$I$110,0),1)),0,(INDEX(Master!$D$40:$I$110,MATCH(O$5,Master!$I$40:$I$110,0),1))) -> 0 | P12: =IF(ISNA(INDEX(Master!$D$40:$I$110,MATCH(P$5,Master!$I$40:$I$110,0),1)),0,(INDEX(Master!$D$40:$I$110,MATCH(P$5,Master!$I$40:$I$110,0),1))) -> 300 | Q12: =IF(ISNA(INDEX(Master!$D$40:$I$110,MATCH(Q$5,Master!$I$40:$I$110,0),1)),0,(INDEX(Master!$D$40:$I$110,MATCH(Q$5,Master!$I$40:$I$110,0),1))) -> 120 | R12: =IF(ISNA(INDEX(Master!$D$40:$I$110,MATCH(R$5,Master!$I$40:$I$110,0),1)),0,(INDEX(Master!$D$40:$I$110,MATCH(R$5,Master!$I$40:$I$110,0),1))) -> 0 | S12: =IF(ISNA(INDEX(Master!$D$40:$I$110,MATCH(S$5,Master!$I$40:$I$110,0),1)),0,(INDEX(Master!$D$40:$I$110,MATCH(S$5,Master!$I$40:$I$110,0),1))) -> 0 | T12: =IF(ISNA(INDEX(Master!$D$40:$I$110,MATCH(T$5,Master!$I$40:$I$110,0),1)),0,(INDEX(Master!$D$40:$I$110,MATCH(T$5,Master!$I$40:$I$110,0),1))) -> 0 | V12: =IF(ISNA(INDEX(Master!$D$40:$I$110,MATCH(V$5,Master!$I$40:$I$110,0),1)),0,(INDEX(Master!$D$40:$I$110,MATCH(V$5,Master!$I$40:$I$110,0),1))) -> 0 | W12: =IF(ISNA(INDEX(Master!$D$40:$I$110,MATCH(W$5,Master!$I$40:$I$110,0),1)),0,(INDEX(Master!$D$40:$I$110,MATCH(W$5,Master!$I$40:$I$110,0),1))) -> 0 | X12: =IF(ISNA(INDEX(Master!$D$40:$I$110,MATCH(X$5,Master!$I$40:$I$110,0),1)),0,(INDEX(Master!$D$40:$I$110,MATCH(X$5,Master!$I$40:$I$110,0),1))) -> 51612.90323 | Y12: =IF(ISNA(INDEX(Master!$D$40:$I$110,MATCH(Y$5,Master!$I$40:$I$110,0),1)),0,(INDEX(Master!$D$40:$I$110,MATCH(Y$5,Master!$I$40:$I$110,0),1))) -> 0 | Z12: =IF(ISNA(INDEX(Master!$D$40:$I$110,MATCH(Z$5,Master!$I$40:$I$110,0),1)),0,(INDEX(Master!$D$40:$I$110,MATCH(Z$5,Master!$I$40:$I$110,0),1))) -> 0 | AA12: =IF(ISNA(INDEX(Master!$D$40:$I$110,MATCH(AA$5,Master!$I$40:$I$110,0),1)),0,(INDEX(Master!$D$40:$I$110,MATCH(AA$5,Master!$I$40:$I$110,0),1))) -> 500 | AB12: =IF(ISNA(INDEX(Master!$D$40:$I$110,MATCH(AB$5,Master!$I$40:$I$110,0),1)),0,(INDEX(Master!$D$40:$I$110,MATCH(AB$5,Master!$I$40:$I$110,0),1))) -> 1880 | AC12: =IF(ISNA(INDEX(Master!$D$40:$I$110,MATCH(AC$5,Master!$I$40:$I$110,0),1)),0,(INDEX(Master!$D$40:$I$110,MATCH(AC$5,Master!$I$40:$I$110,0),1))) -> 0 | AD12: =IF(ISNA(INDEX(Master!$D$40:$I$110,MATCH(AD$5,Master!$I$40:$I$110,0),1)),0,(INDEX(Master!$D$40:$I$110,MATCH(AD$5,Master!$I$40:$I$110,0),1))) -> 400 | AF12: 7 | AG12: 6565.464272 | AH12: 5444.470813 | AI12: 1120.993459 | AJ12: 25503.43229 | AK12: 24382.43883
B13: 8 | C13: =(Energiepreisberechnung!C10) -> 0.08831798121 | D13: =(Energiepreisberechnung!D10) -> 0.1124047034 | E13: =(Energiepreisberechnung!E10) -> 0.3211562953 | F13: =(Energiepreisberechnung!F10) -> 0.1364914255 | G13: =(Energiepreisberechnung!G10) -> 0.08028907382 | K13: =IF(ISNA(INDEX(Master!$D$40:$I$110,MATCH(K$5,Master!$I$40:$I$110,0),1)),0,(INDEX(Master!$D$40:$I$110,MATCH(K$5,Master!$I$40:$I$110,0),1))) -> 0 | L13: =IF(ISNA(INDEX(Master!$D$40:$I$110,MATCH(L$5,Master!$I$40:$I$110,0),1)),0,(INDEX(Master!$D$40:$I$110,MATCH(L$5,Master!$I$40:$I$110,0),1))) -> 0 | M13: =IF(ISNA(INDEX(Master!$D$40:$I$110,MATCH(M$5,Master!$I$40:$I$110,0),1)),0,(INDEX(Master!$D$40:$I$110,MATCH(M$5,Master!$I$40:$I$110,0),1))) -> 0 | N13: =IF(ISNA(INDEX(Master!$D$40:$I$110,MATCH(N$5,Master!$I$40:$I$110,0),1)),0,(INDEX(Master!$D$40:$I$110,MATCH(N$5,Master!$I$40:$I$110,0),1))) -> 75471.69811 | O13: =IF(ISNA(INDEX(Master!$D$40:$I$110,MATCH(O$5,Master!$I$40:$I$110,0),1)),0,(INDEX(Master!$D$40:$I$110,MATCH(O$5,Master!$I$40:$I$110,0),1))) -> 0 | P13: =IF(ISNA(INDEX(Master!$D$40:$I$110,MATCH(P$5,Master!$I$40:$I$110,0),1)),0,(INDEX(Master!$D$40:$I$110,MATCH(P$5,Master!$I$40:$I$110,0),1))) -> 300 | Q13: =IF(ISNA(INDEX(Master!$D$40:$I$110,MATCH(Q$5,Master!$I$40:$I$110,0),1)),0,(INDEX(Master!$D$40:$I$110,MATCH(Q$5,Master!$I$40:$I$110,0),1))) -> 120 | R13: =IF(ISNA(INDEX(Master!$D$40:$I$110,MATCH(R$5,Master!$I$40:$I$110,0),1)),0,(INDEX(Master!$D$40:$I$110,MATCH(R$5,Master!$I$40:$I$110,0),1))) -> 0 | S13: =IF(ISNA(INDEX(Master!$D$40:$I$110,MATCH(S$5,Master!$I$40:$I$110,0),1)),0,(INDEX(Master!$D$40:$I$110,MATCH(S$5,Master!$I$40:$I$110,0),1))) -> 0 | T13: =IF(ISNA(INDEX(Master!$D$40:$I$110,MATCH(T$5,Master!$I$40:$I$110,0),1)),0,(INDEX(Master!$D$40:$I$110,MATCH(T$5,Master!$I$40:$I$110,0),1))) -> 0 | V13: =IF(ISNA(INDEX(Master!$D$40:$I$110,MATCH(V$5,Master!$I$40:$I$110,0),1)),0,(INDEX(Master!$D$40:$I$110,MATCH(V$5,Master!$I$40:$I$110,0),1))) -> 0 | W13: =IF(ISNA(INDEX(Master!$D$40:$I$110,MATCH(W$5,Master!$I$40:$I$110,0),1)),0,(INDEX(Master!$D$40:$I$110,MATCH(W$5,Master!$I$40:$I$110,0),1))) -> 0 | X13: =IF(ISNA(INDEX(Master!$D$40:$I$110,MATCH(X$5,Master!$I$40:$I$110,0),1)),0,(INDEX(Master!$D$40:$I$110,MATCH(X$5,Master!$I$40:$I$110,0),1))) -> 51612.90323 | Y13: =IF(ISNA(INDEX(Master!$D$40:$I$110,MATCH(Y$5,Master!$I$40:$I$110,0),1)),0,(INDEX(Master!$D$40:$I$110,MATCH(Y$5,Master!$I$40:$I$110,0),1))) -> 0 | Z13: =IF(ISNA(INDEX(Master!$D$40:$I$110,MATCH(Z$5,Master!$I$40:$I$110,0),1)),0,(INDEX(Master!$D$40:$I$110,MATCH(Z$5,Master!$I$40:$I$110,0),1))) -> 0 | AA13: =IF(ISNA(INDEX(Master!$D$40:$I$110,MATCH(AA$5,Master!$I$40:$I$110,0),1)),0,(INDEX(Master!$D$40:$I$110,MATCH(AA$5,Master!$I$40:$I$110,0),1))) -> 500 | AB13: =IF(ISNA(INDEX(Master!$D$40:$I$110,MATCH(AB$5,Master!$I$40:$I$110,0),1)),0,(INDEX(Master!$D$40:$I$110,MATCH(AB$5,Master!$I$40:$I$110,0),1))) -> 1880 | AC13: =IF(ISNA(INDEX(Master!$D$40:$I$110,MATCH(AC$5,Master!$I$40:$I$110,0),1)),0,(INDEX(Master!$D$40:$I$110,MATCH(AC$5,Master!$I$40:$I$110,0),1))) -> 0 | AD13: =IF(ISNA(INDEX(Master!$D$40:$I$110,MATCH(AD$5,Master!$I$40:$I$110,0),1)),0,(INDEX(Master!$D$40:$I$110,MATCH(AD$5,Master!$I$40:$I$110,0),1))) -> 400 | AF13: 8 | AG13: 7004.046771 | AH13: 5790.58377 | AI13: 1213.463001 | AJ13: 24382.43883 | AK13: 23168.97583
B14: 9 | C14: =(Energiepreisberechnung!C11) -> 0.09450023989 | D14: =(Energiepreisberechnung!D11) -> 0.1202730326 | E14: =(Energiepreisberechnung!E11) -> 0.343637236 | F14: =(Energiepreisberechnung!F11) -> 0.1460458253 | G14: =(Energiepreisberechnung!G11) -> 0.08590930899 | K14: =IF(ISNA(INDEX(Master!$D$40:$I$110,MATCH(K$5,Master!$I$40:$I$110,0),1)),0,(INDEX(Master!$D$40:$I$110,MATCH(K$5,Master!$I$40:$I$110,0),1))) -> 0 | L14: =IF(ISNA(INDEX(Master!$D$40:$I$110,MATCH(L$5,Master!$I$40:$I$110,0),1)),0,(INDEX(Master!$D$40:$I$110,MATCH(L$5,Master!$I$40:$I$110,0),1))) -> 0 | M14: =IF(ISNA(INDEX(Master!$D$40:$I$110,MATCH(M$5,Master!$I$40:$I$110,0),1)),0,(INDEX(Master!$D$40:$I$110,MATCH(M$5,Master!$I$40:$I$110,0),1))) -> 0 | N14: =IF(ISNA(INDEX(Master!$D$40:$I$110,MATCH(N$5,Master!$I$40:$I$110,0),1)),0,(INDEX(Master!$D$40:$I$110,MATCH(N$5,Master!$I$40:$I$110,0),1))) -> 75471.69811 | O14: =IF(ISNA(INDEX(Master!$D$40:$I$110,MATCH(O$5,Master!$I$40:$I$110,0),1)),0,(INDEX(Master!$D$40:$I$110,MATCH(O$5,Master!$I$40:$I$110,0),1))) -> 0 | P14: =IF(ISNA(INDEX(Master!$D$40:$I$110,MATCH(P$5,Master!$I$40:$I$110,0),1)),0,(INDEX(Master!$D$40:$I$110,MATCH(P$5,Master!$I$40:$I$110,0),1))) -> 300 | Q14: =IF(ISNA(INDEX(Master!$D$40:$I$110,MATCH(Q$5,Master!$I$40:$I$110,0),1)),0,(INDEX(Master!$D$40:$I$110,MATCH(Q$5,Master!$I$40:$I$110,0),1))) -> 120 | R14: =IF(ISNA(INDEX(Master!$D$40:$I$110,MATCH(R$5,Master!$I$40:$I$110,0),1)),0,(INDEX(Master!$D$40:$I$110,MATCH(R$5,Master!$I$40:$I$110,0),1))) -> 0 | S14: =IF(ISNA(INDEX(Master!$D$40:$I$110,MATCH(S$5,Master!$I$40:$I$110,0),1)),0,(INDEX(Master!$D$40:$I$110,MATCH(S$5,Master!$I$40:$I$110,0),1))) -> 0 | T14: =IF(ISNA(INDEX(Master!$D$40:$I$110,MATCH(T$5,Master!$I$40:$I$110,0),1)),0,(INDEX(Master!$D$40:$I$110,MATCH(T$5,Master!$I$40:$I$110,0),1))) -> 0 | V14: =IF(ISNA(INDEX(Master!$D$40:$I$110,MATCH(V$5,Master!$I$40:$I$110,0),1)),0,(INDEX(Master!$D$40:$I$110,MATCH(V$5,Master!$I$40:$I$110,0),1))) -> 0 | W14: =IF(ISNA(INDEX(Master!$D$40:$I$110,MATCH(W$5,Master!$I$40:$I$110,0),1)),0,(INDEX(Master!$D$40:$I$110,MATCH(W$5,Master!$I$40:$I$110,0),1))) -> 0 | X14: =IF(ISNA(INDEX(Master!$D$40:$I$110,MATCH(X$5,Master!$I$40:$I$110,0),1)),0,(INDEX(Master!$D$40:$I$110,MATCH(X$5,Master!$I$40:$I$110,0),1))) -> 51612.90323 | Y14: =IF(ISNA(INDEX(Master!$D$40:$I$110,MATCH(Y$5,Master!$I$40:$I$110,0),1)),0,(INDEX(Master!$D$40:$I$110,MATCH(Y$5,Master!$I$40:$I$110,0),1))) -> 0 | Z14: =IF(ISNA(INDEX(Master!$D$40:$I$110,MATCH(Z$5,Master!$I$40:$I$110,0),1)),0,(INDEX(Master!$D$40:$I$110,MATCH(Z$5,Master!$I$40:$I$110,0),1))) -> 0 | AA14: =IF(ISNA(INDEX(Master!$D$40:$I$110,MATCH(AA$5,Master!$I$40:$I$110,0),1)),0,(INDEX(Master!$D$40:$I$110,MATCH(AA$5,Master!$I$40:$I$110,0),1))) -> 500 | AB14: =IF(ISNA(INDEX(Master!$D$40:$I$110,MATCH(AB$5,Master!$I$40:$I$110,0),1)),0,(INDEX(Master!$D$40:$I$110,MATCH(AB$5,Master!$I$40:$I$110,0),1))) -> 1880 | AC14: =IF(ISNA(INDEX(Master!$D$40:$I$110,MATCH(AC$5,Master!$I$40:$I$110,0),1)),0,(INDEX(Master!$D$40:$I$110,MATCH(AC$5,Master!$I$40:$I$110,0),1))) -> 0 | AD14: =IF(ISNA(INDEX(Master!$D$40:$I$110,MATCH(AD$5,Master!$I$40:$I$110,0),1)),0,(INDEX(Master!$D$40:$I$110,MATCH(AD$5,Master!$I$40:$I$110,0),1))) -> 400 | AF14: 9 | AG14: 7473.330045 | AH14: 6160.924634 | AI14: 1312.405411 | AJ14: 23168.97583 | AK14: 21856.57042
B15: 10 | C15: =(Energiepreisberechnung!C12) -> 0.1011152567 | D15: =(Energiepreisberechnung!D12) -> 0.1286921449 | E15: =(Energiepreisberechnung!E12) -> 0.3676918425 | F15: =(Energiepreisberechnung!F12) -> 0.1562690331 | G15: =(Energiepreisberechnung!G12) -> 0.09192296062 | K15: =IF(ISNA(INDEX(Master!$D$40:$I$110,MATCH(K$5,Master!$I$40:$I$110,0),1)),0,(INDEX(Master!$D$40:$I$110,MATCH(K$5,Master!$I$40:$I$110,0),1))) -> 0 | L15: =IF(ISNA(INDEX(Master!$D$40:$I$110,MATCH(L$5,Master!$I$40:$I$110,0),1)),0,(INDEX(Master!$D$40:$I$110,MATCH(L$5,Master!$I$40:$I$110,0),1))) -> 0 | M15: =IF(ISNA(INDEX(Master!$D$40:$I$110,MATCH(M$5,Master!$I$40:$I$110,0),1)),0,(INDEX(Master!$D$40:$I$110,MATCH(M$5,Master!$I$40:$I$110,0),1))) -> 0 | N15: =IF(ISNA(INDEX(Master!$D$40:$I$110,MATCH(N$5,Master!$I$40:$I$110,0),1)),0,(INDEX(Master!$D$40:$I$110,MATCH(N$5,Master!$I$40:$I$110,0),1))) -> 75471.69811 | O15: =IF(ISNA(INDEX(Master!$D$40:$I$110,MATCH(O$5,Master!$I$40:$I$110,0),1)),0,(INDEX(Master!$D$40:$I$110,MATCH(O$5,Master!$I$40:$I$110,0),1))) -> 0 | P15: =IF(ISNA(INDEX(Master!$D$40:$I$110,MATCH(P$5,Master!$I$40:$I$110,0),1)),0,(INDEX(Master!$D$40:$I$110,MATCH(P$5,Master!$I$40:$I$110,0),1))) -> 300 | Q15: =IF(ISNA(INDEX(Master!$D$40:$I$110,MATCH(Q$5,Master!$I$40:$I$110,0),1)),0,(INDEX(Master!$D$40:$I$110,MATCH(Q$5,Master!$I$40:$I$110,0),1))) -> 120 | R15: =IF(ISNA(INDEX(Master!$D$40:$I$110,MATCH(R$5,Master!$I$40:$I$110,0),1)),0,(INDEX(Master!$D$40:$I$110,MATCH(R$5,Master!$I$40:$I$110,0),1))) -> 0 | S15: =IF(ISNA(INDEX(Master!$D$40:$I$110,MATCH(S$5,Master!$I$40:$I$110,0),1)),0,(INDEX(Master!$D$40:$I$110,MATCH(S$5,Master!$I$40:$I$110,0),1))) -> 0 | T15: =IF(ISNA(INDEX(Master!$D$40:$I$110,MATCH(T$5,Master!$I$40:$I$110,0),1)),0,(INDEX(Master!$D$40:$I$110,MATCH(T$5,Master!$I$40:$I$110,0),1))) -> 0 | V15: =IF(ISNA(INDEX(Master!$D$40:$I$110,MATCH(V$5,Master!$I$40:$I$110,0),1)),0,(INDEX(Master!$D$40:$I$110,MATCH(V$5,Master!$I$40:$I$110,0),1))) -> 0 | W15: =IF(ISNA(INDEX(Master!$D$40:$I$110,MATCH(W$5,Master!$I$40:$I$110,0),1)),0,(INDEX(Master!$D$40:$I$110,MATCH(W$5,Master!$I$40:$I$110,0),1))) -> 0 | X15: =IF(ISNA(INDEX(Master!$D$40:$I$110,MATCH(X$5,Master!$I$40:$I$110,0),1)),0,(INDEX(Master!$D$40:$I$110,MATCH(X$5,Master!$I$40:$I$110,0),1))) -> 51612.90323 | Y15: =IF(ISNA(INDEX(Master!$D$40:$I$110,MATCH(Y$5,Master!$I$40:$I$110,0),1)),0,(INDEX(Master!$D$40:$I$110,MATCH(Y$5,Master!$I$40:$I$110,0),1))) -> 0 | Z15: =IF(ISNA(INDEX(Master!$D$40:$I$110,MATCH(Z$5,Master!$I$40:$I$110,0),1)),0,(INDEX(Master!$D$40:$I$110,MATCH(Z$5,Master!$I$40:$I$110,0),1))) -> 0 | AA15: =IF(ISNA(INDEX(Master!$D$40:$I$110,MATCH(AA$5,Master!$I$40:$I$110,0),1)),0,(INDEX(Master!$D$40:$I$110,MATCH(AA$5,Master!$I$40:$I$110,0),1))) -> 500 | AB15: =IF(ISNA(INDEX(Master!$D$40:$I$110,MATCH(AB$5,Master!$I$40:$I$110,0),1)),0,(INDEX(Master!$D$40:$I$110,MATCH(AB$5,Master!$I$40:$I$110,0),1))) -> 1880 | AC15: =IF(ISNA(INDEX(Master!$D$40:$I$110,MATCH(AC$5,Master!$I$40:$I$110,0),1)),0,(INDEX(Master!$D$40:$I$110,MATCH(AC$5,Master!$I$40:$I$110,0),1))) -> 0 | AD15: =IF(ISNA(INDEX(Master!$D$40:$I$110,MATCH(AD$5,Master!$I$40:$I$110,0),1)),0,(INDEX(Master!$D$40:$I$110,MATCH(AD$5,Master!$I$40:$I$110,0),1))) -> 400 | AF15: 10 | AG15: 7975.463148 | AH15: 6557.189359 | AI15: 1418.273789 | AJ15: 21856.57042 | AK15: 20438.29663
B16: 11 | C16: =(Energiepreisberechnung!C13) -> 0.1081933247 | D16: =(Energiepreisberechnung!D13) -> 0.137700595 | E16: =(Energiepreisberechnung!E13) -> 0.3934302715 | F16: =(Energiepreisberechnung!F13) -> 0.1672078654 | G16: =(Energiepreisberechnung!G13) -> 0.09835756786 | K16: =IF(ISNA(INDEX(Master!$D$40:$I$110,MATCH(K$5,Master!$I$40:$I$110,0),1)),0,(INDEX(Master!$D$40:$I$110,MATCH(K$5,Master!$I$40:$I$110,0),1))) -> 0 | L16: =IF(ISNA(INDEX(Master!$D$40:$I$110,MATCH(L$5,Master!$I$40:$I$110,0),1)),0,(INDEX(Master!$D$40:$I$110,MATCH(L$5,Master!$I$40:$I$110,0),1))) -> 0 | M16: =IF(ISNA(INDEX(Master!$D$40:$I$110,MATCH(M$5,Master!$I$40:$I$110,0),1)),0,(INDEX(Master!$D$40:$I$110,MATCH(M$5,Master!$I$40:$I$110,0),1))) -> 0 | N16: =IF(ISNA(INDEX(Master!$D$40:$I$110,MATCH(N$5,Master!$I$40:$I$110,0),1)),0,(INDEX(Master!$D$40:$I$110,MATCH(N$5,Master!$I$40:$I$110,0),1))) -> 75471.69811 | O16: =IF(ISNA(INDEX(Master!$D$40:$I$110,MATCH(O$5,Master!$I$40:$I$110,0),1)),0,(INDEX(Master!$D$40:$I$110,MATCH(O$5,Master!$I$40:$I$110,0),1))) -> 0 | P16: =IF(ISNA(INDEX(Master!$D$40:$I$110,MATCH(P$5,Master!$I$40:$I$110,0),1)),0,(INDEX(Master!$D$40:$I$110,MATCH(P$5,Master!$I$40:$I$110,0),1))) -> 300 | Q16: =IF(ISNA(INDEX(Master!$D$40:$I$110,MATCH(Q$5,Master!$I$40:$I$110,0),1)),0,(INDEX(Master!$D$40:$I$110,MATCH(Q$5,Master!$I$40:$I$110,0),1))) -> 120 | R16: =IF(ISNA(INDEX(Master!$D$40:$I$110,MATCH(R$5,Master!$I$40:$I$110,0),1)),0,(INDEX(Master!$D$40:$I$110,MATCH(R$5,Master!$I$40:$I$110,0),1))) -> 0 | S16: =IF(ISNA(INDEX(Master!$D$40:$I$110,MATCH(S$5,Master!$I$40:$I$110,0),1)),0,(INDEX(Master!$D$40:$I$110,MATCH(S$5,Master!$I$40:$I$110,0),1))) -> 0 | T16: =IF(ISNA(INDEX(Master!$D$40:$I$110,MATCH(T$5,Master!$I$40:$I$110,0),1)),0,(INDEX(Master!$D$40:$I$110,MATCH(T$5,Master!$I$40:$I$110,0),1))) -> 0 | V16: =IF(ISNA(INDEX(Master!$D$40:$I$110,MATCH(V$5,Master!$I$40:$I$110,0),1)),0,(INDEX(Master!$D$40:$I$110,MATCH(V$5,Master!$I$40:$I$110,0),1))) -> 0 | W16: =IF(ISNA(INDEX(Master!$D$40:$I$110,MATCH(W$5,Master!$I$40:$I$110,0),1)),0,(INDEX(Master!$D$40:$I$110,MATCH(W$5,Master!$I$40:$I$110,0),1))) -> 0 | X16: =IF(ISNA(INDEX(Master!$D$40:$I$110,MATCH(X$5,Master!$I$40:$I$110,0),1)),0,(INDEX(Master!$D$40:$I$110,MATCH(X$5,Master!$I$40:$I$110,0),1))) -> 51612.90323 | Y16: =IF(ISNA(INDEX(Master!$D$40:$I$110,MATCH(Y$5,Master!$I$40:$I$110,0),1)),0,(INDEX(Master!$D$40:$I$110,MATCH(Y$5,Master!$I$40:$I$110,0),1))) -> 0 | Z16: =IF(ISNA(INDEX(Master!$D$40:$I$110,MATCH(Z$5,Master!$I$40:$I$110,0),1)),0,(INDEX(Master!$D$40:$I$110,MATCH(Z$5,Master!$I$40:$I$110,0),1))) -> 0 | AA16: =IF(ISNA(INDEX(Master!$D$40:$I$110,MATCH(AA$5,Master!$I$40:$I$110,0),1)),0,(INDEX(Master!$D$40:$I$110,MATCH(AA$5,Master!$I$40:$I$110,0),1))) -> 500 | AB16: =IF(ISNA(INDEX(Master!$D$40:$I$110,MATCH(AB$5,Master!$I$40:$I$110,0),1)),0,(INDEX(Master!$D$40:$I$110,MATCH(AB$5,Master!$I$40:$I$110,0),1))) -> 1880 | AC16: =IF(ISNA(INDEX(Master!$D$40:$I$110,MATCH(AC$5,Master!$I$40:$I$110,0),1)),0,(INDEX(Master!$D$40:$I$110,MATCH(AC$5,Master!$I$40:$I$110,0),1))) -> 0 | AD16: =IF(ISNA(INDEX(Master!$D$40:$I$110,MATCH(AD$5,Master!$I$40:$I$110,0),1)),0,(INDEX(Master!$D$40:$I$110,MATCH(AD$5,Master!$I$40:$I$110,0),1))) -> 400 | AF16: 11 | AG16: 8512.745568 | AH16: 6981.192614 | AI16: 1531.552955 | AJ16: 20438.29663 | AK16: 18906.74368
B17: 12 | C17: =(Energiepreisberechnung!C14) -> 0.1157668574 | D17: =(Energiepreisberechnung!D14) -> 0.1473396367 | E17: =(Energiepreisberechnung!E14) -> 0.4209703905 | F17: =(Energiepreisberechnung!F14) -> 0.1789124159 | G17: =(Energiepreisberechnung!G14) -> 0.1052425976 | K17: =IF(ISNA(INDEX(Master!$D$40:$I$110,MATCH(K$5,Master!$I$40:$I$110,0),1)),0,(INDEX(Master!$D$40:$I$110,MATCH(K$5,Master!$I$40:$I$110,0),1))) -> 0 | L17: =IF(ISNA(INDEX(Master!$D$40:$I$110,MATCH(L$5,Master!$I$40:$I$110,0),1)),0,(INDEX(Master!$D$40:$I$110,MATCH(L$5,Master!$I$40:$I$110,0),1))) -> 0 | M17: =IF(ISNA(INDEX(Master!$D$40:$I$110,MATCH(M$5,Master!$I$40:$I$110,0),1)),0,(INDEX(Master!$D$40:$I$110,MATCH(M$5,Master!$I$40:$I$110,0),1))) -> 0 | N17: =IF(ISNA(INDEX(Master!$D$40:$I$110,MATCH(N$5,Master!$I$40:$I$110,0),1)),0,(INDEX(Master!$D$40:$I$110,MATCH(N$5,Master!$I$40:$I$110,0),1))) -> 75471.69811 | O17: =IF(ISNA(INDEX(Master!$D$40:$I$110,MATCH(O$5,Master!$I$40:$I$110,0),1)),0,(INDEX(Master!$D$40:$I$110,MATCH(O$5,Master!$I$40:$I$110,0),1))) -> 0 | P17: =IF(ISNA(INDEX(Master!$D$40:$I$110,MATCH(P$5,Master!$I$40:$I$110,0),1)),0,(INDEX(Master!$D$40:$I$110,MATCH(P$5,Master!$I$40:$I$110,0),1))) -> 300 | Q17: =IF(ISNA(INDEX(Master!$D$40:$I$110,MATCH(Q$5,Master!$I$40:$I$110,0),1)),0,(INDEX(Master!$D$40:$I$110,MATCH(Q$5,Master!$I$40:$I$110,0),1))) -> 120 | R17: =IF(ISNA(INDEX(Master!$D$40:$I$110,MATCH(R$5,Master!$I$40:$I$110,0),1)),0,(INDEX(Master!$D$40:$I$110,MATCH(R$5,Master!$I$40:$I$110,0),1))) -> 0 | S17: =IF(ISNA(INDEX(Master!$D$40:$I$110,MATCH(S$5,Master!$I$40:$I$110,0),1)),0,(INDEX(Master!$D$40:$I$110,MATCH(S$5,Master!$I$40:$I$110,0),1))) -> 0 | T17: =IF(ISNA(INDEX(Master!$D$40:$I$110,MATCH(T$5,Master!$I$40:$I$110,0),1)),0,(INDEX(Master!$D$40:$I$110,MATCH(T$5,Master!$I$40:$I$110,0),1))) -> 0 | V17: =IF(ISNA(INDEX(Master!$D$40:$I$110,MATCH(V$5,Master!$I$40:$I$110,0),1)),0,(INDEX(Master!$D$40:$I$110,MATCH(V$5,Master!$I$40:$I$110,0),1))) -> 0 | W17: =IF(ISNA(INDEX(Master!$D$40:$I$110,MATCH(W$5,Master!$I$40:$I$110,0),1)),0,(INDEX(Master!$D$40:$I$110,MATCH(W$5,Master!$I$40:$I$110,0),1))) -> 0 | X17: =IF(ISNA(INDEX(Master!$D$40:$I$110,MATCH(X$5,Master!$I$40:$I$110,0),1)),0,(INDEX(Master!$D$40:$I$110,MATCH(X$5,Master!$I$40:$I$110,0),1))) -> 51612.90323 | Y17: =IF(ISNA(INDEX(Master!$D$40:$I$110,MATCH(Y$5,Master!$I$40:$I$110,0),1)),0,(INDEX(Master!$D$40:$I$110,MATCH(Y$5,Master!$I$40:$I$110,0),1))) -> 0 | Z17: =IF(ISNA(INDEX(Master!$D$40:$I$110,MATCH(Z$5,Master!$I$40:$I$110,0),1)),0,(INDEX(Master!$D$40:$I$110,MATCH(Z$5,Master!$I$40:$I$110,0),1))) -> 0 | AA17: =IF(ISNA(INDEX(Master!$D$40:$I$110,MATCH(AA$5,Master!$I$40:$I$110,0),1)),0,(INDEX(Master!$D$40:$I$110,MATCH(AA$5,Master!$I$40:$I$110,0),1))) -> 500 | AB17: =IF(ISNA(INDEX(Master!$D$40:$I$110,MATCH(AB$5,Master!$I$40:$I$110,0),1)),0,(INDEX(Master!$D$40:$I$110,MATCH(AB$5,Master!$I$40:$I$110,0),1))) -> 1880 | AC17: =IF(ISNA(INDEX(Master!$D$40:$I$110,MATCH(AC$5,Master!$I$40:$I$110,0),1)),0,(INDEX(Master!$D$40:$I$110,MATCH(AC$5,Master!$I$40:$I$110,0),1))) -> 0 | AD17: =IF(ISNA(INDEX(Master!$D$40:$I$110,MATCH(AD$5,Master!$I$40:$I$110,0),1)),0,(INDEX(Master!$D$40:$I$110,MATCH(AD$5,Master!$I$40:$I$110,0),1))) -> 400 | AF17: 12 | AG17: 9087.637758 | AH17: 7434.876097 | AI17: 1652.761662 | AJ17: 18906.74368 | AK17: 17253.98201
B18: 13 | C18: =(Energiepreisberechnung!C15) -> 0.1238705374 | D18: =(Energiepreisberechnung!D15) -> 0.1576534112 | E18: =(Energiepreisberechnung!E15) -> 0.4504383178 | F18: =(Energiepreisberechnung!F15) -> 0.1914362851 | G18: =(Energiepreisberechnung!G15) -> 0.1126095794 | K18: =IF(ISNA(INDEX(Master!$D$40:$I$110,MATCH(K$5,Master!$I$40:$I$110,0),1)),0,(INDEX(Master!$D$40:$I$110,MATCH(K$5,Master!$I$40:$I$110,0),1))) -> 0 | L18: =IF(ISNA(INDEX(Master!$D$40:$I$110,MATCH(L$5,Master!$I$40:$I$110,0),1)),0,(INDEX(Master!$D$40:$I$110,MATCH(L$5,Master!$I$40:$I$110,0),1))) -> 0 | M18: =IF(ISNA(INDEX(Master!$D$40:$I$110,MATCH(M$5,Master!$I$40:$I$110,0),1)),0,(INDEX(Master!$D$40:$I$110,MATCH(M$5,Master!$I$40:$I$110,0),1))) -> 0 | N18: =IF(ISNA(INDEX(Master!$D$40:$I$110,MATCH(N$5,Master!$I$40:$I$110,0),1)),0,(INDEX(Master!$D$40:$I$110,MATCH(N$5,Master!$I$40:$I$110,0),1))) -> 75471.69811 | O18: =IF(ISNA(INDEX(Master!$D$40:$I$110,MATCH(O$5,Master!$I$40:$I$110,0),1)),0,(INDEX(Master!$D$40:$I$110,MATCH(O$5,Master!$I$40:$I$110,0),1))) -> 0 | P18: =IF(ISNA(INDEX(Master!$D$40:$I$110,MATCH(P$5,Master!$I$40:$I$110,0),1)),0,(INDEX(Master!$D$40:$I$110,MATCH(P$5,Master!$I$40:$I$110,0),1))) -> 300 | Q18: =IF(ISNA(INDEX(Master!$D$40:$I$110,MATCH(Q$5,Master!$I$40:$I$110,0),1)),0,(INDEX(Master!$D$40:$I$110,MATCH(Q$5,Master!$I$40:$I$110,0),1))) -> 120 | R18: =IF(ISNA(INDEX(Master!$D$40:$I$110,MATCH(R$5,Master!$I$40:$I$110,0),1)),0,(INDEX(Master!$D$40:$I$110,MATCH(R$5,Master!$I$40:$I$110,0),1))) -> 0 | S18: =IF(ISNA(INDEX(Master!$D$40:$I$110,MATCH(S$5,Master!$I$40:$I$110,0),1)),0,(INDEX(Master!$D$40:$I$110,MATCH(S$5,Master!$I$40:$I$110,0),1))) -> 0 | T18: =IF(ISNA(INDEX(Master!$D$40:$I$110,MATCH(T$5,Master!$I$40:$I$110,0),1)),0,(INDEX(Master!$D$40:$I$110,MATCH(T$5,Master!$I$40:$I$110,0),1))) -> 0 | V18: =IF(ISNA(INDEX(Master!$D$40:$I$110,MATCH(V$5,Master!$I$40:$I$110,0),1)),0,(INDEX(Master!$D$40:$I$110,MATCH(V$5,Master!$I$40:$I$110,0),1))) -> 0 | W18: =IF(ISNA(INDEX(Master!$D$40:$I$110,MATCH(W$5,Master!$I$40:$I$110,0),1)),0,(INDEX(Master!$D$40:$I$110,MATCH(W$5,Master!$I$40:$I$110,0),1))) -> 0 | X18: =IF(ISNA(INDEX(Master!$D$40:$I$110,MATCH(X$5,Master!$I$40:$I$110,0),1)),0,(INDEX(Master!$D$40:$I$110,MATCH(X$5,Master!$I$40:$I$110,0),1))) -> 51612.90323 | Y18: =IF(ISNA(INDEX(Master!$D$40:$I$110,MATCH(Y$5,Master!$I$40:$I$110,0),1)),0,(INDEX(Master!$D$40:$I$110,MATCH(Y$5,Master!$I$40:$I$110,0),1))) -> 0 | Z18: =IF(ISNA(INDEX(Master!$D$40:$I$110,MATCH(Z$5,Master!$I$40:$I$110,0),1)),0,(INDEX(Master!$D$40:$I$110,MATCH(Z$5,Master!$I$40:$I$110,0),1))) -> 0 | AA18: =IF(ISNA(INDEX(Master!$D$40:$I$110,MATCH(AA$5,Master!$I$40:$I$110,0),1)),0,(INDEX(Master!$D$40:$I$110,MATCH(AA$5,Master!$I$40:$I$110,0),1))) -> 500 | AB18: =IF(ISNA(INDEX(Master!$D$40:$I$110,MATCH(AB$5,Master!$I$40:$I$110,0),1)),0,(INDEX(Master!$D$40:$I$110,MATCH(AB$5,Master!$I$40:$I$110,0),1))) -> 1880 | AC18: =IF(ISNA(INDEX(Master!$D$40:$I$110,MATCH(AC$5,Master!$I$40:$I$110,0),1)),0,(INDEX(Master!$D$40:$I$110,MATCH(AC$5,Master!$I$40:$I$110,0),1))) -> 0 | AD18: =IF(ISNA(INDEX(Master!$D$40:$I$110,MATCH(AD$5,Master!$I$40:$I$110,0),1)),0,(INDEX(Master!$D$40:$I$110,MATCH(AD$5,Master!$I$40:$I$110,0),1))) -> 400 | AF18: 13 | AG18: 9702.772401 | AH18: 7920.317424 | AI18: 1782.454978 | AJ18: 17253.98201 | AK18: 15471.52704
B19: 14 | C19: =(Energiepreisberechnung!C16) -> 0.132541475 | D19: =(Energiepreisberechnung!D16) -> 0.16868915 | E19: =(Energiepreisberechnung!E16) -> 0.481969 | F19: =(Energiepreisberechnung!F16) -> 0.204836825 | G19: =(Energiepreisberechnung!G16) -> 0.12049225 | K19: =IF(ISNA(INDEX(Master!$D$40:$I$110,MATCH(K$5,Master!$I$40:$I$110,0),1)),0,(INDEX(Master!$D$40:$I$110,MATCH(K$5,Master!$I$40:$I$110,0),1))) -> 0 | L19: =IF(ISNA(INDEX(Master!$D$40:$I$110,MATCH(L$5,Master!$I$40:$I$110,0),1)),0,(INDEX(Master!$D$40:$I$110,MATCH(L$5,Master!$I$40:$I$110,0),1))) -> 0 | M19: =IF(ISNA(INDEX(Master!$D$40:$I$110,MATCH(M$5,Master!$I$40:$I$110,0),1)),0,(INDEX(Master!$D$40:$I$110,MATCH(M$5,Master!$I$40:$I$110,0),1))) -> 0 | N19: =IF(ISNA(INDEX(Master!$D$40:$I$110,MATCH(N$5,Master!$I$40:$I$110,0),1)),0,(INDEX(Master!$D$40:$I$110,MATCH(N$5,Master!$I$40:$I$110,0),1))) -> 75471.69811 | O19: =IF(ISNA(INDEX(Master!$D$40:$I$110,MATCH(O$5,Master!$I$40:$I$110,0),1)),0,(INDEX(Master!$D$40:$I$110,MATCH(O$5,Master!$I$40:$I$110,0),1))) -> 0 | P19: =IF(ISNA(INDEX(Master!$D$40:$I$110,MATCH(P$5,Master!$I$40:$I$110,0),1)),0,(INDEX(Master!$D$40:$I$110,MATCH(P$5,Master!$I$40:$I$110,0),1))) -> 300 | Q19: =IF(ISNA(INDEX(Master!$D$40:$I$110,MATCH(Q$5,Master!$I$40:$I$110,0),1)),0,(INDEX(Master!$D$40:$I$110,MATCH(Q$5,Master!$I$40:$I$110,0),1))) -> 120 | R19: =IF(ISNA(INDEX(Master!$D$40:$I$110,MATCH(R$5,Master!$I$40:$I$110,0),1)),0,(INDEX(Master!$D$40:$I$110,MATCH(R$5,Master!$I$40:$I$110,0),1))) -> 0 | S19: =IF(ISNA(INDEX(Master!$D$40:$I$110,MATCH(S$5,Master!$I$40:$I$110,0),1)),0,(INDEX(Master!$D$40:$I$110,MATCH(S$5,Master!$I$40:$I$110,0),1))) -> 0 | T19: =IF(ISNA(INDEX(Master!$D$40:$I$110,MATCH(T$5,Master!$I$40:$I$110,0),1)),0,(INDEX(Master!$D$40:$I$110,MATCH(T$5,Master!$I$40:$I$110,0),1))) -> 0 | V19: =IF(ISNA(INDEX(Master!$D$40:$I$110,MATCH(V$5,Master!$I$40:$I$110,0),1)),0,(INDEX(Master!$D$40:$I$110,MATCH(V$5,Master!$I$40:$I$110,0),1))) -> 0 | W19: =IF(ISNA(INDEX(Master!$D$40:$I$110,MATCH(W$5,Master!$I$40:$I$110,0),1)),0,(INDEX(Master!$D$40:$I$110,MATCH(W$5,Master!$I$40:$I$110,0),1))) -> 0 | X19: =IF(ISNA(INDEX(Master!$D$40:$I$110,MATCH(X$5,Master!$I$40:$I$110,0),1)),0,(INDEX(Master!$D$40:$I$110,MATCH(X$5,Master!$I$40:$I$110,0),1))) -> 51612.90323 | Y19: =IF(ISNA(INDEX(Master!$D$40:$I$110,MATCH(Y$5,Master!$I$40:$I$110,0),1)),0,(INDEX(Master!$D$40:$I$110,MATCH(Y$5,Master!$I$40:$I$110,0),1))) -> 0 | Z19: =IF(ISNA(INDEX(Master!$D$40:$I$110,MATCH(Z$5,Master!$I$40:$I$110,0),1)),0,(INDEX(Master!$D$40:$I$110,MATCH(Z$5,Master!$I$40:$I$110,0),1))) -> 0 | AA19: =IF(ISNA(INDEX(Master!$D$40:$I$110,MATCH(AA$5,Master!$I$40:$I$110,0),1)),0,(INDEX(Master!$D$40:$I$110,MATCH(AA$5,Master!$I$40:$I$110,0),1))) -> 500 | AB19: =IF(ISNA(INDEX(Master!$D$40:$I$110,MATCH(AB$5,Master!$I$40:$I$110,0),1)),0,(INDEX(Master!$D$40:$I$110,MATCH(AB$5,Master!$I$40:$I$110,0),1))) -> 1880 | AC19: =IF(ISNA(INDEX(Master!$D$40:$I$110,MATCH(AC$5,Master!$I$40:$I$110,0),1)),0,(INDEX(Master!$D$40:$I$110,MATCH(AC$5,Master!$I$40:$I$110,0),1))) -> 0 | AD19: =IF(ISNA(INDEX(Master!$D$40:$I$110,MATCH(AD$5,Master!$I$40:$I$110,0),1)),0,(INDEX(Master!$D$40:$I$110,MATCH(AD$5,Master!$I$40:$I$110,0),1))) -> 400 | AF19: 14 | AG19: 10360.96647 | AH19: 8439.739643 | AI19: 1921.226826 | AJ19: 15471.52704 | AK19: 13550.30021
B20: 15 | C20: =(Energiepreisberechnung!C17) -> 0.1418193783 | D20: =(Energiepreisberechnung!D17) -> 0.1804973905 | E20: =(Energiepreisberechnung!E17) -> 0.51570683 | F20: =(Energiepreisberechnung!F17) -> 0.2191754028 | G20: =(Energiepreisberechnung!G17) -> 0.1289267075 | K20: =IF(ISNA(INDEX(Master!$D$40:$I$110,MATCH(K$5,Master!$I$40:$I$110,0),1)),0,(INDEX(Master!$D$40:$I$110,MATCH(K$5,Master!$I$40:$I$110,0),1))) -> 0 | L20: =IF(ISNA(INDEX(Master!$D$40:$I$110,MATCH(L$5,Master!$I$40:$I$110,0),1)),0,(INDEX(Master!$D$40:$I$110,MATCH(L$5,Master!$I$40:$I$110,0),1))) -> 0 | M20: =IF(ISNA(INDEX(Master!$D$40:$I$110,MATCH(M$5,Master!$I$40:$I$110,0),1)),0,(INDEX(Master!$D$40:$I$110,MATCH(M$5,Master!$I$40:$I$110,0),1))) -> 0 | N20: =IF(ISNA(INDEX(Master!$D$40:$I$110,MATCH(N$5,Master!$I$40:$I$110,0),1)),0,(INDEX(Master!$D$40:$I$110,MATCH(N$5,Master!$I$40:$I$110,0),1))) -> 75471.69811 | O20: =IF(ISNA(INDEX(Master!$D$40:$I$110,MATCH(O$5,Master!$I$40:$I$110,0),1)),0,(INDEX(Master!$D$40:$I$110,MATCH(O$5,Master!$I$40:$I$110,0),1))) -> 0 | P20: =IF(ISNA(INDEX(Master!$D$40:$I$110,MATCH(P$5,Master!$I$40:$I$110,0),1)),0,(INDEX(Master!$D$40:$I$110,MATCH(P$5,Master!$I$40:$I$110,0),1))) -> 300 | Q20: =IF(ISNA(INDEX(Master!$D$40:$I$110,MATCH(Q$5,Master!$I$40:$I$110,0),1)),0,(INDEX(Master!$D$40:$I$110,MATCH(Q$5,Master!$I$40:$I$110,0),1))) -> 120 | R20: =IF(ISNA(INDEX(Master!$D$40:$I$110,MATCH(R$5,Master!$I$40:$I$110,0),1)),0,(INDEX(Master!$D$40:$I$110,MATCH(R$5,Master!$I$40:$I$110,0),1))) -> 0 | S20: =IF(ISNA(INDEX(Master!$D$40:$I$110,MATCH(S$5,Master!$I$40:$I$110,0),1)),0,(INDEX(Master!$D$40:$I$110,MATCH(S$5,Master!$I$40:$I$110,0),1))) -> 0 | T20: =IF(ISNA(INDEX(Master!$D$40:$I$110,MATCH(T$5,Master!$I$40:$I$110,0),1)),0,(INDEX(Master!$D$40:$I$110,MATCH(T$5,Master!$I$40:$I$110,0),1))) -> 0 | V20: =IF(ISNA(INDEX(Master!$D$40:$I$110,MATCH(V$5,Master!$I$40:$I$110,0),1)),0,(INDEX(Master!$D$40:$I$110,MATCH(V$5,Master!$I$40:$I$110,0),1))) -> 0 | W20: =IF(ISNA(INDEX(Master!$D$40:$I$110,MATCH(W$5,Master!$I$40:$I$110,0),1)),0,(INDEX(Master!$D$40:$I$110,MATCH(W$5,Master!$I$40:$I$110,0),1))) -> 0 | X20: =IF(ISNA(INDEX(Master!$D$40:$I$110,MATCH(X$5,Master!$I$40:$I$110,0),1)),0,(INDEX(Master!$D$40:$I$110,MATCH(X$5,Master!$I$40:$I$110,0),1))) -> 51612.90323 | Y20: =IF(ISNA(INDEX(Master!$D$40:$I$110,MATCH(Y$5,Master!$I$40:$I$110,0),1)),0,(INDEX(Master!$D$40:$I$110,MATCH(Y$5,Master!$I$40:$I$110,0),1))) -> 0 | Z20: =IF(ISNA(INDEX(Master!$D$40:$I$110,MATCH(Z$5,Master!$I$40:$I$110,0),1)),0,(INDEX(Master!$D$40:$I$110,MATCH(Z$5,Master!$I$40:$I$110,0),1))) -> 0 | AA20: =IF(ISNA(INDEX(Master!$D$40:$I$110,MATCH(AA$5,Master!$I$40:$I$110,0),1)),0,(INDEX(Master!$D$40:$I$110,MATCH(AA$5,Master!$I$40:$I$110,0),1))) -> 500 | AB20: =IF(ISNA(INDEX(Master!$D$40:$I$110,MATCH(AB$5,Master!$I$40:$I$110,0),1)),0,(INDEX(Master!$D$40:$I$110,MATCH(AB$5,Master!$I$40:$I$110,0),1))) -> 1880 | AC20: =IF(ISNA(INDEX(Master!$D$40:$I$110,MATCH(AC$5,Master!$I$40:$I$110,0),1)),0,(INDEX(Master!$D$40:$I$110,MATCH(AC$5,Master!$I$40:$I$110,0),1))) -> 0 | AD20: =IF(ISNA(INDEX(Master!$D$40:$I$110,MATCH(AD$5,Master!$I$40:$I$110,0),1)),0,(INDEX(Master!$D$40:$I$110,MATCH(AD$5,Master!$I$40:$I$110,0),1))) -> 400 | AF20: 15 | AG20: 11065.23412 | AH20: 8995.521418 | AI20: 2069.712704 | AJ20: 13550.30021 | AK20: 11480.58751
B21: 16 | C21: =(Energiepreisberechnung!C18) -> 0.1517467347 | D21: =(Energiepreisberechnung!D18) -> 0.1931322079 | E21: =(Energiepreisberechnung!E18) -> 0.5518063081 | F21: =(Energiepreisberechnung!F18) -> 0.234517681 | G21: =(Energiepreisberechnung!G18) -> 0.137951577 | K21: =IF(ISNA(INDEX(Master!$D$40:$I$110,MATCH(K$5,Master!$I$40:$I$110,0),1)),0,(INDEX(Master!$D$40:$I$110,MATCH(K$5,Master!$I$40:$I$110,0),1))) -> 0 | L21: =IF(ISNA(INDEX(Master!$D$40:$I$110,MATCH(L$5,Master!$I$40:$I$110,0),1)),0,(INDEX(Master!$D$40:$I$110,MATCH(L$5,Master!$I$40:$I$110,0),1))) -> 0 | M21: =IF(ISNA(INDEX(Master!$D$40:$I$110,MATCH(M$5,Master!$I$40:$I$110,0),1)),0,(INDEX(Master!$D$40:$I$110,MATCH(M$5,Master!$I$40:$I$110,0),1))) -> 0 | N21: =IF(ISNA(INDEX(Master!$D$40:$I$110,MATCH(N$5,Master!$I$40:$I$110,0),1)),0,(INDEX(Master!$D$40:$I$110,MATCH(N$5,Master!$I$40:$I$110,0),1))) -> 75471.69811 | O21: =IF(ISNA(INDEX(Master!$D$40:$I$110,MATCH(O$5,Master!$I$40:$I$110,0),1)),0,(INDEX(Master!$D$40:$I$110,MATCH(O$5,Master!$I$40:$I$110,0),1))) -> 0 | P21: =IF(ISNA(INDEX(Master!$D$40:$I$110,MATCH(P$5,Master!$I$40:$I$110,0),1)),0,(INDEX(Master!$D$40:$I$110,MATCH(P$5,Master!$I$40:$I$110,0),1))) -> 300 | Q21: =IF(ISNA(INDEX(Master!$D$40:$I$110,MATCH(Q$5,Master!$I$40:$I$110,0),1)),0,(INDEX(Master!$D$40:$I$110,MATCH(Q$5,Master!$I$40:$I$110,0),1))) -> 120 | R21: =IF(ISNA(INDEX(Master!$D$40:$I$110,MATCH(R$5,Master!$I$40:$I$110,0),1)),0,(INDEX(Master!$D$40:$I$110,MATCH(R$5,Master!$I$40:$I$110,0),1))) -> 0 | S21: =IF(ISNA(INDEX(Master!$D$40:$I$110,MATCH(S$5,Master!$I$40:$I$110,0),1)),0,(INDEX(Master!$D$40:$I$110,MATCH(S$5,Master!$I$40:$I$110,0),1))) -> 0 | T21: =IF(ISNA(INDEX(Master!$D$40:$I$110,MATCH(T$5,Master!$I$40:$I$110,0),1)),0,(INDEX(Master!$D$40:$I$110,MATCH(T$5,Master!$I$40:$I$110,0),1))) -> 0 | V21: =IF(ISNA(INDEX(Master!$D$40:$I$110,MATCH(V$5,Master!$I$40:$I$110,0),1)),0,(INDEX(Master!$D$40:$I$110,MATCH(V$5,Master!$I$40:$I$110,0),1))) -> 0 | W21: =IF(ISNA(INDEX(Master!$D$40:$I$110,MATCH(W$5,Master!$I$40:$I$110,0),1)),0,(INDEX(Master!$D$40:$I$110,MATCH(W$5,Master!$I$40:$I$110,0),1))) -> 0 | X21: =IF(ISNA(INDEX(Master!$D$40:$I$110,MATCH(X$5,Master!$I$40:$I$110,0),1)),0,(INDEX(Master!$D$40:$I$110,MATCH(X$5,Master!$I$40:$I$110,0),1))) -> 51612.90323 | Y21: =IF(ISNA(INDEX(Master!$D$40:$I$110,MATCH(Y$5,Master!$I$40:$I$110,0),1)),0,(INDEX(Master!$D$40:$I$110,MATCH(Y$5,Master!$I$40:$I$110,0),1))) -> 0 | Z21: =IF(ISNA(INDEX(Master!$D$40:$I$110,MATCH(Z$5,Master!$I$40:$I$110,0),1)),0,(INDEX(Master!$D$40:$I$110,MATCH(Z$5,Master!$I$40:$I$110,0),1))) -> 0 | AA21: =IF(ISNA(INDEX(Master!$D$40:$I$110,MATCH(AA$5,Master!$I$40:$I$110,0),1)),0,(INDEX(Master!$D$40:$I$110,MATCH(AA$5,Master!$I$40:$I$110,0),1))) -> 500 | AB21: =IF(ISNA(INDEX(Master!$D$40:$I$110,MATCH(AB$5,Master!$I$40:$I$110,0),1)),0,(INDEX(Master!$D$40:$I$110,MATCH(AB$5,Master!$I$40:$I$110,0),1))) -> 1880 | AC21: =IF(ISNA(INDEX(Master!$D$40:$I$110,MATCH(AC$5,Master!$I$40:$I$110,0),1)),0,(INDEX(Master!$D$40:$I$110,MATCH(AC$5,Master!$I$40:$I$110,0),1))) -> 0 | AD21: =IF(ISNA(INDEX(Master!$D$40:$I$110,MATCH(AD$5,Master!$I$40:$I$110,0),1)),0,(INDEX(Master!$D$40:$I$110,MATCH(AD$5,Master!$I$40:$I$110,0),1))) -> 400 | AF21: 16 | AG21: 11818.80051 | AH21: 9590.207918 | AI21: 2228.592593 | AJ21: 11480.58751 | AK21: 9251.994913
B22: 17 | C22: =(Energiepreisberechnung!C19) -> 0.1623690062 | D22: =(Energiepreisberechnung!D19) -> 0.2066514624 | E22: =(Energiepreisberechnung!E19) -> 0.5904327497 | F22: =(Energiepreisberechnung!F19) -> 0.2509339186 | G22: =(Energiepreisberechnung!G19) -> 0.1476081874 | K22: =IF(ISNA(INDEX(Master!$D$40:$I$110,MATCH(K$5,Master!$I$40:$I$110,0),1)),0,(INDEX(Master!$D$40:$I$110,MATCH(K$5,Master!$I$40:$I$110,0),1))) -> 0 | L22: =IF(ISNA(INDEX(Master!$D$40:$I$110,MATCH(L$5,Master!$I$40:$I$110,0),1)),0,(INDEX(Master!$D$40:$I$110,MATCH(L$5,Master!$I$40:$I$110,0),1))) -> 0 | M22: =IF(ISNA(INDEX(Master!$D$40:$I$110,MATCH(M$5,Master!$I$40:$I$110,0),1)),0,(INDEX(Master!$D$40:$I$110,MATCH(M$5,Master!$I$40:$I$110,0),1))) -> 0 | N22: =IF(ISNA(INDEX(Master!$D$40:$I$110,MATCH(N$5,Master!$I$40:$I$110,0),1)),0,(INDEX(Master!$D$40:$I$110,MATCH(N$5,Master!$I$40:$I$110,0),1))) -> 75471.69811 | O22: =IF(ISNA(INDEX(Master!$D$40:$I$110,MATCH(O$5,Master!$I$40:$I$110,0),1)),0,(INDEX(Master!$D$40:$I$110,MATCH(O$5,Master!$I$40:$I$110,0),1))) -> 0 | P22: =IF(ISNA(INDEX(Master!$D$40:$I$110,MATCH(P$5,Master!$I$40:$I$110,0),1)),0,(INDEX(Master!$D$40:$I$110,MATCH(P$5,Master!$I$40:$I$110,0),1))) -> 300 | Q22: =IF(ISNA(INDEX(Master!$D$40:$I$110,MATCH(Q$5,Master!$I$40:$I$110,0),1)),0,(INDEX(Master!$D$40:$I$110,MATCH(Q$5,Master!$I$40:$I$110,0),1))) -> 120 | R22: =IF(ISNA(INDEX(Master!$D$40:$I$110,MATCH(R$5,Master!$I$40:$I$110,0),1)),0,(INDEX(Master!$D$40:$I$110,MATCH(R$5,Master!$I$40:$I$110,0),1))) -> 0 | S22: =IF(ISNA(INDEX(Master!$D$40:$I$110,MATCH(S$5,Master!$I$40:$I$110,0),1)),0,(INDEX(Master!$D$40:$I$110,MATCH(S$5,Master!$I$40:$I$110,0),1))) -> 0 | T22: =IF(ISNA(INDEX(Master!$D$40:$I$110,MATCH(T$5,Master!$I$40:$I$110,0),1)),0,(INDEX(Master!$D$40:$I$110,MATCH(T$5,Master!$I$40:$I$110,0),1))) -> 0 | V22: =IF(ISNA(INDEX(Master!$D$40:$I$110,MATCH(V$5,Master!$I$40:$I$110,0),1)),0,(INDEX(Master!$D$40:$I$110,MATCH(V$5,Master!$I$40:$I$110,0),1))) -> 0 | W22: =IF(ISNA(INDEX(Master!$D$40:$I$110,MATCH(W$5,Master!$I$40:$I$110,0),1)),0,(INDEX(Master!$D$40:$I$110,MATCH(W$5,Master!$I$40:$I$110,0),1))) -> 0 | X22: =IF(ISNA(INDEX(Master!$D$40:$I$110,MATCH(X$5,Master!$I$40:$I$110,0),1)),0,(INDEX(Master!$D$40:$I$110,MATCH(X$5,Master!$I$40:$I$110,0),1))) -> 51612.90323 | Y22: =IF(ISNA(INDEX(Master!$D$40:$I$110,MATCH(Y$5,Master!$I$40:$I$110,0),1)),0,(INDEX(Master!$D$40:$I$110,MATCH(Y$5,Master!$I$40:$I$110,0),1))) -> 0 | Z22: =IF(ISNA(INDEX(Master!$D$40:$I$110,MATCH(Z$5,Master!$I$40:$I$110,0),1)),0,(INDEX(Master!$D$40:$I$110,MATCH(Z$5,Master!$I$40:$I$110,0),1))) -> 0 | AA22: =IF(ISNA(INDEX(Master!$D$40:$I$110,MATCH(AA$5,Master!$I$40:$I$110,0),1)),0,(INDEX(Master!$D$40:$I$110,MATCH(AA$5,Master!$I$40:$I$110,0),1))) -> 500 | AB22: =IF(ISNA(INDEX(Master!$D$40:$I$110,MATCH(AB$5,Master!$I$40:$I$110,0),1)),0,(INDEX(Master!$D$40:$I$110,MATCH(AB$5,Master!$I$40:$I$110,0),1))) -> 1880 | AC22: =IF(ISNA(INDEX(Master!$D$40:$I$110,MATCH(AC$5,Master!$I$40:$I$110,0),1)),0,(INDEX(Master!$D$40:$I$110,MATCH(AC$5,Master!$I$40:$I$110,0),1))) -> 0 | AD22: =IF(ISNA(INDEX(Master!$D$40:$I$110,MATCH(AD$5,Master!$I$40:$I$110,0),1)),0,(INDEX(Master!$D$40:$I$110,MATCH(AD$5,Master!$I$40:$I$110,0),1))) -> 400 | AF22: 17 | AG22: 12625.11655 | AH22: 10226.52247 | AI22: 2398.594075 | AJ22: 9251.994913 | AK22: 6853.400838
B23: 18 | C23: =(Energiepreisberechnung!C20) -> 0.1737348366 | D23: =(Energiepreisberechnung!D20) -> 0.2211170648 | E23: =(Energiepreisberechnung!E20) -> 0.6317630422 | F23: =(Energiepreisberechnung!F20) -> 0.2684992929 | G23: =(Energiepreisberechnung!G20) -> 0.1579407605 | K23: =IF(ISNA(INDEX(Master!$D$40:$I$110,MATCH(K$5,Master!$I$40:$I$110,0),1)),0,(INDEX(Master!$D$40:$I$110,MATCH(K$5,Master!$I$40:$I$110,0),1))) -> 0 | L23: =IF(ISNA(INDEX(Master!$D$40:$I$110,MATCH(L$5,Master!$I$40:$I$110,0),1)),0,(INDEX(Master!$D$40:$I$110,MATCH(L$5,Master!$I$40:$I$110,0),1))) -> 0 | M23: =IF(ISNA(INDEX(Master!$D$40:$I$110,MATCH(M$5,Master!$I$40:$I$110,0),1)),0,(INDEX(Master!$D$40:$I$110,MATCH(M$5,Master!$I$40:$I$110,0),1))) -> 0 | N23: =IF(ISNA(INDEX(Master!$D$40:$I$110,MATCH(N$5,Master!$I$40:$I$110,0),1)),0,(INDEX(Master!$D$40:$I$110,MATCH(N$5,Master!$I$40:$I$110,0),1))) -> 75471.69811 | O23: =IF(ISNA(INDEX(Master!$D$40:$I$110,MATCH(O$5,Master!$I$40:$I$110,0),1)),0,(INDEX(Master!$D$40:$I$110,MATCH(O$5,Master!$I$40:$I$110,0),1))) -> 0 | P23: =IF(ISNA(INDEX(Master!$D$40:$I$110,MATCH(P$5,Master!$I$40:$I$110,0),1)),0,(INDEX(Master!$D$40:$I$110,MATCH(P$5,Master!$I$40:$I$110,0),1))) -> 300 | Q23: =IF(ISNA(INDEX(Master!$D$40:$I$110,MATCH(Q$5,Master!$I$40:$I$110,0),1)),0,(INDEX(Master!$D$40:$I$110,MATCH(Q$5,Master!$I$40:$I$110,0),1))) -> 120 | R23: =IF(ISNA(INDEX(Master!$D$40:$I$110,MATCH(R$5,Master!$I$40:$I$110,0),1)),0,(INDEX(Master!$D$40:$I$110,MATCH(R$5,Master!$I$40:$I$110,0),1))) -> 0 | S23: =IF(ISNA(INDEX(Master!$D$40:$I$110,MATCH(S$5,Master!$I$40:$I$110,0),1)),0,(INDEX(Master!$D$40:$I$110,MATCH(S$5,Master!$I$40:$I$110,0),1))) -> 0 | T23: =IF(ISNA(INDEX(Master!$D$40:$I$110,MATCH(T$5,Master!$I$40:$I$110,0),1)),0,(INDEX(Master!$D$40:$I$110,MATCH(T$5,Master!$I$40:$I$110,0),1))) -> 0 | V23: =IF(ISNA(INDEX(Master!$D$40:$I$110,MATCH(V$5,Master!$I$40:$I$110,0),1)),0,(INDEX(Master!$D$40:$I$110,MATCH(V$5,Master!$I$40:$I$110,0),1))) -> 0 | W23: =IF(ISNA(INDEX(Master!$D$40:$I$110,MATCH(W$5,Master!$I$40:$I$110,0),1)),0,(INDEX(Master!$D$40:$I$110,MATCH(W$5,Master!$I$40:$I$110,0),1))) -> 0 | X23: =IF(ISNA(INDEX(Master!$D$40:$I$110,MATCH(X$5,Master!$I$40:$I$110,0),1)),0,(INDEX(Master!$D$40:$I$110,MATCH(X$5,Master!$I$40:$I$110,0),1))) -> 51612.90323 | Y23: =IF(ISNA(INDEX(Master!$D$40:$I$110,MATCH(Y$5,Master!$I$40:$I$110,0),1)),0,(INDEX(Master!$D$40:$I$110,MATCH(Y$5,Master!$I$40:$I$110,0),1))) -> 0 | Z23: =IF(ISNA(INDEX(Master!$D$40:$I$110,MATCH(Z$5,Master!$I$40:$I$110,0),1)),0,(INDEX(Master!$D$40:$I$110,MATCH(Z$5,Master!$I$40:$I$110,0),1))) -> 0 | AA23: =IF(ISNA(INDEX(Master!$D$40:$I$110,MATCH(AA$5,Master!$I$40:$I$110,0),1)),0,(INDEX(Master!$D$40:$I$110,MATCH(AA$5,Master!$I$40:$I$110,0),1))) -> 500 | AB23: =IF(ISNA(INDEX(Master!$D$40:$I$110,MATCH(AB$5,Master!$I$40:$I$110,0),1)),0,(INDEX(Master!$D$40:$I$110,MATCH(AB$5,Master!$I$40:$I$110,0),1))) -> 1880 | AC23: =IF(ISNA(INDEX(Master!$D$40:$I$110,MATCH(AC$5,Master!$I$40:$I$110,0),1)),0,(INDEX(Master!$D$40:$I$110,MATCH(AC$5,Master!$I$40:$I$110,0),1))) -> 0 | AD23: =IF(ISNA(INDEX(Master!$D$40:$I$110,MATCH(AD$5,Master!$I$40:$I$110,0),1)),0,(INDEX(Master!$D$40:$I$110,MATCH(AD$5,Master!$I$40:$I$110,0),1))) -> 400 | AF23: 18 | AG23: 13487.8747 | AH23: 10907.37904 | AI23: 2580.49566 | AJ23: 6853.400838 | AK23: 4272.905177
B24: 19 | C24: =(Energiepreisberechnung!C21) -> 0.1858962752 | D24: =(Energiepreisberechnung!D21) -> 0.2365952593 | E24: =(Energiepreisberechnung!E21) -> 0.6759864551 | F24: =(Energiepreisberechnung!F21) -> 0.2872942434 | G24: =(Energiepreisberechnung!G21) -> 0.1689966138 | K24: =IF(ISNA(INDEX(Master!$D$40:$I$110,MATCH(K$5,Master!$I$40:$I$110,0),1)),0,(INDEX(Master!$D$40:$I$110,MATCH(K$5,Master!$I$40:$I$110,0),1))) -> 0 | L24: =IF(ISNA(INDEX(Master!$D$40:$I$110,MATCH(L$5,Master!$I$40:$I$110,0),1)),0,(INDEX(Master!$D$40:$I$110,MATCH(L$5,Master!$I$40:$I$110,0),1))) -> 0 | M24: =IF(ISNA(INDEX(Master!$D$40:$I$110,MATCH(M$5,Master!$I$40:$I$110,0),1)),0,(INDEX(Master!$D$40:$I$110,MATCH(M$5,Master!$I$40:$I$110,0),1))) -> 0 | N24: =IF(ISNA(INDEX(Master!$D$40:$I$110,MATCH(N$5,Master!$I$40:$I$110,0),1)),0,(INDEX(Master!$D$40:$I$110,MATCH(N$5,Master!$I$40:$I$110,0),1))) -> 75471.69811 | O24: =IF(ISNA(INDEX(Master!$D$40:$I$110,MATCH(O$5,Master!$I$40:$I$110,0),1)),0,(INDEX(Master!$D$40:$I$110,MATCH(O$5,Master!$I$40:$I$110,0),1))) -> 0 | P24: =IF(ISNA(INDEX(Master!$D$40:$I$110,MATCH(P$5,Master!$I$40:$I$110,0),1)),0,(INDEX(Master!$D$40:$I$110,MATCH(P$5,Master!$I$40:$I$110,0),1))) -> 300 | Q24: =IF(ISNA(INDEX(Master!$D$40:$I$110,MATCH(Q$5,Master!$I$40:$I$110,0),1)),0,(INDEX(Master!$D$40:$I$110,MATCH(Q$5,Master!$I$40:$I$110,0),1))) -> 120 | R24: =IF(ISNA(INDEX(Master!$D$40:$I$110,MATCH(R$5,Master!$I$40:$I$110,0),1)),0,(INDEX(Master!$D$40:$I$110,MATCH(R$5,Master!$I$40:$I$110,0),1))) -> 0 | S24: =IF(ISNA(INDEX(Master!$D$40:$I$110,MATCH(S$5,Master!$I$40:$I$110,0),1)),0,(INDEX(Master!$D$40:$I$110,MATCH(S$5,Master!$I$40:$I$110,0),1))) -> 0 | T24: =IF(ISNA(INDEX(Master!$D$40:$I$110,MATCH(T$5,Master!$I$40:$I$110,0),1)),0,(INDEX(Master!$D$40:$I$110,MATCH(T$5,Master!$I$40:$I$110,0),1))) -> 0 | V24: =IF(ISNA(INDEX(Master!$D$40:$I$110,MATCH(V$5,Master!$I$40:$I$110,0),1)),0,(INDEX(Master!$D$40:$I$110,MATCH(V$5,Master!$I$40:$I$110,0),1))) -> 0 | W24: =IF(ISNA(INDEX(Master!$D$40:$I$110,MATCH(W$5,Master!$I$40:$I$110,0),1)),0,(INDEX(Master!$D$40:$I$110,MATCH(W$5,Master!$I$40:$I$110,0),1))) -> 0 | X24: =IF(ISNA(INDEX(Master!$D$40:$I$110,MATCH(X$5,Master!$I$40:$I$110,0),1)),0,(INDEX(Master!$D$40:$I$110,MATCH(X$5,Master!$I$40:$I$110,0),1))) -> 51612.90323 | Y24: =IF(ISNA(INDEX(Master!$D$40:$I$110,MATCH(Y$5,Master!$I$40:$I$110,0),1)),0,(INDEX(Master!$D$40:$I$110,MATCH(Y$5,Master!$I$40:$I$110,0),1))) -> 0 | Z24: =IF(ISNA(INDEX(Master!$D$40:$I$110,MATCH(Z$5,Master!$I$40:$I$110,0),1)),0,(INDEX(Master!$D$40:$I$110,MATCH(Z$5,Master!$I$40:$I$110,0),1))) -> 0 | AA24: =IF(ISNA(INDEX(Master!$D$40:$I$110,MATCH(AA$5,Master!$I$40:$I$110,0),1)),0,(INDEX(Master!$D$40:$I$110,MATCH(AA$5,Master!$I$40:$I$110,0),1))) -> 500 | AB24: =IF(ISNA(INDEX(Master!$D$40:$I$110,MATCH(AB$5,Master!$I$40:$I$110,0),1)),0,(INDEX(Master!$D$40:$I$110,MATCH(AB$5,Master!$I$40:$I$110,0),1))) -> 1880 | AC24: =IF(ISNA(INDEX(Master!$D$40:$I$110,MATCH(AC$5,Master!$I$40:$I$110,0),1)),0,(INDEX(Master!$D$40:$I$110,MATCH(AC$5,Master!$I$40:$I$110,0),1))) -> 0 | AD24: =IF(ISNA(INDEX(Master!$D$40:$I$110,MATCH(AD$5,Master!$I$40:$I$110,0),1)),0,(INDEX(Master!$D$40:$I$110,MATCH(AD$5,Master!$I$40:$I$110,0),1))) -> 400 | AF24: 19 | AG24: 14411.02593 | AH24: 11635.89558 | AI24: 2775.130356 | AJ24: 4272.905177 | AK24: 1497.774821
B25: 20 | C25: =(Energiepreisberechnung!C22) -> 0.1989090144 | D25: =(Energiepreisberechnung!D22) -> 0.2531569275 | E25: =(Energiepreisberechnung!E22) -> 0.723305507 | F25: =(Energiepreisberechnung!F22) -> 0.3074048405 | G25: =(Energiepreisberechnung!G22) -> 0.1808263768 | K25: =IF(ISNA(INDEX(Master!$D$40:$I$110,MATCH(K$5,Master!$I$40:$I$110,0),1)),0,(INDEX(Master!$D$40:$I$110,MATCH(K$5,Master!$I$40:$I$110,0),1))) -> 0 | L25: =IF(ISNA(INDEX(Master!$D$40:$I$110,MATCH(L$5,Master!$I$40:$I$110,0),1)),0,(INDEX(Master!$D$40:$I$110,MATCH(L$5,Master!$I$40:$I$110,0),1))) -> 0 | M25: =IF(ISNA(INDEX(Master!$D$40:$I$110,MATCH(M$5,Master!$I$40:$I$110,0),1)),0,(INDEX(Master!$D$40:$I$110,MATCH(M$5,Master!$I$40:$I$110,0),1))) -> 0 | N25: =IF(ISNA(INDEX(Master!$D$40:$I$110,MATCH(N$5,Master!$I$40:$I$110,0),1)),0,(INDEX(Master!$D$40:$I$110,MATCH(N$5,Master!$I$40:$I$110,0),1))) -> 75471.69811 | O25: =IF(ISNA(INDEX(Master!$D$40:$I$110,MATCH(O$5,Master!$I$40:$I$110,0),1)),0,(INDEX(Master!$D$40:$I$110,MATCH(O$5,Master!$I$40:$I$110,0),1))) -> 0 | P25: =IF(ISNA(INDEX(Master!$D$40:$I$110,MATCH(P$5,Master!$I$40:$I$110,0),1)),0,(INDEX(Master!$D$40:$I$110,MATCH(P$5,Master!$I$40:$I$110,0),1))) -> 300 | Q25: =IF(ISNA(INDEX(Master!$D$40:$I$110,MATCH(Q$5,Master!$I$40:$I$110,0),1)),0,(INDEX(Master!$D$40:$I$110,MATCH(Q$5,Master!$I$40:$I$110,0),1))) -> 120 | R25: =IF(ISNA(INDEX(Master!$D$40:$I$110,MATCH(R$5,Master!$I$40:$I$110,0),1)),0,(INDEX(Master!$D$40:$I$110,MATCH(R$5,Master!$I$40:$I$110,0),1))) -> 0 | S25: =IF(ISNA(INDEX(Master!$D$40:$I$110,MATCH(S$5,Master!$I$40:$I$110,0),1)),0,(INDEX(Master!$D$40:$I$110,MATCH(S$5,Master!$I$40:$I$110,0),1))) -> 0 | T25: =IF(ISNA(INDEX(Master!$D$40:$I$110,MATCH(T$5,Master!$I$40:$I$110,0),1)),0,(INDEX(Master!$D$40:$I$110,MATCH(T$5,Master!$I$40:$I$110,0),1))) -> 0 | V25: =IF(ISNA(INDEX(Master!$D$40:$I$110,MATCH(V$5,Master!$I$40:$I$110,0),1)),0,(INDEX(Master!$D$40:$I$110,MATCH(V$5,Master!$I$40:$I$110,0),1))) -> 0 | W25: =IF(ISNA(INDEX(Master!$D$40:$I$110,MATCH(W$5,Master!$I$40:$I$110,0),1)),0,(INDEX(Master!$D$40:$I$110,MATCH(W$5,Master!$I$40:$I$110,0),1))) -> 0 | X25: =IF(ISNA(INDEX(Master!$D$40:$I$110,MATCH(X$5,Master!$I$40:$I$110,0),1)),0,(INDEX(Master!$D$40:$I$110,MATCH(X$5,Master!$I$40:$I$110,0),1))) -> 51612.90323 | Y25: =IF(ISNA(INDEX(Master!$D$40:$I$110,MATCH(Y$5,Master!$I$40:$I$110,0),1)),0,(INDEX(Master!$D$40:$I$110,MATCH(Y$5,Master!$I$40:$I$110,0),1))) -> 0 | Z25: =IF(ISNA(INDEX(Master!$D$40:$I$110,MATCH(Z$5,Master!$I$40:$I$110,0),1)),0,(INDEX(Master!$D$40:$I$110,MATCH(Z$5,Master!$I$40:$I$110,0),1))) -> 0 | AA25: =IF(ISNA(INDEX(Master!$D$40:$I$110,MATCH(AA$5,Master!$I$40:$I$110,0),1)),0,(INDEX(Master!$D$40:$I$110,MATCH(AA$5,Master!$I$40:$I$110,0),1))) -> 500 | AB25: =IF(ISNA(INDEX(Master!$D$40:$I$110,MATCH(AB$5,Master!$I$40:$I$110,0),1)),0,(INDEX(Master!$D$40:$I$110,MATCH(AB$5,Master!$I$40:$I$110,0),1))) -> 1880 | AC25: =IF(ISNA(INDEX(Master!$D$40:$I$110,MATCH(AC$5,Master!$I$40:$I$110,0),1)),0,(INDEX(Master!$D$40:$I$110,MATCH(AC$5,Master!$I$40:$I$110,0),1))) -> 0 | AD25: =IF(ISNA(INDEX(Master!$D$40:$I$110,MATCH(AD$5,Master!$I$40:$I$110,0),1)),0,(INDEX(Master!$D$40:$I$110,MATCH(AD$5,Master!$I$40:$I$110,0),1))) -> 400 | AF25: 20 | AG25: 15398.79775 | AH25: 12415.40827 | AI25: 2983.389481 | AJ25: 1497.774821 | AK25: -1485.61466
C27: =SUM(C6:C26) -> 2.254752078 | D27: =SUM(D6:D26) -> 2.869684462 | E27: 8.199098464 | F27: 3.484616847 | G27: 2.049774616 | AG27: =SUM(AG6:AG26) -> 177153.8599 | AH27: =SUM(AH6:AH26) -> 145068.2453 | AI27: =SUM(AI6:AI25) -> 32085.61466
C28: =(C27/20) -> 0.1127376039 | D28: =(D27/20) -> 0.1434842231 | E28: 0.4099549232 | F28: 0.1742308424 | G28: 0.1024887308 | AG28: =(AG27/20) -> 8857.692997 | AH28: =(AH27/20) -> 7253.412264 | AI28: =(AI27/20) -> 1604.280733

Sheet LW bival ÖL
A1: Aktueller Gaspreis | D1: =(Energiepreisberechnung!D28) -> 0.055 | E1: €/kWh
A2: Aktueller Ölpreis | D2: =(Energiepreisberechnung!D30) -> 0.085 | E2: €/kWh
A3: Aktueller Strompreis | D3: =(Energiepreisberechnung!D31) -> 0.2 | E3: €/kWh
A4: Gemittelter Wirkungsgrad Ölkessel | D4: 0.93
A5: Gemittelter Wirkungsgrad Gasbrennwertgerät | D5: 1.06
A6: Gemittelter Wirkungsgrad GAWP LW | D6: 1.5
A7: Elektr. Leistung GAWP LW | D7: 1.09 | E7: kW
A8: Elektr. Leistung Kesselkreispumpe | D8: 0.05 | E8: kW
A10: Gesucht: | B10: Investitions- und Betriebskosten während 20 Jahren
A12: 1.
A13: Errechnung der mittleren Energiepreise binnen 20 Jahren
A15: Gaspreis Anfangsjahr: | D15: =(D1) -> 0.055 | E15: €/kWh
A16: Gaspreis im 20´sten Jahr: | D16: =(Energiepreisberechnung!C22) -> 0.1989090144 | E16: €/kWh
A17: Mittlerer Gaspreis während 20 Jahren: | D17: =(Energiepreisberechnung!C24) -> 0.1127376039 | E17: €/kWh
A19: Ölpreis Anfangsjahr: | D19: =(D2) -> 0.085 | E19: €/kWh
A20: Ölpreis im 20´sten Jahr: | D20: =(Energiepreisberechnung!F22) -> 0.3074048405 | E20: €/kWh
A21: Mittlerer Ölpreis während 20 Jahren: | D21: =(Energiepreisberechnung!F24) -> 0.1742308424 | E21: €/kWh
A23: Strompreis Anfangsjahr: | D23: =(D3) -> 0.2 | E23: €/kWh
A24: Strompreis im 20´sten Jahr: | D24: =(Energiepreisberechnung!E22) -> 0.723305507 | E24: €/kWh
A25: Mittlerer Strompreis während 20 Jahren: | D25: =(Energiepreisberechnung!E24) -> 0.4099549232 | E25: €/kWh
A27: 2.
A28: Betrachtung ohne Investition (bestehende Kessel bleiben)
A30: 2a
A31: Investitionskosten
A32: Investitionskosten gesamt: | D32: 0 | E32: € | I32: R_I_ÖL
A34: 2b
A35: Betriebskosten Öl
A36: Jahresarbeit Ölkessel | D36: =(Master!D5*Master!D6) -> 80000 | E36: kWh/a | F36: (Leistung x Jahresvollbenutzungsstunden)
A37: Energieverbrauch Ölkessel | D37: =(D36/D4) -> 86021.50538 | E37: kWh/a | F37: (Wirkungsgrad berücksichtigt) | I37: R_B_ÖL
A38: Kosten Öl | D38: =(D37*D21) -> 14987.59934 | E38: €/a
A39: Wartungskosten Ölkessel | D39: 300 | E39: €/a | I39: R_B_WART_ÖL
A40: Stromverbrauch 1 Stück Kesselkreispumpe | D40: =(Master!D6*D8) -> 100 | E40: kWh/a | I40: R_B_STROM_ÖL
A41: Stromkosten 1 Stück Kesselkreispumpe | D41: =(D40*D25) -> 40.99549232 | E41: €/a | F41: (Stromverbrauch x mittlerer Strompreis)
A43: Betriebskosten pro Jahr gesamt: | D43: =SUM(D38:D39)+D41 -> 15328.59484 | E43: €/a
L44: Negative Werte sollen gleich Null gesetzt werden
A45: 3. | L45: =(Master!D5-D58) -> 5
A46: Betrachtung für eine GAWP 35 LW (35 kW) sowie Spitzenlastkessel
L47: Wärmepumpe soll nur die Anlagenheizlast erbringen, welche erforderlich ist
A48: 3a | L48: =IF(Master!D5<35,Master!D5,35) -> 35
A49: Investitionskosten
A50: GAWP + Zubehör | D50: =IF(Master!T15=TRUE,25000, (IF(Master!T16=TRUE,45000, (IF(Master!T17=TRUE,65000,""))))) ->  | E50: € | L50: Deckungsrate GAWP
A51: Förderung BAFA | D51: =IF(Master!$T$15=TRUE,(2400+100*25), (IF(Master!$T$16=TRUE,(2400+100*60), (IF(Master!$T$17=TRUE,(2400+100*95),""))))) ->  | E51: € | L51: =(D57/D58) -> 0.1428571429 | M51: Quotient BW zu GAWP
A52: =IF(AND(Master!D5>29,Master!D5<55),Spitzenlastkessel!C4,(IF(AND(Master!D5>54,Master!D5<65),Spitzenlastkessel!C5,(IF(AND(Master!D5>64,Master!D5<85),Spitzenlastkessel!C6,(IF(AND(Master!D5>84,Master!D5<110),Spitzenlastkessel!C7,(IF(AND(Master!D5>109,Master!D5<135),Spitzenlastkessel!C8,(IF(AND(Master!D5>134,Master!D5<150),Spitzenlastkessel!C9,(IF(AND(Master!D5>149,Master!D5<200),Spitzenlastkessel!C10,(IF(AND(Master!D5>199,Master!D5<240),Spitzenlastkessel!C11,(IF(AND(Master!D5>239,Master!D5<300),Spitzenlastkessel!C12,(IF(AND(Master!D5>299,Master!D5<370),Spitzenlastkessel!C13,(IF(AND(Master!D5>369,Master!D5<450),Spitzenlastkessel!C14,(IF(AND(Master!D5>449,Master!D5<520),Spitzenlastkessel!C15,"Anlagenheizlast zu groß"))))))))))))))))))))))) -> Spitzenlastkessel GMR 3035 (35 kW) | D52: =IF(AND(Master!D5>29,Master!D5<55),Spitzenlastkessel!E4,(IF(AND(Master!D5>54,Master!D5<65),Spitzenlastkessel!E5,(IF(AND(Master!D5>64,Master!D5<85),Spitzenlastkessel!E6,(IF(AND(Master!D5>84,Master!D5<110),Spitzenlastkessel!E7,(IF(AND(Master!D5>109,Master!D5<135),Spitzenlastkessel!E8,(IF(AND(Master!D5>134,Master!D5<150),Spitzenlastkessel!E9,(IF(AND(Master!D5>149,Master!D5<200),Spitzenlastkessel!E10,(IF(AND(Master!D5>199,Master!D5<240),Spitzenlastkessel!E11,(IF(AND(Master!D5>239,Master!D5<300),Spitzenlastkessel!E12,(IF(AND(Master!D5>299,Master!D5<370),Spitzenlastkessel!E13,(IF(AND(Master!D5>369,Master!D5<450),Spitzenlastkessel!E14,(IF(AND(Master!D5>449,Master!D5<520),Spitzenlastkessel!E15,"Anlagenheizlast zu groß"))))))))))))))))))))))) -> 3600 | E52: € | F52: (gewählt) | L52: =(D57+D58) -> 40 | M52: Max Leistung BW plus Leistung GAWP
A53: Investitionskosten gesamt: | D53: =(D50+D52-D51) ->  | E53: € | I53: N_I_GAWP_u_BW | L53: =(100/L52)*D58 -> 87.5 | M53: Prozentuale Anlagenheizlast von GAWP
L54: =MROUND(L53,5) -> 90 | M54: Gerundet | Q54: Prozentuale Anlagen- heizlast der GAWP
A55: 3b | L55: =VLOOKUP(L54,Q58:R85,2) -> 98 | M55: Deckungsrate GAWP | R55: Deckungs- rate
A56: Betriebskosten
A57: Max. Leistung Brennwertgerät | D57: =IF(L45<0,0,(Master!D5-D58)) -> 5 | E57: kW
A58: Leistung GAWP | D58: =(L48) -> 35 | E58: kW | Q58: 0 | R58: 0
Q59: 5 | R59: 8
A60: Deckungsrate Brennwertgerät | D60: =(100-D61) -> 2 | E60: % | F60: (Ergibt sich aus Leistungsverhältnis Brennwertgerät/GAWP) | Q60: 10 | R60: 15
A61: Deckungsrate GAWP | D61: =VLOOKUP(L54,Q58:R85,2) -> 98 | E61: % | F61: (Ergibt sich aus Leistungsverhältnis Brennwertgerät/GAWP) | Q61: 15 | R61: 25
Q62: 20 | R62: 33
A63: Jahresarbeit Gas-Brennwertgerät | D63: =(D36*(D60/100)) -> 1600 | E63: kWh/a | F63: (Deckungsrate berücksichtigt)
A64: Jahresarbeit GAWP | D64: =(D36*(D61/100)) -> 78400 | E64: kWh/a | F64: (Deckungsrate berücksichtigt) | Q64: 25 | R64: 41
Q65: 30 | R65: 50
A66: Vollbenutzungsstunden Gas-Brennwertgerät | D66: =IF(D57=0,0,(D63/D57)) -> 320 | E66: h | F66: (ergibt sich aus Jahresarbeit/Leistung)
A67: Vollbenutzungsstunden GAWP | D67: =(D64/D58) -> 2240 | E67: h | F67: (ergibt sich aus Jahresarbeit/Leistung) | Q67: 35 | R67: 58
Q68: 40 | R68: 67
A69: Gasverbrauch Gas-Brennwertgerät | D69: =(D63/D5) -> 1509.433962 | E69: kWh/a | F69: (ergibt sich aus Jahresarbeit/Wirkungsgrad) | I69: N_B_GAS_BW
A70: Gasverbrauch GAWP | D70: =(D64/D6) -> 52266.66667 | E70: kWh/a | F70: (ergibt sich aus Jahresarbeit/Wirkungsgrad) | I70: N_B_GAS_GAWP | Q70: 45 | R70: 75
Q71: 50 | R71: 80
A72: Kosten Gasverbrauch Gas-Brennwertgerät | D72: =(D69*D17) -> 170.1699681 | E72: €/a | F72: (ergibt sich aus Gasverbrauch x mittlerer Gaspreis)
A73: Kosten Gasverbrauch GAWP | D73: =(D70*D17) -> 5892.418763 | E73: €/a | F73: (ergibt sich aus Gasverbrauch x mittlerer Gaspreis) | Q73: 55 | R73: 83
Q74: 60 | R74: 87
A75: Wartungskosten Gas-Brennwertgerät | D75: 300 | E75: €/a | I75: N_B_WART_BW
A76: Wartungskosten GAWP | D76: 300 | E76: €/a | I76: N_B_WART_GAWP | Q76: 65 | R76: 90
Q77: 70 | R77: 92
A78: Stromverbrauch GAWP | D78: =(D67*D7) -> 2441.6 | E78: kWh/a | I78: N_B_STROM_LÜ_GAWP | Q78: 75 | R78: 94
A79: Stromkosten GAWP | D79: =(D78*D25) -> 1000.945941 | E79: €/a | F79: (Stromverbrauch x mittlerer Strompreis) | Q79: 80 | R79: 96
A80: Stromverbrauch Gas-Brennwertgerät | D80: =(D66*D8) -> 16 | E80: kWh/a | I80: N_B_STROM_BW
A81: Stromkosten Gas-Brennwertgerät | D81: =(D80*D25) -> 6.559278771 | E81: €/a | F81: (Stromverbrauch x mittlerer Strompreis)
A82: Stromverbrauch Umwälzpumpe GAWP | D82: =((D67)*D8) -> 112 | E82: kWh/a | I82: N_B_STROM_PU_GAWP | Q82: 85 | R82: 97
A83: Stromkosten Umwälzpumpe GAWP | D83: =(D82*D25) -> 45.9149514 | E83: €/a | F83: (Stromverbrauch x mittlerer Strompreis) | Q83: 90 | R83: 98
Q84: 95 | R84: 99
A85: Betriebskosten pro Jahr gesamt: | D85: =SUM(D72:D76)+D83+D79+D81 -> 7716.008902 | E85: €/a | Q85: 100 | R85: 100
A87: FAZIT:
A88: Mittlere Energieeinsparung pro Jahr bei Einsatz
A89: von einer GAWP LW und Gas-Brennwertgerät
A90: gegenüber bestehenden Betriebskosten | D90: =(D43-D85) -> 7612.585934 | E90: €/a
A92: Differenz Investitionskosten: | D92: =(D53-D32) ->  | E92: €
A94: Für einen auf 20 Jahre gemittelten Engergiepreis
A95: ergibt sich eine Amortisationszeit von: | D95: =IF((D92/D90)<0,"sofort",(D92/D90)) ->  | E95: =IF((D92/D90)<0,"","Jahren") -> 

Sheet LW2 bival ÖL
A1: Aktueller Gaspreis | D1: =(Energiepreisberechnung!D28) -> 0.055 | E1: €/kWh
A2: Aktueller Ölpreis | D2: =(Energiepreisberechnung!D30) -> 0.085 | E2: €/kWh
A3: Aktueller Strompreis | D3: =(Energiepreisberechnung!D31) -> 0.2 | E3: €/kWh
A4: Gemittelter Wirkungsgrad Ölkessel | D4: 0.93
A5: Gemittelter Wirkungsgrad Gasbrennwertgerät | D5: 1.06
A6: Gemittelter Wirkungsgrad GAWP LW | D6: 1.5
A7: Elektr. Leistung GAWP LW | D7: 1.09 | E7: kW
A8: Elektr. Leistung Kesselkreispumpe | D8: 0.06 | E8: kW
A9: Elektr. Leistung Umwälzpumpe GAWP | D9: 0.05 | E9: kW
A11: Gesucht: | B11: Investitions- und Betriebskosten während 20 Jahren
A13: 1.
A14: Errechnung der mittleren Energiepreise binnen 20 Jahren
A16: Gaspreis Anfangsjahr: | D16: =(D1) -> 0.055 | E16: €/kWh
A17: Gaspreis im 20´sten Jahr: | D17: =(Energiepreisberechnung!C22) -> 0.1989090144 | E17: €/kWh
A18: Mittlerer Gaspreis während 20 Jahren: | D18: =(Energiepreisberechnung!C24) -> 0.1127376039 | E18: €/kWh
A20: Ölpreis Anfangsjahr: | D20: =(D2) -> 0.085 | E20: €/kWh
A21: Ölpreis im 20´sten Jahr: | D21: =(Energiepreisberechnung!F22) -> 0.3074048405 | E21: €/kWh
A22: Mittlerer Ölpreis während 20 Jahren: | D22: =(Energiepreisberechnung!F24) -> 0.1742308424 | E22: €/kWh
A24: Strompreis Anfangsjahr: | D24: =(D3) -> 0.2 | E24: €/kWh
A25: Strompreis im 20´sten Jahr: | D25: =(Energiepreisberechnung!E22) -> 0.723305507 | E25: €/kWh
A26: Mittlerer Strompreis während 20 Jahren: | D26: =(Energiepreisberechnung!E24) -> 0.4099549232 | E26: €/kWh
A28: 2.
A29: Betrachtung ohne Investition (bestehende Kessel bleiben)
A31: 2a
A32: Investitionskosten
A33: Investitionskosten gesamt: | D33: 0 | E33: € | I33: R_I_ÖL
A35: 2b
A36: Betriebskosten Öl
A37: Jahresarbeit Ölkessel | D37: =(Master!D5*Master!D6) -> 80000 | E37: kWh/a | F37: (Leistung x Jahresvollbenutzungsstunden)
A38: Energieverbrauch Ölkessel | D38: =(D37/D4) -> 86021.50538 | E38: kWh/a | F38: (Wirkungsgrad berücksichtigt) | I38: R_B_ÖL
A39: Kosten Öl | D39: =(D38*D22) -> 14987.59934 | E39: €/a
A40: Wartungskosten Ölkessel | D40: 300 | E40: €/a | I40: R_B_WART_ÖL
A41: Stromverbrauch 1 Stück Kesselkreispumpe | D41: =(Master!D6*D8) -> 120 | E41: kWh/a | I41: R_B_STROM_ÖL
A42: Stromkosten 1 Stück Kesselkreispumpe | D42: =(D41*D26) -> 49.19459079 | E42: €/a | F42: (Stromverbrauch x mittlerer Strompreis)
A44: Betriebskosten pro Jahr gesamt: | D44: =SUM(D39:D40)+D42 -> 15336.79393 | E44: €/a
L45: Negative Werte sollen gleich Null gesetzt werden
A46: 3. | L46: =(Master!D5-D59) -> 0
A47: Betrachtung für zwei GAWP 35 LW (70 kW) sowie Spitzenlastkessel
L48: Wärmepumpe soll nur die Anlagenheizlast erbringen, welche erforderlich ist
A49: 3a | L49: =IF(Master!D5<70,Master!D5,70) -> 40
A50: Investitionskosten
A51: 2 x GAWP + Zubehör | D51: =IF(Master!T15=TRUE,25000, (IF(Master!T16=TRUE,45000, (IF(Master!T17=TRUE,65000,""))))) ->  | E51: € | L51: Deckungsrate GAWP
A52: Förderung BAFA | D52: =IF(Master!$T$15=TRUE,(2400+100*25), (IF(Master!$T$16=TRUE,(2400+100*60), (IF(Master!$T$17=TRUE,(2400+100*95),""))))) ->  | E52: € | L52: =(D58/D59) -> 0 | M52: Quotient BW zu GAWP
A53: =IF(AND(Master!D5>29,Master!D5<55),Spitzenlastkessel!C4,(IF(AND(Master!D5>54,Master!D5<65),Spitzenlastkessel!C5,(IF(AND(Master!D5>64,Master!D5<85),Spitzenlastkessel!C6,(IF(AND(Master!D5>84,Master!D5<110),Spitzenlastkessel!C7,(IF(AND(Master!D5>109,Master!D5<135),Spitzenlastkessel!C8,(IF(AND(Master!D5>134,Master!D5<150),Spitzenlastkessel!C9,(IF(AND(Master!D5>149,Master!D5<200),Spitzenlastkessel!C10,(IF(AND(Master!D5>199,Master!D5<240),Spitzenlastkessel!C11,(IF(AND(Master!D5>239,Master!D5<300),Spitzenlastkessel!C12,(IF(AND(Master!D5>299,Master!D5<370),Spitzenlastkessel!C13,(IF(AND(Master!D5>369,Master!D5<450),Spitzenlastkessel!C14,(IF(AND(Master!D5>449,Master!D5<520),Spitzenlastkessel!C15,"Anlagenheizlast zu groß"))))))))))))))))))))))) -> Spitzenlastkessel GMR 3035 (35 kW) | D53: =IF(AND(Master!D5>29,Master!D5<55),Spitzenlastkessel!E4,(IF(AND(Master!D5>54,Master!D5<65),Spitzenlastkessel!E5,(IF(AND(Master!D5>64,Master!D5<85),Spitzenlastkessel!E6,(IF(AND(Master!D5>84,Master!D5<110),Spitzenlastkessel!E7,(IF(AND(Master!D5>109,Master!D5<135),Spitzenlastkessel!E8,(IF(AND(Master!D5>134,Master!D5<150),Spitzenlastkessel!E9,(IF(AND(Master!D5>149,Master!D5<200),Spitzenlastkessel!E10,(IF(AND(Master!D5>199,Master!D5<240),Spitzenlastkessel!E11,(IF(AND(Master!D5>239,Master!D5<300),Spitzenlastkessel!E12,(IF(AND(Master!D5>299,Master!D5<370),Spitzenlastkessel!E13,(IF(AND(Master!D5>369,Master!D5<450),Spitzenlastkessel!E14,(IF(AND(Master!D5>449,Master!D5<520),Spitzenlastkessel!E15,"Anlagenheizlast zu groß"))))))))))))))))))))))) -> 3600 | E53: € | F53: (gewählt) | L53: =(D58+D59) -> 40 | M53: Max Leistung BW plus Leistung GAWP
A54: Investitionskosten gesamt: | D54: =(D51+D53-D52) ->  | E54: € | I54: N_I_GAWP_u_BW | L54: =(100/L53)*D59 -> 100 | M54: Prozentuale Anlagenheizlast von GAWP
L55: =MROUND(L54,5) -> 100 | M55: Gerundet | Q55: Prozentuale Anlagen- heizlast der GAWP
A56: 3b | L56: =VLOOKUP(L55,Q59:R86,2) -> 100 | M56: Deckungsrate GAWP | R56: Deckungs- rate
A57: Betriebskosten
A58: Max. Leistung Brennwertgerät | D58: =IF(L46<0,0,(Master!D5-D59)) -> 0 | E58: kW
A59: Leistung 2 x GAWP | D59: =(L49) -> 40 | E59: kW | Q59: 0 | R59: 0
Q60: 5 | R60: 8
A61: Deckungsrate Brennwertgerät | D61: =(100-D62) -> 0 | E61: % | F61: (Ergibt sich aus Leistungsverhältnis Brennwertgerät/GAWP) | Q61: 10 | R61: 15
A62: Deckungsrate 2 x GAWP | D62: =VLOOKUP(L55,Q59:R86,2) -> 100 | E62: % | F62: (Ergibt sich aus Leistungsverhältnis Brennwertgerät/GAWP) | Q62: 15 | R62: 25
Q63: 20 | R63: 33
A64: Jahresarbeit Gas-Brennwertgerät | D64: =(D37*(D61/100)) -> 0 | E64: kWh/a | F64: (Deckungsrate berücksichtigt)
A65: Jahresarbeit 2 x GAWP | D65: =(D37*(D62/100)) -> 80000 | E65: kWh/a | F65: (Deckungsrate berücksichtigt) | Q65: 25 | R65: 41
Q66: 30 | R66: 50
A67: Vollbenutzungsstunden Gas-Brennwertgerät | D67: =IF(D58=0,0,(D64/D58)) -> 0 | E67: h | F67: (ergibt sich aus Jahresarbeit/Leistung)
A68: Vollbenutzungsstunden 2 x GAWP | D68: =(D65/D59) -> 2000 | E68: h | F68: (ergibt sich aus Jahresarbeit/Leistung) | Q68: 35 | R68: 58
Q69: 40 | R69: 67
A70: Gasverbrauch Gas-Brennwertgerät | D70: =(D64/D5) -> 0 | E70: kWh/a | F70: (ergibt sich aus Jahresarbeit/Wirkungsgrad) | I70: N_B_GAS_BW
A71: Gasverbrauch 2 x GAWP | D71: =(D65/D6) -> 53333.33333 | E71: kWh/a | F71: (ergibt sich aus Jahresarbeit/Wirkungsgrad) | I71: N_B_GAS_GAWP | Q71: 45 | R71: 75
Q72: 50 | R72: 80
A73: Kosten Gasverbrauch Gas-Brennwertgerät | D73: =(D70*D18) -> 0 | E73: €/a | F73: (ergibt sich aus Gasverbrauch x mittlerer Gaspreis)
A74: Kosten Gasverbrauch 2 x GAWP | D74: =(D71*D18) -> 6012.672207 | E74: €/a | F74: (ergibt sich aus Gasverbrauch x mittlerer Gaspreis) | Q74: 55 | R74: 83
Q75: 60 | R75: 87
A76: Wartungskosten Gas-Brennwertgerät | D76: 300 | E76: €/a | I76: N_B_WART_BW
A77: Wartungskosten 2 x GAWP | D77: 500 | E77: €/a | I77: N_B_WART_GAWP | Q77: 65 | R77: 90
Q78: 70 | R78: 92
A79: Stromverbrauch 2 x GAWP | D79: =(D68*D7)*2 -> 4360 | E79: kWh/a | I79: N_B_STROM_LÜ_GAWP | Q79: 75 | R79: 94
A80: Stromkosten 2 x GAWP | D80: =(D79*D26) -> 1787.403465 | E80: €/a | F80: (Stromverbrauch x mittlerer Strompreis) | Q80: 80 | R80: 96
A81: Stromverbrauch Gas-Brennwertgerät | D81: =(D67*D8) -> 0 | E81: kWh/a | I81: N_B_STROM_BW
A82: Stromkosten Gas-Brennwertgerät | D82: =(D81*D26) -> 0 | E82: €/a | F82: (Stromverbrauch x mittlerer Strompreis)
A83: Stromverbrauch 2 x Umwälzpumpe GAWP | D83: =((D68)*D9)*2 -> 200 | E83: kWh/a | I83: N_B_STROM_PU_GAWP | Q83: 85 | R83: 97
A84: Stromkosten 2 x Umwälzpumpe GAWP | D84: =(D83*D26) -> 81.99098464 | E84: €/a | F84: (Stromverbrauch x mittlerer Strompreis) | Q84: 90 | R84: 98
Q85: 95 | R85: 99
A86: Betriebskosten pro Jahr gesamt: | D86: =SUM(D73:D77)+D84+D80+D82 -> 8682.066657 | E86: €/a | Q86: 100 | R86: 100
A88: FAZIT:
A89: Mittlere Energieeinsparung pro Jahr bei Einsatz
A90: von zwei GAWP LW und Gas-Brennwertgerät
A91: gegenüber bestehenden Betriebskosten | D91: =(D44-D86) -> 6654.727277 | E91: €/a
A93: Differenz Investitionskosten: | D93: =(D54-D33) ->  | E93: €
A95: Für einen auf 20 Jahre gemittelten Engergiepreis
A96: ergibt sich eine Amortisationszeit von: | D96: =IF((D93/D91)<0,"sofort",(D93/D91)) ->  | E96: =IF((D93/D91)<0,"","Jahren") -> 

Sheet LW3 bival ÖL
A1: Aktueller Gaspreis | D1: =(Energiepreisberechnung!D28) -> 0.055 | E1: €/kWh
A2: Aktueller Ölpreis | D2: =(Energiepreisberechnung!D30) -> 0.085 | E2: €/kWh
A3: Aktueller Strompreis | D3: =(Energiepreisberechnung!D31) -> 0.2 | E3: €/kWh
A4: Gemittelter Wirkungsgrad Ölkessel | D4: 0.93
A5: Gemittelter Wirkungsgrad Gasbrennwertgerät | D5: 1.06
A6: Gemittelter Wirkungsgrad GAWP LW | D6: 1.5
A7: Elektr. Leistung GAWP LW | D7: 1.09 | E7: kW
A8: Elektr. Leistung Kesselkreispumpe | D8: 0.1 | E8: kW
A9: Elektr. Leistung Umwälzpumpe GAWP | D9: 0.05 | E9: kW
A11: Gesucht: | B11: Investitions- und Betriebskosten während 20 Jahren
A13: 1.
A14: Errechnung der mittleren Energiepreise binnen 20 Jahren
A16: Gaspreis Anfangsjahr: | D16: =(D1) -> 0.055 | E16: €/kWh
A17: Gaspreis im 20´sten Jahr: | D17: =(Energiepreisberechnung!C22) -> 0.1989090144 | E17: €/kWh
A18: Mittlerer Gaspreis während 20 Jahren: | D18: =(Energiepreisberechnung!C24) -> 0.1127376039 | E18: €/kWh
A20: Ölpreis Anfangsjahr: | D20: =(D2) -> 0.085 | E20: €/kWh
A21: Ölpreis im 20´sten Jahr: | D21: =(Energiepreisberechnung!F22) -> 0.3074048405 | E21: €/kWh
A22: Mittlerer Ölpreis während 20 Jahren: | D22: =(Energiepreisberechnung!F24) -> 0.1742308424 | E22: €/kWh
A24: Strompreis Anfangsjahr: | D24: =(D3) -> 0.2 | E24: €/kWh
A25: Strompreis im 20´sten Jahr: | D25: =(Energiepreisberechnung!E22) -> 0.723305507 | E25: €/kWh
A26: Mittlerer Strompreis während 20 Jahren: | D26: =(Energiepreisberechnung!E24) -> 0.4099549232 | E26: €/kWh
A28: 2.
A29: Betrachtung ohne Investition (bestehende Kessel bleiben)
A31: 2a
A32: Investitionskosten
A33: Investitionskosten gesamt: | D33: 0 | E33: € | I33: R_I_ÖL
A35: 2b
A36: Betriebskosten Öl
A37: Jahresarbeit Ölkessel | D37: =(Master!D5*Master!D6) -> 80000 | E37: kWh/a | F37: (Leistung x Jahresvollbenutzungsstunden)
A38: Energieverbrauch Ölkessel | D38: =(D37/D4) -> 86021.50538 | E38: kWh/a | F38: (Wirkungsgrad berücksichtigt) | I38: R_B_ÖL
A39: Kosten Öl | D39: =(D38*D22) -> 14987.59934 | E39: €/a
A40: Wartungskosten Ölkessel | D40: 300 | E40: €/a | I40: R_B_WART_ÖL
A41: Stromverbrauch 1 Stück Kesselkreispumpe | D41: =(Master!D6*D8) -> 200 | E41: kWh/a | I41: R_B_STROM_ÖL
A42: Stromkosten 1 Stück Kesselkreispumpe | D42: =(D41*D26) -> 81.99098464 | E42: €/a | F42: (Stromverbrauch x mittlerer Strompreis)
A44: Betriebskosten pro Jahr gesamt: | D44: =SUM(D39:D40)+D42 -> 15369.59033 | E44: €/a
L45: Negative Werte sollen gleich Null gesetzt werden
A46: 3. | L46: =(Master!D5-D59) -> 0
A47: Betrachtung für drei GAWP 35 LW (105 kW) sowie Spitzenlastkessel
L48: Wärmepumpe soll nur die Anlagenheizlast erbringen, welche erforderlich ist
A49: 3a | L49: =IF(Master!D5<105,Master!D5,105) -> 40
A50: Investitionskosten
A51: 3 x GAWP + Zubehör | D51: =IF(Master!T15=TRUE,25000, (IF(Master!T16=TRUE,45000, (IF(Master!T17=TRUE,65000,""))))) ->  | E51: € | L51: Deckungsrate GAWP
A52: Förderung BAFA | D52: =IF(Master!$T$15=TRUE,(2400+100*25), (IF(Master!$T$16=TRUE,(2400+100*60), (IF(Master!$T$17=TRUE,(2400+100*95),""))))) ->  | E52: € | L52: =(D58/D59) -> 0 | M52: Quotient BW zu GAWP
A53: =IF(AND(Master!D5>29,Master!D5<55),Spitzenlastkessel!C4,(IF(AND(Master!D5>54,Master!D5<65),Spitzenlastkessel!C5,(IF(AND(Master!D5>64,Master!D5<85),Spitzenlastkessel!C6,(IF(AND(Master!D5>84,Master!D5<110),Spitzenlastkessel!C7,(IF(AND(Master!D5>109,Master!D5<135),Spitzenlastkessel!C8,(IF(AND(Master!D5>134,Master!D5<150),Spitzenlastkessel!C9,(IF(AND(Master!D5>149,Master!D5<200),Spitzenlastkessel!C10,(IF(AND(Master!D5>199,Master!D5<240),Spitzenlastkessel!C11,(IF(AND(Master!D5>239,Master!D5<300),Spitzenlastkessel!C12,(IF(AND(Master!D5>299,Master!D5<370),Spitzenlastkessel!C13,(IF(AND(Master!D5>369,Master!D5<450),Spitzenlastkessel!C14,(IF(AND(Master!D5>449,Master!D5<520),Spitzenlastkessel!C15,"Anlagenheizlast zu groß"))))))))))))))))))))))) -> Spitzenlastkessel GMR 3035 (35 kW) | D53: =IF(AND(Master!D5>29,Master!D5<55),Spitzenlastkessel!E4,(IF(AND(Master!D5>54,Master!D5<65),Spitzenlastkessel!E5,(IF(AND(Master!D5>64,Master!D5<85),Spitzenlastkessel!E6,(IF(AND(Master!D5>84,Master!D5<110),Spitzenlastkessel!E7,(IF(AND(Master!D5>109,Master!D5<135),Spitzenlastkessel!E8,(IF(AND(Master!D5>134,Master!D5<150),Spitzenlastkessel!E9,(IF(AND(Master!D5>149,Master!D5<200),Spitzenlastkessel!E10,(IF(AND(Master!D5>199,Master!D5<240),Spitzenlastkessel!E11,(IF(AND(Master!D5>239,Master!D5<300),Spitzenlastkessel!E12,(IF(AND(Master!D5>299,Master!D5<370),Spitzenlastkessel!E13,(IF(AND(Master!D5>369,Master!D5<450),Spitzenlastkessel!E14,(IF(AND(Master!D5>449,Master!D5<520),Spitzenlastkessel!E15,"Anlagenheizlast zu groß"))))))))))))))))))))))) -> 3600 | E53: € | F53: (gewählt) | L53: =(D58+D59) -> 40 | M53: Max Leistung BW plus Leistung GAWP
A54: Investitionskosten gesamt: | D54: =(D51+D53-D52) ->  | E54: € | I54: N_I_GAWP_u_BW | L54: =(100/L53)*D59 -> 100 | M54: Prozentuale Anlagenheizlast von GAWP
L55: =MROUND(L54,5) -> 100 | M55: Gerundet | Q55: Prozentuale Anlagen- heizlast der GAWP
A56: 3b | L56: =VLOOKUP(L55,Q59:R86,2) -> 100 | M56: Deckungsrate GAWP | R56: Deckungs- rate
A57: Betriebskosten
A58: Max. Leistung Brennwertgerät | D58: =IF(L46<0,0,(Master!D5-D59)) -> 0 | E58: kW
A59: Leistung 3 x GAWP | D59: =(L49) -> 40 | E59: kW | Q59: 0 | R59: 0
Q60: 5 | R60: 8
A61: Deckungsrate Brennwertgerät | D61: =(100-D62) -> 0 | E61: % | F61: (Ergibt sich aus Leistungsverhältnis Brennwertgerät/GAWP) | Q61: 10 | R61: 15
A62: Deckungsrate 3 x GAWP | D62: =VLOOKUP(L55,Q59:R86,2) -> 100 | E62: % | F62: (Ergibt sich aus Leistungsverhältnis Brennwertgerät/GAWP) | Q62: 15 | R62: 25
Q63: 20 | R63: 33
A64: Jahresarbeit Gas-Brennwertgerät | D64: =(D37*(D61/100)) -> 0 | E64: kWh/a | F64: (Deckungsrate berücksichtigt)
A65: Jahresarbeit 3 x GAWP | D65: =(D37*(D62/100)) -> 80000 | E65: kWh/a | F65: (Deckungsrate berücksichtigt) | Q65: 25 | R65: 41
Q66: 30 | R66: 50
A67: Vollbenutzungsstunden Gas-Brennwertgerät | D67: =IF(D58=0,0,(D64/D58)) -> 0 | E67: h | F67: (ergibt sich aus Jahresarbeit/Leistung)
A68: Vollbenutzungsstunden 3 x GAWP | D68: =(D65/D59) -> 2000 | E68: h | F68: (ergibt sich aus Jahresarbeit/Leistung) | Q68: 35 | R68: 58
Q69: 40 | R69: 67
A70: Gasverbrauch Gas-Brennwertgerät | D70: =(D64/D5) -> 0 | E70: kWh/a | F70: (ergibt sich aus Jahresarbeit/Wirkungsgrad) | I70: N_B_GAS_BW
A71: Gasverbrauch 3 x GAWP | D71: =(D65/D6) -> 53333.33333 | E71: kWh/a | F71: (ergibt sich aus Jahresarbeit/Wirkungsgrad) | I71: N_B_GAS_GAWP | Q71: 45 | R71: 75
Q72: 50 | R72: 80
A73: Kosten Gasverbrauch Gas-Brennwertgerät | D73: =(D70*D18) -> 0 | E73: €/a | F73: (ergibt sich aus Gasverbrauch x mittlerer Gaspreis)
A74: Kosten Gasverbrauch 3 x GAWP | D74: =(D71*D18) -> 6012.672207 | E74: €/a | F74: (ergibt sich aus Gasverbrauch x mittlerer Gaspreis) | Q74: 55 | R74: 83
Q75: 60 | R75: 87
A76: Wartungskosten Gas-Brennwertgerät | D76: 300 | E76: €/a | I76: N_B_WART_BW
A77: Wartungskosten 3 x GAWP | D77: 700 | E77: €/a | I77: N_B_WART_GAWP | Q77: 65 | R77: 90
Q78: 70 | R78: 92
A79: Stromverbrauch 3 x GAWP | D79: =(D68*D7)*3 -> 6540 | E79: kWh/a | I79: N_B_STROM_LÜ_GAWP | Q79: 75 | R79: 94
A80: Stromkosten 3 x GAWP | D80: =(D79*D26) -> 2681.105198 | E80: €/a | F80: (Stromverbrauch x mittlerer Strompreis) | Q80: 80 | R80: 96
A81: Stromverbrauch Gas-Brennwertgerät | D81: =(D67*D8) -> 0 | E81: kWh/a | I81: N_B_STROM_BW
A82: Stromkosten Gas-Brennwertgerät | D82: =(D81*D26) -> 0 | E82: €/a | F82: (Stromverbrauch x mittlerer Strompreis)
A83: Stromverbrauch 3 x Umwälzpumpe GAWP | D83: =((D68)*D9)*3 -> 300 | E83: kWh/a | I83: N_B_STROM_PU_GAWP | Q83: 85 | R83: 97
A84: Stromkosten 3 x Umwälzpumpe GAWP | D84: =(D83*D26) -> 122.986477 | E84: €/a | F84: (Stromverbrauch x mittlerer Strompreis) | Q84: 90 | R84: 98
Q85: 95 | R85: 99
A86: Betriebskosten pro Jahr gesamt: | D86: =SUM(D73:D77)+D84+D80+D82 -> 9816.763882 | E86: €/a | Q86: 100 | R86: 100
A88: FAZIT:
A89: Mittlere Energieeinsparung pro Jahr bei Einsatz
A90: von drei GAWP LW und Gas-Brennwertgerät
A91: gegenüber bestehenden Betriebskosten | D91: =(D44-D86) -> 5552.826446 | E91: €/a
A93: Differenz Investitionskosten: | D93: =(D54-D33) ->  | E93: €
A95: Für einen auf 20 Jahre gemittelten Engergiepreis
A96: ergibt sich eine Amortisationszeit von: | D96: =IF((D93/D91)<0,"sofort",(D93/D91)) ->  | E96: =IF((D93/D91)<0,"","Jahren") -> 

Sheet LW bival PL
A1: Aktueller Gaspreis | D1: =(Energiepreisberechnung!D28) -> 0.055 | E1: €/kWh
A2: Aktueller Pelletpreis | D2: =(Energiepreisberechnung!D32) -> 0.05 | E2: €/kWh
A3: Aktueller Strompreis | D3: =(Energiepreisberechnung!D31) -> 0.2 | E3: €/kWh
A4: Gemittelter Wirkungsgrad Gasbrennwertgerät | D4: 1.06
A5: Gemittelter Wirkungsgrad Pelletkessel | D5: 0.93
A6: Gemittelter Wirkungsgrad GAWP LW | D6: 1.5
A7: Elektr. Leistung GAWP LW | D7: 1.09 | E7: kW
A8: Elektr. Leistung Kesselkreispumpe | D8: 0.05 | E8: kW
A10: Gesucht: | B10: Investitions- und Betriebskosten während 20 Jahren
A12: 1.
A13: Errechnung der mittleren Energiepreise binnen 20 Jahren
A15: Gaspreis Anfangsjahr: | D15: =(D1) -> 0.055 | E15: €/kWh
A16: Gaspreis im 20´sten Jahr: | D16: =(Energiepreisberechnung!C22) -> 0.1989090144 | E16: €/kWh
A17: Mittlerer Gaspreis während 20 Jahren: | D17: =(Energiepreisberechnung!C24) -> 0.1127376039 | E17: €/kWh
A19: Pelletpreis Anfangsjahr: | D19: =(D2) -> 0.05 | E19: €/kWh
A20: Pelletpreis im 20´sten Jahr: | D20: =(Energiepreisberechnung!G22) -> 0.1808263768 | E20: €/kWh
A21: Mittlerer Pelletpreis während 20 Jahren: | D21: =(Energiepreisberechnung!G24) -> 0.1024887308 | E21: €/kWh
A23: Strompreis Anfangsjahr: | D23: =(D3) -> 0.2 | E23: €/kWh
A24: Strompreis im 20´sten Jahr: | D24: =(Energiepreisberechnung!E22) -> 0.723305507 | E24: €/kWh
A25: Mittlerer Strompreis während 20 Jahren: | D25: =(Energiepreisberechnung!E24) -> 0.4099549232 | E25: €/kWh
A27: 2.
A28: Betrachtung für einen neuen Pelletkessel + Silo | D28: =(Master!D5) -> 40 | E28: kW
A30: 2a
A31: Investitionskosten | D31: =(Master!D8) -> 5000 | E31: €
A32: Investitionskosten gesamt: | D32: =(D31) -> 5000 | E32: € | I32: R_I_PL
A34: 2b
A35: Betriebskosten Pelletkessel
A36: Jahresarbeit Pelletkessel | D36: =(Master!D5*Master!D6) -> 80000 | E36: kWh/a | F36: (Leistung x Jahresvollbenutzungsstunden)
A37: Energieverbrauch Pelletkessel | D37: =(D36/D5) -> 86021.50538 | E37: kWh/a | F37: (Wirkungsgrad berücksichtigt) | I37: R_B_PL
A38: Kosten Pellets | D38: =(D37*D21) -> 8816.234908 | E38: €/a
A39: Wartungskosten Pelletkessel | D39: 500 | E39: €/a | I39: R_B_WART_PL
A40: Stromverbrauch 1 Stück Kesselkreispumpe | D40: =(Master!D6*D8) -> 100 | E40: kWh/a | I40: R_B_STROM_PL
A41: Stromkosten 1 Stück Kesselkreispumpe | D41: =(D40*D25) -> 40.99549232 | E41: €/a | F41: (Stromverbrauch x mittlerer Strompreis)
A43: Betriebskosten pro Jahr gesamt: | D43: =SUM(D38:D39)+D41 -> 9357.2304 | E43: €/a
L44: Negative Werte sollen gleich Null gesetzt werden
A45: 3. | L45: =(Master!D5-D58) -> 5
A46: Betrachtung für eine GAWP 35 LW (35 kW) sowie Spitzenlastkessel
L47: Wärmepumpe soll nur die Anlagenheizlast erbringen, welche erforderlich ist
A48: 3a | L48: =IF(Master!D5<35,Master!D5,35) -> 35
A49: Investitionskosten
A50: GAWP + Zubehör | D50: =IF(Master!T15=TRUE,25000, (IF(Master!T16=TRUE,45000, (IF(Master!T17=TRUE,65000,""))))) ->  | E50: € | L50: Deckungsrate GAWP
A51: Förderung BAFA | D51: =IF(Master!$T$15=TRUE,(2400+100*25), (IF(Master!$T$16=TRUE,(2400+100*60), (IF(Master!$T$17=TRUE,(2400+100*95),""))))) ->  | E51: € | L51: =(D57+D58) -> 40 | M51: Max Leistung BW plus Leistung GAWP
A52: =IF(AND(Master!D5>29,Master!D5<55),Spitzenlastkessel!C4,(IF(AND(Master!D5>54,Master!D5<65),Spitzenlastkessel!C5,(IF(AND(Master!D5>64,Master!D5<85),Spitzenlastkessel!C6,(IF(AND(Master!D5>84,Master!D5<110),Spitzenlastkessel!C7,(IF(AND(Master!D5>109,Master!D5<135),Spitzenlastkessel!C8,(IF(AND(Master!D5>134,Master!D5<150),Spitzenlastkessel!C9,(IF(AND(Master!D5>149,Master!D5<200),Spitzenlastkessel!C10,(IF(AND(Master!D5>199,Master!D5<240),Spitzenlastkessel!C11,(IF(AND(Master!D5>239,Master!D5<300),Spitzenlastkessel!C12,(IF(AND(Master!D5>299,Master!D5<370),Spitzenlastkessel!C13,(IF(AND(Master!D5>369,Master!D5<450),Spitzenlastkessel!C14,(IF(AND(Master!D5>449,Master!D5<520),Spitzenlastkessel!C15,"Anlagenheizlast zu groß"))))))))))))))))))))))) -> Spitzenlastkessel GMR 3035 (35 kW) | D52: =IF(AND(Master!D5>29,Master!D5<55),Spitzenlastkessel!E4,(IF(AND(Master!D5>54,Master!D5<65),Spitzenlastkessel!E5,(IF(AND(Master!D5>64,Master!D5<85),Spitzenlastkessel!E6,(IF(AND(Master!D5>84,Master!D5<110),Spitzenlastkessel!E7,(IF(AND(Master!D5>109,Master!D5<135),Spitzenlastkessel!E8,(IF(AND(Master!D5>134,Master!D5<150),Spitzenlastkessel!E9,(IF(AND(Master!D5>149,Master!D5<200),Spitzenlastkessel!E10,(IF(AND(Master!D5>199,Master!D5<240),Spitzenlastkessel!E11,(IF(AND(Master!D5>239,Master!D5<300),Spitzenlastkessel!E12,(IF(AND(Master!D5>299,Master!D5<370),Spitzenlastkessel!E13,(IF(AND(Master!D5>369,Master!D5<450),Spitzenlastkessel!E14,(IF(AND(Master!D5>449,Master!D5<520),Spitzenlastkessel!E15,"Anlagenheizlast zu groß"))))))))))))))))))))))) -> 3600 | E52: € | F52: (gewählt) | L52: =(100/L51)*D58 -> 87.5 | M52: Prozentuale Anlagenheizlast von GAWP
A53: Investitionskosten gesamt: | D53: =(D50+D52-D51) ->  | E53: € | I53: N_I_GAWP_u_BW | L53: =MROUND(L52,5) -> 90 | M53: Gerundet
Q54: Prozentuale Anlagen- heizlast der GAWP
A55: 3b | L55: =VLOOKUP(L53,Q58:R85,2) -> 98 | M55: Deckungsrate GAWP | R55: Deckungs- rate
A56: Betriebskosten
A57: Max. Leistung Brennwertgerät | D57: =IF(L45<0,0,(Master!D5-D58)) -> 5 | E57: kW
A58: Leistung GAWP | D58: =(L48) -> 35 | E58: kW | Q58: 0 | R58: 0
Q59: 5 | R59: 8
A60: Deckungsrate Brennwertgerät | D60: =(100-D61) -> 2 | E60: % | F60: (Ergibt sich aus Leistungsverhältnis Brennwertgerät/GAWP) | Q60: 10 | R60: 15
A61: Deckungsrate GAWP | D61: =VLOOKUP(L53,Q58:R85,2) -> 98 | E61: % | F61: (Ergibt sich aus Leistungsverhältnis Brennwertgerät/GAWP) | Q61: 15 | R61: 25
Q62: 20 | R62: 33
A63: Jahresarbeit Gas-Brennwertgerät | D63: =(D36*(D60/100)) -> 1600 | E63: kWh/a | F63: (Deckungsrate berücksichtigt)
A64: Jahresarbeit GAWP | D64: =(D36*(D61/100)) -> 78400 | E64: kWh/a | F64: (Deckungsrate berücksichtigt) | Q64: 25 | R64: 41
Q65: 30 | R65: 50
A66: Vollbenutzungsstunden Gas-Brennwertgerät | D66: =IF(D57=0,0,(D63/D57)) -> 320 | E66: h | F66: (ergibt sich aus Jahresarbeit/Leistung)
A67: Vollbenutzungsstunden GAWP | D67: =(D64/D58) -> 2240 | E67: h | F67: (ergibt sich aus Jahresarbeit/Leistung) | Q67: 35 | R67: 58
Q68: 40 | R68: 67
A69: Gasverbrauch Gas-Brennwertgerät | D69: =(D63/D4) -> 1509.433962 | E69: kWh/a | F69: (ergibt sich aus Jahresarbeit/Wirkungsgrad) | I69: N_B_GAS_BW
A70: Gasverbrauch GAWP | D70: =(D64/D6) -> 52266.66667 | E70: kWh/a | F70: (ergibt sich aus Jahresarbeit/Wirkungsgrad) | I70: N_B_GAS_GAWP | Q70: 45 | R70: 75
Q71: 50 | R71: 80
A72: Kosten Gasverbrauch Gas-Brennwertgerät | D72: =(D69*D17) -> 170.1699681 | E72: €/a | F72: (ergibt sich aus Gasverbrauch x mittlerer Gaspreis)
A73: Kosten Gasverbrauch GAWP | D73: =(D70*D17) -> 5892.418763 | E73: €/a | F73: (ergibt sich aus Gasverbrauch x mittlerer Gaspreis) | Q73: 55 | R73: 83
Q74: 60 | R74: 87
A75: Wartungskosten Gas-Brennwertgerät | D75: 300 | E75: €/a | I75: N_B_WART_BW
A76: Wartungskosten GAWP | D76: 300 | E76: €/a | I76: N_B_WART_GAWP | Q76: 65 | R76: 90
Q77: 70 | R77: 92
A78: Stromverbrauch GAWP | D78: =(D67*D7) -> 2441.6 | E78: kWh/a | I78: N_B_STROM_LÜ_GAWP | Q78: 75 | R78: 94
A79: Stromkosten GAWP | D79: =(D78*D25) -> 1000.945941 | E79: €/a | F79: (Stromverbrauch x mittlerer Strompreis) | Q79: 80 | R79: 96
A80: Stromverbrauch Gas-Brennwertgerät | D80: =(D66*D8) -> 16 | E80: kWh/a | I80: N_B_STROM_BW
A81: Stromkosten Gas-Brennwertgerät | D81: =(D80*D25) -> 6.559278771 | E81: €/a | F81: (Stromverbrauch x mittlerer Strompreis)
A82: Stromverbrauch Umwälzpumpe GAWP | D82: =((D67)*D8) -> 112 | E82: kWh/a | I82: N_B_STROM_PU_GAWP | Q82: 85 | R82: 97
A83: Stromkosten Umwälzpumpe GAWP | D83: =(D82*D25) -> 45.9149514 | E83: €/a | F83: (Stromverbrauch x mittlerer Strompreis) | Q83: 90 | R83: 98
Q84: 95 | R84: 99
A85: Betriebskosten pro Jahr gesamt: | D85: =SUM(D72:D76)+D83+D79+D81 -> 7716.008902 | E85: €/a | Q85: 100 | R85: 100
A87: FAZIT:
A88: Mittlere Energieeinsparung pro Jahr bei Einsatz
A89: von einer GAWP LW und Gas-Brennwertgerät
A90: gegenüber den Betriebskosten eines Pelletkessels: | D90: =(D43-D85) -> 1641.221498 | E90: €/a
A92: Differenz Investitionskosten: | D92: =(D53-D32) ->  | E92: €
A94: Für einen auf 20 Jahre gemittelten Engergiepreis
A95: ergibt sich eine Amortisationszeit von: | D95: =IF((D92/D90)<0,"sofort",(D92/D90)) ->  | E95: =IF((D92/D90)<0,"","Jahren") -> 

Sheet LW2 bival PL
A1: Aktueller Gaspreis | D1: =(Energiepreisberechnung!D28) -> 0.055 | E1: €/kWh
A2: Aktueller Pelletpreis | D2: =(Energiepreisberechnung!D32) -> 0.05 | E2: €/kWh
A3: Aktueller Strompreis | D3: =(Energiepreisberechnung!D31) -> 0.2 | E3: €/kWh
A4: Gemittelter Wirkungsgrad Gasbrennwertgerät | D4: 1.06
A5: Gemittelter Wirkungsgrad Pelletkessel | D5: 0.93
A6: Gemittelter Wirkungsgrad GAWP LW | D6: 1.5
A7: Elektr. Leistung GAWP LW | D7: 1.09 | E7: kW
A8: Elektr. Leistung Kesselkreispumpe | D8: 0.06 | E8: kW
A9: Elektr. Leistung Umwälzpumpe GAWP | D9: 0.05 | E9: kW
A11: Gesucht: | B11: Investitions- und Betriebskosten während 20 Jahren
A13: 1.
A14: Errechnung der mittleren Energiepreise binnen 20 Jahren
A16: Gaspreis Anfangsjahr: | D16: =(D1) -> 0.055 | E16: €/kWh
A17: Gaspreis im 20´sten Jahr: | D17: =(Energiepreisberechnung!C22) -> 0.1989090144 | E17: €/kWh
A18: Mittlerer Gaspreis während 20 Jahren: | D18: =(Energiepreisberechnung!C24) -> 0.1127376039 | E18: €/kWh
A20: Pelletpreis Anfangsjahr: | D20: =(D2) -> 0.05 | E20: €/kWh
A21: Pelletpreis im 20´sten Jahr: | D21: =(Energiepreisberechnung!G22) -> 0.1808263768 | E21: €/kWh
A22: Mittlerer Pelletpreis während 20 Jahren: | D22: =(Energiepreisberechnung!G24) -> 0.1024887308 | E22: €/kWh
A24: Strompreis Anfangsjahr: | D24: =(D3) -> 0.2 | E24: €/kWh
A25: Strompreis im 20´sten Jahr: | D25: =(Energiepreisberechnung!E22) -> 0.723305507 | E25: €/kWh
A26: Mittlerer Strompreis während 20 Jahren: | D26: =(Energiepreisberechnung!E24) -> 0.4099549232 | E26: €/kWh
A28: 2.
A29: Betrachtung für einen neuen Pelletkessel + Silo | D29: =(Master!D5) -> 40 | E29: kW
A31: 2a
A32: Investitionskosten | D32: =(Master!D8) -> 5000 | E32: €
A33: Investitionskosten gesamt: | D33: =(D32) -> 5000 | E33: € | I33: R_I_PL
A35: 2b
A36: Betriebskosten Pelletkessel
A37: Jahresarbeit Pelletkessel | D37: =(Master!D5*Master!D6) -> 80000 | E37: kWh/a | F37: (Leistung x Jahresvollbenutzungsstunden)
A38: Energieverbrauch Pelletkessel | D38: =(D37/D5) -> 86021.50538 | E38: kWh/a | F38: (Wirkungsgrad berücksichtigt) | I38: R_B_PL
A39: Kosten Pellets | D39: =(D38*D22) -> 8816.234908 | E39: €/a
A40: Wartungskosten Pelletkessel | D40: 500 | E40: €/a | I40: R_B_WART_PL
A41: Stromverbrauch 1 Stück Kesselkreispumpe | D41: =(Master!D6*D8) -> 120 | E41: kWh/a | I41: R_B_STROM_PL
A42: Stromkosten 1 Stück Kesselkreispumpe | D42: =(D41*D26) -> 49.19459079 | E42: €/a | F42: (Stromverbrauch x mittlerer Strompreis)
A44: Betriebskosten pro Jahr gesamt: | D44: =SUM(D39:D40)+D42 -> 9365.429499 | E44: €/a
L45: Negative Werte sollen gleich Null gesetzt werden
A46: 3. | L46: =(Master!D5-D59) -> 0
A47: Betrachtung für zwei GAWP 35 LW (70 kW) sowie Spitzenlastkessel
L48: Wärmepumpe soll nur die Anlagenheizlast erbringen, welche erforderlich ist
A49: 3a | L49: =IF(Master!D5<70,Master!D5,70) -> 40
A50: Investitionskosten
A51: 2 x GAWP + Zubehör | D51: =IF(Master!T15=TRUE,25000, (IF(Master!T16=TRUE,45000, (IF(Master!T17=TRUE,65000,""))))) ->  | E51: € | L51: Deckungsrate GAWP
A52: Förderung BAFA | D52: =IF(Master!$T$15=TRUE,(2400+100*25), (IF(Master!$T$16=TRUE,(2400+100*60), (IF(Master!$T$17=TRUE,(2400+100*95),""))))) ->  | E52: € | L52: =(D58+D59) -> 40 | M52: Max Leistung BW plus Leistung GAWP
A53: =IF(AND(Master!D5>29,Master!D5<55),Spitzenlastkessel!C4,(IF(AND(Master!D5>54,Master!D5<65),Spitzenlastkessel!C5,(IF(AND(Master!D5>64,Master!D5<85),Spitzenlastkessel!C6,(IF(AND(Master!D5>84,Master!D5<110),Spitzenlastkessel!C7,(IF(AND(Master!D5>109,Master!D5<135),Spitzenlastkessel!C8,(IF(AND(Master!D5>134,Master!D5<150),Spitzenlastkessel!C9,(IF(AND(Master!D5>149,Master!D5<200),Spitzenlastkessel!C10,(IF(AND(Master!D5>199,Master!D5<240),Spitzenlastkessel!C11,(IF(AND(Master!D5>239,Master!D5<300),Spitzenlastkessel!C12,(IF(AND(Master!D5>299,Master!D5<370),Spitzenlastkessel!C13,(IF(AND(Master!D5>369,Master!D5<450),Spitzenlastkessel!C14,(IF(AND(Master!D5>449,Master!D5<520),Spitzenlastkessel!C15,"Anlagenheizlast zu groß"))))))))))))))))))))))) -> Spitzenlastkessel GMR 3035 (35 kW) | D53: =IF(AND(Master!D5>29,Master!D5<55),Spitzenlastkessel!E4,(IF(AND(Master!D5>54,Master!D5<65),Spitzenlastkessel!E5,(IF(AND(Master!D5>64,Master!D5<85),Spitzenlastkessel!E6,(IF(AND(Master!D5>84,Master!D5<110),Spitzenlastkessel!E7,(IF(AND(Master!D5>109,Master!D5<135),Spitzenlastkessel!E8,(IF(AND(Master!D5>134,Master!D5<150),Spitzenlastkessel!E9,(IF(AND(Master!D5>149,Master!D5<200),Spitzenlastkessel!E10,(IF(AND(Master!D5>199,Master!D5<240),Spitzenlastkessel!E11,(IF(AND(Master!D5>239,Master!D5<300),Spitzenlastkessel!E12,(IF(AND(Master!D5>299,Master!D5<370),Spitzenlastkessel!E13,(IF(AND(Master!D5>369,Master!D5<450),Spitzenlastkessel!E14,(IF(AND(Master!D5>449,Master!D5<520),Spitzenlastkessel!E15,"Anlagenheizlast zu groß"))))))))))))))))))))))) -> 3600 | E53: € | F53: (gewählt) | L53: =(100/L52)*D59 -> 100 | M53: Prozentuale Anlagenheizlast von GAWP
A54: Investitionskosten gesamt: | D54: =(D51+D53-D52) ->  | E54: € | I54: N_I_GAWP_u_BW | L54: =MROUND(L53,5) -> 100 | M54: Gerundet
Q55: Prozentuale Anlagen- heizlast der GAWP
A56: 3b | L56: =VLOOKUP(L54,Q59:R86,2) -> 100 | M56: Deckungsrate GAWP | R56: Deckungs- rate
A57: Betriebskosten
A58: Max. Leistung Brennwertgerät | D58: =IF(L46<0,0,(Master!D5-D59)) -> 0 | E58: kW
A59: Leistung 2 x GAWP | D59: =(L49) -> 40 | E59: kW | Q59: 0 | R59: 0
Q60: 5 | R60: 8
A61: Deckungsrate Brennwertgerät | D61: =(100-D62) -> 0 | E61: % | F61: (Ergibt sich aus Leistungsverhältnis Brennwertgerät/GAWP) | Q61: 10 | R61: 15
A62: Deckungsrate 2 x GAWP | D62: =VLOOKUP(L54,Q59:R86,2) -> 100 | E62: % | F62: (Ergibt sich aus Leistungsverhältnis Brennwertgerät/GAWP) | Q62: 15 | R62: 25
Q63: 20 | R63: 33
A64: Jahresarbeit Gas-Brennwertgerät | D64: =(D37*(D61/100)) -> 0 | E64: kWh/a | F64: (Deckungsrate berücksichtigt)
A65: Jahresarbeit 2 x GAWP | D65: =(D37*(D62/100)) -> 80000 | E65: kWh/a | F65: (Deckungsrate berücksichtigt) | Q65: 25 | R65: 41
Q66: 30 | R66: 50
A67: Vollbenutzungsstunden Gas-Brennwertgerät | D67: =IF(D58=0,0,(D64/D58)) -> 0 | E67: h | F67: (ergibt sich aus Jahresarbeit/Leistung)
A68: Vollbenutzungsstunden 2 x GAWP | D68: =(D65/D59) -> 2000 | E68: h | F68: (ergibt sich aus Jahresarbeit/Leistung) | Q68: 35 | R68: 58
Q69: 40 | R69: 67
A70: Gasverbrauch Gas-Brennwertgerät | D70: =(D64/D4) -> 0 | E70: kWh/a | F70: (ergibt sich aus Jahresarbeit/Wirkungsgrad) | I70: N_B_GAS_BW
A71: Gasverbrauch 2 x GAWP | D71: =(D65/D6) -> 53333.33333 | E71: kWh/a | F71: (ergibt sich aus Jahresarbeit/Wirkungsgrad) | I71: N_B_GAS_GAWP | Q71: 45 | R71: 75
Q72: 50 | R72: 80
A73: Kosten Gasverbrauch Gas-Brennwertgerät | D73: =(D70*D18) -> 0 | E73: €/a | F73: (ergibt sich aus Gasverbrauch x mittlerer Gaspreis)
A74: Kosten Gasverbrauch 2 x GAWP | D74: =(D71*D18) -> 6012.672207 | E74: €/a | F74: (ergibt sich aus Gasverbrauch x mittlerer Gaspreis) | Q74: 55 | R74: 83
Q75: 60 | R75: 87
A76: Wartungskosten Gas-Brennwertgerät | D76: 300 | E76: €/a | I76: N_B_WART_BW
A77: Wartungskosten 2 x GAWP | D77: 500 | E77: €/a | I77: N_B_WART_GAWP | Q77: 65 | R77: 90
Q78: 70 | R78: 92
A79: Stromverbrauch 2 x GAWP | D79: =(D68*D7)*2 -> 4360 | E79: kWh/a | I79: N_B_STROM_LÜ_GAWP | Q79: 75 | R79: 94
A80: Stromkosten 2 x GAWP | D80: =(D79*D26) -> 1787.403465 | E80: €/a | F80: (Stromverbrauch x mittlerer Strompreis) | Q80: 80 | R80: 96
A81: Stromverbrauch Gas-Brennwertgerät | D81: =(D67*D8) -> 0 | E81: kWh/a | I81: N_B_STROM_BW
A82: Stromkosten Gas-Brennwertgerät | D82: =(D81*D26) -> 0 | E82: €/a | F82: (Stromverbrauch x mittlerer Strompreis)
A83: Stromverbrauch 2 x Umwälzpumpe GAWP | D83: =((D68)*D9)*2 -> 200 | E83: kWh/a | I83: N_B_STROM_PU_GAWP | Q83: 85 | R83: 97
A84: Stromkosten 2 x Umwälzpumpe GAWP | D84: =(D83*D26) -> 81.99098464 | E84: €/a | F84: (Stromverbrauch x mittlerer Strompreis) | Q84: 90 | R84: 98
Q85: 95 | R85: 99
A86: Betriebskosten pro Jahr gesamt: | D86: =SUM(D73:D77)+D84+D80+D82 -> 8682.066657 | E86: €/a | Q86: 100 | R86: 100
A88: FAZIT:
A89: Mittlere Energieeinsparung pro Jahr bei Einsatz
A90: von zwei GAWP LW und Gas-Brennwertgerät
A91: gegenüber den Betriebskosten eines Pelletkessels: | D91: =IF((D44-D86)<0,"negativ",(D44-D86)) -> 683.3628416 | E91: €/a
A93: Differenz Investitionskosten: | D93: =(D54-D33) ->  | E93: €
A95: Für einen auf 20 Jahre gemittelten Engergiepreis
A96: ergibt sich eine Amortisationszeit von: | D96: =IF(D91="negativ","negativ",(IF(D93<0,"sofort",D93/D91))) ->  | E96: =IF(D91="negativ","",(IF(D93<0,"","Jahren"))) -> 

Sheet LW3 bival PL
A1: Aktueller Gaspreis | D1: =(Energiepreisberechnung!D28) -> 0.055 | E1: €/kWh
A2: Aktueller Pelletpreis | D2: =(Energiepreisberechnung!D32) -> 0.05 | E2: €/kWh
A3: Aktueller Strompreis | D3: =(Energiepreisberechnung!D31) -> 0.2 | E3: €/kWh
A4: Gemittelter Wirkungsgrad Gasbrennwertgerät | D4: 1.06
A5: Gemittelter Wirkungsgrad Pelletkessel | D5: 0.93
A6: Gemittelter Wirkungsgrad GAWP LW | D6: 1.5
A7: Elektr. Leistung GAWP LW | D7: 1.09 | E7: kW
A8: Elektr. Leistung Kesselkreispumpe | D8: 0.1 | E8: kW
A9: Elektr. Leistung Umwälzpumpe GAWP | D9: 0.05 | E9: kW
A11: Gesucht: | B11: Investitions- und Betriebskosten während 20 Jahren
A13: 1.
A14: Errechnung der mittleren Energiepreise binnen 20 Jahren
A16: Gaspreis Anfangsjahr: | D16: =(D1) -> 0.055 | E16: €/kWh
A17: Gaspreis im 20´sten Jahr: | D17: =(Energiepreisberechnung!C22) -> 0.1989090144 | E17: €/kWh
A18: Mittlerer Gaspreis während 20 Jahren: | D18: =(Energiepreisberechnung!C24) -> 0.1127376039 | E18: €/kWh
A20: Pelletpreis Anfangsjahr: | D20: =(D2) -> 0.05 | E20: €/kWh
A21: Pelletpreis im 20´sten Jahr: | D21: =(Energiepreisberechnung!G22) -> 0.1808263768 | E21: €/kWh
A22: Mittlerer Pelletpreis während 20 Jahren: | D22: =(Energiepreisberechnung!G24) -> 0.1024887308 | E22: €/kWh
A24: Strompreis Anfangsjahr: | D24: =(D3) -> 0.2 | E24: €/kWh
A25: Strompreis im 20´sten Jahr: | D25: =(Energiepreisberechnung!E22) -> 0.723305507 | E25: €/kWh
A26: Mittlerer Strompreis während 20 Jahren: | D26: =(Energiepreisberechnung!E24) -> 0.4099549232 | E26: €/kWh
A28: 2.
A29: Betrachtung für einen neuen Pelletkessel + Silo | D29: =(Master!D5) -> 40 | E29: kW
A31: 2a
A32: Investitionskosten | D32: =(Master!D8) -> 5000 | E32: €
A33: Investitionskosten gesamt: | D33: =(D32) -> 5000 | E33: € | I33: R_I_PL
A35: 2b
A36: Betriebskosten Pelletkessel
A37: Jahresarbeit Pelletkessel | D37: =(Master!D5*Master!D6) -> 80000 | E37: kWh/a | F37: (Leistung x Jahresvollbenutzungsstunden)
A38: Energieverbrauch Pelletkessel | D38: =(D37/D5) -> 86021.50538 | E38: kWh/a | F38: (Wirkungsgrad berücksichtigt) | I38: R_B_PL
A39: Kosten Pellets | D39: =(D38*D22) -> 8816.234908 | E39: €/a
A40: Wartungskosten Pelletkessel | D40: 500 | E40: €/a | I40: R_B_WART_PL
A41: Stromverbrauch 1 Stück Kesselkreispumpe | D41: =(Master!D6*D8) -> 200 | E41: kWh/a | I41: R_B_STROM_PL
A42: Stromkosten 1 Stück Kesselkreispumpe | D42: =(D41*D26) -> 81.99098464 | E42: €/a | F42: (Stromverbrauch x mittlerer Strompreis)
A44: Betriebskosten pro Jahr gesamt: | D44: =SUM(D39:D40)+D42 -> 9398.225892 | E44: €/a
L45: Negative Werte sollen gleich Null gesetzt werden
A46: 3. | L46: =(Master!D5-D59) -> 0
A47: Betrachtung für drei GAWP 35 LW (105 kW) sowie Spitzenlastkessel
L48: Wärmepumpe soll nur die Anlagenheizlast erbringen, welche erforderlich ist
A49: 3a | L49: =IF(Master!D5<105,Master!D5,105) -> 40
A50: Investitionskosten
A51: 3 x GAWP + Zubehör | D51: =IF(Master!T15=TRUE,25000, (IF(Master!T16=TRUE,45000, (IF(Master!T17=TRUE,65000,""))))) ->  | E51: € | L51: Deckungsrate GAWP
A52: Förderung BAFA | D52: =IF(Master!$T$15=TRUE,(2400+100*25), (IF(Master!$T$16=TRUE,(2400+100*60), (IF(Master!$T$17=TRUE,(2400+100*95),""))))) ->  | E52: € | L52: =(D58+D59) -> 40 | M52: Max Leistung BW plus Leistung GAWP
A53: =IF(AND(Master!D5>29,Master!D5<55),Spitzenlastkessel!C4,(IF(AND(Master!D5>54,Master!D5<65),Spitzenlastkessel!C5,(IF(AND(Master!D5>64,Master!D5<85),Spitzenlastkessel!C6,(IF(AND(Master!D5>84,Master!D5<110),Spitzenlastkessel!C7,(IF(AND(Master!D5>109,Master!D5<135),Spitzenlastkessel!C8,(IF(AND(Master!D5>134,Master!D5<150),Spitzenlastkessel!C9,(IF(AND(Master!D5>149,Master!D5<200),Spitzenlastkessel!C10,(IF(AND(Master!D5>199,Master!D5<240),Spitzenlastkessel!C11,(IF(AND(Master!D5>239,Master!D5<300),Spitzenlastkessel!C12,(IF(AND(Master!D5>299,Master!D5<370),Spitzenlastkessel!C13,(IF(AND(Master!D5>369,Master!D5<450),Spitzenlastkessel!C14,(IF(AND(Master!D5>449,Master!D5<520),Spitzenlastkessel!C15,"Anlagenheizlast zu groß"))))))))))))))))))))))) -> Spitzenlastkessel GMR 3035 (35 kW) | D53: =IF(AND(Master!D5>29,Master!D5<55),Spitzenlastkessel!E4,(IF(AND(Master!D5>54,Master!D5<65),Spitzenlastkessel!E5,(IF(AND(Master!D5>64,Master!D5<85),Spitzenlastkessel!E6,(IF(AND(Master!D5>84,Master!D5<110),Spitzenlastkessel!E7,(IF(AND(Master!D5>109,Master!D5<135),Spitzenlastkessel!E8,(IF(AND(Master!D5>134,Master!D5<150),Spitzenlastkessel!E9,(IF(AND(Master!D5>149,Master!D5<200),Spitzenlastkessel!E10,(IF(AND(Master!D5>199,Master!D5<240),Spitzenlastkessel!E11,(IF(AND(Master!D5>239,Master!D5<300),Spitzenlastkessel!E12,(IF(AND(Master!D5>299,Master!D5<370),Spitzenlastkessel!E13,(IF(AND(Master!D5>369,Master!D5<450),Spitzenlastkessel!E14,(IF(AND(Master!D5>449,Master!D5<520),Spitzenlastkessel!E15,"Anlagenheizlast zu groß"))))))))))))))))))))))) -> 3600 | E53: € | F53: (gewählt) | L53: =(100/L52)*D59 -> 100 | M53: Prozentuale Anlagenheizlast von GAWP
A54: Investitionskosten gesamt: | D54: =(D51+D53-D52) ->  | E54: € | I54: N_I_GAWP_u_BW | L54: =MROUND(L53,5) -> 100 | M54: Gerundet
Q55: Prozentuale Anlagen- heizlast der GAWP
A56: 3b | L56: =VLOOKUP(L54,Q59:R86,2) -> 100 | M56: Deckungsrate GAWP | R56: Deckungs- rate
A57: Betriebskosten
A58: Max. Leistung Brennwertgerät | D58: =IF(L46<0,0,(Master!D5-D59)) -> 0 | E58: kW
A59: Leistung 3 x GAWP | D59: =(L49) -> 40 | E59: kW | Q59: 0 | R59: 0
Q60: 5 | R60: 8
A61: Deckungsrate Brennwertgerät | D61: =(100-D62) -> 0 | E61: % | F61: (Ergibt sich aus Leistungsverhältnis Brennwertgerät/GAWP) | Q61: 10 | R61: 15
A62: Deckungsrate 3 x GAWP | D62: =VLOOKUP(L54,Q59:R86,2) -> 100 | E62: % | F62: (Ergibt sich aus Leistungsverhältnis Brennwertgerät/GAWP) | Q62: 15 | R62: 25
Q63: 20 | R63: 33
A64: Jahresarbeit Gas-Brennwertgerät | D64: =(D37*(D61/100)) -> 0 | E64: kWh/a | F64: (Deckungsrate berücksichtigt)
A65: Jahresarbeit 3 x GAWP | D65: =(D37*(D62/100)) -> 80000 | E65: kWh/a | F65: (Deckungsrate berücksichtigt) | Q65: 25 | R65: 41
Q66: 30 | R66: 50
A67: Vollbenutzungsstunden Gas-Brennwertgerät | D67: =IF(D58=0,0,(D64/D58)) -> 0 | E67: h | F67: (ergibt sich aus Jahresarbeit/Leistung)
A68: Vollbenutzungsstunden 3 x GAWP | D68: =(D65/D59) -> 2000 | E68: h | F68: (ergibt sich aus Jahresarbeit/Leistung) | Q68: 35 | R68: 58
Q69: 40 | R69: 67
A70: Gasverbrauch Gas-Brennwertgerät | D70: =(D64/D4) -> 0 | E70: kWh/a | F70: (ergibt sich aus Jahresarbeit/Wirkungsgrad) | I70: N_B_GAS_BW
A71: Gasverbrauch 3 x GAWP | D71: =(D65/D6) -> 53333.33333 | E71: kWh/a | F71: (ergibt sich aus Jahresarbeit/Wirkungsgrad) | I71: N_B_GAS_GAWP | Q71: 45 | R71: 75
Q72: 50 | R72: 80
A73: Kosten Gasverbrauch Gas-Brennwertgerät | D73: =(D70*D18) -> 0 | E73: €/a | F73: (ergibt sich aus Gasverbrauch x mittlerer Gaspreis)
A74: Kosten Gasverbrauch 3 x GAWP | D74: =(D71*D18) -> 6012.672207 | E74: €/a | F74: (ergibt sich aus Gasverbrauch x mittlerer Gaspreis) | Q74: 55 | R74: 83
Q75: 60 | R75: 87
A76: Wartungskosten Gas-Brennwertgerät | D76: 300 | E76: €/a | I76: N_B_WART_BW
A77: Wartungskosten 3 x GAWP | D77: 700 | E77: €/a | I77: N_B_WART_GAWP | Q77: 65 | R77: 90
Q78: 70 | R78: 92
A79: Stromverbrauch 3 x GAWP | D79: =(D68*D7)*3 -> 6540 | E79: kWh/a | I79: N_B_STROM_LÜ_GAWP | Q79: 75 | R79: 94
A80: Stromkosten 3 x GAWP | D80: =(D79*D26) -> 2681.105198 | E80: €/a | F80: (Stromverbrauch x mittlerer Strompreis) | Q80: 80 | R80: 96
A81: Stromverbrauch Gas-Brennwertgerät | D81: =(D67*D8) -> 0 | E81: kWh/a | I81: N_B_STROM_BW
A82: Stromkosten Gas-Brennwertgerät | D82: =(D81*D26) -> 0 | E82: €/a | F82: (Stromverbrauch x mittlerer Strompreis)
A83: Stromverbrauch 3 x Umwälzpumpe GAWP | D83: =((D68)*D9)*3 -> 300 | E83: kWh/a | I83: N_B_STROM_PU_GAWP | Q83: 85 | R83: 97
A84: Stromkosten 3 x Umwälzpumpe GAWP | D84: =(D83*D26) -> 122.986477 | E84: €/a | F84: (Stromverbrauch x mittlerer Strompreis) | Q84: 90 | R84: 98
Q85: 95 | R85: 99
A86: Betriebskosten pro Jahr gesamt: | D86: =SUM(D73:D77)+D84+D80+D82 -> 9816.763882 | E86: €/a | Q86: 100 | R86: 100
A88: FAZIT:
A89: Mittlere Energieeinsparung pro Jahr bei Einsatz
A90: von drei GAWP LW und Gas-Brennwertgerät
A91: gegenüber den Betriebskosten eines Pelletkessels: | D91: =IF((D44-D86)<0,"negativ",(D44-D86)) -> negativ | E91: €/a
A93: Differenz Investitionskosten: | D93: =(D54-D33) ->  | E93: €
A95: Für einen auf 20 Jahre gemittelten Engergiepreis
A96: ergibt sich eine Amortisationszeit von: | D96: =IF(D91="negativ","negativ",(IF(D93<0,"sofort",D93/D91))) -> negativ | E96: =IF(D91="negativ","",(IF(D93<0,"","Jahren"))) -> 

Sheet LW bival GAS
A1: Aktueller Gaspreis | D1: =(Energiepreisberechnung!D28) -> 0.055 | E1: €/kWh
A2: Aktueller Strompreis | D2: =(Energiepreisberechnung!D31) -> 0.2 | E2: €/kWh
A3: Gemittelter Wirkungsgrad Gasbrennwertgerät | D3: 1.06
A4: Gemittelter Wirkungsgrad GAWP LW | D4: 1.5
A5: Elektr. Leistung GAWP LW | D5: 1.09 | E5: kW
A6: Elektr. Leistung Kesselkreispumpe | D6: 0.05 | E6: kW
A8: Gesucht: | B8: Investitions- und Betriebskosten während 20 Jahren
A10: 1.
A11: Errechnung der mittleren Energiepreise binnen 20 Jahren
A13: Gaspreis Anfangsjahr: | D13: =(D1) -> 0.055 | E13: €/kWh
A14: Gaspreis im 20´sten Jahr: | D14: =(Energiepreisberechnung!C22) -> 0.1989090144 | E14: €/kWh
A15: Mittlerer Gaspreis während 20 Jahren: | D15: =(Energiepreisberechnung!C24) -> 0.1127376039 | E15: €/kWh
A17: Strompreis Anfangsjahr: | D17: =(D2) -> 0.2 | E17: €/kWh
A18: Strompreis im 20´sten Jahr: | D18: =(Energiepreisberechnung!E22) -> 0.723305507 | E18: €/kWh
A19: Mittlerer Strompreis während 20 Jahren: | D19: =(Energiepreisberechnung!E24) -> 0.4099549232 | E19: €/kWh
A21: 2.
A22: Betrachtung für ein neues Gasbrennwertgerät | D22: =(Master!D5) -> 40 | E22: kW
A24: 2a
A25: Investitionskosten | D25: =(Master!D8) -> 5000 | E25: €
A26: Investitionskosten gesamt: | D26: =(D25) -> 5000 | E26: € | I26: R_I_GAS
A28: 2b
A29: Betriebskosten Gas-Brennwertgerät
A30: Jahresarbeit Gas-Brennwertgerät | D30: =(Master!D5*Master!D6) -> 80000 | E30: kWh/a | F30: (Leistung x Jahresvollbenutzungsstunden)
A31: Energieverbrauch Gas-Brennwertgerät | D31: =(D30/D3) -> 75471.69811 | E31: kWh/a | F31: (Wirkungsgrad berücksichtigt) | I31: R_B_GAS
A32: Kosten Gas | D32: =(D31*D15) -> 8508.498406 | E32: €/a
A33: Wartungskosten Gas-Brennwertgerät | D33: 300 | E33: €/a | I33: R_B_WART_GAS
A34: Stromverbrauch 1 Stück Kesselkreispumpe | D34: =(Master!D6*D6) -> 100 | E34: kWh/a | I34: R_B_STROM_GAS
A35: Stromkosten 1 Stück Kesselkreispumpe | D35: =(D34*D19) -> 40.99549232 | E35: €/a | F35: (Stromverbrauch x mittlerer Strompreis)
A37: Betriebskosten pro Jahr gesamt: | D37: =SUM(D32:D33)+D35 -> 8849.493899 | E37: €/a
L38: Negative Werte sollen gleich Null gesetzt werden
A39: 3. | L39: =(Master!D5-D52) -> 5
A40: Betrachtung für eine GAWP 35 LW (35 kW) sowie Spitzenlastkessel
L41: Wärmepumpe soll nur die Anlagenheizlast erbringen, welche erforderlich ist
A42: 3a | L42: =IF(Master!D5<35,Master!D5,35) -> 35
A43: Investitionskosten
A44: GAWP + Zubehör | D44: =IF(Master!T15=TRUE,25000, (IF(Master!T16=TRUE,45000, (IF(Master!T17=TRUE,65000,""))))) ->  | E44: € | L44: Deckungsrate GAWP
A45: Förderung BAFA | D45: =IF(Master!$T$15=TRUE,(2400+100*25), (IF(Master!$T$16=TRUE,(2400+100*60), (IF(Master!$T$17=TRUE,(2400+100*95),""))))) ->  | E45: € | L45: =(D51+D52) -> 40 | M45: Max Leistung BW plus Leistung GAWP
A46: =IF(AND(Master!D5>29,Master!D5<55),Spitzenlastkessel!C4,(IF(AND(Master!D5>54,Master!D5<65),Spitzenlastkessel!C5,(IF(AND(Master!D5>64,Master!D5<85),Spitzenlastkessel!C6,(IF(AND(Master!D5>84,Master!D5<110),Spitzenlastkessel!C7,(IF(AND(Master!D5>109,Master!D5<135),Spitzenlastkessel!C8,(IF(AND(Master!D5>134,Master!D5<150),Spitzenlastkessel!C9,(IF(AND(Master!D5>149,Master!D5<200),Spitzenlastkessel!C10,(IF(AND(Master!D5>199,Master!D5<240),Spitzenlastkessel!C11,(IF(AND(Master!D5>239,Master!D5<300),Spitzenlastkessel!C12,(IF(AND(Master!D5>299,Master!D5<370),Spitzenlastkessel!C13,(IF(AND(Master!D5>369,Master!D5<450),Spitzenlastkessel!C14,(IF(AND(Master!D5>449,Master!D5<520),Spitzenlastkessel!C15,"Anlagenheizlast zu groß"))))))))))))))))))))))) -> Spitzenlastkessel GMR 3035 (35 kW) | D46: =IF(AND(Master!D5>29,Master!D5<55),Spitzenlastkessel!E4,(IF(AND(Master!D5>54,Master!D5<65),Spitzenlastkessel!E5,(IF(AND(Master!D5>64,Master!D5<85),Spitzenlastkessel!E6,(IF(AND(Master!D5>84,Master!D5<110),Spitzenlastkessel!E7,(IF(AND(Master!D5>109,Master!D5<135),Spitzenlastkessel!E8,(IF(AND(Master!D5>134,Master!D5<150),Spitzenlastkessel!E9,(IF(AND(Master!D5>149,Master!D5<200),Spitzenlastkessel!E10,(IF(AND(Master!D5>199,Master!D5<240),Spitzenlastkessel!E11,(IF(AND(Master!D5>239,Master!D5<300),Spitzenlastkessel!E12,(IF(AND(Master!D5>299,Master!D5<370),Spitzenlastkessel!E13,(IF(AND(Master!D5>369,Master!D5<450),Spitzenlastkessel!E14,(IF(AND(Master!D5>449,Master!D5<520),Spitzenlastkessel!E15,"Anlagenheizlast zu groß"))))))))))))))))))))))) -> 3600 | E46: € | F46: (gewählt) | L46: =(100/L45)*D52 -> 87.5 | M46: Prozentuale Anlagenheizlast von GAWP
A47: Investitionskosten gesamt: | D47: =(D44+D46-D45) ->  | E47: € | I47: N_I_GAWP_u_BW | L47: =MROUND(L46,5) -> 90 | M47: Gerundet
Q48: Prozentuale Anlagen- heizlast der GAWP
A49: 3b | L49: =VLOOKUP(L47,Q52:R79,2) -> 98 | M49: Deckungsrate GAWP | R49: Deckungs- rate
A50: Betriebskosten
A51: Max. Leistung Brennwertgerät | D51: =IF(L39<0,0,(Master!D5-D52)) -> 5 | E51: kW
A52: Leistung GAWP | D52: =(L42) -> 35 | E52: kW | Q52: 0 | R52: 0
Q53: 5 | R53: 8
A54: Deckungsrate Brennwertgerät | D54: =(100-D55) -> 2 | E54: % | F54: (Ergibt sich aus Leistungsverhältnis Brennwertgerät/GAWP) | Q54: 10 | R54: 15
A55: Deckungsrate GAWP | D55: =VLOOKUP(L47,Q52:R79,2) -> 98 | E55: % | F55: (Ergibt sich aus Leistungsverhältnis Brennwertgerät/GAWP) | Q55: 15 | R55: 25
Q56: 20 | R56: 33
A57: Jahresarbeit Gas-Brennwertgerät | D57: =(D30*(D54/100)) -> 1600 | E57: kWh/a | F57: (Deckungsrate berücksichtigt)
A58: Jahresarbeit GAWP | D58: =(D30*(D55/100)) -> 78400 | E58: kWh/a | F58: (Deckungsrate berücksichtigt) | Q58: 25 | R58: 41
Q59: 30 | R59: 50
A60: Vollbenutzungsstunden Gas-Brennwertgerät | D60: =IF(D51=0,0,(D57/D51)) -> 320 | E60: h | F60: (ergibt sich aus Jahresarbeit/Leistung)
A61: Vollbenutzungsstunden GAWP | D61: =(D58/D52) -> 2240 | E61: h | F61: (ergibt sich aus Jahresarbeit/Leistung) | Q61: 35 | R61: 58
Q62: 40 | R62: 67
A63: Gasverbrauch Gas-Brennwertgerät | D63: =(D57/D3) -> 1509.433962 | E63: kWh/a | F63: (ergibt sich aus Jahresarbeit/Wirkungsgrad) | I63: N_B_GAS_BW
A64: Gasverbrauch GAWP | D64: =(D58/D4) -> 52266.66667 | E64: kWh/a | F64: (ergibt sich aus Jahresarbeit/Wirkungsgrad) | I64: N_B_GAS_GAWP | Q64: 45 | R64: 75
Q65: 50 | R65: 80
A66: Kosten Gasverbrauch Gas-Brennwertgerät | D66: =(D63*D15) -> 170.1699681 | E66: €/a | F66: (ergibt sich aus Gasverbrauch x mittlerer Gaspreis)
A67: Kosten Gasverbrauch GAWP | D67: =(D64*D15) -> 5892.418763 | E67: €/a | F67: (ergibt sich aus Gasverbrauch x mittlerer Gaspreis) | Q67: 55 | R67: 83
Q68: 60 | R68: 87
A69: Wartungskosten Gas-Brennwertgerät | D69: 300 | E69: €/a | I69: N_B_WART_BW
A70: Wartungskosten GAWP | D70: 300 | E70: €/a | I70: N_B_WART_GAWP | Q70: 65 | R70: 90
Q71: 70 | R71: 92
A72: Stromverbrauch GAWP | D72: =(D61*D5) -> 2441.6 | E72: kWh/a | I72: N_B_STROM_LÜ_GAWP | Q72: 75 | R72: 94
A73: Stromkosten GAWP | D73: =(D72*D19) -> 1000.945941 | E73: €/a | F73: (Stromverbrauch x mittlerer Strompreis) | Q73: 80 | R73: 96
A74: Stromverbrauch Gas-Brennwertgerät | D74: =(D60*D6) -> 16 | E74: kWh/a | I74: N_B_STROM_BW
A75: Stromkosten Gas-Brennwertgerät | D75: =(D74*D19) -> 6.559278771 | E75: €/a | F75: (Stromverbrauch x mittlerer Strompreis)
A76: Stromverbrauch Umwälzpumpe GAWP | D76: =((D61)*D6) -> 112 | E76: kWh/a | I76: N_B_STROM_PU_GAWP | Q76: 85 | R76: 97
A77: Stromkosten Umwälzpumpe GAWP | D77: =(D76*D19) -> 45.9149514 | E77: €/a | F77: (Stromverbrauch x mittlerer Strompreis) | Q77: 90 | R77: 98
Q78: 95 | R78: 99
A79: Betriebskosten pro Jahr gesamt: | D79: =SUM(D66:D70)+D77+D73+D75 -> 7716.008902 | E79: €/a | Q79: 100 | R79: 100
A81: FAZIT:
A82: Mittlere Energieeinsparung pro Jahr bei Einsatz
A83: von einer GAWP LW und Gas-Brennwertgerät
A84: gegenüber "nur Gas-Brennwert": | D84: =(D37-D79) -> 1133.484997 | E84: €/a
A86: Differenz Investitionskosten: | D86: =(D47-D26) ->  | E86: €
A88: Für einen auf 20 Jahre gemittelten Engergiepreis
A89: ergibt sich eine Amortisationszeit von: | D89: =IF((D86/D84)<0,"sofort",(D86/D84)) ->  | E89: =IF((D86/D84)<0,"","Jahren") -> 

Sheet LW2 bival GAS
A1: Aktueller Gaspreis | D1: =(Energiepreisberechnung!D28) -> 0.055 | E1: €/kWh
A2: Aktueller Strompreis | D2: =(Energiepreisberechnung!D31) -> 0.2 | E2: €/kWh
A3: Gemittelter Wirkungsgrad Gasbrennwertgerät | D3: 1.06
A4: Gemittelter Wirkungsgrad GAWP LW | D4: 1.5
A5: Elektr. Leistung GAWP LW | D5: 1.09 | E5: kW
A6: Elektr. Leistung Kesselkreispumpe | D6: 0.06 | E6: kW
A7: Elektr. Leistung Umwälzpumpe GAWP | D7: 0.05 | E7: kW
A9: Gesucht: | B9: Investitions- und Betriebskosten während 20 Jahren
A11: 1.
A12: Errechnung der mittleren Energiepreise binnen 20 Jahren
A14: Gaspreis Anfangsjahr: | D14: =(D1) -> 0.055 | E14: €/kWh
A15: Gaspreis im 20´sten Jahr: | D15: =(Energiepreisberechnung!C22) -> 0.1989090144 | E15: €/kWh
A16: Mittlerer Gaspreis während 20 Jahren: | D16: =(Energiepreisberechnung!C24) -> 0.1127376039 | E16: €/kWh
A18: Strompreis Anfangsjahr: | D18: =(D2) -> 0.2 | E18: €/kWh
A19: Strompreis im 20´sten Jahr: | D19: =(Energiepreisberechnung!E22) -> 0.723305507 | E19: €/kWh
A20: Mittlerer Strompreis während 20 Jahren: | D20: =(Energiepreisberechnung!E24) -> 0.4099549232 | E20: €/kWh
A22: 2.
A23: Betrachtung für ein neues Gasbrennwertgerät | D23: =(Master!D5) -> 40 | E23: kW
A25: 2a
A26: Investitionskosten | D26: =(Master!D8) -> 5000 | E26: €
A27: Investitionskosten gesamt: | D27: =(D26) -> 5000 | E27: € | I27: R_I_GAS
A29: 2b
A30: Betriebskosten Gas-Brennwertgerät
A31: Jahresarbeit Gas-Brennwertgerät | D31: =(Master!D5*Master!D6) -> 80000 | E31: kWh/a | F31: (Leistung x Jahresvollbenutzungsstunden)
A32: Energieverbrauch Gas-Brennwertgerät | D32: =(D31/D3) -> 75471.69811 | E32: kWh/a | F32: (Wirkungsgrad berücksichtigt) | I32: R_B_GAS
A33: Kosten Gas | D33: =(D32*D16) -> 8508.498406 | E33: €/a
A34: Wartungskosten Gas-Brennwertgerät | D34: 300 | E34: €/a | I34: R_B_WART_GAS
A35: Stromverbrauch 1 Stück Kesselkreispumpe | D35: =(Master!D6*D6) -> 120 | E35: kWh/a | I35: R_B_STROM_GAS
A36: Stromkosten 1 Stück Kesselkreispumpe | D36: =(D35*D20) -> 49.19459079 | E36: €/a | F36: (Stromverbrauch x mittlerer Strompreis)
A38: Betriebskosten pro Jahr gesamt: | D38: =SUM(D33:D34)+D36 -> 8857.692997 | E38: €/a
L39: Negative Werte sollen gleich Null gesetzt werden
A40: 3. | L40: =(Master!D5-D53) -> 0
A41: Betrachtung für zwei GAWP 35 LW (70 kW) sowie Spitzenlastkessel
L42: Wärmepumpe soll nur die Anlagenheizlast erbringen, welche erforderlich ist
A43: 3a | L43: =IF(Master!D5<70,Master!D5,70) -> 40
A44: Investitionskosten
A45: 2 x GAWP + Zubehör | D45: =IF(Master!T15=TRUE,25000, (IF(Master!T16=TRUE,45000, (IF(Master!T17=TRUE,65000,""))))) ->  | E45: € | L45: Deckungsrate GAWP
A46: Förderung BAFA | D46: =IF(Master!$T$15=TRUE,(2400+100*25), (IF(Master!$T$16=TRUE,(2400+100*60), (IF(Master!$T$17=TRUE,(2400+100*95),""))))) ->  | E46: € | L46: =(D52+D53) -> 40 | M46: Max Leistung BW plus Leistung GAWP
A47: =IF(AND(Master!D5>29,Master!D5<55),Spitzenlastkessel!C4,(IF(AND(Master!D5>54,Master!D5<65),Spitzenlastkessel!C5,(IF(AND(Master!D5>64,Master!D5<85),Spitzenlastkessel!C6,(IF(AND(Master!D5>84,Master!D5<110),Spitzenlastkessel!C7,(IF(AND(Master!D5>109,Master!D5<135),Spitzenlastkessel!C8,(IF(AND(Master!D5>134,Master!D5<150),Spitzenlastkessel!C9,(IF(AND(Master!D5>149,Master!D5<200),Spitzenlastkessel!C10,(IF(AND(Master!D5>199,Master!D5<240),Spitzenlastkessel!C11,(IF(AND(Master!D5>239,Master!D5<300),Spitzenlastkessel!C12,(IF(AND(Master!D5>299,Master!D5<370),Spitzenlastkessel!C13,(IF(AND(Master!D5>369,Master!D5<450),Spitzenlastkessel!C14,(IF(AND(Master!D5>449,Master!D5<520),Spitzenlastkessel!C15,"Anlagenheizlast zu groß"))))))))))))))))))))))) -> Spitzenlastkessel GMR 3035 (35 kW) | D47: =IF(AND(Master!D5>29,Master!D5<55),Spitzenlastkessel!E4,(IF(AND(Master!D5>54,Master!D5<65),Spitzenlastkessel!E5,(IF(AND(Master!D5>64,Master!D5<85),Spitzenlastkessel!E6,(IF(AND(Master!D5>84,Master!D5<110),Spitzenlastkessel!E7,(IF(AND(Master!D5>109,Master!D5<135),Spitzenlastkessel!E8,(IF(AND(Master!D5>134,Master!D5<150),Spitzenlastkessel!E9,(IF(AND(Master!D5>149,Master!D5<200),Spitzenlastkessel!E10,(IF(AND(Master!D5>199,Master!D5<240),Spitzenlastkessel!E11,(IF(AND(Master!D5>239,Master!D5<300),Spitzenlastkessel!E12,(IF(AND(Master!D5>299,Master!D5<370),Spitzenlastkessel!E13,(IF(AND(Master!D5>369,Master!D5<450),Spitzenlastkessel!E14,(IF(AND(Master!D5>449,Master!D5<520),Spitzenlastkessel!E15,"Anlagenheizlast zu groß"))))))))))))))))))))))) -> 3600 | E47: € | F47: (gewählt) | L47: =(100/L46)*D53 -> 100 | M47: Prozentuale Anlagenheizlast von GAWP
A48: Investitionskosten gesamt: | D48: =(D45+D47-D46) ->  | E48: € | I48: N_I_GAWP_u_BW | L48: =MROUND(L47,5) -> 100 | M48: Gerundet
Q49: Prozentuale Anlagen- heizlast der GAWP
A50: 3b | L50: =VLOOKUP(L48,Q53:R80,2) -> 100 | M50: Deckungsrate GAWP | R50: Deckungs- rate
A51: Betriebskosten
A52: Max. Leistung Brennwertgerät | D52: =IF(L40<0,0,(Master!D5-D53)) -> 0 | E52: kW
A53: Leistung 2 x GAWP | D53: =(L43) -> 40 | E53: kW | Q53: 0 | R53: 0
Q54: 5 | R54: 8
A55: Deckungsrate Brennwertgerät | D55: =(100-D56) -> 0 | E55: % | F55: (Ergibt sich aus Leistungsverhältnis Brennwertgerät/GAWP) | Q55: 10 | R55: 15
A56: Deckungsrate 2 x GAWP | D56: =VLOOKUP(L48,Q53:R80,2) -> 100 | E56: % | F56: (Ergibt sich aus Leistungsverhältnis Brennwertgerät/GAWP) | Q56: 15 | R56: 25
Q57: 20 | R57: 33
A58: Jahresarbeit Gas-Brennwertgerät | D58: =(D31*(D55/100)) -> 0 | E58: kWh/a | F58: (Deckungsrate berücksichtigt)
A59: Jahresarbeit 2 x GAWP | D59: =(D31*(D56/100)) -> 80000 | E59: kWh/a | F59: (Deckungsrate berücksichtigt) | Q59: 25 | R59: 41
Q60: 30 | R60: 50
A61: Vollbenutzungsstunden Gas-Brennwertgerät | D61: =IF(D52=0,0,(D58/D52)) -> 0 | E61: h | F61: (ergibt sich aus Jahresarbeit/Leistung)
A62: Vollbenutzungsstunden 2 x GAWP | D62: =(D59/D53) -> 2000 | E62: h | F62: (ergibt sich aus Jahresarbeit/Leistung) | Q62: 35 | R62: 58
Q63: 40 | R63: 67
A64: Gasverbrauch Gas-Brennwertgerät | D64: =(D58/D3) -> 0 | E64: kWh/a | F64: (ergibt sich aus Jahresarbeit/Wirkungsgrad) | I64: N_B_GAS_BW
A65: Gasverbrauch 2 x GAWP | D65: =(D59/D4) -> 53333.33333 | E65: kWh/a | F65: (ergibt sich aus Jahresarbeit/Wirkungsgrad) | I65: N_B_GAS_GAWP | Q65: 45 | R65: 75
Q66: 50 | R66: 80
A67: Kosten Gasverbrauch Gas-Brennwertgerät | D67: =(D64*D16) -> 0 | E67: €/a | F67: (ergibt sich aus Gasverbrauch x mittlerer Gaspreis)
A68: Kosten Gasverbrauch 2 x GAWP | D68: =(D65*D16) -> 6012.672207 | E68: €/a | F68: (ergibt sich aus Gasverbrauch x mittlerer Gaspreis) | Q68: 55 | R68: 83
Q69: 60 | R69: 87
A70: Wartungskosten Gas-Brennwertgerät | D70: 300 | E70: €/a | I70: N_B_WART_BW
A71: Wartungskosten 2 x GAWP | D71: 500 | E71: €/a | I71: N_B_WART_GAWP | Q71: 65 | R71: 90
Q72: 70 | R72: 92
A73: Stromverbrauch 2 x GAWP | D73: =(D62*D5)*2 -> 4360 | E73: kWh/a | I73: N_B_STROM_LÜ_GAWP | Q73: 75 | R73: 94
A74: Stromkosten 2 x GAWP | D74: =(D73*D20) -> 1787.403465 | E74: €/a | F74: (Stromverbrauch x mittlerer Strompreis) | Q74: 80 | R74: 96
A75: Stromverbrauch Gas-Brennwertgerät | D75: =(D61*D6) -> 0 | E75: kWh/a | I75: N_B_STROM_BW
A76: Stromkosten Gas-Brennwertgerät | D76: =(D75*D20) -> 0 | E76: €/a | F76: (Stromverbrauch x mittlerer Strompreis)
A77: Stromverbrauch 2 x Umwälzpumpe GAWP | D77: =((D62)*D7)*2 -> 200 | E77: kWh/a | I77: N_B_STROM_PU_GAWP | Q77: 85 | R77: 97
A78: Stromkosten 2 x Umwälzpumpe GAWP | D78: =(D77*D20) -> 81.99098464 | E78: €/a | F78: (Stromverbrauch x mittlerer Strompreis) | Q78: 90 | R78: 98
Q79: 95 | R79: 99
A80: Betriebskosten pro Jahr gesamt: | D80: =SUM(D67:D71)+D78+D74+D76 -> 8682.066657 | E80: €/a | Q80: 100 | R80: 100
A82: FAZIT:
A83: Mittlere Energieeinsparung pro Jahr bei Einsatz
A84: von zwei GAWP LW und Gas-Brennwertgerät
A85: gegenüber "nur Gas-Brennwert": | D85: =IF((D38-D80)<0,"negativ",(D38-D80)) -> 175.6263401 | E85: €/a
A87: Differenz Investitionskosten: | D87: =(D48-D27) ->  | E87: €
A89: Für einen auf 20 Jahre gemittelten Engergiepreis
A90: ergibt sich eine Amortisationszeit von: | D90: =IF(D85="negativ","negativ",(IF(D87<0,"sofort",D87/D85))) ->  | E90: =IF(D85="negativ","",(IF(D87<0,"","Jahren"))) -> 

Sheet LW3 bival GAS
A1: Aktueller Gaspreis | D1: =(Energiepreisberechnung!D28) -> 0.055 | E1: €/kWh
A2: Aktueller Strompreis | D2: =(Energiepreisberechnung!D31) -> 0.2 | E2: €/kWh
A3: Gemittelter Wirkungsgrad Gasbrennwertgerät | D3: 1.06
A4: Gemittelter Wirkungsgrad GAWP LW | D4: 1.5
A5: Elektr. Leistung GAWP LW | D5: 1.09 | E5: kW
A6: Elektr. Leistung Kesselkreispumpe | D6: 0.1 | E6: kW
A7: Elektr. Leistung Umwälzpumpe GAWP | D7: 0.05 | E7: kW
A9: Gesucht: | B9: Investitions- und Betriebskosten während 20 Jahren
A11: 1.
A12: Errechnung der mittleren Energiepreise binnen 20 Jahren
A14: Gaspreis Anfangsjahr: | D14: =(D1) -> 0.055 | E14: €/kWh
A15: Gaspreis im 20´sten Jahr: | D15: =(Energiepreisberechnung!C22) -> 0.1989090144 | E15: €/kWh
A16: Mittlerer Gaspreis während 20 Jahren: | D16: =(Energiepreisberechnung!C24) -> 0.1127376039 | E16: €/kWh
A18: Strompreis Anfangsjahr: | D18: =(D2) -> 0.2 | E18: €/kWh
A19: Strompreis im 20´sten Jahr: | D19: =(Energiepreisberechnung!E22) -> 0.723305507 | E19: €/kWh
A20: Mittlerer Strompreis während 20 Jahren: | D20: =(Energiepreisberechnung!E24) -> 0.4099549232 | E20: €/kWh
A22: 2.
A23: Betrachtung für ein neues Gasbrennwertgerät | D23: =(Master!D5) -> 40 | E23: kW
A25: 2a
A26: Investitionskosten | D26: =(Master!D8) -> 5000 | E26: €
A27: Investitionskosten gesamt: | D27: =(D26) -> 5000 | E27: € | I27: R_I_GAS
A29: 2b
A30: Betriebskosten Gas-Brennwertgerät
A31: Jahresarbeit Gas-Brennwertgerät | D31: =(Master!D5*Master!D6) -> 80000 | E31: kWh/a | F31: (Leistung x Jahresvollbenutzungsstunden)
A32: Energieverbrauch Gas-Brennwertgerät | D32: =(D31/D3) -> 75471.69811 | E32: kWh/a | F32: (Wirkungsgrad berücksichtigt) | I32: R_B_GAS
A33: Kosten Gas | D33: =(D32*D16) -> 8508.498406 | E33: €/a
A34: Wartungskosten Gas-Brennwertgerät | D34: 300 | E34: €/a | I34: R_B_WART_GAS
A35: Stromverbrauch 1 Stück Kesselkreispumpe | D35: =(Master!D6*D6) -> 200 | E35: kWh/a | I35: R_B_STROM_GAS
A36: Stromkosten 1 Stück Kesselkreispumpe | D36: =(D35*D20) -> 81.99098464 | E36: €/a | F36: (Stromverbrauch x mittlerer Strompreis)
A38: Betriebskosten pro Jahr gesamt: | D38: =SUM(D33:D34)+D36 -> 8890.489391 | E38: €/a
L39: Negative Werte sollen gleich Null gesetzt werden
A40: 3. | L40: =(Master!D5-D53) -> 0
A41: Betrachtung für drei GAWP 35 LW (105 kW) sowie Spitzenlastkessel
L42: Wärmepumpe soll nur die Anlagenheizlast erbringen, welche erforderlich ist
A43: 3a | L43: =IF(Master!D5<105,Master!D5,105) -> 40
A44: Investitionskosten
A45: 3 x GAWP + Zubehör | D45: =IF(Master!T15=TRUE,25000, (IF(Master!T16=TRUE,45000, (IF(Master!T17=TRUE,65000,""))))) ->  | E45: € | L45: Deckungsrate GAWP
A46: Förderung BAFA | D46: =IF(Master!$T$15=TRUE,(2400+100*25), (IF(Master!$T$16=TRUE,(2400+100*60), (IF(Master!$T$17=TRUE,(2400+100*95),""))))) ->  | E46: € | L46: =(D52+D53) -> 40 | M46: Max Leistung BW plus Leistung GAWP
A47: =IF(AND(Master!D5>29,Master!D5<55),Spitzenlastkessel!C4,(IF(AND(Master!D5>54,Master!D5<65),Spitzenlastkessel!C5,(IF(AND(Master!D5>64,Master!D5<85),Spitzenlastkessel!C6,(IF(AND(Master!D5>84,Master!D5<110),Spitzenlastkessel!C7,(IF(AND(Master!D5>109,Master!D5<135),Spitzenlastkessel!C8,(IF(AND(Master!D5>134,Master!D5<150),Spitzenlastkessel!C9,(IF(AND(Master!D5>149,Master!D5<200),Spitzenlastkessel!C10,(IF(AND(Master!D5>199,Master!D5<240),Spitzenlastkessel!C11,(IF(AND(Master!D5>239,Master!D5<300),Spitzenlastkessel!C12,(IF(AND(Master!D5>299,Master!D5<370),Spitzenlastkessel!C13,(IF(AND(Master!D5>369,Master!D5<450),Spitzenlastkessel!C14,(IF(AND(Master!D5>449,Master!D5<520),Spitzenlastkessel!C15,"Anlagenheizlast zu groß"))))))))))))))))))))))) -> Spitzenlastkessel GMR 3035 (35 kW) | D47: =IF(AND(Master!D5>29,Master!D5<55),Spitzenlastkessel!E4,(IF(AND(Master!D5>54,Master!D5<65),Spitzenlastkessel!E5,(IF(AND(Master!D5>64,Master!D5<85),Spitzenlastkessel!E6,(IF(AND(Master!D5>84,Master!D5<110),Spitzenlastkessel!E7,(IF(AND(Master!D5>109,Master!D5<135),Spitzenlastkessel!E8,(IF(AND(Master!D5>134,Master!D5<150),Spitzenlastkessel!E9,(IF(AND(Master!D5>149,Master!D5<200),Spitzenlastkessel!E10,(IF(AND(Master!D5>199,Master!D5<240),Spitzenlastkessel!E11,(IF(AND(Master!D5>239,Master!D5<300),Spitzenlastkessel!E12,(IF(AND(Master!D5>299,Master!D5<370),Spitzenlastkessel!E13,(IF(AND(Master!D5>369,Master!D5<450),Spitzenlastkessel!E14,(IF(AND(Master!D5>449,Master!D5<520),Spitzenlastkessel!E15,"Anlagenheizlast zu groß"))))))))))))))))))))))) -> 3600 | E47: € | F47: (gewählt) | L47: =(100/L46)*D53 -> 100 | M47: Prozentuale Anlagenheizlast von GAWP
A48: Investitionskosten gesamt: | D48: =(D45+D47-D46) ->  | E48: € | I48: N_I_GAWP_u_BW | L48: =MROUND(L47,5) -> 100 | M48: Gerundet
Q49: Prozentuale Anlagen- heizlast der GAWP
A50: 3b | L50: =VLOOKUP(L48,Q53:R80,2) -> 100 | M50: Deckungsrate GAWP | R50: Deckungs- rate
A51: Betriebskosten
A52: Max. Leistung Brennwertgerät | D52: =IF(L40<0,0,(Master!D5-D53)) -> 0 | E52: kW
A53: Leistung 3 x GAWP | D53: =(L43) -> 40 | E53: kW | Q53: 0 | R53: 0
Q54: 5 | R54: 8
A55: Deckungsrate Brennwertgerät | D55: =(100-D56) -> 0 | E55: % | F55: (Ergibt sich aus Leistungsverhältnis Brennwertgerät/GAWP) | Q55: 10 | R55: 15
A56: Deckungsrate 3 x GAWP | D56: =VLOOKUP(L48,Q53:R80,2) -> 100 | E56: % | F56: (Ergibt sich aus Leistungsverhältnis Brennwertgerät/GAWP) | Q56: 15 | R56: 25
Q57: 20 | R57: 33
A58: Jahresarbeit Gas-Brennwertgerät | D58: =(D31*(D55/100)) -> 0 | E58: kWh/a | F58: (Deckungsrate berücksichtigt)
A59: Jahresarbeit 3 x GAWP | D59: =(D31*(D56/100)) -> 80000 | E59: kWh/a | F59: (Deckungsrate berücksichtigt) | Q59: 25 | R59: 41
Q60: 30 | R60: 50
A61: Vollbenutzungsstunden Gas-Brennwertgerät | D61: =IF(D52=0,0,(D58/D52)) -> 0 | E61: h | F61: (ergibt sich aus Jahresarbeit/Leistung)
A62: Vollbenutzungsstunden 3 x GAWP | D62: =(D59/D53) -> 2000 | E62: h | F62: (ergibt sich aus Jahresarbeit/Leistung) | Q62: 35 | R62: 58
Q63: 40 | R63: 67
A64: Gasverbrauch Gas-Brennwertgerät | D64: =(D58/D3) -> 0 | E64: kWh/a | F64: (ergibt sich aus Jahresarbeit/Wirkungsgrad) | I64: N_B_GAS_BW
A65: Gasverbrauch 3 x GAWP | D65: =(D59/D4) -> 53333.33333 | E65: kWh/a | F65: (ergibt sich aus Jahresarbeit/Wirkungsgrad) | I65: N_B_GAS_GAWP | Q65: 45 | R65: 75
Q66: 50 | R66: 80
A67: Kosten Gasverbrauch Gas-Brennwertgerät | D67: =(D64*D16) -> 0 | E67: €/a | F67: (ergibt sich aus Gasverbrauch x mittlerer Gaspreis)
A68: Kosten Gasverbrauch 3 x GAWP | D68: =(D65*D16) -> 6012.672207 | E68: €/a | F68: (ergibt sich aus Gasverbrauch x mittlerer Gaspreis) | Q68: 55 | R68: 83
Q69: 60 | R69: 87
A70: Wartungskosten Gas-Brennwertgerät | D70: 300 | E70: €/a | I70: N_B_WART_BW
A71: Wartungskosten 3 x GAWP | D71: 700 | E71: €/a | I71: N_B_WART_GAWP | Q71: 65 | R71: 90
Q72: 70 | R72: 92
A73: Stromverbrauch 3 x GAWP | D73: =(D62*D5)*3 -> 6540 | E73: kWh/a | I73: N_B_STROM_LÜ_GAWP | Q73: 75 | R73: 94
A74: Stromkosten 3 x GAWP | D74: =(D73*D20) -> 2681.105198 | E74: €/a | F74: (Stromverbrauch x mittlerer Strompreis) | Q74: 80 | R74: 96
A75: Stromverbrauch Gas-Brennwertgerät | D75: =(D61*D6) -> 0 | E75: kWh/a | I75: N_B_STROM_BW
A76: Stromkosten Gas-Brennwertgerät | D76: =(D75*D20) -> 0 | E76: €/a | F76: (Stromverbrauch x mittlerer Strompreis)
A77: Stromverbrauch 3 x Umwälzpumpe GAWP | D77: =((D62)*D7)*3 -> 300 | E77: kWh/a | I77: N_B_STROM_PU_GAWP | Q77: 85 | R77: 97
A78: Stromkosten 3 x Umwälzpumpe GAWP | D78: =(D77*D20) -> 122.986477 | E78: €/a | F78: (Stromverbrauch x mittlerer Strompreis) | Q78: 90 | R78: 98
Q79: 95 | R79: 99
A80: Betriebskosten pro Jahr gesamt: | D80: =SUM(D67:D71)+D78+D74+D76 -> 9816.763882 | E80: €/a | Q80: 100 | R80: 100
A82: FAZIT:
A83: Mittlere Energieeinsparung pro Jahr bei Einsatz
A84: von drei GAWP LW und Gas-Brennwertgerät
A85: gegenüber "nur Gas-Brennwert": | D85: =IF((D38-D80)<0,"negativ",(D38-D80)) -> negativ | E85: €/a
A87: Differenz Investitionskosten: | D87: =(D48-D27) ->  | E87: €
A89: Für einen auf 20 Jahre gemittelten Engergiepreis
A90: ergibt sich eine Amortisationszeit von: | D90: =IF(D85="negativ","negativ",(IF(D87<0,"sofort",D87/D85))) -> negativ | E90: =IF(D85="negativ","",(IF(D87<0,"","Jahren"))) -> 

Sheet LW bival FLGAS
A1: Aktueller Flüssiggaspreis | D1: =(Energiepreisberechnung!D29) -> 0.07 | E1: €/kWh
A2: Aktueller Strompreis | D2: =(Energiepreisberechnung!D31) -> 0.2 | E2: €/kWh
A3: Gemittelter Wirkungsgrad Gasbrennwertgerät | D3: 1.06
A4: Gemittelter Wirkungsgrad GAWP LW | D4: 1.5
A5: Elektr. Leistung GAWP LW | D5: 1.09 | E5: kW
A6: Elektr. Leistung Kesselkreispumpe | D6: 0.05 | E6: kW
A8: Gesucht: | B8: Investitions- und Betriebskosten während 20 Jahren
A10: 1.
A11: Errechnung der mittleren Energiepreise binnen 20 Jahren
A13: Flüssiggaspreis Anfangsjahr: | D13: =(D1) -> 0.07 | E13: €/kWh
A14: Flüssiggaspreis im 20´sten Jahr: | D14: =(Energiepreisberechnung!D22) -> 0.2531569275 | E14: €/kWh
A15: Mittlerer Flüssiggaspreis während 20 Jahren: | D15: =(Energiepreisberechnung!D24) -> 0.1434842231 | E15: €/kWh
A17: Strompreis Anfangsjahr: | D17: =(D2) -> 0.2 | E17: €/kWh
A18: Strompreis im 20´sten Jahr: | D18: =(Energiepreisberechnung!E22) -> 0.723305507 | E18: €/kWh
A19: Mittlerer Strompreis während 20 Jahren: | D19: =(Energiepreisberechnung!E24) -> 0.4099549232 | E19: €/kWh
A21: 2.
A22: Betrachtung für ein neues Gasbrennwertgerät | D22: =(Master!D5) -> 40 | E22: kW
A24: 2a
A25: Investitionskosten | D25: =(Master!D8) -> 5000 | E25: €
A26: Investitionskosten gesamt: | D26: =(D25) -> 5000 | E26: € | I26: R_I_GAS
A28: 2b
A29: Betriebskosten Gas-Brennwertgerät
A30: Jahresarbeit Gas-Brennwertgerät | D30: =(Master!D5*Master!D6) -> 80000 | E30: kWh/a | F30: (Leistung x Jahresvollbenutzungsstunden)
A31: Energieverbrauch Gas-Brennwertgerät | D31: =(D30/D3) -> 75471.69811 | E31: kWh/a | F31: (Wirkungsgrad berücksichtigt) | I31: R_B_FLGAS
A32: Kosten Flüssiggas | D32: =(D31*D15) -> 10828.99797 | E32: €/a
A33: Wartungskosten Gas-Brennwertgerät | D33: 300 | E33: €/a | I33: R_B_WART_GAS
A34: Stromverbrauch 1 Stück Kesselkreispumpe | D34: =(Master!D6*D6) -> 100 | E34: kWh/a | I34: R_B_STROM_GAS
A35: Stromkosten 1 Stück Kesselkreispumpe | D35: =(D34*D19) -> 40.99549232 | E35: €/a | F35: (Stromverbrauch x mittlerer Strompreis)
A37: Betriebskosten pro Jahr gesamt: | D37: =SUM(D32:D33)+D35 -> 11169.99346 | E37: €/a
L38: Negative Werte sollen gleich Null gesetzt werden
A39: 3. | L39: =(Master!D5-D52) -> 5
A40: Betrachtung für eine GAWP 35 LW (35 kW) sowie Spitzenlastkessel
L41: Wärmepumpe soll nur die Anlagenheizlast erbringen, welche erforderlich ist
A42: 3a | L42: =IF(Master!D5<35,Master!D5,35) -> 35
A43: Investitionskosten
A44: GAWP + Zubehör | D44: =IF(Master!T15=TRUE,25000, (IF(Master!T16=TRUE,45000, (IF(Master!T17=TRUE,65000,""))))) ->  | E44: € | L44: Deckungsrate GAWP
A45: Förderung BAFA | D45: =IF(Master!$T$15=TRUE,(2400+100*25), (IF(Master!$T$16=TRUE,(2400+100*60), (IF(Master!$T$17=TRUE,(2400+100*95),""))))) ->  | E45: € | L45: =(D51+D52) -> 40 | M45: Max Leistung BW plus Leistung GAWP
A46: =IF(AND(Master!D5>29,Master!D5<55),Spitzenlastkessel!C4,(IF(AND(Master!D5>54,Master!D5<65),Spitzenlastkessel!C5,(IF(AND(Master!D5>64,Master!D5<85),Spitzenlastkessel!C6,(IF(AND(Master!D5>84,Master!D5<110),Spitzenlastkessel!C7,(IF(AND(Master!D5>109,Master!D5<135),Spitzenlastkessel!C8,(IF(AND(Master!D5>134,Master!D5<150),Spitzenlastkessel!C9,(IF(AND(Master!D5>149,Master!D5<200),Spitzenlastkessel!C10,(IF(AND(Master!D5>199,Master!D5<240),Spitzenlastkessel!C11,(IF(AND(Master!D5>239,Master!D5<300),Spitzenlastkessel!C12,(IF(AND(Master!D5>299,Master!D5<370),Spitzenlastkessel!C13,(IF(AND(Master!D5>369,Master!D5<450),Spitzenlastkessel!C14,(IF(AND(Master!D5>449,Master!D5<520),Spitzenlastkessel!C15,"Anlagenheizlast zu groß"))))))))))))))))))))))) -> Spitzenlastkessel GMR 3035 (35 kW) | D46: =IF(AND(Master!D5>29,Master!D5<55),Spitzenlastkessel!E4,(IF(AND(Master!D5>54,Master!D5<65),Spitzenlastkessel!E5,(IF(AND(Master!D5>64,Master!D5<85),Spitzenlastkessel!E6,(IF(AND(Master!D5>84,Master!D5<110),Spitzenlastkessel!E7,(IF(AND(Master!D5>109,Master!D5<135),Spitzenlastkessel!E8,(IF(AND(Master!D5>134,Master!D5<150),Spitzenlastkessel!E9,(IF(AND(Master!D5>149,Master!D5<200),Spitzenlastkessel!E10,(IF(AND(Master!D5>199,Master!D5<240),Spitzenlastkessel!E11,(IF(AND(Master!D5>239,Master!D5<300),Spitzenlastkessel!E12,(IF(AND(Master!D5>299,Master!D5<370),Spitzenlastkessel!E13,(IF(AND(Master!D5>369,Master!D5<450),Spitzenlastkessel!E14,(IF(AND(Master!D5>449,Master!D5<520),Spitzenlastkessel!E15,"Anlagenheizlast zu groß"))))))))))))))))))))))) -> 3600 | E46: € | F46: (gewählt) | L46: =(100/L45)*D52 -> 87.5 | M46: Prozentuale Anlagenheizlast von GAWP
A47: Investitionskosten gesamt: | D47: =(D44+D46-D45) ->  | E47: € | I47: N_I_GAWP_u_BW | L47: =MROUND(L46,5) -> 90 | M47: Gerundet
Q48: Prozentuale Anlagen- heizlast der GAWP
A49: 3b | L49: =VLOOKUP(L47,Q52:R79,2) -> 98 | M49: Deckungsrate GAWP | R49: Deckungs- rate
A50: Betriebskosten
A51: Max. Leistung Brennwertgerät | D51: =IF(L39<0,0,(Master!D5-D52)) -> 5 | E51: kW
A52: Leistung GAWP | D52: =(L42) -> 35 | E52: kW | Q52: 0 | R52: 0
Q53: 5 | R53: 8
A54: Deckungsrate Brennwertgerät | D54: =(100-D55) -> 2 | E54: % | F54: (Ergibt sich aus Leistungsverhältnis Brennwertgerät/GAWP) | Q54: 10 | R54: 15
A55: Deckungsrate GAWP | D55: =VLOOKUP(L47,Q52:R79,2) -> 98 | E55: % | F55: (Ergibt sich aus Leistungsverhältnis Brennwertgerät/GAWP) | Q55: 15 | R55: 25
Q56: 20 | R56: 33
A57: Jahresarbeit Gas-Brennwertgerät | D57: =(D30*(D54/100)) -> 1600 | E57: kWh/a | F57: (Deckungsrate berücksichtigt)
A58: Jahresarbeit GAWP | D58: =(D30*(D55/100)) -> 78400 | E58: kWh/a | F58: (Deckungsrate berücksichtigt) | Q58: 25 | R58: 41
Q59: 30 | R59: 50
A60: Vollbenutzungsstunden Gas-Brennwertgerät | D60: =IF(D51=0,0,(D57/D51)) -> 320 | E60: h | F60: (ergibt sich aus Jahresarbeit/Leistung)
A61: Vollbenutzungsstunden GAWP | D61: =(D58/D52) -> 2240 | E61: h | F61: (ergibt sich aus Jahresarbeit/Leistung) | Q61: 35 | R61: 58
Q62: 40 | R62: 67
A63: Flüssiggasverbrauch Gas-Brennwertgerät | D63: =(D57/D3) -> 1509.433962 | E63: kWh/a | F63: (ergibt sich aus Jahresarbeit/Wirkungsgrad) | I63: N_B_FLGAS_BW
A64: Flüssiggasverbrauch GAWP | D64: =(D58/D4) -> 52266.66667 | E64: kWh/a | F64: (ergibt sich aus Jahresarbeit/Wirkungsgrad) | I64: N_B_FLGAS_GAWP | Q64: 45 | R64: 75
Q65: 50 | R65: 80
A66: Kosten Flüssiggasverbrauch Brennwertgerät | D66: =(D63*D15) -> 216.5799594 | E66: €/a | F66: (ergibt sich aus Flüssiggasverbrauch x mittlerer Flüssiggaspreis)
A67: Kosten Flüssiggasverbrauch GAWP | D67: =(D64*D15) -> 7499.442062 | E67: €/a | F67: (ergibt sich aus Flüssiggasverbrauch x mittlerer Flüssiggaspreis) | Q67: 55 | R67: 83
Q68: 60 | R68: 87
A69: Wartungskosten Gas-Brennwertgerät | D69: 300 | E69: €/a | I69: N_B_WART_BW
A70: Wartungskosten GAWP | D70: 300 | E70: €/a | I70: N_B_WART_GAWP | Q70: 65 | R70: 90
Q71: 70 | R71: 92
A72: Stromverbrauch GAWP | D72: =(D61*D5) -> 2441.6 | E72: kWh/a | I72: N_B_STROM_LÜ_GAWP | Q72: 75 | R72: 94
A73: Stromkosten GAWP | D73: =(D72*D19) -> 1000.945941 | E73: €/a | F73: (Stromverbrauch x mittlerer Strompreis) | Q73: 80 | R73: 96
A74: Stromverbrauch Gas-Brennwertgerät | D74: =(D60*D6) -> 16 | E74: kWh/a | I74: N_B_STROM_BW
A75: Stromkosten Gas-Brennwertgerät | D75: =(D74*D19) -> 6.559278771 | E75: €/a | F75: (Stromverbrauch x mittlerer Strompreis)
A76: Stromverbrauch Umwälzpumpe GAWP | D76: =((D61)*D6) -> 112 | E76: kWh/a | I76: N_B_STROM_PU_GAWP | Q76: 85 | R76: 97
A77: Stromkosten Umwälzpumpe GAWP | D77: =(D76*D19) -> 45.9149514 | E77: €/a | F77: (Stromverbrauch x mittlerer Strompreis) | Q77: 90 | R77: 98
Q78: 95 | R78: 99
A79: Betriebskosten pro Jahr gesamt: | D79: =SUM(D66:D70)+D77+D73+D75 -> 9369.442192 | E79: €/a | Q79: 100 | R79: 100
A81: FAZIT:
A82: Mittlere Energieeinsparung pro Jahr bei Einsatz
A83: von einer GAWP LW und Gas-Brennwertgerät
A84: gegenüber "nur Gas-Brennwert" (Flüssiggas): | D84: =(D37-D79) -> 1800.551272 | E84: €/a
A86: Differenz Investitionskosten: | D86: =(D47-D26) ->  | E86: €
A88: Für einen auf 20 Jahre gemittelten Engergiepreis
A89: ergibt sich eine Amortisationszeit von: | D89: =IF((D86/D84)<0,"sofort",(D86/D84)) ->  | E89: =IF((D86/D84)<0,"","Jahren") -> 

Sheet LW2 bival FLGAS
A1: Aktueller Flüssiggaspreis | D1: =(Energiepreisberechnung!D29) -> 0.07 | E1: €/kWh
A2: Aktueller Strompreis | D2: =(Energiepreisberechnung!D31) -> 0.2 | E2: €/kWh
A3: Gemittelter Wirkungsgrad Gasbrennwertgerät | D3: 1.06
A4: Gemittelter Wirkungsgrad GAWP LW | D4: 1.5
A5: Elektr. Leistung GAWP LW | D5: 1.09 | E5: kW
A6: Elektr. Leistung Kesselkreispumpe | D6: 0.06 | E6: kW
A7: Elektr. Leistung Umwälzpumpe GAWP | D7: 0.05 | E7: kW
A9: Gesucht: | B9: Investitions- und Betriebskosten während 20 Jahren
A11: 1.
A12: Errechnung der mittleren Energiepreise binnen 20 Jahren
A14: Flüssiggaspreis Anfangsjahr: | D14: =(D1) -> 0.07 | E14: €/kWh
A15: Flüssiggaspreis im 20´sten Jahr: | D15: =(Energiepreisberechnung!D22) -> 0.2531569275 | E15: €/kWh
A16: Mittlerer Flüssiggaspreis während 20 Jahren: | D16: =(Energiepreisberechnung!D24) -> 0.1434842231 | E16: €/kWh
A18: Strompreis Anfangsjahr: | D18: =(D2) -> 0.2 | E18: €/kWh
A19: Strompreis im 20´sten Jahr: | D19: =(Energiepreisberechnung!E22) -> 0.723305507 | E19: €/kWh
A20: Mittlerer Strompreis während 20 Jahren: | D20: =(Energiepreisberechnung!E24) -> 0.4099549232 | E20: €/kWh
A22: 2.
A23: Betrachtung für ein neues Gasbrennwertgerät | D23: =(Master!D5) -> 40 | E23: kW
A25: 2a
A26: Investitionskosten | D26: =(Master!D8) -> 5000 | E26: €
A27: Investitionskosten gesamt: | D27: =(D26) -> 5000 | E27: € | I27: R_I_GAS
A29: 2b
A30: Betriebskosten Gas-Brennwertgerät
A31: Jahresarbeit Gas-Brennwertgerät | D31: =(Master!D5*Master!D6) -> 80000 | E31: kWh/a | F31: (Leistung x Jahresvollbenutzungsstunden)
A32: Energieverbrauch Gas-Brennwertgerät | D32: =(D31/D3) -> 75471.69811 | E32: kWh/a | F32: (Wirkungsgrad berücksichtigt) | I32: R_B_FLGAS
A33: Kosten Flüssiggas | D33: =(D32*D16) -> 10828.99797 | E33: €/a
A34: Wartungskosten Gas-Brennwertgerät | D34: 300 | E34: €/a | I34: R_B_WART_GAS
A35: Stromverbrauch 1 Stück Kesselkreispumpe | D35: =(Master!D6*D6) -> 120 | E35: kWh/a | I35: R_B_STROM_GAS
A36: Stromkosten 1 Stück Kesselkreispumpe | D36: =(D35*D20) -> 49.19459079 | E36: €/a | F36: (Stromverbrauch x mittlerer Strompreis)
A38: Betriebskosten pro Jahr gesamt: | D38: =SUM(D33:D34)+D36 -> 11178.19256 | E38: €/a
L39: Negative Werte sollen gleich Null gesetzt werden
A40: 3. | L40: =(Master!D5-D53) -> 0
A41: Betrachtung für zwei GAWP 35 LW (70 kW) sowie Spitzenlastkessel
L42: Wärmepumpe soll nur die Anlagenheizlast erbringen, welche erforderlich ist
A43: 3a | L43: =IF(Master!D5<70,Master!D5,70) -> 40
A44: Investitionskosten
A45: 2 x GAWP + Zubehör | D45: =IF(Master!T15=TRUE,25000, (IF(Master!T16=TRUE,45000, (IF(Master!T17=TRUE,65000,""))))) ->  | E45: € | L45: Deckungsrate GAWP
A46: Förderung BAFA | D46: =IF(Master!$T$15=TRUE,(2400+100*25), (IF(Master!$T$16=TRUE,(2400+100*60), (IF(Master!$T$17=TRUE,(2400+100*95),""))))) ->  | E46: € | L46: =(D52+D53) -> 40 | M46: Max Leistung BW plus Leistung GAWP
A47: =IF(AND(Master!D5>29,Master!D5<55),Spitzenlastkessel!C4,(IF(AND(Master!D5>54,Master!D5<65),Spitzenlastkessel!C5,(IF(AND(Master!D5>64,Master!D5<85),Spitzenlastkessel!C6,(IF(AND(Master!D5>84,Master!D5<110),Spitzenlastkessel!C7,(IF(AND(Master!D5>109,Master!D5<135),Spitzenlastkessel!C8,(IF(AND(Master!D5>134,Master!D5<150),Spitzenlastkessel!C9,(IF(AND(Master!D5>149,Master!D5<200),Spitzenlastkessel!C10,(IF(AND(Master!D5>199,Master!D5<240),Spitzenlastkessel!C11,(IF(AND(Master!D5>239,Master!D5<300),Spitzenlastkessel!C12,(IF(AND(Master!D5>299,Master!D5<370),Spitzenlastkessel!C13,(IF(AND(Master!D5>369,Master!D5<450),Spitzenlastkessel!C14,(IF(AND(Master!D5>449,Master!D5<520),Spitzenlastkessel!C15,"Anlagenheizlast zu groß"))))))))))))))))))))))) -> Spitzenlastkessel GMR 3035 (35 kW) | D47: =IF(AND(Master!D5>29,Master!D5<55),Spitzenlastkessel!E4,(IF(AND(Master!D5>54,Master!D5<65),Spitzenlastkessel!E5,(IF(AND(Master!D5>64,Master!D5<85),Spitzenlastkessel!E6,(IF(AND(Master!D5>84,Master!D5<110),Spitzenlastkessel!E7,(IF(AND(Master!D5>109,Master!D5<135),Spitzenlastkessel!E8,(IF(AND(Master!D5>134,Master!D5<150),Spitzenlastkessel!E9,(IF(AND(Master!D5>149,Master!D5<200),Spitzenlastkessel!E10,(IF(AND(Master!D5>199,Master!D5<240),Spitzenlastkessel!E11,(IF(AND(Master!D5>239,Master!D5<300),Spitzenlastkessel!E12,(IF(AND(Master!D5>299,Master!D5<370),Spitzenlastkessel!E13,(IF(AND(Master!D5>369,Master!D5<450),Spitzenlastkessel!E14,(IF(AND(Master!D5>449,Master!D5<520),Spitzenlastkessel!E15,"Anlagenheizlast zu groß"))))))))))))))))))))))) -> 3600 | E47: € | F47: (gewählt) | L47: =(100/L46)*D53 -> 100 | M47: Prozentuale Anlagenheizlast von GAWP
A48: Investitionskosten gesamt: | D48: =(D45+D47-D46) ->  | E48: € | I48: N_I_GAWP_u_BW | L48: =MROUND(L47,5) -> 100 | M48: Gerundet
Q49: Prozentuale Anlagen- heizlast der GAWP
A50: 3b | L50: =VLOOKUP(L48,Q53:R80,2) -> 100 | M50: Deckungsrate GAWP | R50: Deckungs- rate
A51: Betriebskosten
A52: Max. Leistung Brennwertgerät | D52: =IF(L40<0,0,(Master!D5-D53)) -> 0 | E52: kW
A53: Leistung 2 x GAWP | D53: =(L43) -> 40 | E53: kW | Q53: 0 | R53: 0
Q54: 5 | R54: 8
A55: Deckungsrate Brennwertgerät | D55: =(100-D56) -> 0 | E55: % | F55: (Ergibt sich aus Leistungsverhältnis Brennwertgerät/GAWP) | Q55: 10 | R55: 15
A56: Deckungsrate 2 x GAWP | D56: =VLOOKUP(L48,Q53:R80,2) -> 100 | E56: % | F56: (Ergibt sich aus Leistungsverhältnis Brennwertgerät/GAWP) | Q56: 15 | R56: 25
Q57: 20 | R57: 33
A58: Jahresarbeit Gas-Brennwertgerät | D58: =(D31*(D55/100)) -> 0 | E58: kWh/a | F58: (Deckungsrate berücksichtigt)
A59: Jahresarbeit 2 x GAWP | D59: =(D31*(D56/100)) -> 80000 | E59: kWh/a | F59: (Deckungsrate berücksichtigt) | Q59: 25 | R59: 41
Q60: 30 | R60: 50
A61: Vollbenutzungsstunden Gas-Brennwertgerät | D61: =IF(D52=0,0,(D58/D52)) -> 0 | E61: h | F61: (ergibt sich aus Jahresarbeit/Leistung)
A62: Vollbenutzungsstunden 2 x GAWP | D62: =(D59/D53) -> 2000 | E62: h | F62: (ergibt sich aus Jahresarbeit/Leistung) | Q62: 35 | R62: 58
Q63: 40 | R63: 67
A64: Flüssiggasverbrauch Gas-Brennwertgerät | D64: =(D58/D3) -> 0 | E64: kWh/a | F64: (ergibt sich aus Jahresarbeit/Wirkungsgrad) | I64: N_B_FLGAS_BW
A65: Flüssiggasverbrauch 2 x GAWP | D65: =(D59/D4) -> 53333.33333 | E65: kWh/a | F65: (ergibt sich aus Jahresarbeit/Wirkungsgrad) | I65: N_B_FLGAS_GAWP | Q65: 45 | R65: 75
Q66: 50 | R66: 80
A67: Kosten Flüssiggasverbrauch Brennwertgerät | D67: =(D64*D16) -> 0 | E67: €/a | F67: (ergibt sich aus Flüssiggasverbrauch x mittlerer Flüssiggaspreis)
A68: Kosten Flüssiggasverbrauch 2 x GAWP | D68: =(D65*D16) -> 7652.4919 | E68: €/a | F68: (ergibt sich aus Flüssiggasverbrauch x mittlerer Flüssiggaspreis) | Q68: 55 | R68: 83
Q69: 60 | R69: 87
A70: Wartungskosten Gas-Brennwertgerät | D70: 300 | E70: €/a | I70: N_B_WART_BW
A71: Wartungskosten 2 x GAWP | D71: 500 | E71: €/a | I71: N_B_WART_GAWP | Q71: 65 | R71: 90
Q72: 70 | R72: 92
A73: Stromverbrauch 2 x GAWP | D73: =(D62*D5)*2 -> 4360 | E73: kWh/a | I73: N_B_STROM_LÜ_GAWP | Q73: 75 | R73: 94
A74: Stromkosten 2 x GAWP | D74: =(D73*D20) -> 1787.403465 | E74: €/a | F74: (Stromverbrauch x mittlerer Strompreis) | Q74: 80 | R74: 96
A75: Stromverbrauch Gas-Brennwertgerät | D75: =(D61*D6) -> 0 | E75: kWh/a | I75: N_B_STROM_BW
A76: Stromkosten Gas-Brennwertgerät | D76: =(D75*D20) -> 0 | E76: €/a | F76: (Stromverbrauch x mittlerer Strompreis)
A77: Stromverbrauch 2 x Umwälzpumpe GAWP | D77: =((D62)*D7)*2 -> 200 | E77: kWh/a | I77: N_B_STROM_PU_GAWP | Q77: 85 | R77: 97
A78: Stromkosten 2 x Umwälzpumpe GAWP | D78: =(D77*D20) -> 81.99098464 | E78: €/a | F78: (Stromverbrauch x mittlerer Strompreis) | Q78: 90 | R78: 98
Q79: 95 | R79: 99
A80: Betriebskosten pro Jahr gesamt: | D80: =SUM(D67:D71)+D78+D74+D76 -> 10321.88635 | E80: €/a | Q80: 100 | R80: 100
A82: FAZIT:
A83: Mittlere Energieeinsparung pro Jahr bei Einsatz
A84: von zwei GAWP LW und Gas-Brennwertgerät
A85: gegenüber "nur Gas-Brennwert" (Flüssiggas): | D85: =IF((D38-D80)<0,"negativ",(D38-D80)) -> 856.3062126 | E85: €/a
A87: Differenz Investitionskosten: | D87: =(D48-D27) ->  | E87: €
A89: Für einen auf 20 Jahre gemittelten Engergiepreis
A90: ergibt sich eine Amortisationszeit von: | D90: =IF(D85="negativ","negativ",(IF(D87<0,"sofort",D87/D85))) ->  | E90: =IF(D85="negativ","",(IF(D87<0,"","Jahren"))) -> 

Sheet LW3 bival FLGAS
A1: Aktueller Flüssiggaspreis | D1: =(Energiepreisberechnung!D29) -> 0.07 | E1: €/kWh
A2: Aktueller Strompreis | D2: =(Energiepreisberechnung!D31) -> 0.2 | E2: €/kWh
A3: Gemittelter Wirkungsgrad Gasbrennwertgerät | D3: 1.06
A4: Gemittelter Wirkungsgrad GAWP LW | D4: 1.5
A5: Elektr. Leistung GAWP LW | D5: 1.09 | E5: kW
A6: Elektr. Leistung Kesselkreispumpe | D6: 0.1 | E6: kW
A7: Elektr. Leistung Umwälzpumpe GAWP | D7: 0.05 | E7: kW
A9: Gesucht: | B9: Investitions- und Betriebskosten während 20 Jahren
A11: 1.
A12: Errechnung der mittleren Energiepreise binnen 20 Jahren
A14: Flüssiggaspreis Anfangsjahr: | D14: =(D1) -> 0.07 | E14: €/kWh
A15: Flüssiggaspreis im 20´sten Jahr: | D15: =(Energiepreisberechnung!D22) -> 0.2531569275 | E15: €/kWh
A16: Mittlerer Flüssiggaspreis während 20 Jahren: | D16: =(Energiepreisberechnung!D24) -> 0.1434842231 | E16: €/kWh
A18: Strompreis Anfangsjahr: | D18: =(D2) -> 0.2 | E18: €/kWh
A19: Strompreis im 20´sten Jahr: | D19: =(Energiepreisberechnung!E22) -> 0.723305507 | E19: €/kWh
A20: Mittlerer Strompreis während 20 Jahren: | D20: =(Energiepreisberechnung!E24) -> 0.4099549232 | E20: €/kWh
A22: 2.
A23: Betrachtung für ein neues Gasbrennwertgerät | D23: =(Master!D5) -> 40 | E23: kW
A25: 2a
A26: Investitionskosten | D26: =(Master!D8) -> 5000 | E26: €
A27: Investitionskosten gesamt: | D27: =(D26) -> 5000 | E27: € | I27: R_I_GAS
A29: 2b
A30: Betriebskosten Gas-Brennwertgerät
A31: Jahresarbeit Gas-Brennwertgerät | D31: =(Master!D5*Master!D6) -> 80000 | E31: kWh/a | F31: (Leistung x Jahresvollbenutzungsstunden)
A32: Energieverbrauch Gas-Brennwertgerät | D32: =(D31/D3) -> 75471.69811 | E32: kWh/a | F32: (Wirkungsgrad berücksichtigt) | I32: R_B_FLGAS
A33: Kosten Flüssiggas | D33: =(D32*D16) -> 10828.99797 | E33: €/a
A34: Wartungskosten Gas-Brennwertgerät | D34: 300 | E34: €/a | I34: R_B_WART_GAS
A35: Stromverbrauch 1 Stück Kesselkreispumpe | D35: =(Master!D6*D6) -> 200 | E35: kWh/a | I35: R_B_STROM_GAS
A36: Stromkosten 1 Stück Kesselkreispumpe | D36: =(D35*D20) -> 81.99098464 | E36: €/a | F36: (Stromverbrauch x mittlerer Strompreis)
A38: Betriebskosten pro Jahr gesamt: | D38: =SUM(D33:D34)+D36 -> 11210.98896 | E38: €/a
L39: Negative Werte sollen gleich Null gesetzt werden
A40: 3. | L40: =(Master!D5-D53) -> 0
A41: Betrachtung für drei GAWP 35 LW (105 kW) sowie Spitzenlastkessel
L42: Wärmepumpe soll nur die Anlagenheizlast erbringen, welche erforderlich ist
A43: 3a | L43: =IF(Master!D5<105,Master!D5,105) -> 40
A44: Investitionskosten
A45: 3 x GAWP + Zubehör | D45: =IF(Master!T15=TRUE,25000, (IF(Master!T16=TRUE,45000, (IF(Master!T17=TRUE,65000,""))))) ->  | E45: € | L45: Deckungsrate GAWP
A46: Förderung BAFA | D46: =IF(Master!$T$15=TRUE,(2400+100*25), (IF(Master!$T$16=TRUE,(2400+100*60), (IF(Master!$T$17=TRUE,(2400+100*95),""))))) ->  | E46: € | L46: =(D52+D53) -> 40 | M46: Max Leistung BW plus Leistung GAWP
A47: =IF(AND(Master!D5>29,Master!D5<55),Spitzenlastkessel!C4,(IF(AND(Master!D5>54,Master!D5<65),Spitzenlastkessel!C5,(IF(AND(Master!D5>64,Master!D5<85),Spitzenlastkessel!C6,(IF(AND(Master!D5>84,Master!D5<110),Spitzenlastkessel!C7,(IF(AND(Master!D5>109,Master!D5<135),Spitzenlastkessel!C8,(IF(AND(Master!D5>134,Master!D5<150),Spitzenlastkessel!C9,(IF(AND(Master!D5>149,Master!D5<200),Spitzenlastkessel!C10,(IF(AND(Master!D5>199,Master!D5<240),Spitzenlastkessel!C11,(IF(AND(Master!D5>239,Master!D5<300),Spitzenlastkessel!C12,(IF(AND(Master!D5>299,Master!D5<370),Spitzenlastkessel!C13,(IF(AND(Master!D5>369,Master!D5<450),Spitzenlastkessel!C14,(IF(AND(Master!D5>449,Master!D5<520),Spitzenlastkessel!C15,"Anlagenheizlast zu groß"))))))))))))))))))))))) -> Spitzenlastkessel GMR 3035 (35 kW) | D47: =IF(AND(Master!D5>29,Master!D5<55),Spitzenlastkessel!E4,(IF(AND(Master!D5>54,Master!D5<65),Spitzenlastkessel!E5,(IF(AND(Master!D5>64,Master!D5<85),Spitzenlastkessel!E6,(IF(AND(Master!D5>84,Master!D5<110),Spitzenlastkessel!E7,(IF(AND(Master!D5>109,Master!D5<135),Spitzenlastkessel!E8,(IF(AND(Master!D5>134,Master!D5<150),Spitzenlastkessel!E9,(IF(AND(Master!D5>149,Master!D5<200),Spitzenlastkessel!E10,(IF(AND(Master!D5>199,Master!D5<240),Spitzenlastkessel!E11,(IF(AND(Master!D5>239,Master!D5<300),Spitzenlastkessel!E12,(IF(AND(Master!D5>299,Master!D5<370),Spitzenlastkessel!E13,(IF(AND(Master!D5>369,Master!D5<450),Spitzenlastkessel!E14,(IF(AND(Master!D5>449,Master!D5<520),Spitzenlastkessel!E15,"Anlagenheizlast zu groß"))))))))))))))))))))))) -> 3600 | E47: € | F47: (gewählt) | L47: =(100/L46)*D53 -> 100 | M47: Prozentuale Anlagenheizlast von GAWP
A48: Investitionskosten gesamt: | D48: =(D45+D47-D46) ->  | E48: € | I48: N_I_GAWP_u_BW | L48: =MROUND(L47,5) -> 100 | M48: Gerundet
Q49: Prozentuale Anlagen- heizlast der GAWP
A50: 3b | L50: =VLOOKUP(L48,Q53:R80,2) -> 100 | M50: Deckungsrate GAWP | R50: Deckungs- rate
A51: Betriebskosten
A52: Max. Leistung Brennwertgerät | D52: =IF(L40<0,0,(Master!D5-D53)) -> 0 | E52: kW
A53: Leistung 3 x GAWP | D53: =(L43) -> 40 | E53: kW | Q53: 0 | R53: 0
Q54: 5 | R54: 8
A55: Deckungsrate Brennwertgerät | D55: =(100-D56) -> 0 | E55: % | F55: (Ergibt sich aus Leistungsverhältnis Brennwertgerät/GAWP) | Q55: 10 | R55: 15
A56: Deckungsrate 3 x GAWP | D56: =VLOOKUP(L48,Q53:R80,2) -> 100 | E56: % | F56: (Ergibt sich aus Leistungsverhältnis Brennwertgerät/GAWP) | Q56: 15 | R56: 25
Q57: 20 | R57: 33
A58: Jahresarbeit Gas-Brennwertgerät | D58: =(D31*(D55/100)) -> 0 | E58: kWh/a | F58: (Deckungsrate berücksichtigt)
A59: Jahresarbeit 3 x GAWP | D59: =(D31*(D56/100)) -> 80000 | E59: kWh/a | F59: (Deckungsrate berücksichtigt) | Q59: 25 | R59: 41
Q60: 30 | R60: 50
A61: Vollbenutzungsstunden Gas-Brennwertgerät | D61: =IF(D52=0,0,(D58/D52)) -> 0 | E61: h | F61: (ergibt sich aus Jahresarbeit/Leistung)
A62: Vollbenutzungsstunden 3 x GAWP | D62: =(D59/D53) -> 2000 | E62: h | F62: (ergibt sich aus Jahresarbeit/Leistung) | Q62: 35 | R62: 58
Q63: 40 | R63: 67
A64: Flüssiggasverbrauch Gas-Brennwertgerät | D64: =(D58/D3) -> 0 | E64: kWh/a | F64: (ergibt sich aus Jahresarbeit/Wirkungsgrad) | I64: N_B_FLGAS_BW
A65: Flüssiggasverbrauch 3 x GAWP | D65: =(D59/D4) -> 53333.33333 | E65: kWh/a | F65: (ergibt sich aus Jahresarbeit/Wirkungsgrad) | I65: N_B_FLGAS_GAWP | Q65: 45 | R65: 75
Q66: 50 | R66: 80
A67: Kosten Flüssiggasverbrauch Brennwertgerät | D67: =(D64*D16) -> 0 | E67: €/a | F67: (ergibt sich aus Flüssiggasverbrauch x mittlerer Flüssiggaspreis)
A68: Kosten Flüssiggasverbrauch 3 x GAWP | D68: =(D65*D16) -> 7652.4919 | E68: €/a | F68: (ergibt sich aus Flüssiggasverbrauch x mittlerer Flüssiggaspreis) | Q68: 55 | R68: 83
Q69: 60 | R69: 87
A70: Wartungskosten Gas-Brennwertgerät | D70: 300 | E70: €/a | I70: N_B_WART_BW
A71: Wartungskosten 3 x GAWP | D71: 700 | E71: €/a | I71: N_B_WART_GAWP | Q71: 65 | R71: 90
Q72: 70 | R72: 92
A73: Stromverbrauch 3 x GAWP | D73: =(D62*D5)*3 -> 6540 | E73: kWh/a | I73: N_B_STROM_LÜ_GAWP | Q73: 75 | R73: 94
A74: Stromkosten 3 x GAWP | D74: =(D73*D20) -> 2681.105198 | E74: €/a | F74: (Stromverbrauch x mittlerer Strompreis) | Q74: 80 | R74: 96
A75: Stromverbrauch Gas-Brennwertgerät | D75: =(D61*D6) -> 0 | E75: kWh/a | I75: N_B_STROM_BW
A76: Stromkosten Gas-Brennwertgerät | D76: =(D75*D20) -> 0 | E76: €/a | F76: (Stromverbrauch x mittlerer Strompreis)
A77: Stromverbrauch 3 x Umwälzpumpe GAWP | D77: =((D62)*D7)*3 -> 300 | E77: kWh/a | I77: N_B_STROM_PU_GAWP | Q77: 85 | R77: 97
A78: Stromkosten 3 x Umwälzpumpe GAWP | D78: =(D77*D20) -> 122.986477 | E78: €/a | F78: (Stromverbrauch x mittlerer Strompreis) | Q78: 90 | R78: 98
Q79: 95 | R79: 99
A80: Betriebskosten pro Jahr gesamt: | D80: =SUM(D67:D71)+D78+D74+D76 -> 11456.58357 | E80: €/a | Q80: 100 | R80: 100
A82: FAZIT:
A83: Mittlere Energieeinsparung pro Jahr bei Einsatz
A84: von drei GAWP LW und Gas-Brennwertgerät
A85: gegenüber "nur Gas-Brennwert" (Flüssiggas): | D85: =IF((D38-D80)<0,"negativ",(D38-D80)) -> negativ | E85: €/a
A87: Differenz Investitionskosten: | D87: =(D48-D27) ->  | E87: €
A89: Für einen auf 20 Jahre gemittelten Engergiepreis
A90: ergibt sich eine Amortisationszeit von: | D90: =IF(D85="negativ","negativ",(IF(D87<0,"sofort",D87/D85))) -> negativ | E90: =IF(D85="negativ","",(IF(D87<0,"","Jahren"))) -> 

Sheet SW bival ÖL
A1: Aktueller Gaspreis | D1: =(Energiepreisberechnung!D28) -> 0.055 | E1: €/kWh
A2: Aktueller Ölpreis | D2: =(Energiepreisberechnung!D30) -> 0.085 | E2: €/kWh
A3: Aktueller Strompreis | D3: =(Energiepreisberechnung!D31) -> 0.2 | E3: €/kWh
A4: Gemittelter Wirkungsgrad Ölkessel | D4: 0.93
A5: Gemittelter Wirkungsgrad Gasbrennwertgerät | D5: 1.06
A6: Gemittelter Wirkungsgrad GAWP SW | D6: 1.55
A7: Elektr. Leistung GAWP SW | D7: 0.47 | E7: kW
A8: Elektr. Leistung Kesselkreispumpe | D8: 0.05 | E8: kW
A10: Gesucht: | B10: Investitions- und Betriebskosten während 20 Jahren
A12: 1.
A13: Errechnung der mittleren Energiepreise binnen 20 Jahren
A15: Gaspreis Anfangsjahr: | D15: =(D1) -> 0.055 | E15: €/kWh
A16: Gaspreis im 20´sten Jahr: | D16: =(Energiepreisberechnung!C22) -> 0.1989090144 | E16: €/kWh
A17: Mittlerer Gaspreis während 20 Jahren: | D17: =(Energiepreisberechnung!C24) -> 0.1127376039 | E17: €/kWh
A19: Ölpreis Anfangsjahr: | D19: =(D2) -> 0.085 | E19: €/kWh
A20: Ölpreis im 20´sten Jahr: | D20: =(Energiepreisberechnung!F22) -> 0.3074048405 | E20: €/kWh
A21: Mittlerer Ölpreis während 20 Jahren: | D21: =(Energiepreisberechnung!F24) -> 0.1742308424 | E21: €/kWh
A23: Strompreis Anfangsjahr: | D23: =(D3) -> 0.2 | E23: €/kWh
A24: Strompreis im 20´sten Jahr: | D24: =(Energiepreisberechnung!E22) -> 0.723305507 | E24: €/kWh
A25: Mittlerer Strompreis während 20 Jahren: | D25: =(Energiepreisberechnung!E24) -> 0.4099549232 | E25: €/kWh
A27: 2.
A28: Betrachtung ohne Investition (bestehende Kessel bleiben)
A30: 2a
A31: Investitionskosten
A32: Investitionskosten gesamt: | D32: 0 | E32: € | I32: R_I_ÖL
A34: 2b
A35: Betriebskosten Öl
A36: Jahresarbeit Ölkessel | D36: =(Master!D5*Master!D6) -> 80000 | E36: kWh/a | F36: (Leistung x Jahresvollbenutzungsstunden)
A37: Energieverbrauch Ölkessel | D37: =(D36/D4) -> 86021.50538 | E37: kWh/a | F37: (Wirkungsgrad berücksichtigt) | I37: R_B_ÖL
A38: Kosten Öl | D38: =(D37*D21) -> 14987.59934 | E38: €/a
A39: Wartungskosten Ölkessel | D39: 300 | E39: €/a | I39: R_B_WART_ÖL
A40: Stromverbrauch 1 Stück Kesselkreispumpe | D40: =(Master!D6*D8) -> 100 | E40: kWh/a | I40: R_B_STROM_ÖL
A41: Stromkosten 1 Stück Kesselkreispumpe | D41: =(D40*D25) -> 40.99549232 | E41: €/a | F41: (Stromverbrauch x mittlerer Strompreis)
A43: Betriebskosten pro Jahr gesamt: | D43: =SUM(D38:D39)+D41 -> 15328.59484 | E43: €/a
L44: Negative Werte sollen gleich Null gesetzt werden
A45: 3. | L45: =(Master!D5-D58) -> 0
A46: Betrachtung für eine GAWP 40 SW (40 kW) sowie Spitzenlastkessel
L47: Wärmepumpe soll nur die Anlagenheizlast erbringen, welche erforderlich ist
A48: 3a | L48: =IF(Master!D5<40,Master!D5,40) -> 40
A49: Investitionskosten
A50: GAWP + Zubehör | D50: =IF(Master!T12=TRUE,25000, (IF(Master!T13=TRUE,45000, (IF(Master!T14=TRUE,65000,""))))) ->  | E50: € | L50: Deckungsrate GAWP
A51: Förderung BAFA | D51: =IF(Master!$T$12=TRUE,(2400+100*30), (IF(Master!$T$13=TRUE,(2400+100*70), (IF(Master!$T$14=TRUE,(2400+100*110),""))))) ->  | E51: € | L51: =(D57/D58) -> 0 | M51: Quotient BW zu GAWP
A52: =IF(AND(Master!D5>29,Master!D5<55),Spitzenlastkessel!C4,(IF(AND(Master!D5>54,Master!D5<65),Spitzenlastkessel!C5,(IF(AND(Master!D5>64,Master!D5<85),Spitzenlastkessel!C6,(IF(AND(Master!D5>84,Master!D5<110),Spitzenlastkessel!C7,(IF(AND(Master!D5>109,Master!D5<135),Spitzenlastkessel!C8,(IF(AND(Master!D5>134,Master!D5<150),Spitzenlastkessel!C9,(IF(AND(Master!D5>149,Master!D5<200),Spitzenlastkessel!C10,(IF(AND(Master!D5>199,Master!D5<240),Spitzenlastkessel!C11,(IF(AND(Master!D5>239,Master!D5<300),Spitzenlastkessel!C12,(IF(AND(Master!D5>299,Master!D5<370),Spitzenlastkessel!C13,(IF(AND(Master!D5>369,Master!D5<450),Spitzenlastkessel!C14,(IF(AND(Master!D5>449,Master!D5<520),Spitzenlastkessel!C15,"Anlagenheizlast zu groß"))))))))))))))))))))))) -> Spitzenlastkessel GMR 3035 (35 kW) | D52: =IF(AND(Master!D5>29,Master!D5<55),Spitzenlastkessel!E4,(IF(AND(Master!D5>54,Master!D5<65),Spitzenlastkessel!E5,(IF(AND(Master!D5>64,Master!D5<85),Spitzenlastkessel!E6,(IF(AND(Master!D5>84,Master!D5<110),Spitzenlastkessel!E7,(IF(AND(Master!D5>109,Master!D5<135),Spitzenlastkessel!E8,(IF(AND(Master!D5>134,Master!D5<150),Spitzenlastkessel!E9,(IF(AND(Master!D5>149,Master!D5<200),Spitzenlastkessel!E10,(IF(AND(Master!D5>199,Master!D5<240),Spitzenlastkessel!E11,(IF(AND(Master!D5>239,Master!D5<300),Spitzenlastkessel!E12,(IF(AND(Master!D5>299,Master!D5<370),Spitzenlastkessel!E13,(IF(AND(Master!D5>369,Master!D5<450),Spitzenlastkessel!E14,(IF(AND(Master!D5>449,Master!D5<520),Spitzenlastkessel!E15,"Anlagenheizlast zu groß"))))))))))))))))))))))) -> 3600 | E52: € | F52: (gewählt) | L52: =(D57+D58) -> 40 | M52: Max Leistung BW plus Leistung GAWP
A53: Investitionskosten gesamt: | D53: =(D50+D52-D51) ->  | E53: € | I53: N_I_GAWP_u_BW | L53: =(100/L52)*D58 -> 100 | M53: Prozentuale Anlagenheizlast von GAWP
L54: =MROUND(L53,5) -> 100 | M54: Gerundet | Q54: Prozentuale Anlagen- heizlast der GAWP
A55: 3b | L55: =VLOOKUP(L54,Q58:R85,2) -> 100 | M55: Deckungsrate GAWP | R55: Deckungs- rate
A56: Betriebskosten
A57: Max. Leistung Brennwertgerät | D57: =IF(L45<0,0,(Master!D5-D58)) -> 0 | E57: kW
A58: Leistung GAWP | D58: =(L48) -> 40 | E58: kW | Q58: 0 | R58: 0
Q59: 5 | R59: 8
A60: Deckungsrate Brennwertgerät | D60: =(100-D61) -> 0 | E60: % | F60: (Ergibt sich aus Leistungsverhältnis Brennwertgerät/GAWP) | Q60: 10 | R60: 15
A61: Deckungsrate GAWP | D61: =VLOOKUP(L54,Q58:R85,2) -> 100 | E61: % | F61: (Ergibt sich aus Leistungsverhältnis Brennwertgerät/GAWP) | Q61: 15 | R61: 25
Q62: 20 | R62: 33
A63: Jahresarbeit Gas-Brennwertgerät | D63: =(D36*(D60/100)) -> 0 | E63: kWh/a | F63: (Deckungsrate berücksichtigt)
A64: Jahresarbeit GAWP | D64: =(D36*(D61/100)) -> 80000 | E64: kWh/a | F64: (Deckungsrate berücksichtigt) | Q64: 25 | R64: 41
Q65: 30 | R65: 50
A66: Vollbenutzungsstunden Gas-Brennwertgerät | D66: =IF(D57=0,0,(D63/D57)) -> 0 | E66: h | F66: (ergibt sich aus Jahresarbeit/Leistung)
A67: Vollbenutzungsstunden GAWP | D67: =(D64/D58) -> 2000 | E67: h | F67: (ergibt sich aus Jahresarbeit/Leistung) | Q67: 35 | R67: 58
Q68: 40 | R68: 67
A69: Gasverbrauch Gas-Brennwertgerät | D69: =(D63/D5) -> 0 | E69: kWh/a | F69: (ergibt sich aus Jahresarbeit/Wirkungsgrad) | I69: N_B_GAS_BW
A70: Gasverbrauch GAWP | D70: =(D64/D6) -> 51612.90323 | E70: kWh/a | F70: (ergibt sich aus Jahresarbeit/Wirkungsgrad) | I70: N_B_GAS_GAWP | Q70: 45 | R70: 75
Q71: 50 | R71: 80
A72: Kosten Gasverbrauch Gas-Brennwertgerät | D72: =(D69*D17) -> 0 | E72: €/a | F72: (ergibt sich aus Gasverbrauch x mittlerer Gaspreis)
A73: Kosten Gasverbrauch GAWP | D73: =(D70*D17) -> 5818.715039 | E73: €/a | F73: (ergibt sich aus Gasverbrauch x mittlerer Gaspreis) | Q73: 55 | R73: 83
Q74: 60 | R74: 87
A75: Wartungskosten Gas-Brennwertgerät | D75: 300 | E75: €/a | I75: N_B_WART_BW
A76: Wartungskosten GAWP | D76: 300 | E76: €/a | I76: N_B_WART_GAWP | Q76: 65 | R76: 90
Q77: 70 | R77: 92
A78: Stromverbrauch GAWP | D78: =(D67*D7) -> 940 | E78: kWh/a | I78: N_B_STROM_LÜ_GAWP | Q78: 75 | R78: 94
A79: Stromkosten GAWP | D79: =(D78*D25) -> 385.3576278 | E79: €/a | F79: (Stromverbrauch x mittlerer Strompreis) | Q79: 80 | R79: 96
A80: Stromverbrauch Gas-Brennwertgerät | D80: =(D66*D8) -> 0 | E80: kWh/a | I80: N_B_STROM_BW
A81: Stromkosten Gas-Brennwertgerät | D81: =(D80*D25) -> 0 | E81: €/a | F81: (Stromverbrauch x mittlerer Strompreis)
A82: Stromverbrauch 2 x Umwälzpumpe GAWP | D82: =((D67)*D8*2) -> 200 | E82: kWh/a | I82: N_B_STROM_PU_GAWP | Q82: 85 | R82: 97
A83: Stromkosten 2 x Umwälzpumpe GAWP | D83: =(D82*D25) -> 81.99098464 | E83: €/a | F83: (Stromverbrauch x mittlerer Strompreis) | Q83: 90 | R83: 98
Q84: 95 | R84: 99
A85: Betriebskosten pro Jahr gesamt: | D85: =SUM(D72:D76)+D83+D79+D81 -> 6886.063652 | E85: €/a | Q85: 100 | R85: 100
A87: FAZIT:
A88: Mittlere Energieeinsparung pro Jahr bei Einsatz
A89: von einer GAWP SW und Gas-Brennwertgerät
A90: gegenüber bestehenden Betriebskosten | D90: =(D43-D85) -> 8442.531184 | E90: €/a
A92: Differenz Investitionskosten: | D92: =(D53-D32) ->  | E92: €
A94: Für einen auf 20 Jahre gemittelten Engergiepreis
A95: ergibt sich eine Amortisationszeit von: | D95: =IF((D92/D90)<0,"sofort",(D92/D90)) ->  | E95: =IF((D92/D90)<0,"","Jahren") -> 

Sheet SW2 bival ÖL
A1: Aktueller Gaspreis | D1: =(Energiepreisberechnung!D28) -> 0.055 | E1: €/kWh
A2: Aktueller Ölpreis | D2: =(Energiepreisberechnung!D30) -> 0.085 | E2: €/kWh
A3: Aktueller Strompreis | D3: =(Energiepreisberechnung!D31) -> 0.2 | E3: €/kWh
A4: Gemittelter Wirkungsgrad Ölkessel | D4: 0.93
A5: Gemittelter Wirkungsgrad Gasbrennwertgerät | D5: 1.06
A6: Gemittelter Wirkungsgrad GAWP SW | D6: 1.55
A7: Elektr. Leistung GAWP SW | D7: 0.47 | E7: kW
A8: Elektr. Leistung Kesselkreispumpe | D8: 0.06 | E8: kW
A9: Elektr. Leistung Umwälzpumpe GAWP | D9: 0.05 | E9: kW
A11: Gesucht: | B11: Investitions- und Betriebskosten während 20 Jahren
A13: 1.
A14: Errechnung der mittleren Energiepreise binnen 20 Jahren
A16: Gaspreis Anfangsjahr: | D16: =(D1) -> 0.055 | E16: €/kWh
A17: Gaspreis im 20´sten Jahr: | D17: =(Energiepreisberechnung!C22) -> 0.1989090144 | E17: €/kWh
A18: Mittlerer Gaspreis während 20 Jahren: | D18: =(Energiepreisberechnung!C24) -> 0.1127376039 | E18: €/kWh
A20: Ölpreis Anfangsjahr: | D20: =(D2) -> 0.085 | E20: €/kWh
A21: Ölpreis im 20´sten Jahr: | D21: =(Energiepreisberechnung!F22) -> 0.3074048405 | E21: €/kWh
A22: Mittlerer Ölpreis während 20 Jahren: | D22: =(Energiepreisberechnung!F24) -> 0.1742308424 | E22: €/kWh
A24: Strompreis Anfangsjahr: | D24: =(D3) -> 0.2 | E24: €/kWh
A25: Strompreis im 20´sten Jahr: | D25: =(Energiepreisberechnung!E22) -> 0.723305507 | E25: €/kWh
A26: Mittlerer Strompreis während 20 Jahren: | D26: =(Energiepreisberechnung!E24) -> 0.4099549232 | E26: €/kWh
A28: 2.
A29: Betrachtung ohne Investition (bestehende Kessel bleiben)
A31: 2a
A32: Investitionskosten
A33: Investitionskosten gesamt: | D33: 0 | E33: € | I33: R_I_ÖL
A35: 2b
A36: Betriebskosten Öl
A37: Jahresarbeit Ölkessel | D37: =(Master!D5*Master!D6) -> 80000 | E37: kWh/a | F37: (Leistung x Jahresvollbenutzungsstunden)
A38: Energieverbrauch Ölkessel | D38: =(D37/D4) -> 86021.50538 | E38: kWh/a | F38: (Wirkungsgrad berücksichtigt) | I38: R_B_ÖL
A39: Kosten Öl | D39: =(D38*D22) -> 14987.59934 | E39: €/a
A40: Wartungskosten Ölkessel | D40: 300 | E40: €/a | I40: R_B_WART_ÖL
A41: Stromverbrauch 1 Stück Kesselkreispumpe | D41: =(Master!D6*D8) -> 120 | E41: kWh/a | I41: R_B_STROM_ÖL
A42: Stromkosten 1 Stück Kesselkreispumpe | D42: =(D41*D26) -> 49.19459079 | E42: €/a | F42: (Stromverbrauch x mittlerer Strompreis)
A44: Betriebskosten pro Jahr gesamt: | D44: =SUM(D39:D40)+D42 -> 15336.79393 | E44: €/a
L45: Negative Werte sollen gleich Null gesetzt werden
A46: 3. | L46: =(Master!D5-D59) -> 0
A47: Betrachtung für zwei GAWP 40 SW (80 kW) sowie Spitzenlastkessel
L48: Wärmepumpe soll nur die Anlagenheizlast erbringen, welche erforderlich ist
A49: 3a | L49: =IF(Master!D5<80,Master!D5,80) -> 40
A50: Investitionskosten
A51: GAWP + Zubehör | D51: =IF(Master!T12=TRUE,25000, (IF(Master!T13=TRUE,45000, (IF(Master!T14=TRUE,65000,""))))) ->  | E51: € | L51: Deckungsrate GAWP
A52: Förderung BAFA | D52: =IF(Master!$T$12=TRUE,(2400+100*30), (IF(Master!$T$13=TRUE,(2400+100*70), (IF(Master!$T$14=TRUE,(2400+100*110),""))))) ->  | E52: € | L52: =(D58/D59) -> 0 | M52: Quotient BW zu GAWP
A53: =IF(AND(Master!D5>29,Master!D5<55),Spitzenlastkessel!C4,(IF(AND(Master!D5>54,Master!D5<65),Spitzenlastkessel!C5,(IF(AND(Master!D5>64,Master!D5<85),Spitzenlastkessel!C6,(IF(AND(Master!D5>84,Master!D5<110),Spitzenlastkessel!C7,(IF(AND(Master!D5>109,Master!D5<135),Spitzenlastkessel!C8,(IF(AND(Master!D5>134,Master!D5<150),Spitzenlastkessel!C9,(IF(AND(Master!D5>149,Master!D5<200),Spitzenlastkessel!C10,(IF(AND(Master!D5>199,Master!D5<240),Spitzenlastkessel!C11,(IF(AND(Master!D5>239,Master!D5<300),Spitzenlastkessel!C12,(IF(AND(Master!D5>299,Master!D5<370),Spitzenlastkessel!C13,(IF(AND(Master!D5>369,Master!D5<450),Spitzenlastkessel!C14,(IF(AND(Master!D5>449,Master!D5<520),Spitzenlastkessel!C15,"Anlagenheizlast zu groß"))))))))))))))))))))))) -> Spitzenlastkessel GMR 3035 (35 kW) | D53: =IF(AND(Master!D5>29,Master!D5<55),Spitzenlastkessel!E4,(IF(AND(Master!D5>54,Master!D5<65),Spitzenlastkessel!E5,(IF(AND(Master!D5>64,Master!D5<85),Spitzenlastkessel!E6,(IF(AND(Master!D5>84,Master!D5<110),Spitzenlastkessel!E7,(IF(AND(Master!D5>109,Master!D5<135),Spitzenlastkessel!E8,(IF(AND(Master!D5>134,Master!D5<150),Spitzenlastkessel!E9,(IF(AND(Master!D5>149,Master!D5<200),Spitzenlastkessel!E10,(IF(AND(Master!D5>199,Master!D5<240),Spitzenlastkessel!E11,(IF(AND(Master!D5>239,Master!D5<300),Spitzenlastkessel!E12,(IF(AND(Master!D5>299,Master!D5<370),Spitzenlastkessel!E13,(IF(AND(Master!D5>369,Master!D5<450),Spitzenlastkessel!E14,(IF(AND(Master!D5>449,Master!D5<520),Spitzenlastkessel!E15,"Anlagenheizlast zu groß"))))))))))))))))))))))) -> 3600 | E53: € | F53: (gewählt) | L53: =(D58+D59) -> 40 | M53: Max Leistung BW plus Leistung GAWP
A54: Investitionskosten gesamt: | D54: =(D51+D53-D52) ->  | E54: € | I54: N_I_GAWP_u_BW | L54: =(100/L53)*D59 -> 100 | M54: Prozentuale Anlagenheizlast von GAWP
L55: =MROUND(L54,5) -> 100 | M55: Gerundet | Q55: Prozentuale Anlagen- heizlast der GAWP
A56: 3b | L56: =VLOOKUP(L55,Q59:R86,2) -> 100 | M56: Deckungsrate GAWP | R56: Deckungs- rate
A57: Betriebskosten
A58: Max. Leistung Brennwertgerät | D58: =IF(L46<0,0,(Master!D5-D59)) -> 0 | E58: kW
A59: Leistung 2 x GAWP | D59: =(L49) -> 40 | E59: kW | Q59: 0 | R59: 0
Q60: 5 | R60: 8
A61: Deckungsrate Brennwertgerät | D61: =(100-D62) -> 0 | E61: % | F61: (Ergibt sich aus Leistungsverhältnis Brennwertgerät/GAWP) | Q61: 10 | R61: 15
A62: Deckungsrate 2 x GAWP | D62: =VLOOKUP(L55,Q59:R86,2) -> 100 | E62: % | F62: (Ergibt sich aus Leistungsverhältnis Brennwertgerät/GAWP) | Q62: 15 | R62: 25
Q63: 20 | R63: 33
A64: Jahresarbeit Gas-Brennwertgerät | D64: =(D37*(D61/100)) -> 0 | E64: kWh/a | F64: (Deckungsrate berücksichtigt)
A65: Jahresarbeit 2 x GAWP | D65: =(D37*(D62/100)) -> 80000 | E65: kWh/a | F65: (Deckungsrate berücksichtigt) | Q65: 25 | R65: 41
Q66: 30 | R66: 50
A67: Vollbenutzungsstunden Gas-Brennwertgerät | D67: =IF(D58=0,0,(D64/D58)) -> 0 | E67: h | F67: (ergibt sich aus Jahresarbeit/Leistung)
A68: Vollbenutzungsstunden 2 x GAWP | D68: =(D65/D59) -> 2000 | E68: h | F68: (ergibt sich aus Jahresarbeit/Leistung) | Q68: 35 | R68: 58
Q69: 40 | R69: 67
A70: Gasverbrauch Gas-Brennwertgerät | D70: =(D64/D5) -> 0 | E70: kWh/a | F70: (ergibt sich aus Jahresarbeit/Wirkungsgrad) | I70: N_B_GAS_BW
A71: Gasverbrauch 2 x GAWP | D71: =(D65/D6) -> 51612.90323 | E71: kWh/a | F71: (ergibt sich aus Jahresarbeit/Wirkungsgrad) | I71: N_B_GAS_GAWP | Q71: 45 | R71: 75
Q72: 50 | R72: 80
A73: Kosten Gasverbrauch Gas-Brennwertgerät | D73: =(D70*D18) -> 0 | E73: €/a | F73: (ergibt sich aus Gasverbrauch x mittlerer Gaspreis)
A74: Kosten Gasverbrauch 2 x GAWP | D74: =(D71*D18) -> 5818.715039 | E74: €/a | F74: (ergibt sich aus Gasverbrauch x mittlerer Gaspreis) | Q74: 55 | R74: 83
Q75: 60 | R75: 87
A76: Wartungskosten Gas-Brennwertgerät | D76: 300 | E76: €/a | I76: N_B_WART_BW
A77: Wartungskosten 2 x GAWP | D77: 500 | E77: €/a | I77: N_B_WART_GAWP | Q77: 65 | R77: 90
Q78: 70 | R78: 92
A79: Stromverbrauch 2 x GAWP | D79: =(D68*D7)*2 -> 1880 | E79: kWh/a | I79: N_B_STROM_LÜ_GAWP | Q79: 75 | R79: 94
A80: Stromkosten 2 x GAWP | D80: =(D79*D26) -> 770.7152556 | E80: €/a | F80: (Stromverbrauch x mittlerer Strompreis) | Q80: 80 | R80: 96
A81: Stromverbrauch Gas-Brennwertgerät | D81: =(D67*D8) -> 0 | E81: kWh/a | I81: N_B_STROM_BW
A82: Stromkosten Gas-Brennwertgerät | D82: =(D81*D26) -> 0 | E82: €/a | F82: (Stromverbrauch x mittlerer Strompreis)
A83: Stromverbrauch 4 x Umwälzpumpe GAWP | D83: =((D68)*D9*4) -> 400 | E83: kWh/a | I83: N_B_STROM_PU_GAWP | Q83: 85 | R83: 97
A84: Stromkosten 4 x Umwälzpumpe GAWP | D84: =(D83*D26) -> 163.9819693 | E84: €/a | F84: (Stromverbrauch x mittlerer Strompreis) | Q84: 90 | R84: 98
Q85: 95 | R85: 99
A86: Betriebskosten pro Jahr gesamt: | D86: =SUM(D73:D77)+D84+D80+D82 -> 7553.412264 | E86: €/a | Q86: 100 | R86: 100
A88: FAZIT:
A89: Mittlere Energieeinsparung pro Jahr bei Einsatz
A90: von zwei GAWP SW und Gas-Brennwertgerät
A91: gegenüber bestehenden Betriebskosten | D91: =(D44-D86) -> 7783.38167 | E91: €/a
A93: Differenz Investitionskosten: | D93: =(D54-D33) ->  | E93: €
A95: Für einen auf 20 Jahre gemittelten Engergiepreis
A96: ergibt sich eine Amortisationszeit von: | D96: =IF((D93/D91)<0,"sofort",(D93/D91)) ->  | E96: =IF((D93/D91)<0,"","Jahren") -> 

Sheet SW3 bival ÖL
A1: Aktueller Gaspreis | D1: =(Energiepreisberechnung!D28) -> 0.055 | E1: €/kWh
A2: Aktueller Ölpreis | D2: =(Energiepreisberechnung!D30) -> 0.085 | E2: €/kWh
A3: Aktueller Strompreis | D3: =(Energiepreisberechnung!D31) -> 0.2 | E3: €/kWh
A4: Gemittelter Wirkungsgrad Ölkessel | D4: 0.93
A5: Gemittelter Wirkungsgrad Gasbrennwertgerät | D5: 1.06
A6: Gemittelter Wirkungsgrad GAWP SW | D6: 1.55
A7: Elektr. Leistung GAWP SW | D7: 0.47 | E7: kW
A8: Elektr. Leistung Kesselkreispumpe | D8: 0.1 | E8: kW
A9: Elektr. Leistung Umwälzpumpe GAWP | D9: 0.05 | E9: kW
A11: Gesucht: | B11: Investitions- und Betriebskosten während 20 Jahren
A13: 1.
A14: Errechnung der mittleren Energiepreise binnen 20 Jahren
A16: Gaspreis Anfangsjahr: | D16: =(D1) -> 0.055 | E16: €/kWh
A17: Gaspreis im 20´sten Jahr: | D17: =(Energiepreisberechnung!C22) -> 0.1989090144 | E17: €/kWh
A18: Mittlerer Gaspreis während 20 Jahren: | D18: =(Energiepreisberechnung!C24) -> 0.1127376039 | E18: €/kWh
A20: Ölpreis Anfangsjahr: | D20: =(D2) -> 0.085 | E20: €/kWh
A21: Ölpreis im 20´sten Jahr: | D21: =(Energiepreisberechnung!F22) -> 0.3074048405 | E21: €/kWh
A22: Mittlerer Ölpreis während 20 Jahren: | D22: =(Energiepreisberechnung!F24) -> 0.1742308424 | E22: €/kWh
A24: Strompreis Anfangsjahr: | D24: =(D3) -> 0.2 | E24: €/kWh
A25: Strompreis im 20´sten Jahr: | D25: =(Energiepreisberechnung!E22) -> 0.723305507 | E25: €/kWh
A26: Mittlerer Strompreis während 20 Jahren: | D26: =(Energiepreisberechnung!E24) -> 0.4099549232 | E26: €/kWh
A28: 2.
A29: Betrachtung ohne Investition (bestehende Kessel bleiben)
A31: 2a
A32: Investitionskosten
A33: Investitionskosten gesamt: | D33: 0 | E33: € | I33: R_I_ÖL
A35: 2b
A36: Betriebskosten Öl
A37: Jahresarbeit Ölkessel | D37: =(Master!D5*Master!D6) -> 80000 | E37: kWh/a | F37: (Leistung x Jahresvollbenutzungsstunden)
A38: Energieverbrauch Ölkessel | D38: =(D37/D4) -> 86021.50538 | E38: kWh/a | F38: (Wirkungsgrad berücksichtigt) | I38: R_B_ÖL
A39: Kosten Öl | D39: =(D38*D22) -> 14987.59934 | E39: €/a
A40: Wartungskosten Ölkessel | D40: 300 | E40: €/a | I40: R_B_WART_ÖL
A41: Stromverbrauch 1 Stück Kesselkreispumpe | D41: =(Master!D6*D8) -> 200 | E41: kWh/a | I41: R_B_STROM_ÖL
A42: Stromkosten 1 Stück Kesselkreispumpe | D42: =(D41*D26) -> 81.99098464 | E42: €/a | F42: (Stromverbrauch x mittlerer Strompreis)
A44: Betriebskosten pro Jahr gesamt: | D44: =SUM(D39:D40)+D42 -> 15369.59033 | E44: €/a
L45: Negative Werte sollen gleich Null gesetzt werden
A46: 3. | L46: =(Master!D5-D59) -> 0
A47: Betrachtung für drei GAWP 40 SW (120 kW) sowie Spitzenlastkessel
L48: Wärmepumpe soll nur die Anlagenheizlast erbringen, welche erforderlich ist
A49: 3a | L49: =IF(Master!D5<120,Master!D5,120) -> 40
A50: Investitionskosten
A51: GAWP + Zubehör | D51: =IF(Master!T12=TRUE,25000, (IF(Master!T13=TRUE,45000, (IF(Master!T14=TRUE,65000,""))))) ->  | E51: € | L51: Deckungsrate GAWP
A52: Förderung BAFA | D52: =IF(Master!$T$12=TRUE,(2400+100*30), (IF(Master!$T$13=TRUE,(2400+100*70), (IF(Master!$T$14=TRUE,(2400+100*110),""))))) ->  | E52: €
A53: =IF(AND(Master!D5>29,Master!D5<55),Spitzenlastkessel!C4,(IF(AND(Master!D5>54,Master!D5<65),Spitzenlastkessel!C5,(IF(AND(Master!D5>64,Master!D5<85),Spitzenlastkessel!C6,(IF(AND(Master!D5>84,Master!D5<110),Spitzenlastkessel!C7,(IF(AND(Master!D5>109,Master!D5<135),Spitzenlastkessel!C8,(IF(AND(Master!D5>134,Master!D5<150),Spitzenlastkessel!C9,(IF(AND(Master!D5>149,Master!D5<200),Spitzenlastkessel!C10,(IF(AND(Master!D5>199,Master!D5<240),Spitzenlastkessel!C11,(IF(AND(Master!D5>239,Master!D5<300),Spitzenlastkessel!C12,(IF(AND(Master!D5>299,Master!D5<370),Spitzenlastkessel!C13,(IF(AND(Master!D5>369,Master!D5<450),Spitzenlastkessel!C14,(IF(AND(Master!D5>449,Master!D5<520),Spitzenlastkessel!C15,"Anlagenheizlast zu groß"))))))))))))))))))))))) -> Spitzenlastkessel GMR 3035 (35 kW) | D53: =IF(AND(Master!D5>29,Master!D5<55),Spitzenlastkessel!E4,(IF(AND(Master!D5>54,Master!D5<65),Spitzenlastkessel!E5,(IF(AND(Master!D5>64,Master!D5<85),Spitzenlastkessel!E6,(IF(AND(Master!D5>84,Master!D5<110),Spitzenlastkessel!E7,(IF(AND(Master!D5>109,Master!D5<135),Spitzenlastkessel!E8,(IF(AND(Master!D5>134,Master!D5<150),Spitzenlastkessel!E9,(IF(AND(Master!D5>149,Master!D5<200),Spitzenlastkessel!E10,(IF(AND(Master!D5>199,Master!D5<240),Spitzenlastkessel!E11,(IF(AND(Master!D5>239,Master!D5<300),Spitzenlastkessel!E12,(IF(AND(Master!D5>299,Master!D5<370),Spitzenlastkessel!E13,(IF(AND(Master!D5>369,Master!D5<450),Spitzenlastkessel!E14,(IF(AND(Master!D5>449,Master!D5<520),Spitzenlastkessel!E15,"Anlagenheizlast zu groß"))))))))))))))))))))))) -> 3600 | E53: € | F53: (gewählt) | L53: =(D58+D59) -> 40 | M53: Max Leistung BW plus Leistung GAWP
A54: Investitionskosten gesamt: | D54: =(D51+D53-D52) ->  | E54: € | I54: N_I_GAWP_u_BW | L54: =(100/L53)*D59 -> 100 | M54: Prozentuale Anlagenheizlast von GAWP
L55: =MROUND(L54,5) -> 100 | M55: Gerundet | Q55: Prozentuale Anlagen- heizlast der GAWP
A56: 3b | L56: =VLOOKUP(L55,Q59:R86,2) -> 100 | M56: Deckungsrate GAWP | R56: Deckungs- rate
A57: Betriebskosten
A58: Max. Leistung Brennwertgerät | D58: =IF(L46<0,0,(Master!D5-D59)) -> 0 | E58: kW
A59: Leistung 3 x GAWP | D59: =(L49) -> 40 | E59: kW | Q59: 0 | R59: 0
Q60: 5 | R60: 8
A61: Deckungsrate Brennwertgerät | D61: =(100-D62) -> 0 | E61: % | F61: (Ergibt sich aus Leistungsverhältnis Brennwertgerät/GAWP) | Q61: 10 | R61: 15
A62: Deckungsrate 3 x GAWP | D62: =VLOOKUP(L55,Q59:R86,2) -> 100 | E62: % | F62: (Ergibt sich aus Leistungsverhältnis Brennwertgerät/GAWP) | Q62: 15 | R62: 25
Q63: 20 | R63: 33
A64: Jahresarbeit Gas-Brennwertgerät | D64: =(D37*(D61/100)) -> 0 | E64: kWh/a | F64: (Deckungsrate berücksichtigt)
A65: Jahresarbeit 3 x GAWP | D65: =(D37*(D62/100)) -> 80000 | E65: kWh/a | F65: (Deckungsrate berücksichtigt) | Q65: 25 | R65: 41
Q66: 30 | R66: 50
A67: Vollbenutzungsstunden Gas-Brennwertgerät | D67: =IF(D58=0,0,(D64/D58)) -> 0 | E67: h | F67: (ergibt sich aus Jahresarbeit/Leistung)
A68: Vollbenutzungsstunden 3 x GAWP | D68: =(D65/D59) -> 2000 | E68: h | F68: (ergibt sich aus Jahresarbeit/Leistung) | Q68: 35 | R68: 58
Q69: 40 | R69: 67
A70: Gasverbrauch Gas-Brennwertgerät | D70: =(D64/D5) -> 0 | E70: kWh/a | F70: (ergibt sich aus Jahresarbeit/Wirkungsgrad) | I70: N_B_GAS_BW
A71: Gasverbrauch 3 x GAWP | D71: =(D65/D6) -> 51612.90323 | E71: kWh/a | F71: (ergibt sich aus Jahresarbeit/Wirkungsgrad) | I71: N_B_GAS_GAWP | Q71: 45 | R71: 75
Q72: 50 | R72: 80
A73: Kosten Gasverbrauch Gas-Brennwertgerät | D73: =(D70*D18) -> 0 | E73: €/a | F73: (ergibt sich aus Gasverbrauch x mittlerer Gaspreis)
A74: Kosten Gasverbrauch 3 x GAWP | D74: =(D71*D18) -> 5818.715039 | E74: €/a | F74: (ergibt sich aus Gasverbrauch x mittlerer Gaspreis) | Q74: 55 | R74: 83
Q75: 60 | R75: 87
A76: Wartungskosten Gas-Brennwertgerät | D76: 300 | E76: €/a | I76: N_B_WART_BW
A77: Wartungskosten 3 x GAWP | D77: 700 | E77: €/a | I77: N_B_WART_GAWP | Q77: 65 | R77: 90
Q78: 70 | R78: 92
A79: Stromverbrauch 3 x GAWP | D79: =(D68*D7)*3 -> 2820 | E79: kWh/a | I79: N_B_STROM_LÜ_GAWP | Q79: 75 | R79: 94
A80: Stromkosten 3x GAWP | D80: =(D79*D26) -> 1156.072883 | E80: €/a | F80: (Stromverbrauch x mittlerer Strompreis) | Q80: 80 | R80: 96
A81: Stromverbrauch Gas-Brennwertgerät | D81: =(D67*D8) -> 0 | E81: kWh/a | I81: N_B_STROM_BW
A82: Stromkosten Gas-Brennwertgerät | D82: =(D81*D26) -> 0 | E82: €/a | F82: (Stromverbrauch x mittlerer Strompreis)
A83: Stromverbrauch 6 x Umwälzpumpe GAWP | D83: =((D68)*D9*6) -> 600 | E83: kWh/a | I83: N_B_STROM_PU_GAWP | Q83: 85 | R83: 97
A84: Stromkosten 6 x Umwälzpumpe GAWP | D84: =(D83*D26) -> 245.9729539 | E84: €/a | F84: (Stromverbrauch x mittlerer Strompreis) | Q84: 90 | R84: 98
Q85: 95 | R85: 99
A86: Betriebskosten pro Jahr gesamt: | D86: =SUM(D73:D77)+D84+D80+D82 -> 8220.760877 | E86: €/a | Q86: 100 | R86: 100
A88: FAZIT:
A89: Mittlere Energieeinsparung pro Jahr bei Einsatz
A90: von drei GAWP SW und Gas-Brennwertgerät
A91: gegenüber bestehenden Betriebskosten | D91: =(D44-D86) -> 7148.829451 | E91: €/a
A93: Differenz Investitionskosten: | D93: =(D54-D33) ->  | E93: €
A95: Für einen auf 20 Jahre gemittelten Engergiepreis
A96: ergibt sich eine Amortisationszeit von: | D96: =IF((D93/D91)<0,"sofort",(D93/D91)) ->  | E96: =IF((D93/D91)<0,"","Jahren") -> 

Sheet SW bival PL
A1: Aktueller Gaspreis | D1: =(Energiepreisberechnung!D28) -> 0.055 | E1: €/kWh
A2: Aktueller Pelletpreis | D2: =(Energiepreisberechnung!D32) -> 0.05 | E2: €/kWh
A3: Aktueller Strompreis | D3: =(Energiepreisberechnung!D31) -> 0.2 | E3: €/kWh
A4: Gemittelter Wirkungsgrad Gasbrennwertgerät | D4: 1.06
A5: Gemittelter Wirkungsgrad Pelletkessel | D5: 0.93
A6: Gemittelter Wirkungsgrad GAWP SW | D6: 1.55
A7: Elektr. Leistung GAWP SW | D7: 0.47 | E7: kW
A8: Elektr. Leistung Kesselkreispumpe | D8: 0.05 | E8: kW
A10: Gesucht: | B10: Investitions- und Betriebskosten während 20 Jahren
A12: 1.
A13: Errechnung der mittleren Energiepreise binnen 20 Jahren
A15: Gaspreis Anfangsjahr: | D15: =(D1) -> 0.055 | E15: €/kWh
A16: Gaspreis im 20´sten Jahr: | D16: =(Energiepreisberechnung!C22) -> 0.1989090144 | E16: €/kWh
A17: Mittlerer Gaspreis während 20 Jahren: | D17: =(Energiepreisberechnung!C24) -> 0.1127376039 | E17: €/kWh
A19: Pelletpreis Anfangsjahr: | D19: =(D2) -> 0.05 | E19: €/kWh
A20: Pelletpreis im 20´sten Jahr: | D20: =(Energiepreisberechnung!G22) -> 0.1808263768 | E20: €/kWh
A21: Mittlerer Pelletpreis während 20 Jahren: | D21: =(Energiepreisberechnung!G24) -> 0.1024887308 | E21: €/kWh
A23: Strompreis Anfangsjahr: | D23: =(D3) -> 0.2 | E23: €/kWh
A24: Strompreis im 20´sten Jahr: | D24: =(Energiepreisberechnung!E22) -> 0.723305507 | E24: €/kWh
A25: Mittlerer Strompreis während 20 Jahren: | D25: =(Energiepreisberechnung!E24) -> 0.4099549232 | E25: €/kWh
A27: 2.
A28: Betrachtung für einen neuen Pelletkessel + Silo | D28: =(Master!D5) -> 40 | E28: kW
A30: 2a
A31: Investitionskosten | D31: =(Master!D8) -> 5000 | E31: €
A32: Investitionskosten gesamt: | D32: =(D31) -> 5000 | E32: € | I32: R_I_PL
A34: 2b
A35: Betriebskosten Pelletkessel
A36: Jahresarbeit Pelletkessel | D36: =(Master!D5*Master!D6) -> 80000 | E36: kWh/a | F36: (Leistung x Jahresvollbenutzungsstunden)
A37: Energieverbrauch Pelletkessel | D37: =(D36/D5) -> 86021.50538 | E37: kWh/a | F37: (Wirkungsgrad berücksichtigt) | I37: R_B_PL
A38: Kosten Pellets | D38: =(D37*D21) -> 8816.234908 | E38: €/a
A39: Wartungskosten Pelletkessel | D39: 500 | E39: €/a | I39: R_B_WART_PL
A40: Stromverbrauch 1 Stück Kesselkreispumpe | D40: =(Master!D6*D8) -> 100 | E40: kWh/a | I40: R_B_STROM_PL
A41: Stromkosten 1 Stück Kesselkreispumpe | D41: =(D40*D25) -> 40.99549232 | E41: €/a | F41: (Stromverbrauch x mittlerer Strompreis)
A43: Betriebskosten pro Jahr gesamt: | D43: =SUM(D38:D39)+D41 -> 9357.2304 | E43: €/a
L44: Negative Werte sollen gleich Null gesetzt werden
A45: 3. | L45: =(Master!D5-D58) -> 0
A46: Betrachtung für eine GAWP 40 SW (40 kW) sowie Spitzenlastkessel
L47: Wärmepumpe soll nur die Anlagenheizlast erbringen, welche erforderlich ist
A48: 3a | L48: =IF(Master!D5<40,Master!D5,40) -> 40
A49: Investitionskosten
A50: GAWP + Zubehör | D50: =IF(Master!T12=TRUE,25000, (IF(Master!T13=TRUE,45000, (IF(Master!T14=TRUE,65000,""))))) ->  | E50: € | L50: Deckungsrate GAWP
A51: Förderung BAFA | D51: =IF(Master!$T$12=TRUE,(2400+100*30), (IF(Master!$T$13=TRUE,(2400+100*70), (IF(Master!$T$14=TRUE,(2400+100*110),""))))) ->  | E51: € | L51: =(D57+D58) -> 40 | M51: Max Leistung BW plus Leistung GAWP
A52: =IF(AND(Master!D5>29,Master!D5<55),Spitzenlastkessel!C4,(IF(AND(Master!D5>54,Master!D5<65),Spitzenlastkessel!C5,(IF(AND(Master!D5>64,Master!D5<85),Spitzenlastkessel!C6,(IF(AND(Master!D5>84,Master!D5<110),Spitzenlastkessel!C7,(IF(AND(Master!D5>109,Master!D5<135),Spitzenlastkessel!C8,(IF(AND(Master!D5>134,Master!D5<150),Spitzenlastkessel!C9,(IF(AND(Master!D5>149,Master!D5<200),Spitzenlastkessel!C10,(IF(AND(Master!D5>199,Master!D5<240),Spitzenlastkessel!C11,(IF(AND(Master!D5>239,Master!D5<300),Spitzenlastkessel!C12,(IF(AND(Master!D5>299,Master!D5<370),Spitzenlastkessel!C13,(IF(AND(Master!D5>369,Master!D5<450),Spitzenlastkessel!C14,(IF(AND(Master!D5>449,Master!D5<520),Spitzenlastkessel!C15,"Anlagenheizlast zu groß"))))))))))))))))))))))) -> Spitzenlastkessel GMR 3035 (35 kW) | D52: =IF(AND(Master!D5>29,Master!D5<55),Spitzenlastkessel!E4,(IF(AND(Master!D5>54,Master!D5<65),Spitzenlastkessel!E5,(IF(AND(Master!D5>64,Master!D5<85),Spitzenlastkessel!E6,(IF(AND(Master!D5>84,Master!D5<110),Spitzenlastkessel!E7,(IF(AND(Master!D5>109,Master!D5<135),Spitzenlastkessel!E8,(IF(AND(Master!D5>134,Master!D5<150),Spitzenlastkessel!E9,(IF(AND(Master!D5>149,Master!D5<200),Spitzenlastkessel!E10,(IF(AND(Master!D5>199,Master!D5<240),Spitzenlastkessel!E11,(IF(AND(Master!D5>239,Master!D5<300),Spitzenlastkessel!E12,(IF(AND(Master!D5>299,Master!D5<370),Spitzenlastkessel!E13,(IF(AND(Master!D5>369,Master!D5<450),Spitzenlastkessel!E14,(IF(AND(Master!D5>449,Master!D5<520),Spitzenlastkessel!E15,"Anlagenheizlast zu groß"))))))))))))))))))))))) -> 3600 | E52: € | F52: (gewählt) | L52: =(100/L51)*D58 -> 100 | M52: Prozentuale Anlagenheizlast von GAWP
A53: Investitionskosten gesamt: | D53: =(D50+D52-D51) ->  | E53: € | I53: N_I_GAWP_u_BW | L53: =MROUND(L52,5) -> 100 | M53: Gerundet
Q54: Prozentuale Anlagen- heizlast der GAWP
A55: 3b | L55: =VLOOKUP(L53,Q58:R85,2) -> 100 | M55: Deckungsrate GAWP | R55: Deckungs- rate
A56: Betriebskosten
A57: Max. Leistung Brennwertgerät | D57: =IF(L45<0,0,(Master!D5-D58)) -> 0 | E57: kW
A58: Leistung GAWP | D58: =(L48) -> 40 | E58: kW | Q58: 0 | R58: 0
Q59: 5 | R59: 8
A60: Deckungsrate Brennwertgerät | D60: =(100-D61) -> 0 | E60: % | F60: (Ergibt sich aus Leistungsverhältnis Brennwertgerät/GAWP) | Q60: 10 | R60: 15
A61: Deckungsrate GAWP | D61: =VLOOKUP(L53,Q58:R85,2) -> 100 | E61: % | F61: (Ergibt sich aus Leistungsverhältnis Brennwertgerät/GAWP) | Q61: 15 | R61: 25
Q62: 20 | R62: 33
A63: Jahresarbeit Gas-Brennwertgerät | D63: =(D36*(D60/100)) -> 0 | E63: kWh/a | F63: (Deckungsrate berücksichtigt)
A64: Jahresarbeit GAWP | D64: =(D36*(D61/100)) -> 80000 | E64: kWh/a | F64: (Deckungsrate berücksichtigt) | Q64: 25 | R64: 41
Q65: 30 | R65: 50
A66: Vollbenutzungsstunden Gas-Brennwertgerät | D66: =IF(D57=0,0,(D63/D57)) -> 0 | E66: h | F66: (ergibt sich aus Jahresarbeit/Leistung)
A67: Vollbenutzungsstunden GAWP | D67: =(D64/D58) -> 2000 | E67: h | F67: (ergibt sich aus Jahresarbeit/Leistung) | Q67: 35 | R67: 58
Q68: 40 | R68: 67
A69: Gasverbrauch Gas-Brennwertgerät | D69: =(D63/D4) -> 0 | E69: kWh/a | F69: (ergibt sich aus Jahresarbeit/Wirkungsgrad) | I69: N_B_GAS_BW
A70: Gasverbrauch GAWP | D70: =(D64/D6) -> 51612.90323 | E70: kWh/a | F70: (ergibt sich aus Jahresarbeit/Wirkungsgrad) | I70: N_B_GAS_GAWP | Q70: 45 | R70: 75
Q71: 50 | R71: 80
A72: Kosten Gasverbrauch Gas-Brennwertgerät | D72: =(D69*D17) -> 0 | E72: €/a | F72: (ergibt sich aus Gasverbrauch x mittlerer Gaspreis)
A73: Kosten Gasverbrauch GAWP | D73: =(D70*D17) -> 5818.715039 | E73: €/a | F73: (ergibt sich aus Gasverbrauch x mittlerer Gaspreis) | Q73: 55 | R73: 83
Q74: 60 | R74: 87
A75: Wartungskosten Gas-Brennwertgerät | D75: 300 | E75: €/a | I75: N_B_WART_BW
A76: Wartungskosten GAWP | D76: 300 | E76: €/a | I76: N_B_WART_GAWP | Q76: 65 | R76: 90
Q77: 70 | R77: 92
A78: Stromverbrauch GAWP | D78: =(D67*D7) -> 940 | E78: kWh/a | I78: N_B_STROM_LÜ_GAWP | Q78: 75 | R78: 94
A79: Stromkosten GAWP | D79: =(D78*D25) -> 385.3576278 | E79: €/a | F79: (Stromverbrauch x mittlerer Strompreis) | Q79: 80 | R79: 96
A80: Stromverbrauch Gas-Brennwertgerät | D80: =(D66*D8) -> 0 | E80: kWh/a | I80: N_B_STROM_BW
A81: Stromkosten Gas-Brennwertgerät | D81: =(D80*D25) -> 0 | E81: €/a | F81: (Stromverbrauch x mittlerer Strompreis)
A82: Stromverbrauch 2 x Umwälzpumpe GAWP | D82: =((D67)*D8*2) -> 200 | E82: kWh/a | I82: N_B_STROM_PU_GAWP | Q82: 85 | R82: 97
A83: Stromkosten 2 x Umwälzpumpe GAWP | D83: =(D82*D25) -> 81.99098464 | E83: €/a | F83: (Stromverbrauch x mittlerer Strompreis) | Q83: 90 | R83: 98
Q84: 95 | R84: 99
A85: Betriebskosten pro Jahr gesamt: | D85: =SUM(D72:D76)+D83+D79+D81 -> 6886.063652 | E85: €/a | Q85: 100 | R85: 100
A87: FAZIT:
A88: Mittlere Energieeinsparung pro Jahr bei Einsatz
A89: von einer GAWP SW und Gas-Brennwertgerät
A90: gegenüber den Betriebskosten eines Pelletkessels: | D90: =(D43-D85) -> 2471.166749 | E90: €/a
A92: Differenz Investitionskosten: | D92: =(D53-D32) ->  | E92: €
A94: Für einen auf 20 Jahre gemittelten Engergiepreis
A95: ergibt sich eine Amortisationszeit von: | D95: =IF((D92/D90)<0,"sofort",(D92/D90)) ->  | E95: =IF((D92/D90)<0,"","Jahren") -> 

Sheet SW2 bival PL
A1: Aktueller Gaspreis | D1: =(Energiepreisberechnung!D28) -> 0.055 | E1: €/kWh
A2: Aktueller Pelletpreis | D2: =(Energiepreisberechnung!D32) -> 0.05 | E2: €/kWh
A3: Aktueller Strompreis | D3: =(Energiepreisberechnung!D31) -> 0.2 | E3: €/kWh
A4: Gemittelter Wirkungsgrad Gasbrennwertgerät | D4: 1.06
A5: Gemittelter Wirkungsgrad Pelletkessel | D5: 0.93
A6: Gemittelter Wirkungsgrad GAWP SW | D6: 1.55
A7: Elektr. Leistung GAWP SW | D7: 0.47 | E7: kW
A8: Elektr. Leistung Kesselkreispumpe | D8: 0.06 | E8: kW
A9: Elektr. Leistung Umwälzpumpe GAWP | D9: 0.05 | E9: kW
A11: Gesucht: | B11: Investitions- und Betriebskosten während 20 Jahren
A13: 1.
A14: Errechnung der mittleren Energiepreise binnen 20 Jahren
A16: Gaspreis Anfangsjahr: | D16: =(D1) -> 0.055 | E16: €/kWh
A17: Gaspreis im 20´sten Jahr: | D17: =(Energiepreisberechnung!C22) -> 0.1989090144 | E17: €/kWh
A18: Mittlerer Gaspreis während 20 Jahren: | D18: =(Energiepreisberechnung!C24) -> 0.1127376039 | E18: €/kWh
A20: Pelletpreis Anfangsjahr: | D20: =(D2) -> 0.05 | E20: €/kWh
A21: Pelletpreis im 20´sten Jahr: | D21: =(Energiepreisberechnung!G22) -> 0.1808263768 | E21: €/kWh
A22: Mittlerer Pelletpreis während 20 Jahren: | D22: =(Energiepreisberechnung!G24) -> 0.1024887308 | E22: €/kWh
A24: Strompreis Anfangsjahr: | D24: =(D3) -> 0.2 | E24: €/kWh
A25: Strompreis im 20´sten Jahr: | D25: =(Energiepreisberechnung!E22) -> 0.723305507 | E25: €/kWh
A26: Mittlerer Strompreis während 20 Jahren: | D26: =(Energiepreisberechnung!E24) -> 0.4099549232 | E26: €/kWh
A28: 2.
A29: Betrachtung für einen neuen Pelletkessel + Silo | D29: =(Master!D5) -> 40 | E29: kW
A31: 2a
A32: Investitionskosten | D32: =(Master!D8) -> 5000 | E32: €
A33: Investitionskosten gesamt: | D33: =(D32) -> 5000 | E33: € | I33: R_I_PL
A35: 2b
A36: Betriebskosten Pelletkessel
A37: Jahresarbeit Pelletkessel | D37: =(Master!D5*Master!D6) -> 80000 | E37: kWh/a | F37: (Leistung x Jahresvollbenutzungsstunden)
A38: Energieverbrauch Pelletkessel | D38: =(D37/D5) -> 86021.50538 | E38: kWh/a | F38: (Wirkungsgrad berücksichtigt) | I38: R_B_PL
A39: Kosten Pellets | D39: =(D38*D22) -> 8816.234908 | E39: €/a
A40: Wartungskosten Pelletkessel | D40: 500 | E40: €/a | I40: R_B_WART_PL
A41: Stromverbrauch 1 Stück Kesselkreispumpe | D41: =(Master!D6*D8) -> 120 | E41: kWh/a | I41: R_B_STROM_PL
A42: Stromkosten 1 Stück Kesselkreispumpe | D42: =(D41*D26) -> 49.19459079 | E42: €/a | F42: (Stromverbrauch x mittlerer Strompreis)
A44: Betriebskosten pro Jahr gesamt: | D44: =SUM(D39:D40)+D42 -> 9365.429499 | E44: €/a
L45: Negative Werte sollen gleich Null gesetzt werden
A46: 3. | L46: =(Master!D5-D59) -> 0
A47: Betrachtung für zwei GAWP 40 SW (80 kW) sowie Spitzenlastkessel
L48: Wärmepumpe soll nur die Anlagenheizlast erbringen, welche erforderlich ist
A49: 3a | L49: =IF(Master!D5<80,Master!D5,80) -> 40
A50: Investitionskosten
A51: 2 x GAWP + Zubehör | D51: =IF(Master!T12=TRUE,25000, (IF(Master!T13=TRUE,45000, (IF(Master!T14=TRUE,65000,""))))) ->  | E51: € | L51: Deckungsrate GAWP
A52: Förderung BAFA | D52: =IF(Master!$T$12=TRUE,(2400+100*30), (IF(Master!$T$13=TRUE,(2400+100*70), (IF(Master!$T$14=TRUE,(2400+100*110),""))))) ->  | E52: € | L52: =(D58+D59) -> 40 | M52: Max Leistung BW plus Leistung GAWP
A53: =IF(AND(Master!D5>29,Master!D5<55),Spitzenlastkessel!C4,(IF(AND(Master!D5>54,Master!D5<65),Spitzenlastkessel!C5,(IF(AND(Master!D5>64,Master!D5<85),Spitzenlastkessel!C6,(IF(AND(Master!D5>84,Master!D5<110),Spitzenlastkessel!C7,(IF(AND(Master!D5>109,Master!D5<135),Spitzenlastkessel!C8,(IF(AND(Master!D5>134,Master!D5<150),Spitzenlastkessel!C9,(IF(AND(Master!D5>149,Master!D5<200),Spitzenlastkessel!C10,(IF(AND(Master!D5>199,Master!D5<240),Spitzenlastkessel!C11,(IF(AND(Master!D5>239,Master!D5<300),Spitzenlastkessel!C12,(IF(AND(Master!D5>299,Master!D5<370),Spitzenlastkessel!C13,(IF(AND(Master!D5>369,Master!D5<450),Spitzenlastkessel!C14,(IF(AND(Master!D5>449,Master!D5<520),Spitzenlastkessel!C15,"Anlagenheizlast zu groß"))))))))))))))))))))))) -> Spitzenlastkessel GMR 3035 (35 kW) | D53: =IF(AND(Master!D5>29,Master!D5<55),Spitzenlastkessel!E4,(IF(AND(Master!D5>54,Master!D5<65),Spitzenlastkessel!E5,(IF(AND(Master!D5>64,Master!D5<85),Spitzenlastkessel!E6,(IF(AND(Master!D5>84,Master!D5<110),Spitzenlastkessel!E7,(IF(AND(Master!D5>109,Master!D5<135),Spitzenlastkessel!E8,(IF(AND(Master!D5>134,Master!D5<150),Spitzenlastkessel!E9,(IF(AND(Master!D5>149,Master!D5<200),Spitzenlastkessel!E10,(IF(AND(Master!D5>199,Master!D5<240),Spitzenlastkessel!E11,(IF(AND(Master!D5>239,Master!D5<300),Spitzenlastkessel!E12,(IF(AND(Master!D5>299,Master!D5<370),Spitzenlastkessel!E13,(IF(AND(Master!D5>369,Master!D5<450),Spitzenlastkessel!E14,(IF(AND(Master!D5>449,Master!D5<520),Spitzenlastkessel!E15,"Anlagenheizlast zu groß"))))))))))))))))))))))) -> 3600 | E53: € | F53: (gewählt) | L53: =(100/L52)*D59 -> 100 | M53: Prozentuale Anlagenheizlast von GAWP
A54: Investitionskosten gesamt: | D54: =(D51+D53-D52) ->  | E54: € | I54: N_I_GAWP_u_BW | L54: =MROUND(L53,5) -> 100 | M54: Gerundet
Q55: Prozentuale Anlagen- heizlast der GAWP
A56: 3b | L56: =VLOOKUP(L54,Q59:R86,2) -> 100 | M56: Deckungsrate GAWP | R56: Deckungs- rate
A57: Betriebskosten
A58: Max. Leistung Brennwertgerät | D58: =IF(L46<0,0,(Master!D5-D59)) -> 0 | E58: kW
A59: Leistung 2 x GAWP | D59: =(L49) -> 40 | E59: kW | Q59: 0 | R59: 0
Q60: 5 | R60: 8
A61: Deckungsrate Brennwertgerät | D61: =(100-D62) -> 0 | E61: % | F61: (Ergibt sich aus Leistungsverhältnis Brennwertgerät/GAWP) | Q61: 10 | R61: 15
A62: Deckungsrate 2 x GAWP | D62: =VLOOKUP(L54,Q59:R86,2) -> 100 | E62: % | F62: (Ergibt sich aus Leistungsverhältnis Brennwertgerät/GAWP) | Q62: 15 | R62: 25
Q63: 20 | R63: 33
A64: Jahresarbeit Gas-Brennwertgerät | D64: =(D37*(D61/100)) -> 0 | E64: kWh/a | F64: (Deckungsrate berücksichtigt)
A65: Jahresarbeit 2 x GAWP | D65: =(D37*(D62/100)) -> 80000 | E65: kWh/a | F65: (Deckungsrate berücksichtigt) | Q65: 25 | R65: 41
Q66: 30 | R66: 50
A67: Vollbenutzungsstunden Gas-Brennwertgerät | D67: =IF(D58=0,0,(D64/D58)) -> 0 | E67: h | F67: (ergibt sich aus Jahresarbeit/Leistung)
A68: Vollbenutzungsstunden 2 x GAWP | D68: =(D65/D59) -> 2000 | E68: h | F68: (ergibt sich aus Jahresarbeit/Leistung) | Q68: 35 | R68: 58
Q69: 40 | R69: 67
A70: Gasverbrauch Gas-Brennwertgerät | D70: =(D64/D4) -> 0 | E70: kWh/a | F70: (ergibt sich aus Jahresarbeit/Wirkungsgrad) | I70: N_B_GAS_BW
A71: Gasverbrauch 2 x GAWP | D71: =(D65/D6) -> 51612.90323 | E71: kWh/a | F71: (ergibt sich aus Jahresarbeit/Wirkungsgrad) | I71: N_B_GAS_GAWP | Q71: 45 | R71: 75
Q72: 50 | R72: 80
A73: Kosten Gasverbrauch Gas-Brennwertgerät | D73: =(D70*D18) -> 0 | E73: €/a | F73: (ergibt sich aus Gasverbrauch x mittlerer Gaspreis)
A74: Kosten Gasverbrauch 2 x GAWP | D74: =(D71*D18) -> 5818.715039 | E74: €/a | F74: (ergibt sich aus Gasverbrauch x mittlerer Gaspreis) | Q74: 55 | R74: 83
Q75: 60 | R75: 87
A76: Wartungskosten Gas-Brennwertgerät | D76: 300 | E76: €/a | I76: N_B_WART_BW
A77: Wartungskosten 2 x GAWP | D77: 500 | E77: €/a | I77: N_B_WART_GAWP | Q77: 65 | R77: 90
Q78: 70 | R78: 92
A79: Stromverbrauch 2 x GAWP | D79: =(D68*D7)*2 -> 1880 | E79: kWh/a | I79: N_B_STROM_LÜ_GAWP | Q79: 75 | R79: 94
A80: Stromkosten 2 x GAWP | D80: =(D79*D26) -> 770.7152556 | E80: €/a | F80: (Stromverbrauch x mittlerer Strompreis) | Q80: 80 | R80: 96
A81: Stromverbrauch Gas-Brennwertgerät | D81: =(D67*D8) -> 0 | E81: kWh/a | I81: N_B_STROM_BW
A82: Stromkosten Gas-Brennwertgerät | D82: =(D81*D26) -> 0 | E82: €/a | F82: (Stromverbrauch x mittlerer Strompreis)
A83: Stromverbrauch 4 x Umwälzpumpe GAWP | D83: =((D68)*D9*4) -> 400 | E83: kWh/a | I83: N_B_STROM_PU_GAWP | Q83: 85 | R83: 97
A84: Stromkosten 4 x Umwälzpumpe GAWP | D84: =(D83*D26) -> 163.9819693 | E84: €/a | F84: (Stromverbrauch x mittlerer Strompreis) | Q84: 90 | R84: 98
Q85: 95 | R85: 99
A86: Betriebskosten pro Jahr gesamt: | D86: =SUM(D73:D77)+D84+D80+D82 -> 7553.412264 | E86: €/a | Q86: 100 | R86: 100
A88: FAZIT:
A89: Mittlere Energieeinsparung pro Jahr bei Einsatz
A90: von zwei GAWP SW und Gas-Brennwertgerät
A91: gegenüber den Betriebskosten eines Pelletkessels: | D91: =(D44-D86) -> 1812.017235 | E91: €/a
A93: Differenz Investitionskosten: | D93: =(D54-D33) ->  | E93: €
A95: Für einen auf 20 Jahre gemittelten Engergiepreis
A96: ergibt sich eine Amortisationszeit von: | D96: =IF((D93/D91)<0,"sofort",(D93/D91)) ->  | E96: =IF((D93/D91)<0,"","Jahren") -> 

Sheet SW3 bival PL
A1: Aktueller Gaspreis | D1: =(Energiepreisberechnung!D28) -> 0.055 | E1: €/kWh
A2: Aktueller Pelletpreis | D2: =(Energiepreisberechnung!D32) -> 0.05 | E2: €/kWh
A3: Aktueller Strompreis | D3: =(Energiepreisberechnung!D31) -> 0.2 | E3: €/kWh
A4: Gemittelter Wirkungsgrad Gasbrennwertgerät | D4: 1.06
A5: Gemittelter Wirkungsgrad Pelletkessel | D5: 0.93
A6: Gemittelter Wirkungsgrad GAWP SW | D6: 1.55
A7: Elektr. Leistung GAWP SW | D7: 0.47 | E7: kW
A8: Elektr. Leistung Kesselkreispumpe | D8: 0.1 | E8: kW
A9: Elektr. Leistung Umwälzpumpe GAWP | D9: 0.05 | E9: kW
A11: Gesucht: | B11: Investitions- und Betriebskosten während 20 Jahren
A13: 1.
A14: Errechnung der mittleren Energiepreise binnen 20 Jahren
A16: Gaspreis Anfangsjahr: | D16: =(D1) -> 0.055 | E16: €/kWh
A17: Gaspreis im 20´sten Jahr: | D17: =(Energiepreisberechnung!C22) -> 0.1989090144 | E17: €/kWh
A18: Mittlerer Gaspreis während 20 Jahren: | D18: =(Energiepreisberechnung!C24) -> 0.1127376039 | E18: €/kWh
A20: Pelletpreis Anfangsjahr: | D20: =(D2) -> 0.05 | E20: €/kWh
A21: Pelletpreis im 20´sten Jahr: | D21: =(Energiepreisberechnung!G22) -> 0.1808263768 | E21: €/kWh
A22: Mittlerer Pelletpreis während 20 Jahren: | D22: =(Energiepreisberechnung!G24) -> 0.1024887308 | E22: €/kWh
A24: Strompreis Anfangsjahr: | D24: =(D3) -> 0.2 | E24: €/kWh
A25: Strompreis im 20´sten Jahr: | D25: =(Energiepreisberechnung!E22) -> 0.723305507 | E25: €/kWh
A26: Mittlerer Strompreis während 20 Jahren: | D26: =(Energiepreisberechnung!E24) -> 0.4099549232 | E26: €/kWh
A28: 2.
A29: Betrachtung für einen neuen Pelletkessel + Silo | D29: =(Master!D5) -> 40 | E29: kW
A31: 2a
A32: Investitionskosten | D32: =(Master!D8) -> 5000 | E32: €
A33: Investitionskosten gesamt: | D33: =(D32) -> 5000 | E33: € | I33: R_I_PL
A35: 2b
A36: Betriebskosten Pelletkessel
A37: Jahresarbeit Pelletkessel | D37: =(Master!D5*Master!D6) -> 80000 | E37: kWh/a | F37: (Leistung x Jahresvollbenutzungsstunden)
A38: Energieverbrauch Pelletkessel | D38: =(D37/D5) -> 86021.50538 | E38: kWh/a | F38: (Wirkungsgrad berücksichtigt) | I38: R_B_PL
A39: Kosten Pellets | D39: =(D38*D22) -> 8816.234908 | E39: €/a
A40: Wartungskosten Pelletkessel | D40: 500 | E40: €/a | I40: R_B_WART_PL
A41: Stromverbrauch 1 Stück Kesselkreispumpe | D41: =(Master!D6*D8) -> 200 | E41: kWh/a | I41: R_B_STROM_PL
A42: Stromkosten 1 Stück Kesselkreispumpe | D42: =(D41*D26) -> 81.99098464 | E42: €/a | F42: (Stromverbrauch x mittlerer Strompreis)
A44: Betriebskosten pro Jahr gesamt: | D44: =SUM(D39:D40)+D42 -> 9398.225892 | E44: €/a
L45: Negative Werte sollen gleich Null gesetzt werden
A46: 3. | L46: =(Master!D5-D59) -> 0
A47: Betrachtung für drei GAWP 40 SW (120 kW) sowie Spitzenlastkessel
L48: Wärmepumpe soll nur die Anlagenheizlast erbringen, welche erforderlich ist
A49: 3a | L49: =IF(Master!D5<120,Master!D5,120) -> 40
A50: Investitionskosten
A51: 3 x GAWP + Zubehör | D51: =IF(Master!T12=TRUE,25000, (IF(Master!T13=TRUE,45000, (IF(Master!T14=TRUE,65000,""))))) ->  | E51: € | L51: Deckungsrate GAWP
A52: Förderung BAFA | D52: =IF(Master!$T$12=TRUE,(2400+100*30), (IF(Master!$T$13=TRUE,(2400+100*70), (IF(Master!$T$14=TRUE,(2400+100*110),""))))) ->  | E52: € | L52: =(D58+D59) -> 40 | M52: Max Leistung BW plus Leistung GAWP
A53: =IF(AND(Master!D5>29,Master!D5<55),Spitzenlastkessel!C4,(IF(AND(Master!D5>54,Master!D5<65),Spitzenlastkessel!C5,(IF(AND(Master!D5>64,Master!D5<85),Spitzenlastkessel!C6,(IF(AND(Master!D5>84,Master!D5<110),Spitzenlastkessel!C7,(IF(AND(Master!D5>109,Master!D5<135),Spitzenlastkessel!C8,(IF(AND(Master!D5>134,Master!D5<150),Spitzenlastkessel!C9,(IF(AND(Master!D5>149,Master!D5<200),Spitzenlastkessel!C10,(IF(AND(Master!D5>199,Master!D5<240),Spitzenlastkessel!C11,(IF(AND(Master!D5>239,Master!D5<300),Spitzenlastkessel!C12,(IF(AND(Master!D5>299,Master!D5<370),Spitzenlastkessel!C13,(IF(AND(Master!D5>369,Master!D5<450),Spitzenlastkessel!C14,(IF(AND(Master!D5>449,Master!D5<520),Spitzenlastkessel!C15,"Anlagenheizlast zu groß"))))))))))))))))))))))) -> Spitzenlastkessel GMR 3035 (35 kW) | D53: =IF(AND(Master!D5>29,Master!D5<55),Spitzenlastkessel!E4,(IF(AND(Master!D5>54,Master!D5<65),Spitzenlastkessel!E5,(IF(AND(Master!D5>64,Master!D5<85),Spitzenlastkessel!E6,(IF(AND(Master!D5>84,Master!D5<110),Spitzenlastkessel!E7,(IF(AND(Master!D5>109,Master!D5<135),Spitzenlastkessel!E8,(IF(AND(Master!D5>134,Master!D5<150),Spitzenlastkessel!E9,(IF(AND(Master!D5>149,Master!D5<200),Spitzenlastkessel!E10,(IF(AND(Master!D5>199,Master!D5<240),Spitzenlastkessel!E11,(IF(AND(Master!D5>239,Master!D5<300),Spitzenlastkessel!E12,(IF(AND(Master!D5>299,Master!D5<370),Spitzenlastkessel!E13,(IF(AND(Master!D5>369,Master!D5<450),Spitzenlastkessel!E14,(IF(AND(Master!D5>449,Master!D5<520),Spitzenlastkessel!E15,"Anlagenheizlast zu groß"))))))))))))))))))))))) -> 3600 | E53: € | F53: (gewählt) | L53: =(100/L52)*D59 -> 100 | M53: Prozentuale Anlagenheizlast von GAWP
A54: Investitionskosten gesamt: | D54: =(D51+D53-D52) ->  | E54: € | I54: N_I_GAWP_u_BW | L54: =MROUND(L53,5) -> 100 | M54: Gerundet
Q55: Prozentuale Anlagen- heizlast der GAWP
A56: 3b | L56: =VLOOKUP(L54,Q59:R86,2) -> 100 | M56: Deckungsrate GAWP | R56: Deckungs- rate
A57: Betriebskosten
A58: Max. Leistung Brennwertgerät | D58: =IF(L46<0,0,(Master!D5-D59)) -> 0 | E58: kW
A59: Leistung 3 x GAWP | D59: =(L49) -> 40 | E59: kW | Q59: 0 | R59: 0
Q60: 5 | R60: 8
A61: Deckungsrate Brennwertgerät | D61: =(100-D62) -> 0 | E61: % | F61: (Ergibt sich aus Leistungsverhältnis Brennwertgerät/GAWP) | Q61: 10 | R61: 15
A62: Deckungsrate 3 x GAWP | D62: =VLOOKUP(L54,Q59:R86,2) -> 100 | E62: % | F62: (Ergibt sich aus Leistungsverhältnis Brennwertgerät/GAWP) | Q62: 15 | R62: 25
Q63: 20 | R63: 33
A64: Jahresarbeit Gas-Brennwertgerät | D64: =(D37*(D61/100)) -> 0 | E64: kWh/a | F64: (Deckungsrate berücksichtigt)
A65: Jahresarbeit 3 x GAWP | D65: =(D37*(D62/100)) -> 80000 | E65: kWh/a | F65: (Deckungsrate berücksichtigt) | Q65: 25 | R65: 41
Q66: 30 | R66: 50
A67: Vollbenutzungsstunden Gas-Brennwertgerät | D67: =IF(D58=0,0,(D64/D58)) -> 0 | E67: h | F67: (ergibt sich aus Jahresarbeit/Leistung)
A68: Vollbenutzungsstunden 3 x GAWP | D68: =(D65/D59) -> 2000 | E68: h | F68: (ergibt sich aus Jahresarbeit/Leistung) | Q68: 35 | R68: 58
Q69: 40 | R69: 67
A70: Gasverbrauch Gas-Brennwertgerät | D70: =(D64/D4) -> 0 | E70: kWh/a | F70: (ergibt sich aus Jahresarbeit/Wirkungsgrad) | I70: N_B_GAS_BW
A71: Gasverbrauch 3 x GAWP | D71: =(D65/D6) -> 51612.90323 | E71: kWh/a | F71: (ergibt sich aus Jahresarbeit/Wirkungsgrad) | I71: N_B_GAS_GAWP | Q71: 45 | R71: 75
Q72: 50 | R72: 80
A73: Kosten Gasverbrauch Gas-Brennwertgerät | D73: =(D70*D18) -> 0 | E73: €/a | F73: (ergibt sich aus Gasverbrauch x mittlerer Gaspreis)
A74: Kosten Gasverbrauch 3 x GAWP | D74: =(D71*D18) -> 5818.715039 | E74: €/a | F74: (ergibt sich aus Gasverbrauch x mittlerer Gaspreis) | Q74: 55 | R74: 83
Q75: 60 | R75: 87
A76: Wartungskosten Gas-Brennwertgerät | D76: 300 | E76: €/a | I76: N_B_WART_BW
A77: Wartungskosten 3 x GAWP | D77: 700 | E77: €/a | I77: N_B_WART_GAWP | Q77: 65 | R77: 90
Q78: 70 | R78: 92
A79: Stromverbrauch 3 x GAWP | D79: =(D68*D7)*3 -> 2820 | E79: kWh/a | I79: N_B_STROM_LÜ_GAWP | Q79: 75 | R79: 94
A80: Stromkosten 3 x GAWP | D80: =(D79*D26) -> 1156.072883 | E80: €/a | F80: (Stromverbrauch x mittlerer Strompreis) | Q80: 80 | R80: 96
A81: Stromverbrauch Gas-Brennwertgerät | D81: =(D67*D8) -> 0 | E81: kWh/a | I81: N_B_STROM_BW
A82: Stromkosten Gas-Brennwertgerät | D82: =(D81*D26) -> 0 | E82: €/a | F82: (Stromverbrauch x mittlerer Strompreis)
A83: Stromverbrauch 6 x Umwälzpumpe GAWP | D83: =((D68)*D9*6) -> 600 | E83: kWh/a | I83: N_B_STROM_PU_GAWP | Q83: 85 | R83: 97
A84: Stromkosten 6 x Umwälzpumpe GAWP | D84: =(D83*D26) -> 245.9729539 | E84: €/a | F84: (Stromverbrauch x mittlerer Strompreis) | Q84: 90 | R84: 98
Q85: 95 | R85: 99
A86: Betriebskosten pro Jahr gesamt: | D86: =SUM(D73:D77)+D84+D80+D82 -> 8220.760877 | E86: €/a | Q86: 100 | R86: 100
A88: FAZIT:
A89: Mittlere Energieeinsparung pro Jahr bei Einsatz
A90: von drei GAWP SW und Gas-Brennwertgerät
A91: gegenüber den Betriebskosten eines Pelletkessels: | D91: =(D44-D86) -> 1177.465016 | E91: €/a
A93: Differenz Investitionskosten: | D93: =(D54-D33) ->  | E93: €
A95: Für einen auf 20 Jahre gemittelten Engergiepreis
A96: ergibt sich eine Amortisationszeit von: | D96: =IF((D93/D91)<0,"sofort",(D93/D91)) ->  | E96: =IF((D93/D91)<0,"","Jahren") -> 

Sheet SW mono PL
A1: Aktueller Gaspreis | D1: =(Energiepreisberechnung!D28) -> 0.055 | E1: €/kWh
A2: Aktueller Pelletpreis | D2: =(Energiepreisberechnung!D32) -> 0.05 | E2: €/kWh
A3: Aktueller Strompreis | D3: =(Energiepreisberechnung!D31) -> 0.2 | E3: €/kWh
A4: Gemittelter Wirkungsgrad Pelletkessel | D4: 0.93
A5: Gemittelter Wirkungsgrad GAWP SW | D5: 1.55
A6: Elektr. Leistung GAWP SW | D6: 0.47 | E6: kW
A7: Elektr. Leistung Kesselkreispumpe | D7: 0.05 | E7: kW
A9: Gesucht: | B9: Investitions- und Betriebskosten während 20 Jahren
A11: 1.
A12: Errechnung der mittleren Energiepreise binnen 20 Jahren
A14: Gaspreis Anfangsjahr: | D14: =(D1) -> 0.055 | E14: €/kWh
A15: Gaspreis im 20´sten Jahr: | D15: =(Energiepreisberechnung!C22) -> 0.1989090144 | E15: €/kWh
A16: Mittlerer Gaspreis während 20 Jahren: | D16: =(Energiepreisberechnung!C24) -> 0.1127376039 | E16: €/kWh
A18: Pelletpreis Anfangsjahr: | D18: =(D2) -> 0.05 | E18: €/kWh
A19: Pelletpreis im 20´sten Jahr: | D19: =(Energiepreisberechnung!G22) -> 0.1808263768 | E19: €/kWh
A20: Mittlerer Pelletpreis während 20 Jahren: | D20: =(Energiepreisberechnung!G24) -> 0.1024887308 | E20: €/kWh
A22: Strompreis Anfangsjahr: | D22: =(D3) -> 0.2 | E22: €/kWh
A23: Strompreis im 20´sten Jahr: | D23: =(Energiepreisberechnung!E22) -> 0.723305507 | E23: €/kWh
A24: Mittlerer Strompreis während 20 Jahren: | D24: =(Energiepreisberechnung!E24) -> 0.4099549232 | E24: €/kWh
A26: 2.
A27: Betrachtung für einen neuen Pelletkessel + Silo | D27: =(Master!D5) -> 40 | E27: kW
A29: 2a
A30: Investitionskosten | D30: =(Master!D8) -> 5000 | E30: €
A31: Investitionskosten gesamt: | D31: =(D30) -> 5000 | E31: € | I31: R_I_PL
A33: 2b
A34: Betriebskosten Pelletkessel
A35: Jahresarbeit Pelletkessel | D35: =(Master!D5*Master!D6) -> 80000 | E35: kWh/a | F35: (Leistung x Jahresvollbenutzungsstunden)
A36: Energieverbrauch Pelletkessel | D36: =(D35/D4) -> 86021.50538 | E36: kWh/a | F36: (Wirkungsgrad berücksichtigt) | I36: R_B_PL
A37: Kosten Pellets | D37: =(D36*D20) -> 8816.234908 | E37: €/a
A38: Wartungskosten Pelletkessel | D38: 500 | E38: €/a | I38: R_B_WART_PL
A39: Stromverbrauch 1 Stück Kesselkreispumpe | D39: =(Master!D6*D7) -> 100 | E39: kWh/a | I39: R_B_STROM_PL
A40: Stromkosten 1 Stück Kesselkreispumpe | D40: =(D39*D24) -> 40.99549232 | E40: €/a | F40: (Stromverbrauch x mittlerer Strompreis)
A42: Betriebskosten pro Jahr gesamt: | D42: =SUM(D37:D38)+D40 -> 9357.2304 | E42: €/a
A44: 3.
A45: Betrachtung für eine GAWP 40 SW (40 kW) monovalent
A47: 3a
A48: Investitionskosten
A49: GAWP + Zubehör | D49: =IF(Master!T9=TRUE,25000, (IF(Master!T10=TRUE,45000, (IF(Master!T11=TRUE,65000,""))))) -> 45000 | E49: €
A50: Förderung BAFA | D50: =IF(Master!$T$9=TRUE,(2400+100*30), (IF(Master!$T$10=TRUE,(2400+100*70), (IF(Master!$T$11=TRUE,(2400+100*110),""))))) -> 9400 | E50: €
A51: Investitionskosten gesamt: | D51: =(D49-D50) -> 35600 | E51: € | I51: N_I_GAWP_u_BW
A53: 3b
A54: Betriebskosten
A55: Leistung GAWP | D55: =(Master!D5) -> 40 | E55: kW
A56: Jahresarbeit GAWP | D56: =(D35) -> 80000 | E56: kWh/a | F56: (ergibt sich aus Deckungsrate = 100%)
A58: Vollbenutzungsstunden GAWP | D58: =(D56/D55) -> 2000 | E58: h | F58: (ergibt sich aus Jahresarbeit/Leistung)
A60: Gasverbrauch GAWP | D60: =(D56/D5) -> 51612.90323 | E60: kWh/a | F60: (ergibt sich aus Jahresarbeit/Wirkungsgrad) | I60: N_B_GAS_GAWP
A62: Kosten Gasverbrauch GAWP | D62: =(D60*D16) -> 5818.715039 | E62: €/a | F62: (ergibt sich aus Gasverbrauch x mittlerer Gaspreis)
A64: Wartungskosten GAWP | D64: 300 | E64: €/a | I64: N_B_WART_GAWP
A66: Stromverbrauch GAWP | D66: =(D58*D6) -> 940 | E66: kWh/a | I66: N_B_STROM_LÜ_GAWP
A67: Stromkosten GAWP | D67: =(D66*D24) -> 385.3576278 | E67: €/a | F67: (Stromverbrauch x mittlerer Strompreis)
A68: Stromverbrauch 2 x Umwälzpumpe GAWP | D68: =((D58)*D7*2) -> 200 | E68: kWh/a | I68: N_B_STROM_PU_GAWP
A69: Stromkosten 2 x Umwälzpumpe GAWP | D69: =(D68*D24) -> 81.99098464 | E69: €/a | F69: (Stromverbrauch x mittlerer Strompreis)
A71: Betriebskosten pro Jahr gesamt: | D71: =SUM(D62:D64)+D69+D67 -> 6586.063652 | E71: €/a
A73: FAZIT:
A74: Mittlere Energieeinsparung pro Jahr bei Einsatz
A75: von einer monovalenten GAWP SW gegenüber
A76: den Betriebskosten eines Pelletkessels | D76: =(D42-D71) -> 2771.166749 | E76: €/a
A78: Differenz Investitionskosten: | D78: =(D51-D31) -> 30600 | E78: €
A80: Für einen auf 20 Jahre gemittelten Engergiepreis
A81: ergibt sich eine Amortisationszeit von: | D81: =IF((D78/D76)<0,"sofort",(D78/D76)) -> 11.0422803 | E81: =IF((D78/D76)<0,"","Jahren") -> Jahren

Sheet SW2 mono PL
A1: Aktueller Gaspreis | D1: =(Energiepreisberechnung!D28) -> 0.055 | E1: €/kWh
A2: Aktueller Pelletpreis | D2: =(Energiepreisberechnung!D32) -> 0.05 | E2: €/kWh
A3: Aktueller Strompreis | D3: =(Energiepreisberechnung!D31) -> 0.2 | E3: €/kWh
A4: Gemittelter Wirkungsgrad Pelletkessel | D4: 0.93
A5: Gemittelter Wirkungsgrad GAWP SW | D5: 1.55
A6: Elektr. Leistung GAWP SW | D6: 0.47 | E6: kW
A7: Elektr. Leistung Kesselkreispumpe | D7: 0.06 | E7: kW
A8: Elektr. Leistung Umwälzpumpe GAWP | D8: 0.05 | E8: kW
A10: Gesucht: | B10: Investitions- und Betriebskosten während 20 Jahren
A12: 1.
A13: Errechnung der mittleren Energiepreise binnen 20 Jahren
A15: Gaspreis Anfangsjahr: | D15: =(D1) -> 0.055 | E15: €/kWh
A16: Gaspreis im 20´sten Jahr: | D16: =(Energiepreisberechnung!C22) -> 0.1989090144 | E16: €/kWh
A17: Mittlerer Gaspreis während 20 Jahren: | D17: =(Energiepreisberechnung!C24) -> 0.1127376039 | E17: €/kWh
A19: Pelletpreis Anfangsjahr: | D19: =(D2) -> 0.05 | E19: €/kWh
A20: Pelletpreis im 20´sten Jahr: | D20: =(Energiepreisberechnung!G22) -> 0.1808263768 | E20: €/kWh
A21: Mittlerer Pelletpreis während 20 Jahren: | D21: =(Energiepreisberechnung!G24) -> 0.1024887308 | E21: €/kWh
A23: Strompreis Anfangsjahr: | D23: =(D3) -> 0.2 | E23: €/kWh
A24: Strompreis im 20´sten Jahr: | D24: =(Energiepreisberechnung!E22) -> 0.723305507 | E24: €/kWh
A25: Mittlerer Strompreis während 20 Jahren: | D25: =(Energiepreisberechnung!E24) -> 0.4099549232 | E25: €/kWh
A27: 2.
A28: Betrachtung für einen neuen Pelletkessel + Silo | D28: =(Master!D5) -> 40 | E28: kW
A30: 2a
A31: Investitionskosten | D31: =(Master!D8) -> 5000 | E31: €
A32: Investitionskosten gesamt: | D32: =(D31) -> 5000 | E32: € | I32: R_I_PL
A34: 2b
A35: Betriebskosten Pelletkessel
A36: Jahresarbeit Pelletkessel | D36: =(Master!D5*Master!D6) -> 80000 | E36: kWh/a | F36: (Leistung x Jahresvollbenutzungsstunden)
A37: Energieverbrauch Pelletkessel | D37: =(D36/D4) -> 86021.50538 | E37: kWh/a | F37: (Wirkungsgrad berücksichtigt) | I37: R_B_PL
A38: Kosten Pellets | D38: =(D37*D21) -> 8816.234908 | E38: €/a
A39: Wartungskosten Pelletkessel | D39: 500 | E39: €/a | I39: R_B_WART_PL
A40: Stromverbrauch 1 Stück Kesselkreispumpe | D40: =(Master!D6*D7) -> 120 | E40: kWh/a | I40: R_B_STROM_PL
A41: Stromkosten 1 Stück Kesselkreispumpe | D41: =(D40*D25) -> 49.19459079 | E41: €/a | F41: (Stromverbrauch x mittlerer Strompreis)
A43: Betriebskosten pro Jahr gesamt: | D43: =SUM(D38:D39)+D41 -> 9365.429499 | E43: €/a
A45: 3.
A46: Betrachtung für zwei GAWP 40 SW (80 kW) monovalent
A48: 3a
A49: Investitionskosten
A50: 2 x GAWP + Zubehör | D50: =IF(Master!T9=TRUE,25000, (IF(Master!T10=TRUE,45000, (IF(Master!T11=TRUE,65000,""))))) -> 45000 | E50: €
A51: Förderung BAFA | D51: =IF(Master!$T$9=TRUE,(2400+100*30), (IF(Master!$T$10=TRUE,(2400+100*70), (IF(Master!$T$11=TRUE,(2400+100*110),""))))) -> 9400 | E51: €
A52: Investitionskosten gesamt: | D52: =(D50-D51) -> 35600 | E52: € | I52: N_I_GAWP_u_BW
A54: 3b
A55: Betriebskosten
A56: Leistung 2 x GAWP | D56: =(Master!D5) -> 40 | E56: kW
A57: Jahresarbeit 2 x GAWP | D57: =(D36) -> 80000 | E57: kWh/a | F57: (ergibt sich aus Deckungsrate = 100%)
A59: Vollbenutzungsstunden 2 x GAWP | D59: =(D57/D56) -> 2000 | E59: h | F59: (ergibt sich aus Jahresarbeit/Leistung)
A61: Gasverbrauch 2 x GAWP | D61: =(D57/D5) -> 51612.90323 | E61: kWh/a | F61: (ergibt sich aus Jahresarbeit/Wirkungsgrad) | I61: N_B_GAS_GAWP
A63: Kosten Gasverbrauch 2 x GAWP | D63: =(D61*D17) -> 5818.715039 | E63: €/a | F63: (ergibt sich aus Gasverbrauch x mittlerer Gaspreis)
A65: Wartungskosten 2 x GAWP | D65: 500 | E65: €/a | I65: N_B_WART_GAWP
A67: Stromverbrauch 2 x GAWP | D67: =(D59*D6)*2 -> 1880 | E67: kWh/a | I67: N_B_STROM_LÜ_GAWP
A68: Stromkosten 2 x GAWP | D68: =(D67*D25) -> 770.7152556 | E68: €/a | F68: (Stromverbrauch x mittlerer Strompreis)
A69: Stromverbrauch 4 x Umwälzpumpe GAWP | D69: =((D59)*D8*4) -> 400 | E69: kWh/a | I69: N_B_STROM_PU_GAWP
A70: Stromkosten 4 x Umwälzpumpe GAWP | D70: =(D69*D25) -> 163.9819693 | E70: €/a | F70: (Stromverbrauch x mittlerer Strompreis)
A72: Betriebskosten pro Jahr gesamt: | D72: =SUM(D63:D65)+D70+D68 -> 7253.412264 | E72: €/a
A74: FAZIT:
A75: Mittlere Energieeinsparung pro Jahr bei Einsatz
A76: von zwei monovalenten GAWP SW gegenüber
A77: den Betriebskosten eines Pelletkessels | D77: =(D43-D72) -> 2112.017235 | E77: €/a
A79: Differenz Investitionskosten: | D79: =(D52-D32) -> 30600 | E79: €
A81: Für einen auf 20 Jahre gemittelten Engergiepreis
A82: ergibt sich eine Amortisationszeit von: | D82: =IF((D79/D77)<0,"sofort",(D79/D77)) -> 14.48851813 | E82: =IF((D79/D77)<0,"","Jahren") -> Jahren

Sheet SW3 mono PL
A1: Aktueller Gaspreis | D1: =(Energiepreisberechnung!D28) -> 0.055 | E1: €/kWh
A2: Aktueller Pelletpreis | D2: =(Energiepreisberechnung!D32) -> 0.05 | E2: €/kWh
A3: Aktueller Strompreis | D3: =(Energiepreisberechnung!D31) -> 0.2 | E3: €/kWh
A4: Gemittelter Wirkungsgrad Pelletkessel | D4: 0.93
A5: Gemittelter Wirkungsgrad GAWP SW | D5: 1.55
A6: Elektr. Leistung GAWP SW | D6: 0.47 | E6: kW
A7: Elektr. Leistung Kesselkreispumpe | D7: 0.1 | E7: kW
A8: Elektr. Leistung Umwälzpumpe GAWP | D8: 0.05 | E8: kW
A10: Gesucht: | B10: Investitions- und Betriebskosten während 20 Jahren
A12: 1.
A13: Errechnung der mittleren Energiepreise binnen 20 Jahren
A15: Gaspreis Anfangsjahr: | D15: =(D1) -> 0.055 | E15: €/kWh
A16: Gaspreis im 20´sten Jahr: | D16: =(Energiepreisberechnung!C22) -> 0.1989090144 | E16: €/kWh
A17: Mittlerer Gaspreis während 20 Jahren: | D17: =(Energiepreisberechnung!C24) -> 0.1127376039 | E17: €/kWh
A19: Pelletpreis Anfangsjahr: | D19: =(D2) -> 0.05 | E19: €/kWh
A20: Pelletpreis im 20´sten Jahr: | D20: =(Energiepreisberechnung!G22) -> 0.1808263768 | E20: €/kWh
A21: Mittlerer Pelletpreis während 20 Jahren: | D21: =(Energiepreisberechnung!G24) -> 0.1024887308 | E21: €/kWh
A23: Strompreis Anfangsjahr: | D23: =(D3) -> 0.2 | E23: €/kWh
A24: Strompreis im 20´sten Jahr: | D24: =(Energiepreisberechnung!E22) -> 0.723305507 | E24: €/kWh
A25: Mittlerer Strompreis während 20 Jahren: | D25: =(Energiepreisberechnung!E24) -> 0.4099549232 | E25: €/kWh
A27: 2.
A28: Betrachtung für einen neuen Pelletkessel + Silo | D28: =(Master!D5) -> 40 | E28: kW
A30: 2a
A31: Investitionskosten | D31: =(Master!D8) -> 5000 | E31: €
A32: Investitionskosten gesamt: | D32: =(D31) -> 5000 | E32: € | I32: R_I_PL
A34: 2b
A35: Betriebskosten Pelletkessel
A36: Jahresarbeit Pelletkessel | D36: =(Master!D5*Master!D6) -> 80000 | E36: kWh/a | F36: (Leistung x Jahresvollbenutzungsstunden)
A37: Energieverbrauch Pelletkessel | D37: =(D36/D4) -> 86021.50538 | E37: kWh/a | F37: (Wirkungsgrad berücksichtigt) | I37: R_B_PL
A38: Kosten Pellets | D38: =(D37*D21) -> 8816.234908 | E38: €/a
A39: Wartungskosten Pelletkessel | D39: 500 | E39: €/a | I39: R_B_WART_PL
A40: Stromverbrauch 1 Stück Kesselkreispumpe | D40: =(Master!D6*D7) -> 200 | E40: kWh/a | I40: R_B_STROM_PL
A41: Stromkosten 1 Stück Kesselkreispumpe | D41: =(D40*D25) -> 81.99098464 | E41: €/a | F41: (Stromverbrauch x mittlerer Strompreis)
A43: Betriebskosten pro Jahr gesamt: | D43: =SUM(D38:D39)+D41 -> 9398.225892 | E43: €/a
A45: 3.
A46: Betrachtung für drei GAWP 40 SW (120 kW) monovalent
A48: 3a
A49: Investitionskosten
A50: 3 x GAWP + Zubehör | D50: =IF(Master!$T$9=TRUE,25000, (IF(Master!$T$10=TRUE,45000, (IF(Master!$T$11=TRUE,65000,""))))) -> 45000 | E50: €
A51: Förderung BAFA | D51: =IF(Master!$T$9=TRUE,(2400+100*30), (IF(Master!$T$10=TRUE,(2400+100*70), (IF(Master!$T$11=TRUE,(2400+100*110),""))))) -> 9400 | E51: €
A52: Investitionskosten gesamt: | D52: =(D50-D51) -> 35600 | E52: € | I52: N_I_GAWP_u_BW
A54: 3b
A55: Betriebskosten
A56: Leistung 3 x GAWP | D56: =(Master!$D$5) -> 40 | E56: kW
A57: Jahresarbeit 3 x GAWP | D57: =(D36) -> 80000 | E57: kWh/a | F57: (ergibt sich aus Deckungsrate = 100%)
A59: Vollbenutzungsstunden 3 x GAWP | D59: =(D57/D56) -> 2000 | E59: h | F59: (ergibt sich aus Jahresarbeit/Leistung)
A61: Gasverbrauch 3 x GAWP | D61: =(D57/D5) -> 51612.90323 | E61: kWh/a | F61: (ergibt sich aus Jahresarbeit/Wirkungsgrad) | I61: N_B_GAS_GAWP
A63: Kosten Gasverbrauch 3 x GAWP | D63: =(D61*D17) -> 5818.715039 | E63: €/a | F63: (ergibt sich aus Gasverbrauch x mittlerer Gaspreis)
A65: Wartungskosten 3 x GAWP | D65: 700 | E65: €/a | I65: N_B_WART_GAWP
A67: Stromverbrauch 3 x GAWP | D67: =(D59*D6)*3 -> 2820 | E67: kWh/a | I67: N_B_STROM_LÜ_GAWP
A68: Stromkosten 3 x GAWP | D68: =(D67*D25) -> 1156.072883 | E68: €/a | F68: (Stromverbrauch x mittlerer Strompreis)
A69: Stromverbrauch 6 x Umwälzpumpe GAWP | D69: =((D59)*D8*6) -> 600 | E69: kWh/a | I69: N_B_STROM_PU_GAWP
A70: Stromkosten 6 x Umwälzpumpe GAWP | D70: =(D69*D25) -> 245.9729539 | E70: €/a | F70: (Stromverbrauch x mittlerer Strompreis)
A72: Betriebskosten pro Jahr gesamt: | D72: =SUM(D63:D65)+D70+D68 -> 7920.760877 | E72: €/a
A74: FAZIT:
A75: Mittlere Energieeinsparung pro Jahr bei Einsatz
A76: von drei monovalenten GAWP SW gegenüber
A77: den Betriebskosten eines Pelletkessels | D77: =(D43-D72) -> 1477.465016 | E77: €/a
A79: Differenz Investitionskosten: | D79: =(D52-D32) -> 30600 | E79: €
A81: Für einen auf 20 Jahre gemittelten Engergiepreis
A82: ergibt sich eine Amortisationszeit von: | D82: =IF((D79/D77)<0,"sofort",(D79/D77)) -> 20.71115029 | E82: =IF((D79/D77)<0,"","Jahren") -> Jahren

Sheet SW bival GAS
A1: Aktueller Gaspreis | D1: =(Energiepreisberechnung!D28) -> 0.055 | E1: €/kWh
A2: Aktueller Strompreis | D2: =(Energiepreisberechnung!D31) -> 0.2 | E2: €/kWh
A3: Gemittelter Wirkungsgrad Gasbrennwertgerät | D3: 1.06
A4: Gemittelter Wirkungsgrad GAWP SW | D4: 1.55
A5: Elektr. Leistung GAWP SW | D5: 0.47 | E5: kW
A6: Elektr. Leistung Kesselkreispumpe | D6: 0.05 | E6: kW
A8: Gesucht: | B8: Investitions- und Betriebskosten während 20 Jahren
A10: 1.
A11: Errechnung der mittleren Energiepreise binnen 20 Jahren
A13: Gaspreis Anfangsjahr: | D13: =(D1) -> 0.055 | E13: €/kWh
A14: Gaspreis im 20´sten Jahr: | D14: =(Energiepreisberechnung!C22) -> 0.1989090144 | E14: €/kWh
A15: Mittlerer Gaspreis während 20 Jahren: | D15: =(Energiepreisberechnung!C24) -> 0.1127376039 | E15: €/kWh
A17: Strompreis Anfangsjahr: | D17: =(D2) -> 0.2 | E17: €/kWh
A18: Strompreis im 20´sten Jahr: | D18: =(Energiepreisberechnung!E22) -> 0.723305507 | E18: €/kWh
A19: Mittlerer Strompreis während 20 Jahren: | D19: =(Energiepreisberechnung!E24) -> 0.4099549232 | E19: €/kWh
A21: 2.
A22: Betrachtung für ein neues Gasbrennwertgerät | D22: =(Master!D5) -> 40 | E22: kW
A24: 2a
A25: Investitionskosten | D25: =(Master!D8) -> 5000 | E25: €
A26: Investitionskosten gesamt: | D26: =(D25) -> 5000 | E26: € | I26: R_I_GAS
A28: 2b
A29: Betriebskosten Gas-Brennwertgerät
A30: Jahresarbeit Gas-Brennwertgerät | D30: =(Master!D5*Master!D6) -> 80000 | E30: kWh/a | F30: (Leistung x Jahresvollbenutzungsstunden)
A31: Energieverbrauch Gas-Brennwertgerät | D31: =(D30/D3) -> 75471.69811 | E31: kWh/a | F31: (Wirkungsgrad berücksichtigt) | I31: R_B_GAS
A32: Kosten Gas | D32: =(D31*D15) -> 8508.498406 | E32: €/a
A33: Wartungskosten Gas-Brennwertgerät | D33: 300 | E33: €/a | I33: R_B_WART_GAS
A34: Stromverbrauch 1 Stück Kesselkreispumpe | D34: =(Master!D6*D6) -> 100 | E34: kWh/a | I34: R_B_STROM_GAS
A35: Stromkosten 1 Stück Kesselkreispumpe | D35: =(D34*D19) -> 40.99549232 | E35: €/a | F35: (Stromverbrauch x mittlerer Strompreis)
A37: Betriebskosten pro Jahr gesamt: | D37: =SUM(D32:D33)+D35 -> 8849.493899 | E37: €/a
L38: Negative Werte sollen gleich Null gesetzt werden
A39: 3. | L39: =(Master!D5-D52) -> 0
A40: Betrachtung für eine GAWP 40 SW (40 kW) sowie Spitzenlastkessel
L41: Wärmepumpe soll nur die Anlagenheizlast erbringen, welche erforderlich ist
A42: 3a | L42: =IF(Master!D5<40,Master!D5,40) -> 40
A43: Investitionskosten
A44: GAWP + Zubehör | D44: =IF(Master!T12=TRUE,25000, (IF(Master!T13=TRUE,45000, (IF(Master!T14=TRUE,65000,""))))) ->  | E44: € | L44: Deckungsrate GAWP
A45: Förderung BAFA | D45: =IF(Master!$T$12=TRUE,(2400+100*30), (IF(Master!$T$13=TRUE,(2400+100*70), (IF(Master!$T$14=TRUE,(2400+100*110),""))))) ->  | E45: € | L45: =(D51+D52) -> 40 | M45: Max Leistung BW plus Leistung GAWP
A46: =IF(AND(Master!D5>29,Master!D5<55),Spitzenlastkessel!C4,(IF(AND(Master!D5>54,Master!D5<65),Spitzenlastkessel!C5,(IF(AND(Master!D5>64,Master!D5<85),Spitzenlastkessel!C6,(IF(AND(Master!D5>84,Master!D5<110),Spitzenlastkessel!C7,(IF(AND(Master!D5>109,Master!D5<135),Spitzenlastkessel!C8,(IF(AND(Master!D5>134,Master!D5<150),Spitzenlastkessel!C9,(IF(AND(Master!D5>149,Master!D5<200),Spitzenlastkessel!C10,(IF(AND(Master!D5>199,Master!D5<240),Spitzenlastkessel!C11,(IF(AND(Master!D5>239,Master!D5<300),Spitzenlastkessel!C12,(IF(AND(Master!D5>299,Master!D5<370),Spitzenlastkessel!C13,(IF(AND(Master!D5>369,Master!D5<450),Spitzenlastkessel!C14,(IF(AND(Master!D5>449,Master!D5<520),Spitzenlastkessel!C15,"Anlagenheizlast zu groß"))))))))))))))))))))))) -> Spitzenlastkessel GMR 3035 (35 kW) | D46: =IF(AND(Master!D5>29,Master!D5<55),Spitzenlastkessel!E4,(IF(AND(Master!D5>54,Master!D5<65),Spitzenlastkessel!E5,(IF(AND(Master!D5>64,Master!D5<85),Spitzenlastkessel!E6,(IF(AND(Master!D5>84,Master!D5<110),Spitzenlastkessel!E7,(IF(AND(Master!D5>109,Master!D5<135),Spitzenlastkessel!E8,(IF(AND(Master!D5>134,Master!D5<150),Spitzenlastkessel!E9,(IF(AND(Master!D5>149,Master!D5<200),Spitzenlastkessel!E10,(IF(AND(Master!D5>199,Master!D5<240),Spitzenlastkessel!E11,(IF(AND(Master!D5>239,Master!D5<300),Spitzenlastkessel!E12,(IF(AND(Master!D5>299,Master!D5<370),Spitzenlastkessel!E13,(IF(AND(Master!D5>369,Master!D5<450),Spitzenlastkessel!E14,(IF(AND(Master!D5>449,Master!D5<520),Spitzenlastkessel!E15,"Anlagenheizlast zu groß"))))))))))))))))))))))) -> 3600 | E46: € | F46: (gewählt) | L46: =(100/L45)*D52 -> 100 | M46: Prozentuale Anlagenheizlast von GAWP
A47: Investitionskosten gesamt: | D47: =(D44+D46-D45) ->  | E47: € | I47: N_I_GAWP_u_BW | L47: =MROUND(L46,5) -> 100 | M47: Gerundet
Q48: Prozentuale Anlagen- heizlast der GAWP
A49: 3b | L49: =VLOOKUP(L47,Q52:R79,2) -> 100 | M49: Deckungsrate GAWP | R49: Deckungs- rate
A50: Betriebskosten
A51: Max. Leistung Brennwertgerät | D51: =IF(L39<0,0,(Master!D5-D52)) -> 0 | E51: kW
A52: Leistung GAWP | D52: =(L42) -> 40 | E52: kW | Q52: 0 | R52: 0
Q53: 5 | R53: 8
A54: Deckungsrate Brennwertgerät | D54: =(100-D55) -> 0 | E54: % | F54: (Ergibt sich aus Leistungsverhältnis Brennwertgerät/GAWP) | Q54: 10 | R54: 15
A55: Deckungsrate GAWP | D55: =VLOOKUP(L47,Q52:R79,2) -> 100 | E55: % | F55: (Ergibt sich aus Leistungsverhältnis Brennwertgerät/GAWP) | Q55: 15 | R55: 25
Q56: 20 | R56: 33
A57: Jahresarbeit Gas-Brennwertgerät | D57: =(D30*(D54/100)) -> 0 | E57: kWh/a | F57: (Deckungsrate berücksichtigt)
A58: Jahresarbeit GAWP | D58: =(D30*(D55/100)) -> 80000 | E58: kWh/a | F58: (Deckungsrate berücksichtigt) | Q58: 25 | R58: 41
Q59: 30 | R59: 50
A60: Vollbenutzungsstunden Gas-Brennwertgerät | D60: =IF(D51=0,0,(D57/D51)) -> 0 | E60: h | F60: (ergibt sich aus Jahresarbeit/Leistung)
A61: Vollbenutzungsstunden GAWP | D61: =(D58/D52) -> 2000 | E61: h | F61: (ergibt sich aus Jahresarbeit/Leistung) | Q61: 35 | R61: 58
Q62: 40 | R62: 67
A63: Gasverbrauch Gas-Brennwertgerät | D63: =(D57/D3) -> 0 | E63: kWh/a | F63: (ergibt sich aus Jahresarbeit/Wirkungsgrad) | I63: N_B_GAS_BW
A64: Gasverbrauch GAWP | D64: =(D58/D4) -> 51612.90323 | E64: kWh/a | F64: (ergibt sich aus Jahresarbeit/Wirkungsgrad) | I64: N_B_GAS_GAWP | Q64: 45 | R64: 75
Q65: 50 | R65: 80
A66: Kosten Gasverbrauch Gas-Brennwertgerät | D66: =(D63*D15) -> 0 | E66: €/a | F66: (ergibt sich aus Gasverbrauch x mittlerer Gaspreis)
A67: Kosten Gasverbrauch GAWP | D67: =(D64*D15) -> 5818.715039 | E67: €/a | F67: (ergibt sich aus Gasverbrauch x mittlerer Gaspreis) | Q67: 55 | R67: 83
Q68: 60 | R68: 87
A69: Wartungskosten Gas-Brennwertgerät | D69: 300 | E69: €/a | I69: N_B_WART_BW
A70: Wartungskosten GAWP | D70: 300 | E70: €/a | I70: N_B_WART_GAWP | Q70: 65 | R70: 90
Q71: 70 | R71: 92
A72: Stromverbrauch GAWP | D72: =(D61*D5) -> 940 | E72: kWh/a | I72: N_B_STROM_LÜ_GAWP | Q72: 75 | R72: 94
A73: Stromkosten GAWP | D73: =(D72*D19) -> 385.3576278 | E73: €/a | F73: (Stromverbrauch x mittlerer Strompreis) | Q73: 80 | R73: 96
A74: Stromverbrauch Gas-Brennwertgerät | D74: =(D60*D6) -> 0 | E74: kWh/a | I74: N_B_STROM_BW
A75: Stromkosten Gas-Brennwertgerät | D75: =(D74*D19) -> 0 | E75: €/a | F75: (Stromverbrauch x mittlerer Strompreis)
A76: Stromverbrauch 2 x Umwälzpumpe GAWP | D76: =((D61)*D6*2) -> 200 | E76: kWh/a | I76: N_B_STROM_PU_GAWP | Q76: 85 | R76: 97
A77: Stromkosten 2 x Umwälzpumpe GAWP | D77: =(D76*D19) -> 81.99098464 | E77: €/a | F77: (Stromverbrauch x mittlerer Strompreis) | Q77: 90 | R77: 98
Q78: 95 | R78: 99
A79: Betriebskosten pro Jahr gesamt: | D79: =SUM(D66:D70)+D77+D73+D75 -> 6886.063652 | E79: €/a | Q79: 100 | R79: 100
A81: FAZIT:
A82: Mittlere Energieeinsparung pro Jahr bei Einsatz
A83: von einer GAWP SW und Gas-Brennwertgerät
A84: gegenüber "nur Gas-Brennwert": | D84: =(D37-D79) -> 1963.430247 | E84: €/a
A86: Differenz Investitionskosten: | D86: =(D47-D26) ->  | E86: €
A88: Für einen auf 20 Jahre gemittelten Engergiepreis
A89: ergibt sich eine Amortisationszeit von: | D89: =IF((D86/D84)<0,"sofort",(D86/D84)) ->  | E89: =IF((D86/D84)<0,"","Jahren") -> 

Sheet SW2 bival GAS
A1: Aktueller Gaspreis | D1: =(Energiepreisberechnung!D28) -> 0.055 | E1: €/kWh
A2: Aktueller Strompreis | D2: =(Energiepreisberechnung!D31) -> 0.2 | E2: €/kWh
A3: Gemittelter Wirkungsgrad Gasbrennwertgerät | D3: 1.06
A4: Gemittelter Wirkungsgrad GAWP SW | D4: 1.55
A5: Elektr. Leistung GAWP SW | D5: 0.47 | E5: kW
A6: Elektr. Leistung Kesselkreispumpe | D6: 0.06 | E6: kW
A7: Elektr. Leistung Umwälzpumpe GAWP | D7: 0.05 | E7: kW
A9: Gesucht: | B9: Investitions- und Betriebskosten während 20 Jahren
A11: 1.
A12: Errechnung der mittleren Energiepreise binnen 20 Jahren
A14: Gaspreis Anfangsjahr: | D14: =(D1) -> 0.055 | E14: €/kWh
A15: Gaspreis im 20´sten Jahr: | D15: =(Energiepreisberechnung!C22) -> 0.1989090144 | E15: €/kWh
A16: Mittlerer Gaspreis während 20 Jahren: | D16: =(Energiepreisberechnung!C24) -> 0.1127376039 | E16: €/kWh
A18: Strompreis Anfangsjahr: | D18: =(D2) -> 0.2 | E18: €/kWh
A19: Strompreis im 20´sten Jahr: | D19: =(Energiepreisberechnung!E22) -> 0.723305507 | E19: €/kWh
A20: Mittlerer Strompreis während 20 Jahren: | D20: =(Energiepreisberechnung!E24) -> 0.4099549232 | E20: €/kWh
A22: 2.
A23: Betrachtung für ein neues Gasbrennwertgerät | D23: =(Master!D5) -> 40 | E23: kW
A25: 2a
A26: Investitionskosten | D26: =(Master!D8) -> 5000 | E26: €
A27: Investitionskosten gesamt: | D27: =(D26) -> 5000 | E27: € | I27: R_I_GAS
A29: 2b
A30: Betriebskosten Gas-Brennwertgerät
A31: Jahresarbeit Gas-Brennwertgerät | D31: =(Master!D5*Master!D6) -> 80000 | E31: kWh/a | F31: (Leistung x Jahresvollbenutzungsstunden)
A32: Energieverbrauch Gas-Brennwertgerät | D32: =(D31/D3) -> 75471.69811 | E32: kWh/a | F32: (Wirkungsgrad berücksichtigt) | I32: R_B_GAS
A33: Kosten Gas | D33: =(D32*D16) -> 8508.498406 | E33: €/a
A34: Wartungskosten Gas-Brennwertgerät | D34: 300 | E34: €/a | I34: R_B_WART_GAS
A35: Stromverbrauch 1 Stück Kesselkreispumpe | D35: =(Master!D6*D7) -> 100 | E35: kWh/a | I35: R_B_STROM_GAS
A36: Stromkosten 1 Stück Kesselkreispumpe | D36: =(D35*D20) -> 40.99549232 | E36: €/a | F36: (Stromverbrauch x mittlerer Strompreis)
A38: Betriebskosten pro Jahr gesamt: | D38: =SUM(D33:D34)+D36 -> 8849.493899 | E38: €/a
L39: Negative Werte sollen gleich Null gesetzt werden
A40: 3. | L40: =(Master!D5-D53) -> 0
A41: Betrachtung für zwei GAWP 40 SW (80 kW) sowie Spitzenlastkessel
L42: Wärmepumpe soll nur die Anlagenheizlast erbringen, welche erforderlich ist
A43: 3a | L43: =IF(Master!D5<80,Master!D5,80) -> 40
A44: Investitionskosten
A45: 2 x GAWP + Zubehör | D45: =IF(Master!T12=TRUE,25000, (IF(Master!T13=TRUE,45000, (IF(Master!T14=TRUE,65000,""))))) ->  | E45: € | L45: Deckungsrate GAWP
A46: Förderung BAFA | D46: =IF(Master!$T$12=TRUE,(2400+100*30), (IF(Master!$T$13=TRUE,(2400+100*70), (IF(Master!$T$14=TRUE,(2400+100*110),""))))) ->  | E46: € | L46: =(D52+D53) -> 40 | M46: Max Leistung BW plus Leistung GAWP
A47: =IF(AND(Master!D5>29,Master!D5<55),Spitzenlastkessel!C4,(IF(AND(Master!D5>54,Master!D5<65),Spitzenlastkessel!C5,(IF(AND(Master!D5>64,Master!D5<85),Spitzenlastkessel!C6,(IF(AND(Master!D5>84,Master!D5<110),Spitzenlastkessel!C7,(IF(AND(Master!D5>109,Master!D5<135),Spitzenlastkessel!C8,(IF(AND(Master!D5>134,Master!D5<150),Spitzenlastkessel!C9,(IF(AND(Master!D5>149,Master!D5<200),Spitzenlastkessel!C10,(IF(AND(Master!D5>199,Master!D5<240),Spitzenlastkessel!C11,(IF(AND(Master!D5>239,Master!D5<300),Spitzenlastkessel!C12,(IF(AND(Master!D5>299,Master!D5<370),Spitzenlastkessel!C13,(IF(AND(Master!D5>369,Master!D5<450),Spitzenlastkessel!C14,(IF(AND(Master!D5>449,Master!D5<520),Spitzenlastkessel!C15,"Anlagenheizlast zu groß"))))))))))))))))))))))) -> Spitzenlastkessel GMR 3035 (35 kW) | D47: =IF(AND(Master!D5>29,Master!D5<55),Spitzenlastkessel!E4,(IF(AND(Master!D5>54,Master!D5<65),Spitzenlastkessel!E5,(IF(AND(Master!D5>64,Master!D5<85),Spitzenlastkessel!E6,(IF(AND(Master!D5>84,Master!D5<110),Spitzenlastkessel!E7,(IF(AND(Master!D5>109,Master!D5<135),Spitzenlastkessel!E8,(IF(AND(Master!D5>134,Master!D5<150),Spitzenlastkessel!E9,(IF(AND(Master!D5>149,Master!D5<200),Spitzenlastkessel!E10,(IF(AND(Master!D5>199,Master!D5<240),Spitzenlastkessel!E11,(IF(AND(Master!D5>239,Master!D5<300),Spitzenlastkessel!E12,(IF(AND(Master!D5>299,Master!D5<370),Spitzenlastkessel!E13,(IF(AND(Master!D5>369,Master!D5<450),Spitzenlastkessel!E14,(IF(AND(Master!D5>449,Master!D5<520),Spitzenlastkessel!E15,"Anlagenheizlast zu groß"))))))))))))))))))))))) -> 3600 | E47: € | F47: (gewählt) | L47: =(100/L46)*D53 -> 100 | M47: Prozentuale Anlagenheizlast von GAWP
A48: Investitionskosten gesamt: | D48: =(D45+D47-D46) ->  | E48: € | I48: N_I_GAWP_u_BW | L48: =MROUND(L47,5) -> 100 | M48: Gerundet
Q49: Prozentuale Anlagen- heizlast der GAWP
A50: 3b | L50: =VLOOKUP(L48,Q53:R80,2) -> 100 | M50: Deckungsrate GAWP | R50: Deckungs- rate
A51: Betriebskosten
A52: Max. Leistung Brennwertgerät | D52: =IF(L40<0,0,(Master!D5-D53)) -> 0 | E52: kW
A53: Leistung 2 x GAWP | D53: =(L43) -> 40 | E53: kW | Q53: 0 | R53: 0
Q54: 5 | R54: 8
A55: Deckungsrate Brennwertgerät | D55: =(100-D56) -> 0 | E55: % | F55: (Ergibt sich aus Leistungsverhältnis Brennwertgerät/GAWP) | Q55: 10 | R55: 15
A56: Deckungsrate 2 x GAWP | D56: =VLOOKUP(L48,Q53:R80,2) -> 100 | E56: % | F56: (Ergibt sich aus Leistungsverhältnis Brennwertgerät/GAWP) | Q56: 15 | R56: 25
Q57: 20 | R57: 33
A58: Jahresarbeit Gas-Brennwertgerät | D58: =(D31*(D55/100)) -> 0 | E58: kWh/a | F58: (Deckungsrate berücksichtigt)
A59: Jahresarbeit 2 x GAWP | D59: =(D31*(D56/100)) -> 80000 | E59: kWh/a | F59: (Deckungsrate berücksichtigt) | Q59: 25 | R59: 41
Q60: 30 | R60: 50
A61: Vollbenutzungsstunden Gas-Brennwertgerät | D61: =IF(D52=0,0,(D58/D52)) -> 0 | E61: h | F61: (ergibt sich aus Jahresarbeit/Leistung)
A62: Vollbenutzungsstunden 2 x GAWP | D62: =(D59/D53) -> 2000 | E62: h | F62: (ergibt sich aus Jahresarbeit/Leistung) | Q62: 35 | R62: 58
Q63: 40 | R63: 67
A64: Gasverbrauch Gas-Brennwertgerät | D64: =(D58/D3) -> 0 | E64: kWh/a | F64: (ergibt sich aus Jahresarbeit/Wirkungsgrad) | I64: N_B_GAS_BW
A65: Gasverbrauch 2 x GAWP | D65: =(D59/D4) -> 51612.90323 | E65: kWh/a | F65: (ergibt sich aus Jahresarbeit/Wirkungsgrad) | I65: N_B_GAS_GAWP | Q65: 45 | R65: 75
Q66: 50 | R66: 80
A67: Kosten Gasverbrauch Gas-Brennwertgerät | D67: =(D64*D16) -> 0 | E67: €/a | F67: (ergibt sich aus Gasverbrauch x mittlerer Gaspreis)
A68: Kosten Gasverbrauch 2 x GAWP | D68: =(D65*D16) -> 5818.715039 | E68: €/a | F68: (ergibt sich aus Gasverbrauch x mittlerer Gaspreis) | Q68: 55 | R68: 83
Q69: 60 | R69: 87
A70: Wartungskosten Gas-Brennwertgerät | D70: 300 | E70: €/a | I70: N_B_WART_BW
A71: Wartungskosten 2 x GAWP | D71: 500 | E71: €/a | I71: N_B_WART_GAWP | Q71: 65 | R71: 90
Q72: 70 | R72: 92
A73: Stromverbrauch 2 x GAWP | D73: =(D62*D5)*2 -> 1880 | E73: kWh/a | I73: N_B_STROM_LÜ_GAWP | Q73: 75 | R73: 94
A74: Stromkosten 2 x GAWP | D74: =(D73*D20) -> 770.7152556 | E74: €/a | F74: (Stromverbrauch x mittlerer Strompreis) | Q74: 80 | R74: 96
A75: Stromverbrauch Gas-Brennwertgerät | D75: =(D61*D6) -> 0 | E75: kWh/a | I75: N_B_STROM_BW
A76: Stromkosten Gas-Brennwertgerät | D76: =(D75*D20) -> 0 | E76: €/a | F76: (Stromverbrauch x mittlerer Strompreis)
A77: Stromverbrauch 4 x Umwälzpumpe GAWP | D77: =((D62)*D7*4) -> 400 | E77: kWh/a | I77: N_B_STROM_PU_GAWP | Q77: 85 | R77: 97
A78: Stromkosten 4 x Umwälzpumpe GAWP | D78: =(D77*D20) -> 163.9819693 | E78: €/a | F78: (Stromverbrauch x mittlerer Strompreis) | Q78: 90 | R78: 98
Q79: 95 | R79: 99
A80: Betriebskosten pro Jahr gesamt: | D80: =SUM(D67:D71)+D78+D74+D76 -> 7553.412264 | E80: €/a | Q80: 100 | R80: 100
A82: FAZIT:
A83: Mittlere Energieeinsparung pro Jahr bei Einsatz
A84: von zwei GAWP SW und Gas-Brennwertgerät
A85: gegenüber "nur Gas-Brennwert": | D85: =(D38-D80) -> 1296.081635 | E85: €/a
A87: Differenz Investitionskosten: | D87: =(D48-D27) ->  | E87: €
A89: Für einen auf 20 Jahre gemittelten Engergiepreis
A90: ergibt sich eine Amortisationszeit von: | D90: =IF((D87/D85)<0,"sofort",(D87/D85)) ->  | E90: =IF((D87/D85)<0,"","Jahren") -> 

Sheet SW3 bival GAS
A1: Aktueller Gaspreis | D1: =(Energiepreisberechnung!D28) -> 0.055 | E1: €/kWh
A2: Aktueller Strompreis | D2: =(Energiepreisberechnung!D31) -> 0.2 | E2: €/kWh
A3: Gemittelter Wirkungsgrad Gasbrennwertgerät | D3: 1.06
A4: Gemittelter Wirkungsgrad GAWP SW | D4: 1.55
A5: Elektr. Leistung GAWP SW | D5: 0.47 | E5: kW
A6: Elektr. Leistung Kesselkreispumpe | D6: 0.1 | E6: kW
A7: Elektr. Leistung Umwälzpumpe GAWP | D7: 0.05 | E7: kW
A9: Gesucht: | B9: Investitions- und Betriebskosten während 20 Jahren
A11: 1.
A12: Errechnung der mittleren Energiepreise binnen 20 Jahren
A14: Gaspreis Anfangsjahr: | D14: =(D1) -> 0.055 | E14: €/kWh
A15: Gaspreis im 20´sten Jahr: | D15: =(Energiepreisberechnung!C22) -> 0.1989090144 | E15: €/kWh
A16: Mittlerer Gaspreis während 20 Jahren: | D16: =(Energiepreisberechnung!C24) -> 0.1127376039 | E16: €/kWh
A18: Strompreis Anfangsjahr: | D18: =(D2) -> 0.2 | E18: €/kWh
A19: Strompreis im 20´sten Jahr: | D19: =(Energiepreisberechnung!E22) -> 0.723305507 | E19: €/kWh
A20: Mittlerer Strompreis während 20 Jahren: | D20: =(Energiepreisberechnung!E24) -> 0.4099549232 | E20: €/kWh
A22: 2.
A23: Betrachtung für ein neues Gasbrennwertgerät | D23: =(Master!D5) -> 40 | E23: kW
A25: 2a
A26: Investitionskosten | D26: =(Master!D8) -> 5000 | E26: €
A27: Investitionskosten gesamt: | D27: =(D26) -> 5000 | E27: € | I27: R_I_GAS
A29: 2b
A30: Betriebskosten Gas-Brennwertgerät
A31: Jahresarbeit Gas-Brennwertgerät | D31: =(Master!D5*Master!D6) -> 80000 | E31: kWh/a | F31: (Leistung x Jahresvollbenutzungsstunden)
A32: Energieverbrauch Gas-Brennwertgerät | D32: =(D31/D3) -> 75471.69811 | E32: kWh/a | F32: (Wirkungsgrad berücksichtigt) | I32: R_B_GAS
A33: Kosten Gas | D33: =(D32*D16) -> 8508.498406 | E33: €/a
A34: Wartungskosten Gas-Brennwertgerät | D34: 300 | E34: €/a | I34: R_B_WART_GAS
A35: Stromverbrauch 1 Stück Kesselkreispumpe | D35: =(Master!D6*D6) -> 200 | E35: kWh/a | I35: R_B_STROM_GAS
A36: Stromkosten 1 Stück Kesselkreispumpe | D36: =(D35*D20) -> 81.99098464 | E36: €/a | F36: (Stromverbrauch x mittlerer Strompreis)
A38: Betriebskosten pro Jahr gesamt: | D38: =SUM(D33:D34)+D36 -> 8890.489391 | E38: €/a
L39: Negative Werte sollen gleich Null gesetzt werden
A40: 3. | L40: =(Master!D5-D53) -> 0
A41: Betrachtung für drei GAWP 40 SW (120 kW) sowie Spitzenlastkessel
L42: Wärmepumpe soll nur die Anlagenheizlast erbringen, welche erforderlich ist
A43: 3a | L43: =IF(Master!D5<120,Master!D5,120) -> 40
A44: Investitionskosten
A45: 3 x GAWP + Zubehör | D45: =IF(Master!T12=TRUE,25000, (IF(Master!T13=TRUE,45000, (IF(Master!T14=TRUE,65000,""))))) ->  | E45: € | L45: Deckungsrate GAWP
A46: Förderung BAFA | D46: =IF(Master!$T$12=TRUE,(2400+100*30), (IF(Master!$T$13=TRUE,(2400+100*70), (IF(Master!$T$14=TRUE,(2400+100*110),""))))) ->  | E46: € | L46: =(D52+D53) -> 40 | M46: Max Leistung BW plus Leistung GAWP
A47: =IF(AND(Master!D5>29,Master!D5<55),Spitzenlastkessel!C4,(IF(AND(Master!D5>54,Master!D5<65),Spitzenlastkessel!C5,(IF(AND(Master!D5>64,Master!D5<85),Spitzenlastkessel!C6,(IF(AND(Master!D5>84,Master!D5<110),Spitzenlastkessel!C7,(IF(AND(Master!D5>109,Master!D5<135),Spitzenlastkessel!C8,(IF(AND(Master!D5>134,Master!D5<150),Spitzenlastkessel!C9,(IF(AND(Master!D5>149,Master!D5<200),Spitzenlastkessel!C10,(IF(AND(Master!D5>199,Master!D5<240),Spitzenlastkessel!C11,(IF(AND(Master!D5>239,Master!D5<300),Spitzenlastkessel!C12,(IF(AND(Master!D5>299,Master!D5<370),Spitzenlastkessel!C13,(IF(AND(Master!D5>369,Master!D5<450),Spitzenlastkessel!C14,(IF(AND(Master!D5>449,Master!D5<520),Spitzenlastkessel!C15,"Anlagenheizlast zu groß"))))))))))))))))))))))) -> Spitzenlastkessel GMR 3035 (35 kW) | D47: =IF(AND(Master!D5>29,Master!D5<55),Spitzenlastkessel!E4,(IF(AND(Master!D5>54,Master!D5<65),Spitzenlastkessel!E5,(IF(AND(Master!D5>64,Master!D5<85),Spitzenlastkessel!E6,(IF(AND(Master!D5>84,Master!D5<110),Spitzenlastkessel!E7,(IF(AND(Master!D5>109,Master!D5<135),Spitzenlastkessel!E8,(IF(AND(Master!D5>134,Master!D5<150),Spitzenlastkessel!E9,(IF(AND(Master!D5>149,Master!D5<200),Spitzenlastkessel!E10,(IF(AND(Master!D5>199,Master!D5<240),Spitzenlastkessel!E11,(IF(AND(Master!D5>239,Master!D5<300),Spitzenlastkessel!E12,(IF(AND(Master!D5>299,Master!D5<370),Spitzenlastkessel!E13,(IF(AND(Master!D5>369,Master!D5<450),Spitzenlastkessel!E14,(IF(AND(Master!D5>449,Master!D5<520),Spitzenlastkessel!E15,"Anlagenheizlast zu groß"))))))))))))))))))))))) -> 3600 | E47: € | F47: (gewählt) | L47: =(100/L46)*D53 -> 100 | M47: Prozentuale Anlagenheizlast von GAWP
A48: Investitionskosten gesamt: | D48: =(D45+D47-D46) ->  | E48: € | I48: N_I_GAWP_u_BW | L48: =MROUND(L47,5) -> 100 | M48: Gerundet
Q49: Prozentuale Anlagen- heizlast der GAWP
A50: 3b | L50: =VLOOKUP(L48,Q53:R80,2) -> 100 | M50: Deckungsrate GAWP | R50: Deckungs- rate
A51: Betriebskosten
A52: Max. Leistung Brennwertgerät | D52: =IF(L40<0,0,(Master!D5-D53)) -> 0 | E52: kW
A53: Leistung 3 x GAWP | D53: =(L43) -> 40 | E53: kW | Q53: 0 | R53: 0
Q54: 5 | R54: 8
A55: Deckungsrate Brennwertgerät | D55: =(100-D56) -> 0 | E55: % | F55: (Ergibt sich aus Leistungsverhältnis Brennwertgerät/GAWP) | Q55: 10 | R55: 15
A56: Deckungsrate 3 x GAWP | D56: =VLOOKUP(L48,Q53:R80,2) -> 100 | E56: % | F56: (Ergibt sich aus Leistungsverhältnis Brennwertgerät/GAWP) | Q56: 15 | R56: 25
Q57: 20 | R57: 33
A58: Jahresarbeit Gas-Brennwertgerät | D58: =(D31*(D55/100)) -> 0 | E58: kWh/a | F58: (Deckungsrate berücksichtigt)
A59: Jahresarbeit 3 x GAWP | D59: =(D31*(D56/100)) -> 80000 | E59: kWh/a | F59: (Deckungsrate berücksichtigt) | Q59: 25 | R59: 41
Q60: 30 | R60: 50
A61: Vollbenutzungsstunden Gas-Brennwertgerät | D61: =IF(D52=0,0,(D58/D52)) -> 0 | E61: h | F61: (ergibt sich aus Jahresarbeit/Leistung)
A62: Vollbenutzungsstunden 3 x GAWP | D62: =(D59/D53) -> 2000 | E62: h | F62: (ergibt sich aus Jahresarbeit/Leistung) | Q62: 35 | R62: 58
Q63: 40 | R63: 67
A64: Gasverbrauch Gas-Brennwertgerät | D64: =(D58/D3) -> 0 | E64: kWh/a | F64: (ergibt sich aus Jahresarbeit/Wirkungsgrad) | I64: N_B_GAS_BW
A65: Gasverbrauch 3 x GAWP | D65: =(D59/D4) -> 51612.90323 | E65: kWh/a | F65: (ergibt sich aus Jahresarbeit/Wirkungsgrad) | I65: N_B_GAS_GAWP | Q65: 45 | R65: 75
Q66: 50 | R66: 80
A67: Kosten Gasverbrauch Gas-Brennwertgerät | D67: =(D64*D16) -> 0 | E67: €/a | F67: (ergibt sich aus Gasverbrauch x mittlerer Gaspreis)
A68: Kosten Gasverbrauch 3 x GAWP | D68: =(D65*D16) -> 5818.715039 | E68: €/a | F68: (ergibt sich aus Gasverbrauch x mittlerer Gaspreis) | Q68: 55 | R68: 83
Q69: 60 | R69: 87
A70: Wartungskosten Gas-Brennwertgerät | D70: 300 | E70: €/a | I70: N_B_WART_BW
A71: Wartungskosten 3 x GAWP | D71: 700 | E71: €/a | I71: N_B_WART_GAWP | Q71: 65 | R71: 90
Q72: 70 | R72: 92
A73: Stromverbrauch 3 x GAWP | D73: =(D62*D5)*3 -> 2820 | E73: kWh/a | I73: N_B_STROM_LÜ_GAWP | Q73: 75 | R73: 94
A74: Stromkosten 3 x GAWP | D74: =(D73*D20) -> 1156.072883 | E74: €/a | F74: (Stromverbrauch x mittlerer Strompreis) | Q74: 80 | R74: 96
A75: Stromverbrauch Gas-Brennwertgerät | D75: =(D61*D6) -> 0 | E75: kWh/a | I75: N_B_STROM_BW
A76: Stromkosten Gas-Brennwertgerät | D76: =(D75*D20) -> 0 | E76: €/a | F76: (Stromverbrauch x mittlerer Strompreis)
A77: Stromverbrauch 6 x Umwälzpumpe GAWP | D77: =((D62)*D7*6) -> 600 | E77: kWh/a | I77: N_B_STROM_PU_GAWP | Q77: 85 | R77: 97
A78: Stromkosten 6 x Umwälzpumpe GAWP | D78: =(D77*D20) -> 245.9729539 | E78: €/a | F78: (Stromverbrauch x mittlerer Strompreis) | Q78: 90 | R78: 98
Q79: 95 | R79: 99
A80: Betriebskosten pro Jahr gesamt: | D80: =SUM(D67:D71)+D78+D74+D76 -> 8220.760877 | E80: €/a | Q80: 100 | R80: 100
A82: FAZIT:
A83: Mittlere Energieeinsparung pro Jahr bei Einsatz
A84: von drei GAWP SW und Gas-Brennwertgerät
A85: gegenüber "nur Gas-Brennwert": | D85: =(D38-D80) -> 669.7285144 | E85: €/a
A87: Differenz Investitionskosten: | D87: =(D48-D27) ->  | E87: €
A89: Für einen auf 20 Jahre gemittelten Engergiepreis
A90: ergibt sich eine Amortisationszeit von: | D90: =IF((D87/D85)<0,"sofort",(D87/D85)) ->  | E90: =IF((D87/D85)<0,"","Jahren") -> 

Sheet SW bival FLGAS
A1: Aktueller Flüssiggaspreis | D1: =(Energiepreisberechnung!D29) -> 0.07 | E1: €/kWh
A2: Aktueller Strompreis | D2: =(Energiepreisberechnung!D31) -> 0.2 | E2: €/kWh
A3: Gemittelter Wirkungsgrad Gasbrennwertgerät | D3: 1.06
A4: Gemittelter Wirkungsgrad GAWP SW | D4: 1.55
A5: Elektr. Leistung GAWP SW | D5: 0.47 | E5: kW
A6: Elektr. Leistung Kesselkreispumpe | D6: 0.05 | E6: kW
A8: Gesucht: | B8: Investitions- und Betriebskosten während 20 Jahren
A10: 1.
A11: Errechnung der mittleren Energiepreise binnen 20 Jahren
A13: Flüssiggaspreis Anfangsjahr: | D13: =(D1) -> 0.07 | E13: €/kWh
A14: Flüssiggaspreis im 20´sten Jahr: | D14: =(Energiepreisberechnung!D22) -> 0.2531569275 | E14: €/kWh
A15: Mittlerer Flüssiggaspreis während 20 Jahren: | D15: =(Energiepreisberechnung!D24) -> 0.1434842231 | E15: €/kWh
A17: Strompreis Anfangsjahr: | D17: =(D2) -> 0.2 | E17: €/kWh
A18: Strompreis im 20´sten Jahr: | D18: =(Energiepreisberechnung!E22) -> 0.723305507 | E18: €/kWh
A19: Mittlerer Strompreis während 20 Jahren: | D19: =(Energiepreisberechnung!E24) -> 0.4099549232 | E19: €/kWh
A21: 2.
A22: Betrachtung für ein neues Gasbrennwertgerät | D22: =(Master!D5) -> 40 | E22: kW
A24: 2a
A25: Investitionskosten | D25: =(Master!D8) -> 5000 | E25: €
A26: Investitionskosten gesamt: | D26: =(D25) -> 5000 | E26: € | I26: R_I_GAS
A28: 2b
A29: Betriebskosten Gas-Brennwertgerät
A30: Jahresarbeit Gas-Brennwertgerät | D30: =(Master!D5*Master!D6) -> 80000 | E30: kWh/a | F30: (Leistung x Jahresvollbenutzungsstunden)
A31: Energieverbrauch Gas-Brennwertgerät | D31: =(D30/D3) -> 75471.69811 | E31: kWh/a | F31: (Wirkungsgrad berücksichtigt) | I31: R_B_FLGAS
A32: Kosten Flüssiggas | D32: =(D31*D15) -> 10828.99797 | E32: €/a
A33: Wartungskosten Gas-Brennwertgerät | D33: 300 | E33: €/a | I33: R_B_WART_GAS
A34: Stromverbrauch 1 Stück Kesselkreispumpe | D34: =(Master!D6*D6) -> 100 | E34: kWh/a | I34: R_B_STROM_GAS
A35: Stromkosten 1 Stück Kesselkreispumpe | D35: =(D34*D19) -> 40.99549232 | E35: €/a | F35: (Stromverbrauch x mittlerer Strompreis)
A37: Betriebskosten pro Jahr gesamt: | D37: =SUM(D32:D33)+D35 -> 11169.99346 | E37: €/a
L38: Negative Werte sollen gleich Null gesetzt werden
A39: 3. | L39: =(Master!D5-D52) -> 0
A40: Betrachtung für eine GAWP 40 SW (40 kW) sowie Spitzenlastkessel
L41: Wärmepumpe soll nur die Anlagenheizlast erbringen, welche erforderlich ist
A42: 3a | L42: =IF(Master!D5<40,Master!D5,40) -> 40
A43: Investitionskosten
A44: GAWP + Zubehör | D44: =IF(Master!T12=TRUE,25000, (IF(Master!T13=TRUE,45000, (IF(Master!T14=TRUE,65000,""))))) ->  | E44: € | L44: Deckungsrate GAWP
A45: Förderung BAFA | D45: =IF(Master!$T$12=TRUE,(2400+100*30), (IF(Master!$T$13=TRUE,(2400+100*70), (IF(Master!$T$14=TRUE,(2400+100*110),""))))) ->  | E45: € | L45: =(D51+D52) -> 40 | M45: Max Leistung BW plus Leistung GAWP
A46: =IF(AND(Master!D5>29,Master!D5<55),Spitzenlastkessel!C4,(IF(AND(Master!D5>54,Master!D5<65),Spitzenlastkessel!C5,(IF(AND(Master!D5>64,Master!D5<85),Spitzenlastkessel!C6,(IF(AND(Master!D5>84,Master!D5<110),Spitzenlastkessel!C7,(IF(AND(Master!D5>109,Master!D5<135),Spitzenlastkessel!C8,(IF(AND(Master!D5>134,Master!D5<150),Spitzenlastkessel!C9,(IF(AND(Master!D5>149,Master!D5<200),Spitzenlastkessel!C10,(IF(AND(Master!D5>199,Master!D5<240),Spitzenlastkessel!C11,(IF(AND(Master!D5>239,Master!D5<300),Spitzenlastkessel!C12,(IF(AND(Master!D5>299,Master!D5<370),Spitzenlastkessel!C13,(IF(AND(Master!D5>369,Master!D5<450),Spitzenlastkessel!C14,(IF(AND(Master!D5>449,Master!D5<520),Spitzenlastkessel!C15,"Anlagenheizlast zu groß"))))))))))))))))))))))) -> Spitzenlastkessel GMR 3035 (35 kW) | D46: =IF(AND(Master!D5>29,Master!D5<55),Spitzenlastkessel!E4,(IF(AND(Master!D5>54,Master!D5<65),Spitzenlastkessel!E5,(IF(AND(Master!D5>64,Master!D5<85),Spitzenlastkessel!E6,(IF(AND(Master!D5>84,Master!D5<110),Spitzenlastkessel!E7,(IF(AND(Master!D5>109,Master!D5<135),Spitzenlastkessel!E8,(IF(AND(Master!D5>134,Master!D5<150),Spitzenlastkessel!E9,(IF(AND(Master!D5>149,Master!D5<200),Spitzenlastkessel!E10,(IF(AND(Master!D5>199,Master!D5<240),Spitzenlastkessel!E11,(IF(AND(Master!D5>239,Master!D5<300),Spitzenlastkessel!E12,(IF(AND(Master!D5>299,Master!D5<370),Spitzenlastkessel!E13,(IF(AND(Master!D5>369,Master!D5<450),Spitzenlastkessel!E14,(IF(AND(Master!D5>449,Master!D5<520),Spitzenlastkessel!E15,"Anlagenheizlast zu groß"))))))))))))))))))))))) -> 3600 | E46: € | F46: (gewählt) | L46: =(100/L45)*D52 -> 100 | M46: Prozentuale Anlagenheizlast von GAWP
A47: Investitionskosten gesamt: | D47: =(D44+D46-D45) ->  | E47: € | I47: N_I_GAWP_u_BW | L47: =MROUND(L46,5) -> 100 | M47: Gerundet
Q48: Prozentuale Anlagen- heizlast der GAWP
A49: 3b | L49: =VLOOKUP(L47,Q52:R79,2) -> 100 | M49: Deckungsrate GAWP | R49: Deckungs- rate
A50: Betriebskosten
A51: Max. Leistung Brennwertgerät | D51: =IF(L39<0,0,(Master!D5-D52)) -> 0 | E51: kW
A52: Leistung GAWP | D52: =(L42) -> 40 | E52: kW | Q52: 0 | R52: 0
Q53: 5 | R53: 8
A54: Deckungsrate Brennwertgerät | D54: =(100-D55) -> 0 | E54: % | F54: (Ergibt sich aus Leistungsverhältnis Brennwertgerät/GAWP) | Q54: 10 | R54: 15
A55: Deckungsrate GAWP | D55: =VLOOKUP(L47,Q52:R79,2) -> 100 | E55: % | F55: (Ergibt sich aus Leistungsverhältnis Brennwertgerät/GAWP) | Q55: 15 | R55: 25
Q56: 20 | R56: 33
A57: Jahresarbeit Gas-Brennwertgerät | D57: =(D30*(D54/100)) -> 0 | E57: kWh/a | F57: (Deckungsrate berücksichtigt)
A58: Jahresarbeit GAWP | D58: =(D30*(D55/100)) -> 80000 | E58: kWh/a | F58: (Deckungsrate berücksichtigt) | Q58: 25 | R58: 41
Q59: 30 | R59: 50
A60: Vollbenutzungsstunden Gas-Brennwertgerät | D60: =IF(D51=0,0,(D57/D51)) -> 0 | E60: h | F60: (ergibt sich aus Jahresarbeit/Leistung)
A61: Vollbenutzungsstunden GAWP | D61: =(D58/D52) -> 2000 | E61: h | F61: (ergibt sich aus Jahresarbeit/Leistung) | Q61: 35 | R61: 58
Q62: 40 | R62: 67
A63: Flüssiggasverbrauch Gas-Brennwertgerät | D63: =(D57/D3) -> 0 | E63: kWh/a | F63: (ergibt sich aus Jahresarbeit/Wirkungsgrad) | I63: N_B_FLGAS_BW
A64: Flüssiggasverbrauch GAWP | D64: =(D58/D4) -> 51612.90323 | E64: kWh/a | F64: (ergibt sich aus Jahresarbeit/Wirkungsgrad) | I64: N_B_FLGAS_GAWP | Q64: 45 | R64: 75
Q65: 50 | R65: 80
A66: Kosten Flüssiggasverbrauch Gas-Brennwertgerät | D66: =(D63*D15) -> 0 | E66: €/a | F66: (ergibt sich aus Flüssiggasverbrauch x mittlerer Flüssiggaspreis)
A67: Kosten Flüssiggasverbrauch GAWP | D67: =(D64*D15) -> 7405.637323 | E67: €/a | F67: (ergibt sich aus Flüssiggasverbrauch x mittlerer Flüssiggaspreis) | Q67: 55 | R67: 83
Q68: 60 | R68: 87
A69: Wartungskosten Gas-Brennwertgerät | D69: 300 | E69: €/a | I69: N_B_WART_BW
A70: Wartungskosten GAWP | D70: 300 | E70: €/a | I70: N_B_WART_GAWP | Q70: 65 | R70: 90
Q71: 70 | R71: 92
A72: Stromverbrauch GAWP | D72: =(D61*D5) -> 940 | E72: kWh/a | I72: N_B_STROM_LÜ_GAWP | Q72: 75 | R72: 94
A73: Stromkosten GAWP | D73: =(D72*D19) -> 385.3576278 | E73: €/a | F73: (Stromverbrauch x mittlerer Strompreis) | Q73: 80 | R73: 96
A74: Stromverbrauch Gas-Brennwertgerät | D74: =(D60*D6) -> 0 | E74: kWh/a | I74: N_B_STROM_BW
A75: Stromkosten Gas-Brennwertgerät | D75: =(D74*D19) -> 0 | E75: €/a | F75: (Stromverbrauch x mittlerer Strompreis)
A76: Stromverbrauch 2 x Umwälzpumpe GAWP | D76: =((D61)*D6*2) -> 200 | E76: kWh/a | I76: N_B_STROM_PU_GAWP | Q76: 85 | R76: 97
A77: Stromkosten 2 x Umwälzpumpe GAWP | D77: =(D76*D19) -> 81.99098464 | E77: €/a | F77: (Stromverbrauch x mittlerer Strompreis) | Q77: 90 | R77: 98
Q78: 95 | R78: 99
A79: Betriebskosten pro Jahr gesamt: | D79: =SUM(D66:D70)+D77+D73+D75 -> 8472.985935 | E79: €/a | Q79: 100 | R79: 100
A81: FAZIT:
A82: Mittlere Energieeinsparung pro Jahr bei Einsatz
A83: von einer GAWP SW und Gas-Brennwertgerät
A84: gegenüber "nur Gas-Brennwert" (Flüssiggas): | D84: =(D37-D79) -> 2697.007529 | E84: €/a
A86: Differenz Investitionskosten: | D86: =(D47-D26) ->  | E86: €
A88: Für einen auf 20 Jahre gemittelten Engergiepreis
A89: ergibt sich eine Amortisationszeit von: | D89: =IF((D86/D84)<0,"sofort",(D86/D84)) ->  | E89: =IF((D86/D84)<0,"","Jahren") -> 

Sheet SW2 bival FLGAS
A1: Aktueller Flüssiggaspreis | D1: =(Energiepreisberechnung!D29) -> 0.07 | E1: €/kWh
A2: Aktueller Strompreis | D2: =(Energiepreisberechnung!D31) -> 0.2 | E2: €/kWh
A3: Gemittelter Wirkungsgrad Gasbrennwertgerät | D3: 1.06
A4: Gemittelter Wirkungsgrad GAWP SW | D4: 1.55
A5: Elektr. Leistung GAWP SW | D5: 0.47 | E5: kW
A6: Elektr. Leistung Kesselkreispumpe | D6: 0.06 | E6: kW
A7: Elektr. Leistung Umwälzpumpe GAWP | D7: 0.05 | E7: kW
A9: Gesucht: | B9: Investitions- und Betriebskosten während 20 Jahren
A11: 1.
A12: Errechnung der mittleren Energiepreise binnen 20 Jahren
A14: Flüssiggaspreis Anfangsjahr: | D14: =(D1) -> 0.07 | E14: €/kWh
A15: Flüssiggaspreis im 20´sten Jahr: | D15: =(Energiepreisberechnung!D22) -> 0.2531569275 | E15: €/kWh
A16: Mittlerer Flüssiggaspreis während 20 Jahren: | D16: =(Energiepreisberechnung!D24) -> 0.1434842231 | E16: €/kWh
A18: Strompreis Anfangsjahr: | D18: =(D2) -> 0.2 | E18: €/kWh
A19: Strompreis im 20´sten Jahr: | D19: =(Energiepreisberechnung!E22) -> 0.723305507 | E19: €/kWh
A20: Mittlerer Strompreis während 20 Jahren: | D20: =(Energiepreisberechnung!E24) -> 0.4099549232 | E20: €/kWh
A22: 2.
A23: Betrachtung für ein neues Gasbrennwertgerät | D23: =(Master!D5) -> 40 | E23: kW
A25: 2a
A26: Investitionskosten | D26: =(Master!D8) -> 5000 | E26: €
A27: Investitionskosten gesamt: | D27: =(D26) -> 5000 | E27: € | I27: R_I_GAS
A29: 2b
A30: Betriebskosten Gas-Brennwertgerät
A31: Jahresarbeit Gas-Brennwertgerät | D31: =(Master!D5*Master!D6) -> 80000 | E31: kWh/a | F31: (Leistung x Jahresvollbenutzungsstunden)
A32: Energieverbrauch Gas-Brennwertgerät | D32: =(D31/D3) -> 75471.69811 | E32: kWh/a | F32: (Wirkungsgrad berücksichtigt) | I32: R_B_FLGAS
A33: Kosten Flüssiggas | D33: =(D32*D16) -> 10828.99797 | E33: €/a
A34: Wartungskosten Gas-Brennwertgerät | D34: 300 | E34: €/a | I34: R_B_WART_GAS
A35: Stromverbrauch 1 Stück Kesselkreispumpe | D35: =(Master!D6*D6) -> 120 | E35: kWh/a | I35: R_B_STROM_GAS
A36: Stromkosten 1 Stück Kesselkreispumpe | D36: =(D35*D20) -> 49.19459079 | E36: €/a | F36: (Stromverbrauch x mittlerer Strompreis)
A38: Betriebskosten pro Jahr gesamt: | D38: =SUM(D33:D34)+D36 -> 11178.19256 | E38: €/a
L39: Negative Werte sollen gleich Null gesetzt werden
A40: 3. | L40: =(Master!D5-D53) -> 0
A41: Betrachtung für zwei GAWP 40 SW (80 kW) sowie Spitzenlastkessel
L42: Wärmepumpe soll nur die Anlagenheizlast erbringen, welche erforderlich ist
A43: 3a | L43: =IF(Master!D5<80,Master!D5,80) -> 40
A44: Investitionskosten
A45: 2 x GAWP + Zubehör | D45: =IF(Master!T12=TRUE,25000, (IF(Master!T13=TRUE,45000, (IF(Master!T14=TRUE,65000,""))))) ->  | E45: € | L45: Deckungsrate GAWP
A46: Förderung BAFA | D46: =IF(Master!$T$12=TRUE,(2400+100*30), (IF(Master!$T$13=TRUE,(2400+100*70), (IF(Master!$T$14=TRUE,(2400+100*110),""))))) ->  | E46: € | L46: =(D52+D53) -> 40 | M46: Max Leistung BW plus Leistung GAWP
A47: =IF(AND(Master!D5>29,Master!D5<55),Spitzenlastkessel!C4,(IF(AND(Master!D5>54,Master!D5<65),Spitzenlastkessel!C5,(IF(AND(Master!D5>64,Master!D5<85),Spitzenlastkessel!C6,(IF(AND(Master!D5>84,Master!D5<110),Spitzenlastkessel!C7,(IF(AND(Master!D5>109,Master!D5<135),Spitzenlastkessel!C8,(IF(AND(Master!D5>134,Master!D5<150),Spitzenlastkessel!C9,(IF(AND(Master!D5>149,Master!D5<200),Spitzenlastkessel!C10,(IF(AND(Master!D5>199,Master!D5<240),Spitzenlastkessel!C11,(IF(AND(Master!D5>239,Master!D5<300),Spitzenlastkessel!C12,(IF(AND(Master!D5>299,Master!D5<370),Spitzenlastkessel!C13,(IF(AND(Master!D5>369,Master!D5<450),Spitzenlastkessel!C14,(IF(AND(Master!D5>449,Master!D5<520),Spitzenlastkessel!C15,"Anlagenheizlast zu groß"))))))))))))))))))))))) -> Spitzenlastkessel GMR 3035 (35 kW) | D47: =IF(AND(Master!D5>29,Master!D5<55),Spitzenlastkessel!E4,(IF(AND(Master!D5>54,Master!D5<65),Spitzenlastkessel!E5,(IF(AND(Master!D5>64,Master!D5<85),Spitzenlastkessel!E6,(IF(AND(Master!D5>84,Master!D5<110),Spitzenlastkessel!E7,(IF(AND(Master!D5>109,Master!D5<135),Spitzenlastkessel!E8,(IF(AND(Master!D5>134,Master!D5<150),Spitzenlastkessel!E9,(IF(AND(Master!D5>149,Master!D5<200),Spitzenlastkessel!E10,(IF(AND(Master!D5>199,Master!D5<240),Spitzenlastkessel!E11,(IF(AND(Master!D5>239,Master!D5<300),Spitzenlastkessel!E12,(IF(AND(Master!D5>299,Master!D5<370),Spitzenlastkessel!E13,(IF(AND(Master!D5>369,Master!D5<450),Spitzenlastkessel!E14,(IF(AND(Master!D5>449,Master!D5<520),Spitzenlastkessel!E15,"Anlagenheizlast zu groß"))))))))))))))))))))))) -> 3600 | E47: € | F47: (gewählt) | L47: =(100/L46)*D53 -> 100 | M47: Prozentuale Anlagenheizlast von GAWP
A48: Investitionskosten gesamt: | D48: =(D45+D47-D46) ->  | E48: € | I48: N_I_GAWP_u_BW | L48: =MROUND(L47,5) -> 100 | M48: Gerundet
Q49: Prozentuale Anlagen- heizlast der GAWP
A50: 3b | L50: =VLOOKUP(L48,Q53:R80,2) -> 100 | M50: Deckungsrate GAWP | R50: Deckungs- rate
A51: Betriebskosten
A52: Max. Leistung Brennwertgerät | D52: =IF(L40<0,0,(Master!D5-D53)) -> 0 | E52: kW
A53: Leistung 2 x GAWP | D53: =(L43) -> 40 | E53: kW | Q53: 0 | R53: 0
Q54: 5 | R54: 8
A55: Deckungsrate Brennwertgerät | D55: =(100-D56) -> 0 | E55: % | F55: (Ergibt sich aus Leistungsverhältnis Brennwertgerät/GAWP) | Q55: 10 | R55: 15
A56: Deckungsrate 2 x GAWP | D56: =VLOOKUP(L48,Q53:R80,2) -> 100 | E56: % | F56: (Ergibt sich aus Leistungsverhältnis Brennwertgerät/GAWP) | Q56: 15 | R56: 25
Q57: 20 | R57: 33
A58: Jahresarbeit Gas-Brennwertgerät | D58: =(D31*(D55/100)) -> 0 | E58: kWh/a | F58: (Deckungsrate berücksichtigt)
A59: Jahresarbeit 2 x GAWP | D59: =(D31*(D56/100)) -> 80000 | E59: kWh/a | F59: (Deckungsrate berücksichtigt) | Q59: 25 | R59: 41
Q60: 30 | R60: 50
A61: Vollbenutzungsstunden Gas-Brennwertgerät | D61: =IF(D52=0,0,(D58/D52)) -> 0 | E61: h | F61: (ergibt sich aus Jahresarbeit/Leistung)
A62: Vollbenutzungsstunden 2 x GAWP | D62: =(D59/D53) -> 2000 | E62: h | F62: (ergibt sich aus Jahresarbeit/Leistung) | Q62: 35 | R62: 58
Q63: 40 | R63: 67
A64: Flüssiggasverbrauch Gas-Brennwertgerät | D64: =(D58/D3) -> 0 | E64: kWh/a | F64: (ergibt sich aus Jahresarbeit/Wirkungsgrad) | I64: N_B_FLGAS_BW
A65: Flüssiggasverbrauch 2 x GAWP | D65: =(D59/D4) -> 51612.90323 | E65: kWh/a | F65: (ergibt sich aus Jahresarbeit/Wirkungsgrad) | I65: N_B_FLGAS_GAWP | Q65: 45 | R65: 75
Q66: 50 | R66: 80
A67: Kosten Flüssiggasverbrauch Gas-Brennwertgerät | D67: =(D64*D16) -> 0 | E67: €/a | F67: (ergibt sich aus Flüssiggasverbrauch x mittlerer Flüssiggaspreis)
A68: Kosten Flüssiggasverbrauch 2 x GAWP | D68: =(D65*D16) -> 7405.637323 | E68: €/a | F68: (ergibt sich aus Flüssiggasverbrauch x mittlerer Flüssiggaspreis) | Q68: 55 | R68: 83
Q69: 60 | R69: 87
A70: Wartungskosten Gas-Brennwertgerät | D70: 300 | E70: €/a | I70: N_B_WART_BW
A71: Wartungskosten 2 x GAWP | D71: 500 | E71: €/a | I71: N_B_WART_GAWP | Q71: 65 | R71: 90
Q72: 70 | R72: 92
A73: Stromverbrauch 2 x GAWP | D73: =(D62*D5)*2 -> 1880 | E73: kWh/a | I73: N_B_STROM_LÜ_GAWP | Q73: 75 | R73: 94
A74: Stromkosten 2 x GAWP | D74: =(D73*D20) -> 770.7152556 | E74: €/a | F74: (Stromverbrauch x mittlerer Strompreis) | Q74: 80 | R74: 96
A75: Stromverbrauch Gas-Brennwertgerät | D75: =(D61*D6) -> 0 | E75: kWh/a | I75: N_B_STROM_BW
A76: Stromkosten Gas-Brennwertgerät | D76: =(D75*D20) -> 0 | E76: €/a | F76: (Stromverbrauch x mittlerer Strompreis)
A77: Stromverbrauch 4 x Umwälzpumpe GAWP | D77: =((D62)*D7*4) -> 400 | E77: kWh/a | I77: N_B_STROM_PU_GAWP | Q77: 85 | R77: 97
A78: Stromkosten 4 x Umwälzpumpe GAWP | D78: =(D77*D20) -> 163.9819693 | E78: €/a | F78: (Stromverbrauch x mittlerer Strompreis) | Q78: 90 | R78: 98
Q79: 95 | R79: 99
A80: Betriebskosten pro Jahr gesamt: | D80: =SUM(D67:D71)+D78+D74+D76 -> 9140.334547 | E80: €/a | Q80: 100 | R80: 100
A82: FAZIT:
A83: Mittlere Energieeinsparung pro Jahr bei Einsatz
A84: von zwei GAWP SW und Gas-Brennwertgerät
A85: gegenüber "nur Gas-Brennwert" (Flüssiggas): | D85: =(D38-D80) -> 2037.858015 | E85: €/a
A87: Differenz Investitionskosten: | D87: =(D48-D27) ->  | E87: €
A89: Für einen auf 20 Jahre gemittelten Engergiepreis
A90: ergibt sich eine Amortisationszeit von: | D90: =IF((D87/D85)<0,"sofort",(D87/D85)) ->  | E90: =IF((D87/D85)<0,"","Jahren") -> 

Sheet SW3 bival FLGAS
A1: Aktueller Flüssiggaspreis | D1: =(Energiepreisberechnung!D29) -> 0.07 | E1: €/kWh
A2: Aktueller Strompreis | D2: =(Energiepreisberechnung!D31) -> 0.2 | E2: €/kWh
A3: Gemittelter Wirkungsgrad Gasbrennwertgerät | D3: 1.06
A4: Gemittelter Wirkungsgrad GAWP SW | D4: 1.55
A5: Elektr. Leistung GAWP SW | D5: 0.47 | E5: kW
A6: Elektr. Leistung Kesselkreispumpe | D6: 0.1 | E6: kW
A7: Elektr. Leistung Umwälzpumpe GAWP | D7: 0.05 | E7: kW
A9: Gesucht: | B9: Investitions- und Betriebskosten während 20 Jahren
A11: 1.
A12: Errechnung der mittleren Energiepreise binnen 20 Jahren
A14: Flüssiggaspreis Anfangsjahr: | D14: =(D1) -> 0.07 | E14: €/kWh
A15: Flüssiggaspreis im 20´sten Jahr: | D15: =(Energiepreisberechnung!D22) -> 0.2531569275 | E15: €/kWh
A16: Mittlerer Flüssiggaspreis während 20 Jahren: | D16: =(Energiepreisberechnung!D24) -> 0.1434842231 | E16: €/kWh
A18: Strompreis Anfangsjahr: | D18: =(D2) -> 0.2 | E18: €/kWh
A19: Strompreis im 20´sten Jahr: | D19: =(Energiepreisberechnung!E22) -> 0.723305507 | E19: €/kWh
A20: Mittlerer Strompreis während 20 Jahren: | D20: =(Energiepreisberechnung!E24) -> 0.4099549232 | E20: €/kWh
A22: 2.
A23: Betrachtung für ein neues Gasbrennwertgerät | D23: =(Master!D5) -> 40 | E23: kW
A25: 2a
A26: Investitionskosten | D26: =(Master!D8) -> 5000 | E26: €
A27: Investitionskosten gesamt: | D27: =(D26) -> 5000 | E27: € | I27: R_I_GAS
A29: 2b
A30: Betriebskosten Gas-Brennwertgerät
A31: Jahresarbeit Gas-Brennwertgerät | D31: =(Master!D5*Master!D6) -> 80000 | E31: kWh/a | F31: (Leistung x Jahresvollbenutzungsstunden)
A32: Energieverbrauch Gas-Brennwertgerät | D32: =(D31/D3) -> 75471.69811 | E32: kWh/a | F32: (Wirkungsgrad berücksichtigt) | I32: R_B_FLGAS
A33: Kosten Flüssiggas | D33: =(D32*D16) -> 10828.99797 | E33: €/a
A34: Wartungskosten Gas-Brennwertgerät | D34: 300 | E34: €/a | I34: R_B_WART_GAS
A35: Stromverbrauch 1 Stück Kesselkreispumpe | D35: =(Master!D6*D6) -> 200 | E35: kWh/a | I35: R_B_STROM_GAS
A36: Stromkosten 1 Stück Kesselkreispumpe | D36: =(D35*D20) -> 81.99098464 | E36: €/a | F36: (Stromverbrauch x mittlerer Strompreis)
A38: Betriebskosten pro Jahr gesamt: | D38: =SUM(D33:D34)+D36 -> 11210.98896 | E38: €/a
L39: Negative Werte sollen gleich Null gesetzt werden
A40: 3. | L40: =(Master!D5-D53) -> 0
A41: Betrachtung für drei GAWP 40 SW (120 kW) sowie Spitzenlastkessel
L42: Wärmepumpe soll nur die Anlagenheizlast erbringen, welche erforderlich ist
A43: 3a | L43: =IF(Master!D5<120,Master!D5,120) -> 40
A44: Investitionskosten
A45: 3 x GAWP + Zubehör | D45: =IF(Master!T12=TRUE,25000, (IF(Master!T13=TRUE,45000, (IF(Master!T14=TRUE,65000,""))))) ->  | E45: € | L45: Deckungsrate GAWP
A46: Förderung BAFA | D46: =IF(Master!$T$12=TRUE,(2400+100*30), (IF(Master!$T$13=TRUE,(2400+100*70), (IF(Master!$T$14=TRUE,(2400+100*110),""))))) ->  | E46: € | L46: =(D52+D53) -> 40 | M46: Max Leistung BW plus Leistung GAWP
A47: =IF(AND(Master!D5>29,Master!D5<55),Spitzenlastkessel!C4,(IF(AND(Master!D5>54,Master!D5<65),Spitzenlastkessel!C5,(IF(AND(Master!D5>64,Master!D5<85),Spitzenlastkessel!C6,(IF(AND(Master!D5>84,Master!D5<110),Spitzenlastkessel!C7,(IF(AND(Master!D5>109,Master!D5<135),Spitzenlastkessel!C8,(IF(AND(Master!D5>134,Master!D5<150),Spitzenlastkessel!C9,(IF(AND(Master!D5>149,Master!D5<200),Spitzenlastkessel!C10,(IF(AND(Master!D5>199,Master!D5<240),Spitzenlastkessel!C11,(IF(AND(Master!D5>239,Master!D5<300),Spitzenlastkessel!C12,(IF(AND(Master!D5>299,Master!D5<370),Spitzenlastkessel!C13,(IF(AND(Master!D5>369,Master!D5<450),Spitzenlastkessel!C14,(IF(AND(Master!D5>449,Master!D5<520),Spitzenlastkessel!C15,"Anlagenheizlast zu groß"))))))))))))))))))))))) -> Spitzenlastkessel GMR 3035 (35 kW) | D47: =IF(AND(Master!D5>29,Master!D5<55),Spitzenlastkessel!E4,(IF(AND(Master!D5>54,Master!D5<65),Spitzenlastkessel!E5,(IF(AND(Master!D5>64,Master!D5<85),Spitzenlastkessel!E6,(IF(AND(Master!D5>84,Master!D5<110),Spitzenlastkessel!E7,(IF(AND(Master!D5>109,Master!D5<135),Spitzenlastkessel!E8,(IF(AND(Master!D5>134,Master!D5<150),Spitzenlastkessel!E9,(IF(AND(Master!D5>149,Master!D5<200),Spitzenlastkessel!E10,(IF(AND(Master!D5>199,Master!D5<240),Spitzenlastkessel!E11,(IF(AND(Master!D5>239,Master!D5<300),Spitzenlastkessel!E12,(IF(AND(Master!D5>299,Master!D5<370),Spitzenlastkessel!E13,(IF(AND(Master!D5>369,Master!D5<450),Spitzenlastkessel!E14,(IF(AND(Master!D5>449,Master!D5<520),Spitzenlastkessel!E15,"Anlagenheizlast zu groß"))))))))))))))))))))))) -> 3600 | E47: € | F47: (gewählt) | L47: =(100/L46)*D53 -> 100 | M47: Prozentuale Anlagenheizlast von GAWP
A48: Investitionskosten gesamt: | D48: =(D45+D47-D46) ->  | E48: € | I48: N_I_GAWP_u_BW | L48: =MROUND(L47,5) -> 100 | M48: Gerundet
Q49: Prozentuale Anlagen- heizlast der GAWP
A50: 3b | L50: =VLOOKUP(L48,Q53:R80,2) -> 100 | M50: Deckungsrate GAWP | R50: Deckungs- rate
A51: Betriebskosten
A52: Max. Leistung Brennwertgerät | D52: =IF(L40<0,0,(Master!D5-D53)) -> 0 | E52: kW
A53: Leistung 3 x GAWP | D53: =(L43) -> 40 | E53: kW | Q53: 0 | R53: 0
Q54: 5 | R54: 8
A55: Deckungsrate Brennwertgerät | D55: =(100-D56) -> 0 | E55: % | F55: (Ergibt sich aus Leistungsverhältnis Brennwertgerät/GAWP) | Q55: 10 | R55: 15
A56: Deckungsrate 3 x GAWP | D56: =VLOOKUP(L48,Q53:R80,2) -> 100 | E56: % | F56: (Ergibt sich aus Leistungsverhältnis Brennwertgerät/GAWP) | Q56: 15 | R56: 25
Q57: 20 | R57: 33
A58: Jahresarbeit Gas-Brennwertgerät | D58: =(D31*(D55/100)) -> 0 | E58: kWh/a | F58: (Deckungsrate berücksichtigt)
A59: Jahresarbeit 3 x GAWP | D59: =(D31*(D56/100)) -> 80000 | E59: kWh/a | F59: (Deckungsrate berücksichtigt) | Q59: 25 | R59: 41
Q60: 30 | R60: 50
A61: Vollbenutzungsstunden Gas-Brennwertgerät | D61: =IF(D52=0,0,(D58/D52)) -> 0 | E61: h | F61: (ergibt sich aus Jahresarbeit/Leistung)
A62: Vollbenutzungsstunden 3 x GAWP | D62: =(D59/D53) -> 2000 | E62: h | F62: (ergibt sich aus Jahresarbeit/Leistung) | Q62: 35 | R62: 58
Q63: 40 | R63: 67
A64: Flüssiggasverbrauch Gas-Brennwertgerät | D64: =(D58/D3) -> 0 | E64: kWh/a | F64: (ergibt sich aus Jahresarbeit/Wirkungsgrad) | I64: N_B_FLGAS_BW
A65: Flüssiggasverbrauch 3 x GAWP | D65: =(D59/D4) -> 51612.90323 | E65: kWh/a | F65: (ergibt sich aus Jahresarbeit/Wirkungsgrad) | I65: N_B_FLGAS_GAWP | Q65: 45 | R65: 75
Q66: 50 | R66: 80
A67: Kosten Flüssiggasverbrauch Gas-Brennwertgerät | D67: =(D64*D16) -> 0 | E67: €/a | F67: (ergibt sich aus Flüssiggasverbrauch x mittlerer Flüssiggaspreis)
A68: Kosten Flüssiggasverbrauch 3 x GAWP | D68: =(D65*D16) -> 7405.637323 | E68: €/a | F68: (ergibt sich aus Flüssiggasverbrauch x mittlerer Flüssiggaspreis) | Q68: 55 | R68: 83
Q69: 60 | R69: 87
A70: Wartungskosten Gas-Brennwertgerät | D70: 300 | E70: €/a | I70: N_B_WART_BW
A71: Wartungskosten 3 x GAWP | D71: 700 | E71: €/a | I71: N_B_WART_GAWP | Q71: 65 | R71: 90
Q72: 70 | R72: 92
A73: Stromverbrauch 3 x GAWP | D73: =(D62*D5)*3 -> 2820 | E73: kWh/a | I73: N_B_STROM_LÜ_GAWP | Q73: 75 | R73: 94
A74: Stromkosten 3 x GAWP | D74: =(D73*D20) -> 1156.072883 | E74: €/a | F74: (Stromverbrauch x mittlerer Strompreis) | Q74: 80 | R74: 96
A75: Stromverbrauch Gas-Brennwertgerät | D75: =(D61*D6) -> 0 | E75: kWh/a | I75: N_B_STROM_BW
A76: Stromkosten Gas-Brennwertgerät | D76: =(D75*D20) -> 0 | E76: €/a | F76: (Stromverbrauch x mittlerer Strompreis)
A77: Stromverbrauch 6 x Umwälzpumpe GAWP | D77: =((D62)*D7*6) -> 600 | E77: kWh/a | I77: N_B_STROM_PU_GAWP | Q77: 85 | R77: 97
A78: Stromkosten 6 x Umwälzpumpe GAWP | D78: =(D77*D20) -> 245.9729539 | E78: €/a | F78: (Stromverbrauch x mittlerer Strompreis) | Q78: 90 | R78: 98
Q79: 95 | R79: 99
A80: Betriebskosten pro Jahr gesamt: | D80: =SUM(D67:D71)+D78+D74+D76 -> 9807.68316 | E80: €/a | Q80: 100 | R80: 100
A82: FAZIT:
A83: Mittlere Energieeinsparung pro Jahr bei Einsatz
A84: von drei GAWP SW und Gas-Brennwertgerät
A85: gegenüber "nur Gas-Brennwert" (Flüssiggas): | D85: =(D38-D80) -> 1403.305796 | E85: €/a
A87: Differenz Investitionskosten: | D87: =(D48-D27) ->  | E87: €
A89: Für einen auf 20 Jahre gemittelten Engergiepreis
A90: ergibt sich eine Amortisationszeit von: | D90: =IF((D87/D85)<0,"sofort",(D87/D85)) ->  | E90: =IF((D87/D85)<0,"","Jahren") -> 

Sheet SW mono ÖL
A1: Aktueller Gaspreis | D1: =(Energiepreisberechnung!D28) -> 0.055 | E1: €/kWh
A2: Aktueller Ölpreis | D2: =(Energiepreisberechnung!D30) -> 0.085 | E2: €/kWh
A3: Aktueller Strompreis | D3: =(Energiepreisberechnung!D31) -> 0.2 | E3: €/kWh
A4: Gemittelter Wirkungsgrad Ölkessel | D4: 0.93
A5: Gemittelter Wirkungsgrad GAWP SW | D5: 1.55
A6: Elektr. Leistung GAWP SW | D6: 0.47 | E6: kW
A7: Elektr. Leistung Kesselkreispumpe | D7: 0.05 | E7: kW
A9: Gesucht: | B9: Investitions- und Betriebskosten während 20 Jahren
A11: 1.
A12: Errechnung der mittleren Energiepreise binnen 20 Jahren
A14: Gaspreis Anfangsjahr: | D14: =(D1) -> 0.055 | E14: €/kWh
A15: Gaspreis im 20´sten Jahr: | D15: =(Energiepreisberechnung!C22) -> 0.1989090144 | E15: €/kWh
A16: Mittlerer Gaspreis während 20 Jahren: | D16: =(Energiepreisberechnung!C24) -> 0.1127376039 | E16: €/kWh
A18: Ölpreis Anfangsjahr: | D18: =(D2) -> 0.085 | E18: €/kWh
A19: Ölpreis im 20´sten Jahr: | D19: =(Energiepreisberechnung!F22) -> 0.3074048405 | E19: €/kWh
A20: Mittlerer Ölpreis während 20 Jahren: | D20: =(Energiepreisberechnung!F24) -> 0.1742308424 | E20: €/kWh
A22: Strompreis Anfangsjahr: | D22: =(D3) -> 0.2 | E22: €/kWh
A23: Strompreis im 20´sten Jahr: | D23: =(Energiepreisberechnung!E22) -> 0.723305507 | E23: €/kWh
A24: Mittlerer Strompreis während 20 Jahren: | D24: =(Energiepreisberechnung!E24) -> 0.4099549232 | E24: €/kWh
A26: 2.
A27: Betrachtung ohne Investition (bestehende Kessel bleiben)
A29: 2a
A30: Investitionskosten
A31: Investitionskosten gesamt: | D31: 0 | E31: € | I31: R_I_ÖL
A33: 2b
A34: Betriebskosten Öl
A35: Jahresarbeit Ölkessel | D35: =(Master!D5*Master!D6) -> 80000 | E35: kWh/a | F35: (Leistung x Jahresvollbenutzungsstunden)
A36: Energieverbrauch Ölkessel | D36: =(D35/D4) -> 86021.50538 | E36: kWh/a | F36: (Wirkungsgrad berücksichtigt) | I36: R_B_ÖL
A37: Kosten Öl | D37: =(D36*D20) -> 14987.59934 | E37: €/a
A38: Wartungskosten Ölkessel | D38: 300 | E38: €/a | I38: R_B_WART_ÖL
A39: Stromverbrauch 1 Stück Kesselkreispumpe | D39: =(Master!D6*D7) -> 100 | E39: kWh/a | I39: R_B_STROM_ÖL
A40: Stromkosten 1 Stück Kesselkreispumpe | D40: =(D39*D24) -> 40.99549232 | E40: €/a | F40: (Stromverbrauch x mittlerer Strompreis)
A42: Betriebskosten pro Jahr gesamt: | D42: =SUM(D37:D38)+D40 -> 15328.59484 | E42: €/a
A44: 3.
A45: Betrachtung für eine GAWP 40 SW (40 kW) monovalent
A47: 3a
A48: Investitionskosten
A49: GAWP + Zubehör | D49: =IF(Master!T9=TRUE,25000, (IF(Master!T10=TRUE,45000, (IF(Master!T11=TRUE,65000,""))))) -> 45000 | E49: €
A50: Förderung BAFA | D50: =IF(Master!$T$9=TRUE,(2400+100*30), (IF(Master!$T$10=TRUE,(2400+100*70), (IF(Master!$T$11=TRUE,(2400+100*110),""))))) -> 9400 | E50: €
A51: Investitionskosten gesamt: | D51: =(D49-D50) -> 35600 | E51: € | I51: N_I_GAWP_u_BW
A53: 3b
A54: Betriebskosten
A55: Leistung GAWP | D55: =(Master!D5) -> 40 | E55: kW
A56: Jahresarbeit GAWP | D56: =(D35) -> 80000 | E56: kWh/a | F56: (ergibt sich aus Deckungsrate = 100%)
A58: Vollbenutzungsstunden GAWP | D58: =(D56/D55) -> 2000 | E58: h | F58: (ergibt sich aus Jahresarbeit/Leistung)
A60: Gasverbrauch GAWP | D60: =(D56/D5) -> 51612.90323 | E60: kWh/a | F60: (ergibt sich aus Jahresarbeit/Wirkungsgrad) | I60: N_B_GAS_GAWP
A62: Kosten Gasverbrauch GAWP | D62: =(D60*D16) -> 5818.715039 | E62: €/a | F62: (ergibt sich aus Gasverbrauch x mittlerer Gaspreis)
A64: Wartungskosten GAWP | D64: 300 | E64: €/a | I64: N_B_WART_GAWP
A66: Stromverbrauch GAWP | D66: =(D58*D6) -> 940 | E66: kWh/a | I66: N_B_STROM_LÜ_GAWP
A67: Stromkosten GAWP | D67: =(D66*D24) -> 385.3576278 | E67: €/a | F67: (Stromverbrauch x mittlerer Strompreis)
A68: Stromverbrauch 2 x Umwälzpumpe GAWP | D68: =((D58)*D7*2) -> 200 | E68: kWh/a | I68: N_B_STROM_PU_GAWP
A69: Stromkosten 2 x Umwälzpumpe GAWP | D69: =(D68*D24) -> 81.99098464 | E69: €/a | F69: (Stromverbrauch x mittlerer Strompreis)
A71: Betriebskosten pro Jahr gesamt: | D71: =SUM(D62:D64)+D69+D67 -> 6586.063652 | E71: €/a
A73: FAZIT:
A74: Mittlere Energieeinsparung pro Jahr bei Einsatz
A75: von einer monovalenten GAWP SW gegenüber
